{"text_format":"1","workbook":"xlsx","n_sheets":3,"sheets":["Лист1","Лист3","Лист2"],"not_rendered":{"charts":0,"images":0,"macros":1,"external_links":0,"defined_names":1,"comments":1,"pivot_tables":0},"unopened":[],"bounds":{"document_bytes":16777216,"sheet_cells":100000,"rows_first":2000,"rows_last":500,"rows_between":2000,"halvings":0,"cell_chars":16384,"cell_head_chars":4096},"cells_cut":0,"cells_raw":0,"read":"whole","date_system":"1900"}

{"sheet":"Лист1","index":0,"n_rows":287,"n_cols":141,"rows_kept":287,"cut":false,"hidden":false,"merged":[]}
["ОПКР 23.12.2013 № 1354","ОПКР 30.06.2014 № 540","ОПКР 09.02.2015 № 86","ОПКР 30.11.2015 № 1014","ОПКР 20.06.2016 № 537","ОПКР 28.11.2016 № 1067","2016-12-01","2017-01-01","2017-02-01","2017-03-01","2017-04-01","2017-05-01","2017-06-01","ОПКР 10.07.2017 № 618","2017-08-01","2017-09-01","2017-10-01","2017-11-01","2017-12-01","2018-01-01","2018-02-01","2018-03-01","2018-04-01","2018-05-01","2018-06-01","2018-07-01","2018-08-01","2018-09-01","2018-10-01","2018-11-01","ОПКР 30.11.2018 № 1057","2018-12-01","2019-01-01","2019-02-01","2019-03-01","ОПКР 01.04.2019 № 328","2019-04-01","2019-05-01","2019-06-01","2019-07-01","2019-08-01","2019-09-01","2019-10-01","2019-11-01","2019-12-01","2020-01-01","ОПКР 20.01.2020 № 26","2020-02-01","2020-03-01","2020-04-01","2020-05-01","2020-06-01","2020-07-01","ОПКР 27.07.2020 № 811","2020-08-01","2020-09-01","2020-10-01","2020-11-01","2020-12-01","ОПКР 28.12.2020 № 1555","2021-01-01","2021-02-01","2021-03-01","2021-04-01","2021-05-01","2021-06-01","2021-07-01","2021-08-01","ОПКР 06.09.2021 № 1064","2021-09-01","2021-10-01","2021-11-01","2021-12-01","2022-01-01","ОПКР 07.02.2022 № 153","2022-02-01","2022-03-01","2022-04-01","2022-05-01","2022-06-01","2022-07-01","2022-08-01","ОПКР 19.09.2022 № 1146","2022-09-01","2022-10-01","2022-11-01","2022-12-01","2023-01-01","2023-02-01","ОПКР 06.03.2023 № 32","2023-03-01","2023-04-01","2023-05-01","2023-06-01","2023-07-01","2023-08-01","2023-09-01","2023-10-01","ОПКР 30.10.2023 № 1224","2023-11-01","2023-12-01","2024-01-01","2024-02-01","ОПКР 05.03.2024 № 253","2024-03-01","2024-04-01","2024-05-01","2024-06-01","2024-07-01","2024-08-01","2024-09-01","2024-10-01","ОПКР 07.11.2024 № 1279","2024-12-01","2025-01-01","2025-02-01","2025-03-01","ОПКР 02.04.2025 № 487","2025-05-01","2025-06-01","2025-07-01","2025-08-01","ОПКР 18.09.2025 № 1311","2025-10-01","2025-11-01","ОПКР 03.12.2025 № 1642","2026-01-01","2026-02-01","2026-03-01","2026-04-01","2026-05-01","2026-06-01","2026-07-01","2026-08-01","2026-09-01","2026-10-01","2026-11-01","2026-12-01","способ формирования","наименование владельца","смена способа"]
[{"$f":"\"Артюшинское с/п, Анашкино д, д. 14\"","v":"Артюшинское с/п, Анашкино д, д. 14"},"Артюшинское с/п, Анашкино д, д. 14","Артюшинское с/п, Анашкино д, д. 14","Артюшинское с/п, Анашкино д, д. 14","Артюшинское с/п, Анашкино д, д. 14","Артюшинское с/п, Анашкино д, д. 14",null,null,null,null,null,null,null,{"$f":"\"Артюшинское с/п, Анашкино д, д. 14\"","v":"Артюшинское с/п, Анашкино д, д. 14"},null,null,null,null,null,null,null,null,null,null,null,null,null,null,null,null,"Артюшинское с/п, Анашкино д, д. 14",null,null,null,null,"Артюшинское с/п, Анашкино д, д. 14",null,null,null,null,null,null,null,null,null,null,"Артюшинское с/п, Анашкино д, д. 14",null,null,null,null,null,null,"Артюшинское с/п, Анашкино д, д. 14",null,null,null,null,null,"Артюшинское с/п, Анашкино д, д. 14",null,null,null,null,null,null,null,null,"Артюшинское с/п, Анашкино д, д. 14",null,null,null,null,null,"Артюшинское с/п, Анашкино д, д. 14",null,null,null,null,null,null,null,"Артюшинское с/п, Анашкино д, д. 14",null,null,null,null,null,null,"Артюшинское с/п, Анашкино д, д. 14",null,null,null,null,null,null,null,null,"Артюшинское с/п, Анашкино д, д. 14",null,null,null,null,"Артюшинское с/п, Анашкино д, д. 14",null,null,null,null,null,null,null,null,null,null,null,null,null,null,null,null,null,null,null,null,null,null,null,null,null,null,null,null,null,null,null,null,null,null,"Общий счет РО+553,90","Признан аварийным. Постановление 431 от 24.04.2024","Исключен 07.11.2024"]
[{"$f":"\"Артюшинское с/п, Анашкино д, д. 16\"","v":"Артюшинское с/п, Анашкино д, д. 16"},{"$f":"\"Артюшинское с/п, Анашкино д, д. 16\"","v":"Артюшинское с/п, Анашкино д, д. 16"},null,null,null,null,null,null,null,null,null,null,null,{"$f":"\"Артюшинское с/п, Анашкино д, д. 16\"","v":"Артюшинское с/п, Анашкино д, д. 16"},null,null,null,null,null,null,null,null,null,null,null,null,null,null,null,null,"Артюшинское с/п, Анашкино д, д. 16",null,null,null,null,"Артюшинское с/п, Анашкино д, д. 16",null,null,null,null,null,null,null,null,null,null,"Артюшинское с/п, Анашкино д, д. 16",null,null,null,null,null,null,"Артюшинское с/п, Анашкино д, д. 16",null,null,null,null,null,"Артюшинское с/п, Анашкино д, д. 16",null,null,null,null,null,null,null,null,"Артюшинское с/п, Анашкино д, д. 16",null,null,null,null,null,"Артюшинское с/п, Анашкино д, д. 16",null,null,null,null,null,null,null,null,null,null,null,null,null,null,null,null,null,null,null,null,null,null,null,null,null,null,null,null,null,null,null,null,null,null,null,null,null,null,null,null,null,null,null,null,null,null,null,null,null,null,null,null,null,null,null,null,null,null,null,null,null,null,null,"Общий счет РО - 490,20","Признан аварийным. Постановление № 8 от 01.02.2021","Исключен 19.09.2022"]
[{"$f":"\"Артюшинское с/п, Анашкино д, д. 31\"","v":"Артюшинское с/п, Анашкино д, д. 31"},{"$f":"\"Артюшинское с/п, Анашкино д, д. 31\"","v":"Артюшинское с/п, Анашкино д, д. 31"},null,null,null,null,null,null,null,null,null,null,null,{"$f":"\"Артюшинское с/п, Анашкино д, д. 31\"","v":"Артюшинское с/п, Анашкино д, д. 31"},null,null,null,null,null,null,null,null,null,null,null,null,null,null,null,null,"Артюшинское с/п, Анашкино д, д. 31",null,null,null,null,null,null,null,null,null,null,null,null,null,null,null,null,null,null,null,null,null,null,null,null,null,null,null,null,null,null,null,null,null,null,null,null,null,null,null,null,null,null,null,null,null,null,null,null,null,null,null,null,null,null,null,null,null,null,null,null,null,null,null,null,null,null,null,null,null,null,null,null,null,null,null,null,null,null,null,null,null,null,null,null,null,null,null,null,null,null,null,null,null,null,null,null,null,null,null,null,null,null,null,null,null,null,null,"Общий счет РО - 91,50",null,"Исключен 01.04.2019"]
[{"$f":"\"Артюшинское с/п, Анашкино д, д. 32\"","v":"Артюшинское с/п, Анашкино д, д. 32"},{"$f":"\"Артюшинское с/п, Анашкино д, д. 32\"","v":"Артюшинское с/п, Анашкино д, д. 32"},{"$f":"\"д.Анашкино (Артюшинского с/с), д.32\"","v":"д.Анашкино (Артюшинского с/с), д.32"},{"$f":"\"д.Анашкино (Артюшинского с/с), д.32\"","v":"д.Анашкино (Артюшинского с/с), д.32"},{"$f":"\"д.Анашкино (Артюшинского с/с), д.32\"","v":"д.Анашкино (Артюшинского с/с), д.32"},{"$f":"\"д.Анашкино (Артюшинского с/с), д.32\"","v":"д.Анашкино (Артюшинского с/с), д.32"},null,null,null,null,null,null,null,{"$f":"\"д.Анашкино (Артюшинского с/с), д.32\"","v":"д.Анашкино (Артюшинского с/с), д.32"},null,null,null,null,null,null,null,null,null,null,null,null,null,null,null,null,"Артюшинское с/п, Анашкино д, д. 32",null,null,null,null,"Артюшинское с/п, Анашкино д, д. 32",null,null,null,null,null,null,null,null,null,null,null,null,null,null,null,null,null,null,null,null,null,null,null,"Артюшинское с/п, Анашкино д, д. 32",null,null,null,null,null,null,null,null,"Артюшинское с/п, Анашкино д, д. 32",null,null,null,null,null,"Артюшинское с/п, Анашкино д, д. 32",null,null,null,null,null,null,null,"Артюшинское с/п, Анашкино д, д. 32",null,null,null,null,null,null,"Артюшинское с/п, Анашкино д, д. 32",null,null,null,null,null,null,null,null,null,null,null,null,null,null,null,null,null,null,null,null,null,null,null,null,null,null,null,null,null,null,null,null,null,null,null,null,null,null,null,null,null,null,null,null,null,null,null,null,"Общий счет РО 214,20",null,"Исключен 20.01.2020            Включен 28.12.2020"]
[{"$f":"\"Артюшинское с/п, Анашкино д, д. 33\"","v":"Артюшинское с/п, Анашкино д, д. 33"},{"$f":"\"Артюшинское с/п, Анашкино д, д. 33\"","v":"Артюшинское с/п, Анашкино д, д. 33"},null,null,null,null,null,null,null,null,null,null,null,{"$f":"\"Артюшинское с/п, Анашкино д, д. 33\"","v":"Артюшинское с/п, Анашкино д, д. 33"},null,null,null,null,null,null,null,null,null,null,null,null,null,null,null,null,"Артюшинское с/п, Анашкино д, д. 33",null,null,null,null,"Артюшинское с/п, Анашкино д, д. 33",null,null,null,null,null,null,null,null,null,null,"Артюшинское с/п, Анашкино д, д. 33",null,null,null,null,null,null,"Артюшинское с/п, Анашкино д, д. 33",null,null,null,null,null,"Артюшинское с/п, Анашкино д, д. 33",null,null,null,null,null,null,null,null,"Артюшинское с/п, Анашкино д, д. 33",null,null,null,null,null,"Артюшинское с/п, Анашкино д, д. 33",null,null,null,null,null,null,null,"Артюшинское с/п, Анашкино д, д. 33",null,null,null,null,null,null,"Артюшинское с/п, Анашкино д, д. 33",null,null,null,null,null,null,null,null,"Артюшинское с/п, Анашкино д, д. 33",null,null,null,null,"Артюшинское с/п, Анашкино д, д. 33",null,null,null,null,null,null,null,null,null,null,null,null,null,null,null,null,null,null,null,null,null,null,null,null,null,null,null,null,null,null,null,null,null,null,"Общий счет РО+186,70","Признан аварийным. Постановление 598 от 05.06.2024","Исключен 07.11.2024"]
[{"$f":"\"Артюшинское с/п, Анашкино д, д. 34\"","v":"Артюшинское с/п, Анашкино д, д. 34"},{"$f":"\"Артюшинское с/п, Анашкино д, д. 34\"","v":"Артюшинское с/п, Анашкино д, д. 34"},null,null,null,null,null,null,null,null,null,null,null,{"$f":"\"Артюшинское с/п, Анашкино д, д. 34\"","v":"Артюшинское с/п, Анашкино д, д. 34"},null,null,null,null,null,null,null,null,null,null,null,null,null,null,null,null,"Артюшинское с/п, Анашкино д, д. 34",null,null,null,null,"Артюшинское с/п, Анашкино д, д. 34",null,null,null,null,null,null,null,null,null,null,null,null,null,null,null,null,null,null,null,null,null,null,null,null,null,null,null,null,null,null,null,null,null,null,null,null,null,null,null,null,null,null,null,null,null,null,null,null,null,null,null,null,null,null,null,null,null,null,null,null,null,null,null,null,null,null,null,null,null,null,null,null,null,null,null,null,null,null,null,null,null,null,null,null,null,null,null,null,null,null,null,null,null,null,null,null,null,null,null,null,null,null,"Общий счет РО - 185,10",null,"Исключен 20.01.2020"]
[null,null,null,null,null,null,null,null,null,null,null,null,null,null,null,null,null,null,null,null,null,null,null,null,null,null,null,null,null,null,null,null,null,null,null,null,null,null,null,null,null,null,null,null,null,null,null,null,null,null,null,null,null,null,null,null,null,null,null,null,null,null,null,null,null,null,null,null,null,null,null,null,null,null,null,null,null,null,null,null,null,null,null,null,null,null,null,null,null,null,null,null,null,null,null,null,null,null,null,null,null,null,null,null,null,null,null,null,null,null,null,null,null,null,null,null,null,"Артюшинское с/п, Артюшино с., д. 56",null,null,null,null,"Артюшинское с/п, Артюшино с., д. 56",null,null,"Артюшино с., д. 56",null,null,null,null,null,null,null,null,null,null,null,null,"Общий счет РО+","Обязанность с 01.01.2026"]
[{"$f":"\"Артюшинское с/п, Остров Сладкий д, д.10\"","v":"Артюшинское с/п, Остров Сладкий д, д.10"},{"$f":"\"Артюшинское с/п, Остров Сладкий д, д.10\"","v":"Артюшинское с/п, Остров Сладкий д, д.10"},null,null,null,null,null,null,null,null,null,null,null,{"$f":"\"Артюшинское с/п, Остров Сладкий д, д.10\"","v":"Артюшинское с/п, Остров Сладкий д, д.10"},null,null,null,null,null,null,null,null,null,null,null,null,null,null,null,null,"Артюшинское с/п, Остров Сладкий д, д. 10",null,null,null,null,"Артюшинское с/п, Остров Сладкий д, д. 10",null,null,null,null,null,null,null,null,null,null,null,null,null,null,null,null,null,null,null,null,null,null,null,null,null,null,null,null,null,null,null,null,null,null,null,null,null,null,null,null,null,null,null,null,null,null,null,null,null,null,null,null,null,null,null,null,null,null,null,null,null,null,null,null,null,null,null,null,null,null,null,null,null,null,null,null,null,null,null,null,null,null,null,null,null,null,null,null,null,null,null,null,null,null,null,null,null,null,null,null,null,null,"Общий счет РО - 130,10",null,"Исключен 20.01.2020"]
[{"$f":"\"Артюшинское с/п, Остров Сладкий д, д.11\"","v":"Артюшинское с/п, Остров Сладкий д, д.11"},"Артюшинское с/п, Остров Сладкий д, д.11","Артюшинское с/п, Остров Сладкий д, д.11","Артюшинское с/п, Остров Сладкий д, д.11","Артюшинское с/п, Остров Сладкий д, д.11","Артюшинское с/п, Остров Сладкий д, д.11",null,null,null,null,null,null,null,{"$f":"\"Артюшинское с/п, Остров Сладкий д, д.11\"","v":"Артюшинское с/п, Остров Сладкий д, д.11"},null,null,null,null,null,null,null,null,null,null,null,null,null,null,null,null,"Артюшинское с/п, Остров Сладкий д, д. 11",null,null,null,null,null,null,null,null,null,null,null,null,null,null,null,null,null,null,null,null,null,null,null,null,null,null,null,null,null,null,null,null,null,null,null,null,null,null,null,null,null,null,null,null,null,null,null,null,null,null,null,null,null,null,null,null,null,null,null,null,null,null,null,null,null,null,null,null,null,null,null,null,null,null,null,null,null,null,null,null,null,null,null,null,null,null,null,null,null,null,null,null,null,null,null,null,null,null,null,null,null,null,null,null,null,null,null,"Общий счет РО - 162,90",null,"Исключен 01.04.2019"]
[{"$f":"\"Артюшинское с/п, Остров Сладкий д, д.3\"","v":"Артюшинское с/п, Остров Сладкий д, д.3"},"Артюшинское с/п, Остров Сладкий д, д.3","Артюшинское с/п, Остров Сладкий д, д.3","Артюшинское с/п, Остров Сладкий д, д.3","Артюшинское с/п, Остров Сладкий д, д.3","Артюшинское с/п, Остров Сладкий д, д.3",null,null,null,null,null,null,null,{"$f":"\"Артюшинское с/п, Остров Сладкий д, д.3\"","v":"Артюшинское с/п, Остров Сладкий д, д.3"},null,null,null,null,null,null,null,null,null,null,null,null,null,null,null,null,"Артюшинское с/п, Остров Сладкий д, д. 3",null,null,null,null,"Артюшинское с/п, Остров Сладкий д, д. 3",null,null,null,null,null,null,null,null,null,null,"Артюшинское с/п, Остров Сладкий д, д. 3",null,null,null,null,null,null,"Артюшинское с/п, Остров Сладкий д, д. 3",null,null,null,null,null,"Артюшинское с/п, Остров Сладкий д, д. 3",null,null,null,null,null,null,null,null,"Артюшинское с/п, Остров Сладкий д, д. 3",null,null,null,null,null,"Артюшинское с/п, Остров Сладкий д, д. 3",null,null,null,null,null,null,null,"Артюшинское с/п, Остров Сладкий д, д. 3",null,null,null,null,null,null,"Артюшинское с/п, Остров Сладкий д, д. 3",null,null,null,null,null,null,null,null,"Артюшинское с/п, Остров Сладкий д, д. 3",null,null,null,null,"Артюшинское с/п, Остров Сладкий д, д. 3",null,null,null,null,null,null,null,null,null,null,null,null,null,null,null,null,null,null,null,null,null,null,null,null,null,null,null,null,null,null,null,null,null,null,"Общий счет РО+462,30","Признан аварийным. Постановление 270 от 26.03.2024","Исключен 07.11.2024"]
[{"$f":"\"Артюшинское с/п, Остров Сладкий д, д.9\"","v":"Артюшинское с/п, Остров Сладкий д, д.9"},"Артюшинское с/п, Остров Сладкий д, д.9","Артюшинское с/п, Остров Сладкий д, д.9","Артюшинское с/п, Остров Сладкий д, д.9","Артюшинское с/п, Остров Сладкий д, д.9","Артюшинское с/п, Остров Сладкий д, д.9",null,null,null,null,null,null,null,{"$f":"\"Артюшинское с/п, Остров Сладкий д, д.9\"","v":"Артюшинское с/п, Остров Сладкий д, д.9"},null,null,null,null,null,null,null,null,null,null,null,null,null,null,null,null,"Артюшинское с/п, Остров Сладкий д, д. 9",null,null,null,null,"Артюшинское с/п, Остров Сладкий д, д. 9",null,null,null,null,null,null,null,null,null,null,"Артюшинское с/п, Остров Сладкий д, д. 9",null,null,null,null,null,null,"Артюшинское с/п, Остров Сладкий д, д. 9",null,null,null,null,null,"Артюшинское с/п, Остров Сладкий д, д. 9",null,null,null,null,null,null,null,null,"Артюшинское с/п, Остров Сладкий д, д. 9",null,null,null,null,null,"Артюшинское с/п, Остров Сладкий д, д. 9",null,null,null,null,null,null,null,"Артюшинское с/п, Остров Сладкий д, д. 9",null,null,null,null,null,null,"Артюшинское с/п, Остров Сладкий д, д. 9",null,null,null,null,null,null,null,null,"Артюшинское с/п, Остров Сладкий д, д. 9",null,null,null,null,"Артюшинское с/п, Остров Сладкий д, д. 9",null,null,null,null,null,null,null,null,"Артюшинское с/п, Остров Сладкий д, д. 9",null,null,null,null,"Артюшинское с/п, Остров Сладкий д, д. 9",null,null,null,null,"Артюшинское с/п, Остров Сладкий д, д. 9",null,null,"Артюшинское с/п, Остров Сладкий д, д. 9",null,null,null,null,null,null,null,null,null,null,null,null,"Общий счет РО+"]
[{"$f":"\"Белозерск г, 3 Интернационала ул, д.1\"","v":"Белозерск г, 3 Интернационала ул, д.1"},"Белозерск г, 3 Интернационала ул, д.1","Белозерск г, 3 Интернационала ул, д.1","Белозерск г, 3 Интернационала ул, д.1","Белозерск г, 3 Интернационала ул, д.1","Белозерск г, 3 Интернационала ул, д.1",null,null,null,null,null,null,null,{"$f":"\"Белозерск г, 3 Интернационала ул, д.1\"","v":"Белозерск г, 3 Интернационала ул, д.1"},null,null,null,null,null,null,null,null,null,null,null,null,null,null,null,null,"Белозерск г, 3 Интернационала ул, д. 1",null,null,null,null,"Белозерск г, 3 Интернационала ул, д. 1",null,null,null,null,null,null,null,null,null,null,"Белозерск г, 3-го Интернационала ул, д. 1",null,null,null,null,null,null,"Белозерск г, 3-го Интернационала ул, д. 1",null,null,null,null,null,"Белозерск г, 3-го Интернационала ул, д. 1",null,null,null,null,null,null,null,null,"Белозерск г, 3-го Интернационала ул, д. 1",null,null,null,null,null,"Белозерск г, 3-го Интернационала ул, д. 1",null,null,null,null,null,null,null,"Белозерск г, 3-го Интернационала ул, д. 1",null,null,null,null,null,null,"Белозерск г, 3-го Интернационала ул, д. 1",null,null,null,null,null,null,null,null,"Белозерск г, 3-го Интернационала ул, д. 1",null,null,null,null,"Белозерск г, 3-го Интернационала ул, д. 1",null,null,null,null,null,null,null,null,"Белозерск г, 3-го Интернационала ул, д. 1",null,null,null,null,"Белозерск г, 3-го Интернационала ул, д. 1",null,null,null,null,null,null,null,null,null,null,null,null,null,null,null,null,null,null,null,null,"Общий счет РО+324,8","Признан аварийным. Постановление 1044 от 15.08.2025"]
[{"$f":"\"Белозерск г, 3 Интернационала ул, д.14\"","v":"Белозерск г, 3 Интернационала ул, д.14"},"Белозерск г, 3 Интернационала ул, д.14","Белозерск г, 3 Интернационала ул, д.14","Белозерск г, 3 Интернационала ул, д.14","Белозерск г, 3 Интернационала ул, д.14","Белозерск г, 3 Интернационала ул, д.14",null,null,null,null,null,null,null,{"$f":"\"Белозерск г, 3 Интернационала ул, д.14\"","v":"Белозерск г, 3 Интернационала ул, д.14"},null,null,null,null,null,null,null,null,null,null,null,null,null,null,null,null,"Белозерск г, 3 Интернационала ул, д. 14",null,null,null,null,"Белозерск г, 3 Интернационала ул, д. 14",null,null,null,null,null,null,null,null,null,null,"Белозерск г, 3-го Интернационала ул, д. 14",null,null,null,null,null,null,"Белозерск г, 3-го Интернационала ул, д. 14",null,null,null,null,null,"Белозерск г, 3-го Интернационала ул, д. 14",null,null,null,null,null,null,null,null,"Белозерск г, 3-го Интернационала ул, д. 14",null,null,null,null,null,"Белозерск г, 3-го Интернационала ул, д. 14",null,null,null,null,null,null,null,"Белозерск г, 3-го Интернационала ул, д. 14",null,null,null,null,null,null,"Белозерск г, 3-го Интернационала ул, д. 14",null,null,null,null,null,null,null,null,"Белозерск г, 3-го Интернационала ул, д. 14",null,null,null,null,"Белозерск г, 3-го Интернационала ул, д. 14",null,null,null,null,null,null,null,null,"Белозерск г, 3-го Интернационала ул, д. 14",null,null,null,null,"Белозерск г, 3-го Интернационала ул, д. 14",null,null,null,null,"Белозерск г, 3-го Интернационала ул, д. 14",null,null,"Белозерск г, 3-го Интернационала ул, д. 14",null,null,null,null,null,null,null,null,null,null,null,null,"Общий счет РО+"]
[{"$f":"\"Белозерск г, 3 Интернационала ул, д.16\"","v":"Белозерск г, 3 Интернационала ул, д.16"},"Белозерск г, 3 Интернационала ул, д.16","Белозерск г, 3 Интернационала ул, д.16","Белозерск г, 3 Интернационала ул, д.16","Белозерск г, 3 Интернационала ул, д.16","Белозерск г, 3 Интернационала ул, д.16",null,null,null,null,null,null,null,{"$f":"\"Белозерск г, 3 Интернационала ул, д.16\"","v":"Белозерск г, 3 Интернационала ул, д.16"},null,null,null,null,null,null,null,null,null,null,null,null,null,null,null,null,"Белозерск г, 3 Интернационала ул, д. 16",null,null,null,null,"Белозерск г, 3 Интернационала ул, д. 16",null,null,null,null,null,null,null,null,null,null,"Белозерск г, 3-го Интернационала ул, д. 16",null,null,null,null,null,null,"Белозерск г, 3-го Интернационала ул, д. 16",null,null,null,null,null,"Белозерск г, 3-го Интернационала ул, д. 16",null,null,null,null,null,null,null,null,"Белозерск г, 3-го Интернационала ул, д. 16",null,null,null,null,null,"Белозерск г, 3-го Интернационала ул, д. 16",null,null,null,null,null,null,null,"Белозерск г, 3-го Интернационала ул, д. 16",null,null,null,null,null,null,"Белозерск г, 3-го Интернационала ул, д. 16",null,null,null,null,null,null,null,null,"Белозерск г, 3-го Интернационала ул, д. 16",null,null,null,null,"Белозерск г, 3-го Интернационала ул, д. 16",null,null,null,null,null,null,null,null,"Белозерск г, 3-го Интернационала ул, д. 16",null,null,null,null,"Белозерск г, 3-го Интернационала ул, д. 16",null,null,null,null,"Белозерск г, 3-го Интернационала ул, д. 16",null,null,"Белозерск г, 3-го Интернационала ул, д. 16",null,null,null,null,null,null,null,null,null,null,null,null,"Специальный счет РО + учет + взыскание",null,"ОС-ССРО с 08.2015"]
[{"$f":"\"Белозерск г, 3 Интернационала ул, д.34\"","v":"Белозерск г, 3 Интернационала ул, д.34"},"Белозерск г, 3 Интернационала ул, д.34","Белозерск г, 3 Интернационала ул, д.34","Белозерск г, 3 Интернационала ул, д.34","Белозерск г, 3 Интернационала ул, д.34","Белозерск г, 3 Интернационала ул, д.34",null,null,null,null,null,null,null,{"$f":"\"Белозерск г, 3 Интернационала ул, д.34\"","v":"Белозерск г, 3 Интернационала ул, д.34"},null,null,null,null,null,null,null,null,null,null,null,null,null,null,null,null,"Белозерск г, 3 Интернационала ул, д. 34",null,null,null,null,"Белозерск г, 3 Интернационала ул, д. 34",null,null,null,null,null,null,null,null,null,null,"Белозерск г, 3-го Интернационала ул, д. 34",null,null,null,null,null,null,"Белозерск г, 3-го Интернационала ул, д. 34",null,null,null,null,null,"Белозерск г, 3-го Интернационала ул, д. 34",null,null,null,null,null,null,null,null,"Белозерск г, 3-го Интернационала ул, д. 34",null,null,null,null,null,"Белозерск г, 3-го Интернационала ул, д. 34",null,null,null,null,null,null,null,"Белозерск г, 3-го Интернационала ул, д. 34",null,null,null,null,null,null,"Белозерск г, 3-го Интернационала ул, д. 34",null,null,null,null,null,null,null,null,"Белозерск г, 3-го Интернационала ул, д. 34",null,null,null,null,"Белозерск г, 3-го Интернационала ул, д. 34",null,null,null,null,null,null,null,null,null,null,null,null,null,null,null,null,null,null,null,null,null,null,null,null,null,null,null,null,null,null,null,null,null,null,"Общий счет РО+223,0","Признан аварийным. Постановление 621 от 14.06.2024","Исключен 07.11.2024"]
[{"$f":"\"Белозерск г, 3 Интернационала ул, д.35\"","v":"Белозерск г, 3 Интернационала ул, д.35"},{"$f":"\"Белозерск г, 3 Интернационала ул, д.35\"","v":"Белозерск г, 3 Интернационала ул, д.35"},{"$f":"\"Белозерск г, 3 Интернационала ул, д.35\"","v":"Белозерск г, 3 Интернационала ул, д.35"},{"$f":"\"Белозерск г, 3 Интернационала ул, д.35\"","v":"Белозерск г, 3 Интернационала ул, д.35"},{"$f":"\"Белозерск г, 3 Интернационала ул, д.35\"","v":"Белозерск г, 3 Интернационала ул, д.35"},null,null,null,null,null,null,null,null,null,null,null,null,null,null,null,null,null,null,null,null,null,null,null,null,null,null,null,null,null,null,null,null,null,null,null,null,null,null,null,null,null,null,null,null,null,null,null,null,null,null,null,null,null,null,null,null,null,null,null,null,null,null,null,null,null,null,null,null,null,null,null,null,null,null,null,null,null,null,null,null,null,null,null,null,null,null,null,null,null,null,null,null,null,null,null,null,null,null,null,null,null,null,null,null,null,null,null,null,null,null,null,null,null,null,null,null,null,null,null,null,null,null,null,null,null,null,null,null,null,null,null,null,null,null,"признан аварийным. Расчет прекращен с 01.08.2016","Исключен 28.11.2016"]
[{"$f":"\"Белозерск г, 3 Интернационала ул, д.55А\"","v":"Белозерск г, 3 Интернационала ул, д.55А"},"Белозерск г, 3 Интернационала ул, д.55А","Белозерск г, 3 Интернационала ул, д.55А","Белозерск г, 3 Интернационала ул, д.55А","Белозерск г, 3 Интернационала ул, д.55А","Белозерск г, 3 Интернационала ул, д.55А",null,null,null,null,null,null,null,{"$f":"\"Белозерск г, 3 Интернационала ул, д.55А\"","v":"Белозерск г, 3 Интернационала ул, д.55А"},null,null,null,null,null,null,null,null,null,null,null,null,null,null,null,null,"Белозерск г, 3 Интернационала ул, д. 55А",null,null,null,null,"Белозерск г, 3 Интернационала ул, д. 55А",null,null,null,null,null,null,null,null,null,null,"Белозерск г, 3-го Интернационала ул, д. 55А",null,null,null,null,null,null,"Белозерск г, 3-го Интернационала ул, д. 55А",null,null,null,null,null,"Белозерск г, 3-го Интернационала ул, д. 55А",null,null,null,null,null,null,null,null,null,null,null,null,null,null,null,null,null,null,null,null,null,null,null,null,null,null,null,null,null,null,null,null,null,null,null,null,null,null,null,null,null,null,null,null,null,null,null,null,null,null,null,null,null,null,null,null,null,null,null,null,null,null,null,null,null,null,null,null,null,null,null,null,null,null,null,null,null,null,"Общий счет РО - 336,70","Признан аварийным. Заключение № 140 от 01.02.2021","Исключен 06.09.2021"]
[{"$f":"\"Белозерск г, 3 Интернационала ул, д.60\"","v":"Белозерск г, 3 Интернационала ул, д.60"},"Белозерск г, 3 Интернационала ул, д.60","Белозерск г, 3 Интернационала ул, д.60","Белозерск г, 3 Интернационала ул, д.60","Белозерск г, 3 Интернационала ул, д.60","Белозерск г, 3 Интернационала ул, д.60",null,null,null,null,null,null,null,{"$f":"\"Белозерск г, 3 Интернационала ул, д.60\"","v":"Белозерск г, 3 Интернационала ул, д.60"},null,null,null,null,null,null,null,null,null,null,null,null,null,null,null,null,"Белозерск г, 3 Интернационала ул, д. 60",null,null,null,null,null,null,null,null,null,null,null,null,null,null,null,null,null,null,null,null,null,null,null,null,null,null,null,null,null,null,null,null,null,null,null,null,null,null,null,null,null,null,null,null,null,null,null,null,null,null,null,null,null,null,null,null,null,null,null,null,null,null,null,null,null,null,null,null,null,null,null,null,null,null,null,null,null,null,null,null,null,null,null,null,null,null,null,null,null,null,null,null,null,null,null,null,null,null,null,null,null,null,null,null,null,null,null,"Общий счет РО - 325,50",null,"Исключен 01.04.2019"]
[{"$f":"\"Белозерск г, 3 Интернационала ул, д.7\"","v":"Белозерск г, 3 Интернационала ул, д.7"},"Белозерск г, 3 Интернационала ул, д.7","Белозерск г, 3 Интернационала ул, д.7","Белозерск г, 3 Интернационала ул, д.7","Белозерск г, 3 Интернационала ул, д.7","Белозерск г, 3 Интернационала ул, д.7",null,null,null,null,null,null,null,{"$f":"\"Белозерск г, 3 Интернационала ул, д.7\"","v":"Белозерск г, 3 Интернационала ул, д.7"},null,null,null,null,null,null,null,null,null,null,null,null,null,null,null,null,"Белозерск г, 3 Интернационала ул, д. 7",null,null,null,null,"Белозерск г, 3 Интернационала ул, д. 7",null,null,null,null,null,null,null,null,null,null,"Белозерск г, 3-го Интернационала ул, д. 7",null,null,null,null,null,null,null,null,null,null,null,null,null,null,null,null,null,null,null,null,null,null,null,null,null,null,null,null,null,null,null,null,null,null,null,null,null,null,null,null,null,null,null,null,null,null,null,null,null,null,null,null,null,null,null,null,null,null,null,null,null,null,null,null,null,null,null,null,null,null,null,null,null,null,null,null,null,null,null,null,null,null,null,null,null,null,null,null,null,null,null,"Общий счет РО 201,00","Признан аварийным. Постановление 156 от 19.05.2020","Исключен 27.07.2020"]
[{"$f":"\"Белозерск г, 3 Интернационала ул, д.83А\"","v":"Белозерск г, 3 Интернационала ул, д.83А"},"Белозерск г, 3 Интернационала ул, д.83А","Белозерск г, 3 Интернационала ул, д.83А","Белозерск г, 3 Интернационала ул, д.83А","Белозерск г, 3 Интернационала ул, д.83А","Белозерск г, 3 Интернационала ул, д.83А",null,null,null,null,null,null,null,{"$f":"\"Белозерск г, 3 Интернационала ул, д.83А\"","v":"Белозерск г, 3 Интернационала ул, д.83А"},null,null,null,null,null,null,null,null,null,null,null,null,null,null,null,null,"Белозерск г, 3 Интернационала ул, д. 83А",null,null,null,null,"Белозерск г, 3 Интернационала ул, д. 83А",null,null,null,null,null,null,null,null,null,null,"Белозерск г, 3-го Интернационала ул, д. 83А",null,null,null,null,null,null,"Белозерск г, 3-го Интернационала ул, д. 83А",null,null,null,null,null,"Белозерск г, 3-го Интернационала ул, д. 83А",null,null,null,null,null,null,null,null,"Белозерск г, 3-го Интернационала ул, д. 83А",null,null,null,null,null,"Белозерск г, 3-го Интернационала ул, д. 83А",null,null,null,null,null,null,null,"Белозерск г, 3-го Интернационала ул, д. 83А",null,null,null,null,null,null,"Белозерск г, 3-го Интернационала ул, д. 83А",null,null,null,null,null,null,null,null,"Белозерск г, 3-го Интернационала ул, д. 83А",null,null,null,null,"Белозерск г, 3-го Интернационала ул, д. 83А",null,null,null,null,null,null,null,null,"Белозерск г, 3-го Интернационала ул, д. 83А",null,null,null,null,"Белозерск г, 3-го Интернационала ул, д. 83А",null,null,null,null,"Белозерск г, 3-го Интернационала ул, д. 83А",null,null,"Белозерск г, 3-го Интернационала ул, д. 83А",null,null,null,null,null,null,null,null,null,null,null,null,"Общий счет РО+"]
[{"$f":"\"Белозерск г, 3 Интернационала ул, д.85\"","v":"Белозерск г, 3 Интернационала ул, д.85"},"Белозерск г, 3 Интернационала ул, д.85","Белозерск г, 3 Интернационала ул, д.85","Белозерск г, 3 Интернационала ул, д.85","Белозерск г, 3 Интернационала ул, д.85","Белозерск г, 3 Интернационала ул, д.85",null,null,null,null,null,null,null,{"$f":"\"Белозерск г, 3 Интернационала ул, д.85\"","v":"Белозерск г, 3 Интернационала ул, д.85"},null,null,null,null,null,null,null,null,null,null,null,null,null,null,null,null,"Белозерск г, 3 Интернационала ул, д. 85",null,null,null,null,"Белозерск г, 3 Интернационала ул, д. 85",null,null,null,null,null,null,null,null,null,null,"Белозерск г, 3-го Интернационала ул, д. 85",null,null,null,null,null,null,"Белозерск г, 3-го Интернационала ул, д. 85",null,null,null,null,null,"Белозерск г, 3-го Интернационала ул, д. 85",null,null,null,null,null,null,null,null,"Белозерск г, 3-го Интернационала ул, д. 85",null,null,null,null,null,"Белозерск г, 3-го Интернационала ул, д. 85",null,null,null,null,null,null,null,"Белозерск г, 3-го Интернационала ул, д. 85",null,null,null,null,null,null,"Белозерск г, 3-го Интернационала ул, д. 85",null,null,null,null,null,null,null,null,"Белозерск г, 3-го Интернационала ул, д. 85",null,null,null,null,"Белозерск г, 3-го Интернационала ул, д. 85",null,null,null,null,null,null,null,null,"Белозерск г, 3-го Интернационала ул, д. 85",null,null,null,null,"Белозерск г, 3-го Интернационала ул, д. 85",null,null,null,null,"Белозерск г, 3-го Интернационала ул, д. 85",null,null,"Белозерск г, 3-го Интернационала ул, д. 85",null,null,null,null,null,null,null,null,null,null,null,null,"Общий счет РО+"]
[{"$f":"\"Белозерск г, 3 Интернационала ул, д.89\"","v":"Белозерск г, 3 Интернационала ул, д.89"},"Белозерск г, 3 Интернационала ул, д.89","Белозерск г, 3 Интернационала ул, д.89","Белозерск г, 3 Интернационала ул, д.89","Белозерск г, 3 Интернационала ул, д.89","Белозерск г, 3 Интернационала ул, д.89",null,null,null,null,null,null,null,{"$f":"\"Белозерск г, 3 Интернационала ул, д.89\"","v":"Белозерск г, 3 Интернационала ул, д.89"},null,null,null,null,null,null,null,null,null,null,null,null,null,null,null,null,"Белозерск г, 3 Интернационала ул, д. 89",null,null,null,null,"Белозерск г, 3 Интернационала ул, д. 89",null,null,null,null,null,null,null,null,null,null,"Белозерск г, 3-го Интернационала ул, д. 89",null,null,null,null,null,null,"Белозерск г, 3-го Интернационала ул, д. 89",null,null,null,null,null,"Белозерск г, 3-го Интернационала ул, д. 89",null,null,null,null,null,null,null,null,"Белозерск г, 3-го Интернационала ул, д. 89",null,null,null,null,null,"Белозерск г, 3-го Интернационала ул, д. 89",null,null,null,null,null,null,null,"Белозерск г, 3-го Интернационала ул, д. 89",null,null,null,null,null,null,"Белозерск г, 3-го Интернационала ул, д. 89",null,null,null,null,null,null,null,null,"Белозерск г, 3-го Интернационала ул, д. 89",null,null,null,null,"Белозерск г, 3-го Интернационала ул, д. 89",null,null,null,null,null,null,null,null,"Белозерск г, 3-го Интернационала ул, д. 89",null,null,null,null,"Белозерск г, 3-го Интернационала ул, д. 89",null,null,null,null,"Белозерск г, 3-го Интернационала ул, д. 89",null,null,"Белозерск г, 3-го Интернационала ул, д. 89",null,null,null,null,null,null,null,null,null,null,null,null,"Общий счет РО+"]
[{"$f":"\"Белозерск г, 3 Интернационала ул, д.90\"","v":"Белозерск г, 3 Интернационала ул, д.90"},"Белозерск г, 3 Интернационала ул, д.90","Белозерск г, 3 Интернационала ул, д.90","Белозерск г, 3 Интернационала ул, д.90","Белозерск г, 3 Интернационала ул, д.90","Белозерск г, 3 Интернационала ул, д.90",null,null,null,null,null,null,null,{"$f":"\"Белозерск г, 3 Интернационала ул, д.90\"","v":"Белозерск г, 3 Интернационала ул, д.90"},null,null,null,null,null,null,null,null,null,null,null,null,null,null,null,null,"Белозерск г, 3 Интернационала ул, д. 90",null,null,null,null,"Белозерск г, 3 Интернационала ул, д. 90",null,null,null,null,null,null,null,null,null,null,"Белозерск г, 3-го Интернационала ул, д. 90",null,null,null,null,null,null,"Белозерск г, 3-го Интернационала ул, д. 90",null,null,null,null,null,"Белозерск г, 3-го Интернационала ул, д. 90",null,null,null,null,null,null,null,null,"Белозерск г, 3-го Интернационала ул, д. 90",null,null,null,null,null,"Белозерск г, 3-го Интернационала ул, д. 90",null,null,null,null,null,null,null,"Белозерск г, 3-го Интернационала ул, д. 90",null,null,null,null,null,null,"Белозерск г, 3-го Интернационала ул, д. 90",null,null,null,null,null,null,null,null,"Белозерск г, 3-го Интернационала ул, д. 90",null,null,null,null,"Белозерск г, 3-го Интернационала ул, д. 90",null,null,null,null,null,null,null,null,"Белозерск г, 3-го Интернационала ул, д. 90",null,null,null,null,"Белозерск г, 3-го Интернационала ул, д. 90",null,null,null,null,"Белозерск г, 3-го Интернационала ул, д. 90",null,null,"Белозерск г, 3-го Интернационала ул, д. 90",null,null,null,null,null,null,null,null,null,null,null,null,"Общий счет РО+"]
[{"$f":"\"Белозерск г, 50 лет ВЛКСМ ул, д.3А\"","v":"Белозерск г, 50 лет ВЛКСМ ул, д.3А"},"Белозерск г, 50 лет ВЛКСМ ул, д.3А","Белозерск г, 50 лет ВЛКСМ ул, д.3А","Белозерск г, 50 лет ВЛКСМ ул, д.3А","Белозерск г, 50 лет ВЛКСМ ул, д.3А","Белозерск г, 50 лет ВЛКСМ ул, д.3А",null,null,null,null,null,null,null,{"$f":"\"Белозерск г, 50 лет ВЛКСМ ул, д.3А\"","v":"Белозерск г, 50 лет ВЛКСМ ул, д.3А"},null,null,null,null,null,null,null,null,null,null,null,null,null,null,null,null,"Белозерск г, 50 лет ВЛКСМ ул, д. 3А",null,null,null,null,"Белозерск г, 50 лет ВЛКСМ ул, д. 3А",null,null,null,null,null,null,null,null,null,null,"Белозерск г, 50 лет ВЛКСМ ул, д. 3А",null,null,null,null,null,null,"Белозерск г, 50 лет ВЛКСМ ул, д. 3А",null,null,null,null,null,"Белозерск г, 50 лет ВЛКСМ ул, д. 3А",null,null,null,null,null,null,null,null,"Белозерск г, 50 лет ВЛКСМ ул, д. 3А",null,null,null,null,null,"Белозерск г, 50 лет ВЛКСМ ул, д. 3А",null,null,null,null,null,null,null,"Белозерск г, 50 лет ВЛКСМ ул, д. 3А",null,null,null,null,null,null,"Белозерск г, 50 лет ВЛКСМ ул, д. 3А",null,null,null,null,null,null,null,null,null,null,null,null,null,null,null,null,null,null,null,null,null,null,null,null,null,null,null,null,null,null,null,null,null,null,null,null,null,null,null,null,null,null,null,null,null,null,null,null,"Общий счет РО 514,90","Признан аварийным. Постановление 703 от 01.06.2023"]
[{"$f":"\"Белозерск г, 50 лет ВЛКСМ ул, д.5А\"","v":"Белозерск г, 50 лет ВЛКСМ ул, д.5А"},"Белозерск г, 50 лет ВЛКСМ ул, д.5А","Белозерск г, 50 лет ВЛКСМ ул, д.5А","Белозерск г, 50 лет ВЛКСМ ул, д.5А","Белозерск г, 50 лет ВЛКСМ ул, д.5А","Белозерск г, 50 лет ВЛКСМ ул, д.5А",null,null,null,null,null,null,null,{"$f":"\"Белозерск г, 50 лет ВЛКСМ ул, д.5А\"","v":"Белозерск г, 50 лет ВЛКСМ ул, д.5А"},null,null,null,null,null,null,null,null,null,null,null,null,null,null,null,null,"Белозерск г, 50 лет ВЛКСМ ул, д. 5А",null,null,null,null,"Белозерск г, 50 лет ВЛКСМ ул, д. 5А",null,null,null,null,null,null,null,null,null,null,"Белозерск г, 50 лет ВЛКСМ ул, д. 5А",null,null,null,null,null,null,"Белозерск г, 50 лет ВЛКСМ ул, д. 5А",null,null,null,null,null,"Белозерск г, 50 лет ВЛКСМ ул, д. 5А",null,null,null,null,null,null,null,null,"Белозерск г, 50 лет ВЛКСМ ул, д. 5А",null,null,null,null,null,"Белозерск г, 50 лет ВЛКСМ ул, д. 5А",null,null,null,null,null,null,null,"Белозерск г, 50 лет ВЛКСМ ул, д. 5А",null,null,null,null,null,null,"Белозерск г, 50 лет ВЛКСМ ул, д. 5А",null,null,null,null,null,null,null,null,"Белозерск г, 50 лет ВЛКСМ ул, д. 5А",null,null,null,null,"Белозерск г, 50 лет ВЛКСМ ул, д. 5А",null,null,null,null,null,null,null,null,null,null,null,null,null,null,null,null,null,null,null,null,null,null,null,null,null,null,null,null,null,null,null,null,null,null,"Общий счет РО+508,60","Признан аварийным. Постановление 1177 от 24.10.2024","Исключен 07.11.2024"]
[{"$f":"\"Белозерск г, 50 лет ВЛКСМ ул, д.9А\"","v":"Белозерск г, 50 лет ВЛКСМ ул, д.9А"},"Белозерск г, 50 лет ВЛКСМ ул, д.9А","Белозерск г, 50 лет ВЛКСМ ул, д.9А","Белозерск г, 50 лет ВЛКСМ ул, д.9А","Белозерск г, 50 лет ВЛКСМ ул, д.9А","Белозерск г, 50 лет ВЛКСМ ул, д.9А",null,null,null,null,null,null,null,{"$f":"\"Белозерск г, 50 лет ВЛКСМ ул, д.9А\"","v":"Белозерск г, 50 лет ВЛКСМ ул, д.9А"},null,null,null,null,null,null,null,null,null,null,null,null,null,null,null,null,"Белозерск г, 50 лет ВЛКСМ ул, д. 9А",null,null,null,null,"Белозерск г, 50 лет ВЛКСМ ул, д. 9А",null,null,null,null,null,null,null,null,null,null,"Белозерск г, 50 лет ВЛКСМ ул, д. 9А",null,null,null,null,null,null,"Белозерск г, 50 лет ВЛКСМ ул, д. 9А",null,null,null,null,null,"Белозерск г, 50 лет ВЛКСМ ул, д. 9А",null,null,null,null,null,null,null,null,"Белозерск г, 50 лет ВЛКСМ ул, д. 9А",null,null,null,null,null,"Белозерск г, 50 лет ВЛКСМ ул, д. 9А",null,null,null,null,null,null,null,"Белозерск г, 50 лет ВЛКСМ ул, д. 9А",null,null,null,null,null,null,"Белозерск г, 50 лет ВЛКСМ ул, д. 9А",null,null,null,null,null,null,null,null,"Белозерск г, 50 лет ВЛКСМ ул, д. 9А",null,null,null,null,"Белозерск г, 50 лет ВЛКСМ ул, д. 9А",null,null,null,null,null,null,null,null,"Белозерск г, 50 лет ВЛКСМ ул, д. 9А",null,null,null,null,"Белозерск г, 50 лет ВЛКСМ ул, д. 9А",null,null,null,null,"Белозерск г, 50 лет ВЛКСМ ул, д. 9А",null,null,"Белозерск г, 50 лет ВЛКСМ ул, д. 9А",null,null,null,null,null,null,null,null,null,null,null,null,"Общий счет РО+","Признан аварийным. Постановление 1418 от 06.11.2025"]
[{"$f":"\"Белозерск г, 50 лет ВЛКСМ ул, д.20А\"","v":"Белозерск г, 50 лет ВЛКСМ ул, д.20А"},"Белозерск г, 50 лет ВЛКСМ ул, д.20А","Белозерск г, 50 лет ВЛКСМ ул, д.20А","Белозерск г, 50 лет ВЛКСМ ул, д.20А","Белозерск г, 50 лет ВЛКСМ ул, д.20А","Белозерск г, 50 лет ВЛКСМ ул, д.20А",null,null,null,null,null,null,null,{"$f":"\"Белозерск г, 50 лет ВЛКСМ ул, д.20А\"","v":"Белозерск г, 50 лет ВЛКСМ ул, д.20А"},null,null,null,null,null,null,null,null,null,null,null,null,null,null,null,null,"Белозерск г, 50 лет ВЛКСМ ул, д. 20А",null,null,null,null,"Белозерск г, 50 лет ВЛКСМ ул, д. 20А",null,null,null,null,null,null,null,null,null,null,"Белозерск г, 50 лет ВЛКСМ ул, д. 20А",null,null,null,null,null,null,"Белозерск г, 50 лет ВЛКСМ ул, д. 20А",null,null,null,null,null,"Белозерск г, 50 лет ВЛКСМ ул, д. 20А",null,null,null,null,null,null,null,null,"Белозерск г, 50 лет ВЛКСМ ул, д. 20А",null,null,null,null,null,"Белозерск г, 50 лет ВЛКСМ ул, д. 20А",null,null,null,null,null,null,null,"Белозерск г, 50 лет ВЛКСМ ул, д. 20А",null,null,null,null,null,null,"Белозерск г, 50 лет ВЛКСМ ул, д. 20А",null,null,null,null,null,null,null,null,"Белозерск г, 50 лет ВЛКСМ ул, д. 20А",null,null,null,null,"Белозерск г, 50 лет ВЛКСМ ул, д. 20А",null,null,null,null,null,null,null,null,"Белозерск г, 50 лет ВЛКСМ ул, д. 20А",null,null,null,null,"Белозерск г, 50 лет ВЛКСМ ул, д. 20А",null,null,null,null,null,null,null,null,null,null,null,null,null,null,null,null,null,null,null,null,"Общий счет РО+342,5","Признан аварийным. Постановление 895 от 10.07.2025"]
[{"$f":"\"Белозерск г, 50 лет ВЛКСМ ул, д.55\"","v":"Белозерск г, 50 лет ВЛКСМ ул, д.55"},"Белозерск г, 50 лет ВЛКСМ ул, д.55","Белозерск г, 50 лет ВЛКСМ ул, д.55","Белозерск г, 50 лет ВЛКСМ ул, д.55","Белозерск г, 50 лет ВЛКСМ ул, д.55","Белозерск г, 50 лет ВЛКСМ ул, д.55",null,null,null,null,null,null,null,{"$f":"\"Белозерск г, 50 лет ВЛКСМ ул, д.55\"","v":"Белозерск г, 50 лет ВЛКСМ ул, д.55"},null,null,null,null,null,null,null,null,null,null,null,null,null,null,null,null,"Белозерск г, 50 лет ВЛКСМ ул, д. 55",null,null,null,null,"Белозерск г, 50 лет ВЛКСМ ул, д. 55",null,null,null,null,null,null,null,null,null,null,"Белозерск г, 50 лет ВЛКСМ ул, д. 55",null,null,null,null,null,null,"Белозерск г, 50 лет ВЛКСМ ул, д. 55",null,null,null,null,null,"Белозерск г, 50 лет ВЛКСМ ул, д. 55",null,null,null,null,null,null,null,null,"Белозерск г, 50 лет ВЛКСМ ул, д. 55",null,null,null,null,null,"Белозерск г, 50 лет ВЛКСМ ул, д. 55",null,null,null,null,null,null,null,"Белозерск г, 50 лет ВЛКСМ ул, д. 55",null,null,null,null,null,null,"Белозерск г, 50 лет ВЛКСМ ул, д. 55",null,null,null,null,null,null,null,null,null,null,null,null,null,null,null,null,null,null,null,null,null,null,null,null,null,null,null,null,null,null,null,null,null,null,null,null,null,null,null,null,null,null,null,null,null,null,null,null,"Общий счет РО 333,10","Признан аварийным. Заключение № 197 от 21.06.2023"]
[{"$f":"\"Белозерск г, 50 лет ВЛКСМ ул, д.55А\"","v":"Белозерск г, 50 лет ВЛКСМ ул, д.55А"},"Белозерск г, 50 лет ВЛКСМ ул, д.55А","Белозерск г, 50 лет ВЛКСМ ул, д.55А","Белозерск г, 50 лет ВЛКСМ ул, д.55А","Белозерск г, 50 лет ВЛКСМ ул, д.55А","Белозерск г, 50 лет ВЛКСМ ул, д.55А",null,null,null,null,null,null,null,{"$f":"\"Белозерск г, 50 лет ВЛКСМ ул, д.55А\"","v":"Белозерск г, 50 лет ВЛКСМ ул, д.55А"},null,null,null,null,null,null,null,null,null,null,null,null,null,null,null,null,"Белозерск г, 50 лет ВЛКСМ ул, д. 55А",null,null,null,null,"Белозерск г, 50 лет ВЛКСМ ул, д. 55А",null,null,null,null,null,null,null,null,null,null,"Белозерск г, 50 лет ВЛКСМ ул, д. 55А",null,null,null,null,null,null,"Белозерск г, 50 лет ВЛКСМ ул, д. 55А",null,null,null,null,null,"Белозерск г, 50 лет ВЛКСМ ул, д. 55А",null,null,null,null,null,null,null,null,"Белозерск г, 50 лет ВЛКСМ ул, д. 55А",null,null,null,null,null,"Белозерск г, 50 лет ВЛКСМ ул, д. 55А",null,null,null,null,null,null,null,"Белозерск г, 50 лет ВЛКСМ ул, д. 55А",null,null,null,null,null,null,null,null,null,null,null,null,null,null,null,null,null,null,null,null,null,null,null,null,null,null,null,null,null,null,null,null,null,null,null,null,null,null,null,null,null,null,null,null,null,null,null,null,null,null,null,null,null,null,null,"Общий счет РО, 330,50","Признан аварийным. Постановление 395 от 26.12.2022","Иключен 06.03.2023"]
[{"$f":"\"Белозерск г, 50 лет ВЛКСМ ул, д.62\"","v":"Белозерск г, 50 лет ВЛКСМ ул, д.62"},"Белозерск г, 50 лет ВЛКСМ ул, д.62","Белозерск г, 50 лет ВЛКСМ ул, д.62","Белозерск г, 50 лет ВЛКСМ ул, д.62","Белозерск г, 50 лет ВЛКСМ ул, д.62","Белозерск г, 50 лет ВЛКСМ ул, д.62",null,null,null,null,null,null,null,{"$f":"\"Белозерск г, 50 лет ВЛКСМ ул, д.62\"","v":"Белозерск г, 50 лет ВЛКСМ ул, д.62"},null,null,null,null,null,null,null,null,null,null,null,null,null,null,null,null,"Белозерск г, 50 лет ВЛКСМ ул, д. 62",null,null,null,null,"Белозерск г, 50 лет ВЛКСМ ул, д. 62",null,null,null,null,null,null,null,null,null,null,"Белозерск г, 50 лет ВЛКСМ ул, д. 62",null,null,null,null,null,null,"Белозерск г, 50 лет ВЛКСМ ул, д. 62",null,null,null,null,null,"Белозерск г, 50 лет ВЛКСМ ул, д. 62",null,null,null,null,null,null,null,null,null,null,null,null,null,null,null,null,null,null,null,null,null,null,null,null,null,null,null,null,null,null,null,null,null,null,null,null,null,null,null,null,null,null,null,null,null,null,null,null,null,null,null,null,null,null,null,null,null,null,null,null,null,null,null,null,null,null,null,null,null,null,null,null,null,null,null,null,null,null,"Общий счет РО - 503,40","Признан аварийным. Постановление № 198 от 04.06.2021","Исключен 06.09.2021"]
[{"$f":"\"Белозерск г, 50 лет ВЛКСМ ул, д.79\"","v":"Белозерск г, 50 лет ВЛКСМ ул, д.79"},"Белозерск г, 50 лет ВЛКСМ ул, д.79","Белозерск г, 50 лет ВЛКСМ ул, д.79","Белозерск г, 50 лет ВЛКСМ ул, д.79","Белозерск г, 50 лет ВЛКСМ ул, д.79","Белозерск г, 50 лет ВЛКСМ ул, д.79",null,null,null,null,null,null,null,{"$f":"\"Белозерск г, 50 лет ВЛКСМ ул, д.79\"","v":"Белозерск г, 50 лет ВЛКСМ ул, д.79"},null,null,null,null,null,null,null,null,null,null,null,null,null,null,null,null,"Белозерск г, 50 лет ВЛКСМ ул, д. 79",null,null,null,null,"Белозерск г, 50 лет ВЛКСМ ул, д. 79",null,null,null,null,null,null,null,null,null,null,"Белозерск г, 50 лет ВЛКСМ ул, д. 79",null,null,null,null,null,null,"Белозерск г, 50 лет ВЛКСМ ул, д. 79",null,null,null,null,null,"Белозерск г, 50 лет ВЛКСМ ул, д. 79",null,null,null,null,null,null,null,null,"Белозерск г, 50 лет ВЛКСМ ул, д. 79",null,null,null,null,null,null,null,null,null,null,null,null,null,null,null,null,null,null,null,null,null,null,null,null,null,null,null,null,null,null,null,null,null,null,null,null,null,null,null,null,null,null,null,null,null,null,null,null,null,null,null,null,null,null,null,null,null,null,null,null,null,null,null,null,null,null,null,null,null,"Общий счет РО - 508,50","Признан аварийным. Постановление № 358 от 09.12.2021","Исключен 07.02.2022"]
[{"$f":"\"Белозерск г, 50 лет ВЛКСМ ул, д.81\"","v":"Белозерск г, 50 лет ВЛКСМ ул, д.81"},"Белозерск г, 50 лет ВЛКСМ ул, д.81","Белозерск г, 50 лет ВЛКСМ ул, д.81","Белозерск г, 50 лет ВЛКСМ ул, д.81","Белозерск г, 50 лет ВЛКСМ ул, д.81","Белозерск г, 50 лет ВЛКСМ ул, д.81",null,null,null,null,null,null,null,{"$f":"\"Белозерск г, 50 лет ВЛКСМ ул, д.81\"","v":"Белозерск г, 50 лет ВЛКСМ ул, д.81"},null,null,null,null,null,null,null,null,null,null,null,null,null,null,null,null,"Белозерск г, 50 лет ВЛКСМ ул, д. 81",null,null,null,null,"Белозерск г, 50 лет ВЛКСМ ул, д. 81",null,null,null,null,null,null,null,null,null,null,"Белозерск г, 50 лет ВЛКСМ ул, д. 81",null,null,null,null,null,null,"Белозерск г, 50 лет ВЛКСМ ул, д. 81",null,null,null,null,null,"Белозерск г, 50 лет ВЛКСМ ул, д. 81",null,null,null,null,null,null,null,null,"Белозерск г, 50 лет ВЛКСМ ул, д. 81",null,null,null,null,null,null,null,null,null,null,null,null,null,null,null,null,null,null,null,null,null,null,null,null,null,null,null,null,null,null,null,null,null,null,null,null,null,null,null,null,null,null,null,null,null,null,null,null,null,null,null,null,null,null,null,null,null,null,null,null,null,null,null,null,null,null,null,null,null,"Общий счет РО - 525,30","Признан аварийным. Постановление № 360 от 09.12.2021","Исключен 07.02.2022"]
[{"$f":"\"Белозерск г, 50 лет ВЛКСМ ул, д.94\"","v":"Белозерск г, 50 лет ВЛКСМ ул, д.94"},"Белозерск г, 50 лет ВЛКСМ ул, д.94","Белозерск г, 50 лет ВЛКСМ ул, д.94","Белозерск г, 50 лет ВЛКСМ ул, д.94","Белозерск г, 50 лет ВЛКСМ ул, д.94","Белозерск г, 50 лет ВЛКСМ ул, д.94",null,null,null,null,null,null,null,{"$f":"\"Белозерск г, 50 лет ВЛКСМ ул, д.94\"","v":"Белозерск г, 50 лет ВЛКСМ ул, д.94"},null,null,null,null,null,null,null,null,null,null,null,null,null,null,null,null,"Белозерск г, 50 лет ВЛКСМ ул, д. 94",null,null,null,null,"Белозерск г, 50 лет ВЛКСМ ул, д. 94",null,null,null,null,null,null,null,null,null,null,"Белозерск г, 50 лет ВЛКСМ ул, д. 94",null,null,null,null,null,null,"Белозерск г, 50 лет ВЛКСМ ул, д. 94",null,null,null,null,null,"Белозерск г, 50 лет ВЛКСМ ул, д. 94",null,null,null,null,null,null,null,null,"Белозерск г, 50 лет ВЛКСМ ул, д. 94",null,null,null,null,null,"Белозерск г, 50 лет ВЛКСМ ул, д. 94",null,null,null,null,null,null,null,"Белозерск г, 50 лет ВЛКСМ ул, д. 94",null,null,null,null,null,null,"Белозерск г, 50 лет ВЛКСМ ул, д. 94",null,null,null,null,null,null,null,null,"Белозерск г, 50 лет ВЛКСМ ул, д. 94",null,null,null,null,"Белозерск г, 50 лет ВЛКСМ ул, д. 94",null,null,null,null,null,null,null,null,"Белозерск г, 50 лет ВЛКСМ ул, д. 94",null,null,null,null,"Белозерск г, 50 лет ВЛКСМ ул, д. 94",null,null,null,null,"Белозерск г, 50 лет ВЛКСМ ул, д. 94",null,null,"Белозерск г, 50 лет ВЛКСМ ул, д. 94",null,null,null,null,null,null,null,null,null,null,null,null,"Общий счет РО+"]
[{"$f":"\"Белозерск г, 50 лет ВЛКСМ ул, д.96\"","v":"Белозерск г, 50 лет ВЛКСМ ул, д.96"},"Белозерск г, 50 лет ВЛКСМ ул, д.96","Белозерск г, 50 лет ВЛКСМ ул, д.96","Белозерск г, 50 лет ВЛКСМ ул, д.96","Белозерск г, 50 лет ВЛКСМ ул, д.96","Белозерск г, 50 лет ВЛКСМ ул, д.96",null,null,null,null,null,null,null,{"$f":"\"Белозерск г, 50 лет ВЛКСМ ул, д.96\"","v":"Белозерск г, 50 лет ВЛКСМ ул, д.96"},null,null,null,null,null,null,null,null,null,null,null,null,null,null,null,null,"Белозерск г, 50 лет ВЛКСМ ул, д. 96",null,null,null,null,"Белозерск г, 50 лет ВЛКСМ ул, д. 96",null,null,null,null,null,null,null,null,null,null,"Белозерск г, 50 лет ВЛКСМ ул, д. 96",null,null,null,null,null,null,"Белозерск г, 50 лет ВЛКСМ ул, д. 96",null,null,null,null,null,"Белозерск г, 50 лет ВЛКСМ ул, д. 96",null,null,null,null,null,null,null,null,"Белозерск г, 50 лет ВЛКСМ ул, д. 96",null,null,null,null,null,"Белозерск г, 50 лет ВЛКСМ ул, д. 96",null,null,null,null,null,null,null,"Белозерск г, 50 лет ВЛКСМ ул, д. 96",null,null,null,null,null,null,"Белозерск г, 50 лет ВЛКСМ ул, д. 96",null,null,null,null,null,null,null,null,"Белозерск г, 50 лет ВЛКСМ ул, д. 96",null,null,null,null,"Белозерск г, 50 лет ВЛКСМ ул, д. 96",null,null,null,null,null,null,null,null,"Белозерск г, 50 лет ВЛКСМ ул, д. 96",null,null,null,null,"Белозерск г, 50 лет ВЛКСМ ул, д. 96",null,null,null,null,"Белозерск г, 50 лет ВЛКСМ ул, д. 96",null,null,"Белозерск г, 50 лет ВЛКСМ ул, д. 96",null,null,null,null,null,null,null,null,null,null,null,null,"Специальный счет РО + учет + взыскание","ранее было ТСЖ \"50 лет ВЛКСМ-96\" Лидия Корниловна","ССТСЖ с 2014 года             ССТСЖ-СССРО с 22.08.2025"]
[{"$f":"\"Белозерск г, Белозер ул, д.3а\"","v":"Белозерск г, Белозер ул, д.3а"},"Белозерск г, Белозер ул, д.3а","Белозерск г, Белозер ул, д.3а","Белозерск г, Белозер ул, д.3а","Белозерск г, Белозер ул, д.3а","Белозерск г, Белозер ул, д.3а",null,null,null,null,null,null,null,{"$f":"\"Белозерск г, Белозер ул, д.3а\"","v":"Белозерск г, Белозер ул, д.3а"},null,null,null,null,null,null,null,null,null,null,null,null,null,null,null,null,"Белозерск г, Белозер ул, д. 3а",null,null,null,null,null,null,null,null,null,null,null,null,null,null,null,null,null,null,null,null,null,null,null,null,null,null,null,null,null,null,null,null,null,null,null,null,null,null,null,null,null,null,null,null,null,null,null,null,null,null,null,null,null,null,null,null,null,null,null,null,null,null,null,null,null,null,null,null,null,null,null,null,null,null,null,null,null,null,null,null,null,null,null,null,null,null,null,null,null,null,null,null,null,null,null,null,null,null,null,null,null,null,null,null,null,null,null,"Общий счет РО - 323,10",null,"Исключен 01.04.2019"]
[{"$f":"\"Белозерск г, Белозер ул, д.4А\"","v":"Белозерск г, Белозер ул, д.4А"},"Белозерск г, Белозер ул, д.4А","Белозерск г, Белозер ул, д.4А","Белозерск г, Белозер ул, д.4А","Белозерск г, Белозер ул, д.4А","Белозерск г, Белозер ул, д.4А",null,null,null,null,null,null,null,{"$f":"\"Белозерск г, Белозер ул, д.4А\"","v":"Белозерск г, Белозер ул, д.4А"},null,null,null,null,null,null,null,null,null,null,null,null,null,null,null,null,"Белозерск г, Белозер ул, д. 4А",null,null,null,null,"Белозерск г, Белозер ул, д. 4А",null,null,null,null,null,null,null,null,null,null,"Белозерск г, Белозер ул, д. 4А",null,null,null,null,null,null,"Белозерск г, Белозер ул, д. 4А",null,null,null,null,null,"Белозерск г, Белозер ул, д. 4А",null,null,null,null,null,null,null,null,"Белозерск г, Белозер ул, д. 4А",null,null,null,null,null,"Белозерск г, Белозер ул, д. 4А",null,null,null,null,null,null,null,"Белозерск г, Белозер ул, д. 4А",null,null,null,null,null,null,"Белозерск г, Белозер ул, д. 4А",null,null,null,null,null,null,null,null,"Белозерск г, Белозер ул, д. 4А",null,null,null,null,"Белозерск г, Белозер ул, д. 4А",null,null,null,null,null,null,null,null,"Белозерск г, Белозер ул, д. 4А",null,null,null,null,"Белозерск г, Белозер ул, д. 4А",null,null,null,null,"Белозерск г, Белозер ул, д. 4А",null,null,"Белозерск г, Белозер ул, д. 4А",null,null,null,null,null,null,null,null,null,null,null,null,"Общий счет РО+"]
[{"$f":"\"Белозерск г, Белозер ул, д.6А\"","v":"Белозерск г, Белозер ул, д.6А"},"Белозерск г, Белозер ул, д.6А","Белозерск г, Белозер ул, д.6А","Белозерск г, Белозер ул, д.6А","Белозерск г, Белозер ул, д.6А","Белозерск г, Белозер ул, д.6А",null,null,null,null,null,null,null,{"$f":"\"Белозерск г, Белозер ул, д.6А\"","v":"Белозерск г, Белозер ул, д.6А"},null,null,null,null,null,null,null,null,null,null,null,null,null,null,null,null,"Белозерск г, Белозер ул, д. 6А",null,null,null,null,"Белозерск г, Белозер ул, д. 6А",null,null,null,null,null,null,null,null,null,null,"Белозерск г, Белозер ул, д. 6А",null,null,null,null,null,null,"Белозерск г, Белозер ул, д. 6А",null,null,null,null,null,"Белозерск г, Белозер ул, д. 6А",null,null,null,null,null,null,null,null,"Белозерск г, Белозер ул, д. 6А",null,null,null,null,null,"Белозерск г, Белозер ул, д. 6А",null,null,null,null,null,null,null,"Белозерск г, Белозер ул, д. 6А",null,null,null,null,null,null,"Белозерск г, Белозер ул, д. 6А",null,null,null,null,null,null,null,null,"Белозерск г, Белозер ул, д. 6А",null,null,null,null,null,null,null,null,null,null,null,null,null,null,null,null,null,null,null,null,null,null,null,null,null,null,null,null,null,null,null,null,null,null,null,null,null,null,null,"Общий счет РО-489,50","Признан аварийным. Постановление 1513 от 30.11.2023","Исключен 05.03.2024"]
[{"$f":"\"Белозерск г, Белозер ул, д.8\"","v":"Белозерск г, Белозер ул, д.8"},"Белозерск г, Белозер ул, д.8","Белозерск г, Белозер ул, д.8","Белозерск г, Белозер ул, д.8","Белозерск г, Белозер ул, д.8","Белозерск г, Белозер ул, д.8",null,null,null,null,null,null,null,{"$f":"\"Белозерск г, Белозер ул, д.8\"","v":"Белозерск г, Белозер ул, д.8"},null,null,null,null,null,null,null,null,null,null,null,null,null,null,null,null,"Белозерск г, Белозер ул, д. 8",null,null,null,null,"Белозерск г, Белозер ул, д. 8",null,null,null,null,null,null,null,null,null,null,"Белозерск г, Белозер ул, д. 8",null,null,null,null,null,null,"Белозерск г, Белозер ул, д. 8",null,null,null,null,null,"Белозерск г, Белозер ул, д. 8",null,null,null,null,null,null,null,null,"Белозерск г, Белозер ул, д. 8",null,null,null,null,null,"Белозерск г, Белозер ул, д. 8",null,null,null,null,null,null,null,"Белозерск г, Белозер ул, д. 8",null,null,null,null,null,null,"Белозерск г, Белозер ул, д. 8",null,null,null,null,null,null,null,null,"Белозерск г, Белозер ул, д. 8",null,null,null,null,"Белозерск г, Белозер ул, д. 8",null,null,null,null,null,null,null,null,"Белозерск г, Белозер ул, д. 8",null,null,null,null,"Белозерск г, Белозер ул, д. 8",null,null,null,null,"Белозерск г, Белозер ул, д. 8",null,null,"Белозерск г, Белозер ул, д. 8",null,null,null,null,null,null,null,null,null,null,null,null,"Общий счет РО+"]
[{"$f":"\"Белозерск г, Белозер ул, д.8А\"","v":"Белозерск г, Белозер ул, д.8А"},{"$f":"\"Белозерск г, Белозер ул, д.8А\"","v":"Белозерск г, Белозер ул, д.8А"},{"$f":"\"Белозерск г, Белозер ул, д.8А\"","v":"Белозерск г, Белозер ул, д.8А"},{"$f":"\"Белозерск г, Белозер ул, д.8А\"","v":"Белозерск г, Белозер ул, д.8А"},{"$f":"\"Белозерск г, Белозер ул, д.8А\"","v":"Белозерск г, Белозер ул, д.8А"}]
[{"$f":"\"Белозерск г, Белозер ул, д.23\"","v":"Белозерск г, Белозер ул, д.23"},"Белозерск г, Белозер ул, д.23","Белозерск г, Белозер ул, д.23","Белозерск г, Белозер ул, д.23","Белозерск г, Белозер ул, д.23","Белозерск г, Белозер ул, д.23",null,null,null,null,null,null,null,{"$f":"\"Белозерск г, Белозер ул, д.23\"","v":"Белозерск г, Белозер ул, д.23"},null,null,null,null,null,null,null,null,null,null,null,null,null,null,null,null,"Белозерск г, Белозер ул, д. 23",null,null,null,null,"Белозерск г, Белозер ул, д. 23",null,null,null,null,null,null,null,null,null,null,"Белозерск г, Белозер ул, д. 23",null,null,null,null,null,null,"Белозерск г, Белозер ул, д. 23",null,null,null,null,null,"Белозерск г, Белозер ул, д. 23",null,null,null,null,null,null,null,null,"Белозерск г, Белозер ул, д. 23",null,null,null,null,null,"Белозерск г, Белозер ул, д. 23",null,null,null,null,null,null,null,"Белозерск г, Белозер ул, д. 23",null,null,null,null,null,null,"Белозерск г, Белозер ул, д. 23",null,null,null,null,null,null,null,null,"Белозерск г, Белозер ул, д. 23",null,null,null,null,"Белозерск г, Белозер ул, д. 23",null,null,null,null,null,null,null,null,"Белозерск г, Белозер ул, д. 23",null,null,null,null,"Белозерск г, Белозер ул, д. 23",null,null,null,null,"Белозерск г, Белозер ул, д. 23",null,null,"Белозерск г, Белозер ул, д. 23",null,null,null,null,null,null,null,null,null,null,null,null,"Общий счет РО+"]
[{"$f":"\"Белозерск г, Братьев Шамариных ул, д.51Б\"","v":"Белозерск г, Братьев Шамариных ул, д.51Б"},"Белозерск г, Братьев Шамариных ул, д.51Б","Белозерск г, Братьев Шамариных ул, д.51Б","Белозерск г, Братьев Шамариных ул, д.51Б","Белозерск г, Братьев Шамариных ул, д.51Б","Белозерск г, Братьев Шамариных ул, д.51Б",null,null,null,null,null,null,null,null,null,null,null,null,null,null,null,null,null,null,null,null,null,null,null,null,null,null,null,null,null,null,null,null,null,null,null,null,null,null,null,null,null,null,null,null,null,null,null,null,null,null,null,null,null,null,null,null,null,null,null,null,null,null,null,null,null,null,null,null,null,null,null,null,null,null,null,null,null,null,null,null,null,null,null,null,null,null,null,null,null,null,null,null,null,null,null,null,null,null,null,null,null,null,null,null,null,null,null,null,null,null,null,null,null,null,null,null,null,null,null,null,null,null,null,null,null,null,null,null,null,null,null,null,null,"Признан аварийным. Прекращён расчет с апреля 2016 года. Площадь 109,60","Исключен 10.07.2017"]
[{"$f":"\"Белозерск г, Братьев Шамариных ул, д.6А\"","v":"Белозерск г, Братьев Шамариных ул, д.6А"},"Белозерск г, Братьев Шамариных ул, д.6А","Белозерск г, Братьев Шамариных ул, д.6А","Белозерск г, Братьев Шамариных ул, д.6А","Белозерск г, Братьев Шамариных ул, д.6А","Белозерск г, Братьев Шамариных ул, д.6А",null,null,null,null,null,null,null,{"$f":"\"Белозерск г, Братьев Шамариных ул, д.6А\"","v":"Белозерск г, Братьев Шамариных ул, д.6А"},null,null,null,null,null,null,null,null,null,null,null,null,null,null,null,null,"Белозерск г, Братьев Шамариных ул, д. 6А",null,null,null,null,"Белозерск г, Братьев Шамариных ул, д. 6А",null,null,null,null,null,null,null,null,null,null,"Белозерск г, Братьев Шамариных ул, д. 6А",null,null,null,null,null,null,null,null,null,null,null,null,null,null,null,null,null,null,null,null,null,null,null,null,null,null,null,null,null,null,null,null,null,null,null,null,null,null,null,null,null,null,null,null,null,null,null,null,null,null,null,null,null,null,null,null,null,null,null,null,null,null,null,null,null,null,null,null,null,null,null,null,null,null,null,null,null,null,null,null,null,null,null,null,null,null,null,null,null,null,null,"Общий счет РО 325,00","Признан аварийным. Заключение № 30 от 23.01.2017 г. (поступило в Фонд 12.09.2019)","Исключен 27.07.2020"]
[{"$f":"\"Белозерск г, Васинова ул, д.51\"","v":"Белозерск г, Васинова ул, д.51"},"Белозерск г, Васинова ул, д.51","Белозерск г, Васинова ул, д.51","Белозерск г, Васинова ул, д.51","Белозерск г, Васинова ул, д.51","Белозерск г, Васинова ул, д.51",null,null,null,null,null,null,null,{"$f":"\"Белозерск г, Васинова ул, д.51\"","v":"Белозерск г, Васинова ул, д.51"},null,null,null,null,null,null,null,null,null,null,null,null,null,null,null,null,null,null,null,null,null,null,null,null,null,null,null,null,null,null,null,null,null,null,null,null,null,null,null,null,null,null,null,null,null,null,null,null,null,null,null,null,null,null,null,null,null,null,null,null,null,null,null,null,null,null,null,null,null,null,null,null,null,null,null,null,null,null,null,null,null,null,null,null,null,null,null,null,null,null,null,null,null,null,null,null,null,null,null,null,null,null,null,null,null,null,null,null,null,null,null,null,null,null,null,null,null,null,null,null,null,null,null,null,"Общий счет РО 515,30","Признан аварийным. Заключение № 381 от 14.11.2018 г. ","Исключен 30.11.2018"]
[{"$f":"\"Белозерск г, Васинова ул, д.51А\"","v":"Белозерск г, Васинова ул, д.51А"},"Белозерск г, Васинова ул, д.51А","Белозерск г, Васинова ул, д.51А","Белозерск г, Васинова ул, д.51А","Белозерск г, Васинова ул, д.51А","Белозерск г, Васинова ул, д.51А",null,null,null,null,null,null,null,{"$f":"\"Белозерск г, Васинова ул, д.51А\"","v":"Белозерск г, Васинова ул, д.51А"},null,null,null,null,null,null,null,null,null,null,null,null,null,null,null,null,"Белозерск г, Васинова ул, д. 51А",null,null,null,null,"Белозерск г, Васинова ул, д. 51А",null,null,null,null,null,null,null,null,null,null,"Белозерск г, Васинова ул, д. 51А",null,null,null,null,null,null,"Белозерск г, Васинова ул, д. 51А",null,null,null,null,null,"Белозерск г, Васинова ул, д. 51А",null,null,null,null,null,null,null,null,"Белозерск г, Васинова ул, д. 51А",null,null,null,null,null,"Белозерск г, Васинова ул, д. 51А",null,null,null,null,null,null,null,"Белозерск г, Васинова ул, д. 51А",null,null,null,null,null,null,"Белозерск г, Васинова ул, д. 51А",null,null,null,null,null,null,null,null,"Белозерск г, Васинова ул, д. 51А",null,null,null,null,"Белозерск г, Васинова ул, д. 51А",null,null,null,null,null,null,null,null,"Белозерск г, Васинова ул, д. 51А",null,null,null,null,"Белозерск г, Васинова ул, д. 51А",null,null,null,null,null,null,null,null,null,null,null,null,null,null,null,null,null,null,null,null,"Общий счет РО+330,90","Признан аварийным. Постановление 870 от 01.07.2025"]
[{"$f":"\"Белозерск г, Васинова ул, д.85А\"","v":"Белозерск г, Васинова ул, д.85А"},"Белозерск г, Васинова ул, д.85А","Белозерск г, Васинова ул, д.85А","Белозерск г, Васинова ул, д.85А","Белозерск г, Васинова ул, д.85А","Белозерск г, Васинова ул, д.85А",null,null,null,null,null,null,null,{"$f":"\"Белозерск г, Васинова ул, д.85А\"","v":"Белозерск г, Васинова ул, д.85А"},null,null,null,null,null,null,null,null,null,null,null,null,null,null,null,null,"Белозерск г, Васинова ул, д. 85А",null,null,null,null,null,null,null,null,null,null,null,null,null,null,null,null,null,null,null,null,null,null,null,null,null,null,null,null,null,null,null,null,null,null,null,null,null,null,null,null,null,null,null,null,null,null,null,null,null,null,null,null,null,null,null,null,null,null,null,null,null,null,null,null,null,null,null,null,null,null,null,null,null,null,null,null,null,null,null,null,null,null,null,null,null,null,null,null,null,null,null,null,null,null,null,null,null,null,null,null,null,null,null,null,null,null,null,"Общий счет РО - 206,30",null,"Исключен 01.04.2019"]
[{"$f":"\"Белозерск г, Великосельцева ул, д.18А\"","v":"Белозерск г, Великосельцева ул, д.18А"},"Белозерск г, Великосельцева ул, д.18А","Белозерск г, Великосельцева ул, д.18А","Белозерск г, Великосельцева ул, д.18А","Белозерск г, Великосельцева ул, д.18А","Белозерск г, Великосельцева ул, д.18А",null,null,null,null,null,null,null,{"$f":"\"Белозерск г, Великосельцева ул, д.18А\"","v":"Белозерск г, Великосельцева ул, д.18А"},null,null,null,null,null,null,null,null,null,null,null,null,null,null,null,null,"Белозерск г, Великосельцева ул, д. 18А",null,null,null,null,"Белозерск г, Великосельцева ул, д. 18А",null,null,null,null,null,null,null,null,null,null,"Белозерск г, Великосельцева ул, д. 18А",null,null,null,null,null,null,"Белозерск г, Великосельцева ул, д. 18А",null,null,null,null,null,"Белозерск г, Великосельцева ул, д. 18А",null,null,null,null,null,null,null,null,"Белозерск г, Великосельцева ул, д. 18А",null,null,null,null,null,"Белозерск г, Великосельцева ул, д. 18А",null,null,null,null,null,null,null,"Белозерск г, Великосельцева ул, д. 18А",null,null,null,null,null,null,"Белозерск г, Великосельцева ул, д. 18А",null,null,null,null,null,null,null,null,"Белозерск г, Великосельцева ул, д. 18А",null,null,null,null,"Белозерск г, Великосельцева ул, д. 18А",null,null,null,null,null,null,null,null,"Белозерск г, Великосельцева ул, д. 18А",null,null,null,null,"Белозерск г, Великосельцева ул, д. 18А",null,null,null,null,"Белозерск г, Великосельцева ул, д. 18А",null,null,"Белозерск г, Великосельцева ул, д. 18А",null,null,null,null,null,null,null,null,null,null,null,null,"Общий счет РО+"]
[{"$f":"\"Белозерск г, Великосельцева ул, д.27А\"","v":"Белозерск г, Великосельцева ул, д.27А"},"Белозерск г, Великосельцева ул, д.27А","Белозерск г, Великосельцева ул, д.27А","Белозерск г, Великосельцева ул, д.27А","Белозерск г, Великосельцева ул, д.27А","Белозерск г, Великосельцева ул, д.27А",null,null,null,null,null,null,null,{"$f":"\"Белозерск г, Великосельцева ул, д.27А\"","v":"Белозерск г, Великосельцева ул, д.27А"},null,null,null,null,null,null,null,null,null,null,null,null,null,null,null,null,"Белозерск г, Великосельцева ул, д. 27А",null,null,null,null,"Белозерск г, Великосельцева ул, д. 27А",null,null,null,null,null,null,null,null,null,null,"Белозерск г, Великосельцева ул, д. 27А",null,null,null,null,null,null,"Белозерск г, Великосельцева ул, д. 27А",null,null,null,null,null,"Белозерск г, Великосельцева ул, д. 27А",null,null,null,null,null,null,null,null,"Белозерск г, Великосельцева ул, д. 27А",null,null,null,null,null,"Белозерск г, Великосельцева ул, д. 27А",null,null,null,null,null,null,null,"Белозерск г, Великосельцева ул, д. 27А",null,null,null,null,null,null,"Белозерск г, Великосельцева ул, д. 27А",null,null,null,null,null,null,null,null,"Белозерск г, Великосельцева ул, д. 27А",null,null,null,null,"Белозерск г, Великосельцева ул, д. 27А",null,null,null,null,null,null,null,null,"Белозерск г, Великосельцева ул, д. 27А",null,null,null,null,"Белозерск г, Великосельцева ул, д. 27А",null,null,null,null,"Белозерск г, Великосельцева ул, д. 27А",null,null,"Белозерск г, Великосельцева ул, д. 27А",null,null,null,null,null,null,null,null,null,null,null,null,"Общий счет РО+","4-х квартирный"]
[{"$f":"\"Белозерск г, Володарского ул, д.2\"","v":"Белозерск г, Володарского ул, д.2"},"Белозерск г, Володарского ул, д.2","Белозерск г, Володарского ул, д.2","Белозерск г, Володарского ул, д.2","Белозерск г, Володарского ул, д.2","Белозерск г, Володарского ул, д.2",null,null,null,null,null,null,null,{"$f":"\"Белозерск г, Володарского ул, д.2\"","v":"Белозерск г, Володарского ул, д.2"},null,null,null,null,null,null,null,null,null,null,null,null,null,null,null,null,"Белозерск г, Володарского ул, д. 2",null,null,null,null,"Белозерск г, Володарского ул, д. 2",null,null,null,null,null,null,null,null,null,null,"Белозерск г, Володарского ул, д. 2",null,null,null,null,null,null,"Белозерск г, Володарского ул, д. 2",null,null,null,null,null,"Белозерск г, Володарского ул, д. 2",null,null,null,null,null,null,null,null,"Белозерск г, Володарского ул, д. 2",null,null,null,null,null,"Белозерск г, Володарского ул, д. 2",null,null,null,null,null,null,null,"Белозерск г, Володарского ул, д. 2",null,null,null,null,null,null,"Белозерск г, Володарского ул, д. 2",null,null,null,null,null,null,null,null,"Белозерск г, Володарского ул, д. 2",null,null,null,null,"Белозерск г, Володарского ул, д. 2",null,null,null,null,null,null,null,null,"Белозерск г, Володарского ул, д. 2",null,null,null,null,"Белозерск г, Володарского ул, д. 2",null,null,null,null,"Белозерск г, Володарского ул, д. 2",null,null,"Белозерск г, Володарского ул, д. 2",null,null,null,null,null,null,null,null,null,null,null,null,"Общий счет РО+"]
[{"$f":"\"Белозерск г, Воровского ул, д.1А\"","v":"Белозерск г, Воровского ул, д.1А"},"Белозерск г, Воровского ул, д.1А","Белозерск г, Воровского ул, д.1А","Белозерск г, Воровского ул, д.1А","Белозерск г, Воровского ул, д.1А","Белозерск г, Воровского ул, д.1А",null,null,null,null,null,null,null,{"$f":"\"Белозерск г, Воровского ул, д.1А\"","v":"Белозерск г, Воровского ул, д.1А"},null,null,null,null,null,null,null,null,null,null,null,null,null,null,null,null,"Белозерск г, Воровского ул, д. 1А",null,null,null,null,"Белозерск г, Воровского ул, д. 1А",null,null,null,null,null,null,null,null,null,null,"Белозерск г, Воровского ул, д. 1А",null,null,null,null,null,null,"Белозерск г, Воровского ул, д. 1А",null,null,null,null,null,"Белозерск г, Воровского ул, д. 1А",null,null,null,null,null,null,null,null,"Белозерск г, Воровского ул, д. 1А",null,null,null,null,null,"Белозерск г, Воровского ул, д. 1А",null,null,null,null,null,null,null,"Белозерск г, Воровского ул, д. 1А",null,null,null,null,null,null,"Белозерск г, Воровского ул, д. 1А",null,null,null,null,null,null,null,null,"Белозерск г, Воровского ул, д. 1А",null,null,null,null,"Белозерск г, Воровского ул, д. 1А",null,null,null,null,null,null,null,null,"Белозерск г, Воровского ул, д. 1А",null,null,null,null,"Белозерск г, Воровского ул, д. 1А",null,null,null,null,"Белозерск г, Воровского ул, д. 1А",null,null,"Белозерск г, Воровского ул, д. 1А",null,null,null,null,null,null,null,null,null,null,null,null,"Общий счет РО+"]
[{"$f":"\"Белозерск г, Воровского ул, д.3Е\"","v":"Белозерск г, Воровского ул, д.3Е"},"Белозерск г, Воровского ул, д.3Е","Белозерск г, Воровского ул, д.3Е","Белозерск г, Воровского ул, д.3Е","Белозерск г, Воровского ул, д.3Е","Белозерск г, Воровского ул, д.3Е",null,null,null,null,null,null,null,{"$f":"\"Белозерск г, Воровского ул, д.3Е\"","v":"Белозерск г, Воровского ул, д.3Е"},null,null,null,null,null,null,null,null,null,null,null,null,null,null,null,null,"Белозерск г, Воровского ул, д. 3Е",null,null,null,null,"Белозерск г, Воровского ул, д. 3Е",null,null,null,null,null,null,null,null,null,null,"Белозерск г, Воровского ул, д. 3Е",null,null,null,null,null,null,"Белозерск г, Воровского ул, д. 3Е",null,null,null,null,null,"Белозерск г, Воровского ул, д. 3Е",null,null,null,null,null,null,null,null,"Белозерск г, Воровского ул, д. 3Е",null,null,null,null,null,"Белозерск г, Воровского ул, д. 3Е",null,null,null,null,null,null,null,"Белозерск г, Воровского ул, д. 3Е",null,null,null,null,null,null,"Белозерск г, Воровского ул, д. 3Е",null,null,null,null,null,null,null,null,"Белозерск г, Воровского ул, д. 3Е",null,null,null,null,"Белозерск г, Воровского ул, д. 3Е",null,null,null,null,null,null,null,null,"Белозерск г, Воровского ул, д. 3Е",null,null,null,null,"Белозерск г, Воровского ул, д. 3Е",null,null,null,null,"Белозерск г, Воровского ул, д. 3Е",null,null,"Белозерск г, Воровского ул, д. 3Е",null,null,null,null,null,null,null,null,null,null,null,null,"Общий счет РО+"]
[{"$f":"\"Белозерск г, Воровского ул, д.3В\"","v":"Белозерск г, Воровского ул, д.3В"},"Белозерск г, Воровского ул, д.3В","Белозерск г, Воровского ул, д.3В","Белозерск г, Воровского ул, д.3В","Белозерск г, Воровского ул, д.3В","Белозерск г, Воровского ул, д.3В",null,null,null,null,null,null,null,{"$f":"\"Белозерск г, Воровского ул, д.3В\"","v":"Белозерск г, Воровского ул, д.3В"},null,null,null,null,null,null,null,null,null,null,null,null,null,null,null,null,"Белозерск г, Воровского ул, д. 3В",null,null,null,null,"Белозерск г, Воровского ул, д. 3В",null,null,null,null,null,null,null,null,null,null,"Белозерск г, Воровского ул, д. 3В",null,null,null,null,null,null,"Белозерск г, Воровского ул, д. 3В",null,null,null,null,null,"Белозерск г, Воровского ул, д. 3В",null,null,null,null,null,null,null,null,"Белозерск г, Воровского ул, д. 3В",null,null,null,null,null,"Белозерск г, Воровского ул, д. 3В",null,null,null,null,null,null,null,"Белозерск г, Воровского ул, д. 3В",null,null,null,null,null,null,"Белозерск г, Воровского ул, д. 3В",null,null,null,null,null,null,null,null,"Белозерск г, Воровского ул, д. 3В",null,null,null,null,"Белозерск г, Воровского ул, д. 3В",null,null,null,null,null,null,null,null,"Белозерск г, Воровского ул, д. 3В",null,null,null,null,"Белозерск г, Воровского ул, д. 3В",null,null,null,null,"Белозерск г, Воровского ул, д. 3В",null,null,"Белозерск г, Воровского ул, д. 3В",null,null,null,null,null,null,null,null,null,null,null,null,"Общий счет РО+"]
[{"$f":"\"Белозерск г, Воровского ул, д.3А\"","v":"Белозерск г, Воровского ул, д.3А"},"Белозерск г, Воровского ул, д.3А","Белозерск г, Воровского ул, д.3А","Белозерск г, Воровского ул, д.3А","Белозерск г, Воровского ул, д.3А","Белозерск г, Воровского ул, д.3А",null,null,null,null,null,null,null,{"$f":"\"Белозерск г, Воровского ул, д.3А\"","v":"Белозерск г, Воровского ул, д.3А"},null,null,null,null,null,null,null,null,null,null,null,null,null,null,null,null,"Белозерск г, Воровского ул, д. 3А",null,null,null,null,"Белозерск г, Воровского ул, д. 3А",null,null,null,null,null,null,null,null,null,null,"Белозерск г, Воровского ул, д. 3А",null,null,null,null,null,null,"Белозерск г, Воровского ул, д. 3А",null,null,null,null,null,"Белозерск г, Воровского ул, д. 3А",null,null,null,null,null,null,null,null,"Белозерск г, Воровского ул, д. 3А",null,null,null,null,null,"Белозерск г, Воровского ул, д. 3А",null,null,null,null,null,null,null,"Белозерск г, Воровского ул, д. 3А",null,null,null,null,null,null,"Белозерск г, Воровского ул, д. 3А",null,null,null,null,null,null,null,null,"Белозерск г, Воровского ул, д. 3А",null,null,null,null,"Белозерск г, Воровского ул, д. 3А",null,null,null,null,null,null,null,null,"Белозерск г, Воровского ул, д. 3А",null,null,null,null,"Белозерск г, Воровского ул, д. 3А",null,null,null,null,null,null,null,null,null,null,null,null,null,null,null,null,null,null,null,null,"Общий счет РО+327,20","Признан аварийным. Постановление 964 от 31.07.2025"]
[{"$f":"\"Белозерск г, Воровского ул, д.24А\"","v":"Белозерск г, Воровского ул, д.24А"},"Белозерск г, Воровского ул, д.24А","Белозерск г, Воровского ул, д.24А","Белозерск г, Воровского ул, д.24А","Белозерск г, Воровского ул, д.24А","Белозерск г, Воровского ул, д.24А",null,null,null,null,null,null,null,{"$f":"\"Белозерск г, Воровского ул, д.24А\"","v":"Белозерск г, Воровского ул, д.24А"},null,null,null,null,null,null,null,null,null,null,null,null,null,null,null,null,"Белозерск г, Воровского ул, д. 24А",null,null,null,null,null,null,null,null,null,null,null,null,null,null,null,null,null,null,null,null,null,null,null,null,null,null,null,null,null,null,null,null,null,null,null,null,null,null,null,null,null,null,null,null,null,null,null,null,null,null,null,null,null,null,null,null,null,null,null,null,null,null,null,null,null,null,null,null,null,null,null,null,null,null,null,null,null,null,null,null,null,null,null,null,null,null,null,null,null,null,null,null,null,null,null,null,null,null,null,null,null,null,null,null,null,null,null,"Общий счет РО - 229,50",null,"Исключен 01.04.2019"]
[{"$f":"\"Белозерск г, Воровского ул, д.31\"","v":"Белозерск г, Воровского ул, д.31"},"Белозерск г, Воровского ул, д.31","Белозерск г, Воровского ул, д.31","Белозерск г, Воровского ул, д.31","Белозерск г, Воровского ул, д.31","Белозерск г, Воровского ул, д.31",null,null,null,null,null,null,null,{"$f":"\"Белозерск г, Воровского ул, д.31\"","v":"Белозерск г, Воровского ул, д.31"},null,null,null,null,null,null,null,null,null,null,null,null,null,null,null,null,"Белозерск г, Воровского ул, д. 31",null,null,null,null,null,null,null,null,null,null,null,null,null,null,null,null,null,null,null,null,null,null,null,null,null,null,null,null,null,null,null,null,null,null,null,null,null,null,null,null,null,null,null,null,null,null,null,null,null,null,null,null,null,null,null,null,null,null,null,null,null,null,null,null,null,null,null,null,null,null,null,null,null,null,null,null,null,null,null,null,null,null,null,null,null,null,null,null,null,null,null,null,null,null,null,null,null,null,null,null,null,null,null,null,null,null,null,"Общий счет РО - 249,70",null,"Исключен 01.04.2019"]
[{"$f":"\"Белозерск г, Воровского ул, д.3Б\"","v":"Белозерск г, Воровского ул, д.3Б"},{"$f":"\"Белозерск г, Воровского ул, д.3Б\"","v":"Белозерск г, Воровского ул, д.3Б"},{"$f":"\"Белозерск г, Воровского ул, д.3Б\"","v":"Белозерск г, Воровского ул, д.3Б"},{"$f":"\"Белозерск г, Воровского ул, д.3Б\"","v":"Белозерск г, Воровского ул, д.3Б"},{"$f":"\"Белозерск г, Воровского ул, д.3Б\"","v":"Белозерск г, Воровского ул, д.3Б"},null,null,null,null,null,null,null,null,null,null,null,null,null,null,null,null,null,null,null,null,null,null,null,null,null,null,null,null,null,null,null,null,null,null,null,null,null,null,null,null,null,null,null,null,null,null,null,null,null,null,null,null,null,null,null,null,null,null,null,null,null,null,null,null,null,null,null,null,null,null,null,null,null,null,null,null,null,null,null,null,null,null,null,null,null,null,null,null,null,null,null,null,null,null,null,null,null,null,null,null,null,null,null,null,null,null,null,null,null,null,null,null,null,null,null,null,null,null,null,null,null,null,null,null,null,null,null,null,null,null,null,null,null,null,"признан аварийным расчет прекращен с 01.10.2016"]
[{"$f":"\"Белозерск г, Воровского ул, д.3Г\"","v":"Белозерск г, Воровского ул, д.3Г"},{"$f":"\"Белозерск г, Воровского ул, д.3Г\"","v":"Белозерск г, Воровского ул, д.3Г"},{"$f":"\"Белозерск г, Воровского ул, д.3Г\"","v":"Белозерск г, Воровского ул, д.3Г"}]
[{"$f":"\"Белозерск г, Воровского ул, д.3Д\"","v":"Белозерск г, Воровского ул, д.3Д"},"Белозерск г, Воровского ул, д.3Д","Белозерск г, Воровского ул, д.3Д","Белозерск г, Воровского ул, д.3Д","Белозерск г, Воровского ул, д.3Д","Белозерск г, Воровского ул, д.3Д",null,null,null,null,null,null,null,{"$f":"\"Белозерск г, Воровского ул, д.3Д\"","v":"Белозерск г, Воровского ул, д.3Д"},null,null,null,null,null,null,null,null,null,null,null,null,null,null,null,null,"Белозерск г, Воровского ул, д. 3Д",null,null,null,null,"Белозерск г, Воровского ул, д. 3Д",null,null,null,null,null,null,null,null,null,null,"Белозерск г, Воровского ул, д. 3Д",null,null,null,null,null,null,"Белозерск г, Воровского ул, д. 3Д",null,null,null,null,null,"Белозерск г, Воровского ул, д. 3Д",null,null,null,null,null,null,null,null,"Белозерск г, Воровского ул, д. 3Д",null,null,null,null,null,"Белозерск г, Воровского ул, д. 3Д",null,null,null,null,null,null,null,"Белозерск г, Воровского ул, д. 3Д",null,null,null,null,null,null,"Белозерск г, Воровского ул, д. 3Д",null,null,null,null,null,null,null,null,null,null,null,null,null,null,null,null,null,null,null,null,null,null,null,null,null,null,null,null,null,null,null,null,null,null,null,null,null,null,null,null,null,null,null,null,null,null,null,null,"Общий счет РО 335,10","Признан аварийным. Постановление № 189 от 13.02.2023"]
[{"$f":"\"Белозерск г, Воровского ул, д.44\"","v":"Белозерск г, Воровского ул, д.44"},"Белозерск г, Воровского ул, д.44","Белозерск г, Воровского ул, д.44","Белозерск г, Воровского ул, д.44","Белозерск г, Воровского ул, д.44","Белозерск г, Воровского ул, д.44",null,null,null,null,null,null,null,{"$f":"\"Белозерск г, Воровского ул, д.44\"","v":"Белозерск г, Воровского ул, д.44"},null,null,null,null,null,null,null,null,null,null,null,null,null,null,null,null,"Белозерск г, Воровского ул, д. 44",null,null,null,null,null,null,null,null,null,null,null,null,null,null,null,null,null,null,null,null,null,null,null,null,null,null,null,null,null,null,null,null,null,null,null,null,null,null,null,null,null,null,null,null,null,null,null,null,null,null,null,null,null,null,null,null,null,null,null,null,null,null,null,null,null,null,null,null,null,null,null,null,null,null,null,null,null,null,null,null,null,null,null,null,null,null,null,null,null,null,null,null,null,null,null,null,null,null,null,null,null,null,null,null,null,null,null,"Общий счет РО - 266,70",null,"Исключен 01.04.2019"]
[{"$f":"\"Белозерск г, Воровского ул, д.46\"","v":"Белозерск г, Воровского ул, д.46"},"Белозерск г, Воровского ул, д.46","Белозерск г, Воровского ул, д.46","Белозерск г, Воровского ул, д.46","Белозерск г, Воровского ул, д.46","Белозерск г, Воровского ул, д.46",null,null,null,null,null,null,null,{"$f":"\"Белозерск г, Воровского ул, д.46\"","v":"Белозерск г, Воровского ул, д.46"},null,null,null,null,null,null,null,null,null,null,null,null,null,null,null,null,"Белозерск г, Воровского ул, д. 46",null,null,null,null,null,null,null,null,null,null,null,null,null,null,null,null,null,null,null,null,null,null,null,null,null,null,null,null,null,null,null,null,null,null,null,null,null,null,null,null,null,null,null,null,null,null,null,null,null,null,null,null,null,null,null,null,null,null,null,null,null,null,null,null,null,null,null,null,null,null,null,null,null,null,null,null,null,null,null,null,null,null,null,null,null,null,null,null,null,null,null,null,null,null,null,null,null,null,null,null,null,null,null,null,null,null,null,"Общий счет РО - 253,90",null,"Исключен 01.04.2019"]
[{"$f":"\"Белозерск г, Воровского ул, д.50\"","v":"Белозерск г, Воровского ул, д.50"},"Белозерск г, Воровского ул, д.50","Белозерск г, Воровского ул, д.50","Белозерск г, Воровского ул, д.50","Белозерск г, Воровского ул, д.50","Белозерск г, Воровского ул, д.50",null,null,null,null,null,null,null,{"$f":"\"Белозерск г, Воровского ул, д.50\"","v":"Белозерск г, Воровского ул, д.50"},null,null,null,null,null,null,null,null,null,null,null,null,null,null,null,null,"Белозерск г, Воровского ул, д. 50",null,null,null,null,null,null,null,null,null,null,null,null,null,null,null,null,null,null,null,null,null,null,null,null,null,null,null,null,null,null,null,null,null,null,null,null,null,null,null,null,null,null,null,null,null,null,null,null,null,null,null,null,null,null,null,null,null,null,null,null,null,null,null,null,null,null,null,null,null,null,null,null,null,null,null,null,null,null,null,null,null,null,null,null,null,null,null,null,null,null,null,null,null,null,null,null,null,null,null,null,null,null,null,null,null,null,null,"Специальный счет РО + учет - 284,70",null,"ОС-ССРО с 04.2016                    Исключен 01.04.2019"]
[{"$f":"\"Белозерск г, Галаничева ул, д.29\"","v":"Белозерск г, Галаничева ул, д.29"},"Белозерск г, Галаничева ул, д.29","Белозерск г, Галаничева ул, д.29","Белозерск г, Галаничева ул, д.29","Белозерск г, Галаничева ул, д.29","Белозерск г, Галаничева ул, д.29",null,null,null,null,null,null,null,{"$f":"\"Белозерск г, Галаничева ул, д.29\"","v":"Белозерск г, Галаничева ул, д.29"},null,null,null,null,null,null,null,null,null,null,null,null,null,null,null,null,"Белозерск г, Галаничева ул, д. 29",null,null,null,null,"Белозерск г, Галаничева ул, д. 29",null,null,null,null,null,null,null,null,null,null,"Белозерск г, Галаничева ул, д. 29",null,null,null,null,null,null,"Белозерск г, Галаничева ул, д. 29",null,null,null,null,null,"Белозерск г, Галаничева ул, д. 29",null,null,null,null,null,null,null,null,"Белозерск г, Галаничева ул, д. 29",null,null,null,null,null,"Белозерск г, Галаничева ул, д. 29",null,null,null,null,null,null,null,"Белозерск г, Галаничева ул, д. 29",null,null,null,null,null,null,"Белозерск г, Галаничева ул, д. 29",null,null,null,null,null,null,null,null,"Белозерск г, Галаничева ул, д. 29",null,null,null,null,"Белозерск г, Галаничева ул, д. 29",null,null,null,null,null,null,null,null,"Белозерск г, Галаничева ул, д. 29",null,null,null,null,"Белозерск г, Галаничева ул, д. 29",null,null,null,null,"Белозерск г, Галаничева ул, д. 29",null,null,"Белозерск г, Галаничева ул, д. 29",null,null,null,null,null,null,null,null,null,null,null,null,"Общий счет РО+"]
[{"$f":"\"Белозерск г, Галаничева ул, д.31\"","v":"Белозерск г, Галаничева ул, д.31"},"Белозерск г, Галаничева ул, д.31","Белозерск г, Галаничева ул, д.31","Белозерск г, Галаничева ул, д.31","Белозерск г, Галаничева ул, д.31","Белозерск г, Галаничева ул, д.31",null,null,null,null,null,null,null,{"$f":"\"Белозерск г, Галаничева ул, д.31\"","v":"Белозерск г, Галаничева ул, д.31"},null,null,null,null,null,null,null,null,null,null,null,null,null,null,null,null,"Белозерск г, Галаничева ул, д. 31",null,null,null,null,"Белозерск г, Галаничева ул, д. 31",null,null,null,null,null,null,null,null,null,null,"Белозерск г, Галаничева ул, д. 31",null,null,null,null,null,null,"Белозерск г, Галаничева ул, д. 31",null,null,null,null,null,"Белозерск г, Галаничева ул, д. 31",null,null,null,null,null,null,null,null,"Белозерск г, Галаничева ул, д. 31",null,null,null,null,null,"Белозерск г, Галаничева ул, д. 31",null,null,null,null,null,null,null,"Белозерск г, Галаничева ул, д. 31",null,null,null,null,null,null,"Белозерск г, Галаничева ул, д. 31",null,null,null,null,null,null,null,null,"Белозерск г, Галаничева ул, д. 31",null,null,null,null,"Белозерск г, Галаничева ул, д. 31",null,null,null,null,null,null,null,null,"Белозерск г, Галаничева ул, д. 31",null,null,null,null,"Белозерск г, Галаничева ул, д. 31",null,null,null,null,"Белозерск г, Галаничева ул, д. 31",null,null,"Белозерск г, Галаничева ул, д. 31",null,null,null,null,null,null,null,null,null,null,null,null,"Общий счет РО+"]
[{"$f":"\"Белозерск г, Галаничева ул, д.36\"","v":"Белозерск г, Галаничева ул, д.36"},"Белозерск г, Галаничева ул, д.36","Белозерск г, Галаничева ул, д.36","Белозерск г, Галаничева ул, д.36","Белозерск г, Галаничева ул, д.36","Белозерск г, Галаничева ул, д.36",null,null,null,null,null,null,null,{"$f":"\"Белозерск г, Галаничева ул, д.36\"","v":"Белозерск г, Галаничева ул, д.36"},null,null,null,null,null,null,null,null,null,null,null,null,null,null,null,null,"Белозерск г, Галаничева ул, д. 36",null,null,null,null,"Белозерск г, Галаничева ул, д. 36",null,null,null,null,null,null,null,null,null,null,"Белозерск г, Галаничева ул, д. 36",null,null,null,null,null,null,"Белозерск г, Галаничева ул, д. 36",null,null,null,null,null,"Белозерск г, Галаничева ул, д. 36",null,null,null,null,null,null,null,null,"Белозерск г, Галаничева ул, д. 36",null,null,null,null,null,"Белозерск г, Галаничева ул, д. 36",null,null,null,null,null,null,null,"Белозерск г, Галаничева ул, д. 36",null,null,null,null,null,null,"Белозерск г, Галаничева ул, д. 36",null,null,null,null,null,null,null,null,"Белозерск г, Галаничева ул, д. 36",null,null,null,null,"Белозерск г, Галаничева ул, д. 36",null,null,null,null,null,null,null,null,"Белозерск г, Галаничева ул, д. 36",null,null,null,null,"Белозерск г, Галаничева ул, д. 36",null,null,null,null,"Белозерск г, Галаничева ул, д. 36",null,null,"Белозерск г, Галаничева ул, д. 36",null,null,null,null,null,null,null,null,null,null,null,null,"Общий счет РО+"]
[{"$f":"\"Белозерск г, Декабристов ул, д.1А\"","v":"Белозерск г, Декабристов ул, д.1А"},"Белозерск г, Декабристов ул, д.1А","Белозерск г, Декабристов ул, д.1А","Белозерск г, Декабристов ул, д.1А","Белозерск г, Декабристов ул, д.1А","Белозерск г, Декабристов ул, д.1А",null,null,null,null,null,null,null,{"$f":"\"Белозерск г, Декабристов ул, д.1А\"","v":"Белозерск г, Декабристов ул, д.1А"},null,null,null,null,null,null,null,null,null,null,null,null,null,null,null,null,"Белозерск г, Декабристов ул, д. 1А",null,null,null,null,"Белозерск г, Декабристов ул, д. 1А",null,null,null,null,null,null,null,null,null,null,"Белозерск г, Декабристов ул, д. 1А",null,null,null,null,null,null,"Белозерск г, Декабристов ул, д. 1А",null,null,null,null,null,"Белозерск г, Декабристов ул, д. 1А",null,null,null,null,null,null,null,null,"Белозерск г, Декабристов ул, д. 1А",null,null,null,null,null,"Белозерск г, Декабристов ул, д. 1А",null,null,null,null,null,null,null,"Белозерск г, Декабристов ул, д. 1А",null,null,null,null,null,null,"Белозерск г, Декабристов ул, д. 1А",null,null,null,null,null,null,null,null,"Белозерск г, Декабристов ул, д. 1А",null,null,null,null,"Белозерск г, Декабристов ул, д. 1А",null,null,null,null,null,null,null,null,"Белозерск г, Декабристов ул, д. 1А",null,null,null,null,"Белозерск г, Декабристов ул, д. 1А",null,null,null,null,"Белозерск г, Декабристов ул, д. 1А",null,null,"Белозерск г, Декабристов ул, д. 1А",null,null,null,null,null,null,null,null,null,null,null,null,"Общий счет РО+","Признан аварийным. Постановление № 1700 от 29.12.2025"]
[{"$f":"\"Белозерск г, Декабристов ул, д.21\"","v":"Белозерск г, Декабристов ул, д.21"},"Белозерск г, Декабристов ул, д.21","Белозерск г, Декабристов ул, д.21","Белозерск г, Декабристов ул, д.21","Белозерск г, Декабристов ул, д.21","Белозерск г, Декабристов ул, д.21",null,null,null,null,null,null,null,{"$f":"\"Белозерск г, Декабристов ул, д.21\"","v":"Белозерск г, Декабристов ул, д.21"},null,null,null,null,null,null,null,null,null,null,null,null,null,null,null,null,"Белозерск г, Декабристов ул, д. 21",null,null,null,null,"Белозерск г, Декабристов ул, д. 21",null,null,null,null,null,null,null,null,null,null,"Белозерск г, Декабристов ул, д. 21",null,null,null,null,null,null,"Белозерск г, Декабристов ул, д. 21",null,null,null,null,null,"Белозерск г, Декабристов ул, д. 21",null,null,null,null,null,null,null,null,"Белозерск г, Декабристов ул, д. 21",null,null,null,null,null,"Белозерск г, Декабристов ул, д. 21",null,null,null,null,null,null,null,"Белозерск г, Декабристов ул, д. 21",null,null,null,null,null,null,"Белозерск г, Декабристов ул, д. 21",null,null,null,null,null,null,null,null,"Белозерск г, Декабристов ул, д. 21",null,null,null,null,"Белозерск г, Декабристов ул, д. 21",null,null,null,null,null,null,null,null,"Белозерск г, Декабристов ул, д. 21",null,null,null,null,"Белозерск г, Декабристов ул, д. 21",null,null,null,null,"Белозерск г, Декабристов ул, д. 21",null,null,"Белозерск г, Декабристов ул, д. 21",null,null,null,null,null,null,null,null,null,null,null,null,"Общий счет РО+"]
[{"$f":"\"Белозерск г, Декабристов ул, д.30\"","v":"Белозерск г, Декабристов ул, д.30"},{"$f":"\"Белозерск г, Декабристов ул, д.30\"","v":"Белозерск г, Декабристов ул, д.30"},{"$f":"\"Белозерск г, Декабристов ул, д.30\"","v":"Белозерск г, Декабристов ул, д.30"},{"$f":"\"Белозерск г, Декабристов ул, д.30\"","v":"Белозерск г, Декабристов ул, д.30"},{"$f":"\"Белозерск г, Декабристов ул, д.30\"","v":"Белозерск г, Декабристов ул, д.30"},null,null,null,null,null,null,null,null,null,null,null,null,null,null,null,null,null,null,null,null,null,null,null,null,null,null,null,null,null,null,null,null,null,null,null,null,null,null,null,null,null,null,null,null,null,null,null,null,null,null,null,null,null,null,null,null,null,null,null,null,null,null,null,null,null,null,null,null,null,null,null,null,null,null,null,null,null,null,null,null,null,null,null,null,null,null,null,null,null,null,null,null,null,null,null,null,null,null,null,null,null,null,null,null,null,null,null,null,null,null,null,null,null,null,null,null,null,null,null,null,null,null,null,null,null,null,null,null,null,null,null,null,null,"Общий счет РО","признан аварийным. Расчет прекращен с 01.08.2016","Исключен 28.11.2016"]
[{"$f":"\"Белозерск г, Декабристов ул, д.34\"","v":"Белозерск г, Декабристов ул, д.34"},"Белозерск г, Декабристов ул, д.34","Белозерск г, Декабристов ул, д.34","Белозерск г, Декабристов ул, д.34","Белозерск г, Декабристов ул, д.34","Белозерск г, Декабристов ул, д.34",null,null,null,null,null,null,null,{"$f":"\"Белозерск г, Декабристов ул, д.34\"","v":"Белозерск г, Декабристов ул, д.34"},null,null,null,null,null,null,null,null,null,null,null,null,null,null,null,null,"Белозерск г, Декабристов ул, д. 34",null,null,null,null,"Белозерск г, Декабристов ул, д. 34",null,null,null,null,null,null,null,null,null,null,"Белозерск г, Декабристов ул, д. 34",null,null,null,null,null,null,"Белозерск г, Декабристов ул, д. 34",null,null,null,null,null,null,null,null,null,null,null,null,null,null,null,null,null,null,null,null,null,null,null,null,null,null,null,null,null,null,null,null,null,null,null,null,null,null,null,null,null,null,null,null,null,null,null,null,null,null,null,null,null,null,null,null,null,null,null,null,null,null,null,null,null,null,null,null,null,null,null,null,null,null,null,null,null,null,null,null,null,null,null,null,"Общий счет РО - 579,50","Признан аварийным. Постановление № 321 от 16.10.2020","Исключен 28.12.2020"]
[{"$f":"\"Белозерск г, Декабристов ул, д.36\"","v":"Белозерск г, Декабристов ул, д.36"},{"$f":"\"Белозерск г, Декабристов ул, д.36\"","v":"Белозерск г, Декабристов ул, д.36"},{"$f":"\"Белозерск г, Декабристов ул, д.36\"","v":"Белозерск г, Декабристов ул, д.36"}]
[{"$f":"\"Белозерск г, Декабристов ул, д.5А\"","v":"Белозерск г, Декабристов ул, д.5А"},"Белозерск г, Декабристов ул, д.5А","Белозерск г, Декабристов ул, д.5А","Белозерск г, Декабристов ул, д.5А","Белозерск г, Декабристов ул, д.5А","Белозерск г, Декабристов ул, д.5А",null,null,null,null,null,null,null,{"$f":"\"Белозерск г, Декабристов ул, д.5А\"","v":"Белозерск г, Декабристов ул, д.5А"},null,null,null,null,null,null,null,null,null,null,null,null,null,null,null,null,"Белозерск г, Декабристов ул, д. 5А",null,null,null,null,"Белозерск г, Декабристов ул, д. 5А",null,null,null,null,null,null,null,null,null,null,"Белозерск г, Декабристов ул, д. 5А",null,null,null,null,null,null,null,null,null,null,null,null,null,null,null,null,null,null,null,null,null,null,null,null,null,null,null,null,null,null,null,null,null,null,null,null,null,null,null,null,null,null,null,null,null,null,null,null,null,null,null,null,null,null,null,null,null,null,null,null,null,null,null,null,null,null,null,null,null,null,null,null,null,null,null,null,null,null,null,null,null,null,null,null,null,null,null,null,null,null,null,"Общий счет РО 493,30","Признан аварийным. Постановление 155 от 19.05.2020","Исключен 27.07.2020"]
[{"$f":"\"Белозерск г, Декабристов ул, д.7А\"","v":"Белозерск г, Декабристов ул, д.7А"},"Белозерск г, Декабристов ул, д.7А","Белозерск г, Декабристов ул, д.7А","Белозерск г, Декабристов ул, д.7А","Белозерск г, Декабристов ул, д.7А","Белозерск г, Декабристов ул, д.7А",null,null,null,null,null,null,null,{"$f":"\"Белозерск г, Декабристов ул, д.7А\"","v":"Белозерск г, Декабристов ул, д.7А"},null,null,null,null,null,null,null,null,null,null,null,null,null,null,null,null,"Белозерск г, Декабристов ул, д. 7А",null,null,null,null,"Белозерск г, Декабристов ул, д. 7А",null,null,null,null,null,null,null,null,null,null,"Белозерск г, Декабристов ул, д. 7А",null,null,null,null,null,null,"Белозерск г, Декабристов ул, д. 7А",null,null,null,null,null,"Белозерск г, Декабристов ул, д. 7А",null,null,null,null,null,null,null,null,"Белозерск г, Декабристов ул, д. 7А",null,null,null,null,null,"Белозерск г, Декабристов ул, д. 7А",null,null,null,null,null,null,null,"Белозерск г, Декабристов ул, д. 7А",null,null,null,null,null,null,"Белозерск г, Декабристов ул, д. 7А",null,null,null,null,null,null,null,null,null,null,null,null,null,null,null,null,null,null,null,null,null,null,null,null,null,null,null,null,null,null,null,null,null,null,null,null,null,null,null,null,null,null,null,null,null,null,null,null,"Общий счет РО 337,50","Признан аварийным. Постановление № 188 от 13.02.2023","Исключен 30.10.2023"]
[{"$f":"\"Белозерск г, Дзержинского ул, д.25А\"","v":"Белозерск г, Дзержинского ул, д.25А"},"Белозерск г, Дзержинского ул, д.25А","Белозерск г, Дзержинского ул, д.25А","Белозерск г, Дзержинского ул, д.25А","Белозерск г, Дзержинского ул, д.25А","Белозерск г, Дзержинского ул, д.25А",null,null,null,null,null,null,null,{"$f":"\"Белозерск г, Дзержинского ул, д.25А\"","v":"Белозерск г, Дзержинского ул, д.25А"},null,null,null,null,null,null,null,null,null,null,null,null,null,null,null,null,"Белозерск г, Дзержинского ул, д. 25А",null,null,null,null,"Белозерск г, Дзержинского ул, д. 25А",null,null,null,null,null,null,null,null,null,null,"Белозерск г, Дзержинского ул, д. 25А",null,null,null,null,null,null,"Белозерск г, Дзержинского ул, д. 25А",null,null,null,null,null,"Белозерск г, Дзержинского ул, д. 25А",null,null,null,null,null,null,null,null,"Белозерск г, Дзержинского ул, д. 25А",null,null,null,null,null,"Белозерск г, Дзержинского ул, д. 25А",null,null,null,null,null,null,null,"Белозерск г, Дзержинского ул, д. 25А",null,null,null,null,null,null,"Белозерск г, Дзержинского ул, д. 25А",null,null,null,null,null,null,null,null,null,null,null,null,null,null,null,null,null,null,null,null,null,null,null,null,null,null,null,null,null,null,null,null,null,null,null,null,null,null,null,null,null,null,null,null,null,null,null,null,"Общий счет РО 329,00","Признан аварийным. Заключение № 195 от 21.06.2023"]
[{"$f":"\"Белозерск г, Дзержинского ул, д.3\"","v":"Белозерск г, Дзержинского ул, д.3"},"Белозерск г, Дзержинского ул, д.3","Белозерск г, Дзержинского ул, д.3","Белозерск г, Дзержинского ул, д.3","Белозерск г, Дзержинского ул, д.3","Белозерск г, Дзержинского ул, д.3",null,null,null,null,null,null,null,{"$f":"\"Белозерск г, Дзержинского ул, д.3\"","v":"Белозерск г, Дзержинского ул, д.3"},null,null,null,null,null,null,null,null,null,null,null,null,null,null,null,null,"Белозерск г, Дзержинского ул, д. 3",null,null,null,null,"Белозерск г, Дзержинского ул, д. 3",null,null,null,null,null,null,null,null,null,null,"Белозерск г, Дзержинского ул, д. 3",null,null,null,null,null,null,"Белозерск г, Дзержинского ул, д. 3",null,null,null,null,null,"Белозерск г, Дзержинского ул, д. 3",null,null,null,null,null,null,null,null,"Белозерск г, Дзержинского ул, д. 3",null,null,null,null,null,"Белозерск г, Дзержинского ул, д. 3",null,null,null,null,null,null,null,"Белозерск г, Дзержинского ул, д. 3",null,null,null,null,null,null,"Белозерск г, Дзержинского ул, д. 3",null,null,null,null,null,null,null,null,"Белозерск г, Дзержинского ул, д. 3",null,null,null,null,"Белозерск г, Дзержинского ул, д. 3",null,null,null,null,null,null,null,null,"Белозерск г, Дзержинского ул, д. 3",null,null,null,null,"Белозерск г, Дзержинского ул, д. 3",null,null,null,null,"Белозерск г, Дзержинского ул, д. 3",null,null,"Белозерск г, Дзержинского ул, д. 3",null,null,null,null,null,null,null,null,null,null,null,null,"Общий счет РО+"]
[{"$f":"\"Белозерск г, Дзержинского ул, д.3А\"","v":"Белозерск г, Дзержинского ул, д.3А"},"Белозерск г, Дзержинского ул, д.3А","Белозерск г, Дзержинского ул, д.3А","Белозерск г, Дзержинского ул, д.3А","Белозерск г, Дзержинского ул, д.3А","Белозерск г, Дзержинского ул, д.3А",null,null,null,null,null,null,null,{"$f":"\"Белозерск г, Дзержинского ул, д.3А\"","v":"Белозерск г, Дзержинского ул, д.3А"},null,null,null,null,null,null,null,null,null,null,null,null,null,null,null,null,"Белозерск г, Дзержинского ул, д. 3А",null,null,null,null,"Белозерск г, Дзержинского ул, д. 3А",null,null,null,null,null,null,null,null,null,null,"Белозерск г, Дзержинского ул, д. 3А",null,null,null,null,null,null,"Белозерск г, Дзержинского ул, д. 3А",null,null,null,null,null,"Белозерск г, Дзержинского ул, д. 3А",null,null,null,null,null,null,null,null,"Белозерск г, Дзержинского ул, д. 3А",null,null,null,null,null,"Белозерск г, Дзержинского ул, д. 3А",null,null,null,null,null,null,null,"Белозерск г, Дзержинского ул, д. 3А",null,null,null,null,null,null,"Белозерск г, Дзержинского ул, д. 3А",null,null,null,null,null,null,null,null,"Белозерск г, Дзержинского ул, д. 3А",null,null,null,null,"Белозерск г, Дзержинского ул, д. 3А",null,null,null,null,null,null,null,null,"Белозерск г, Дзержинского ул, д. 3А",null,null,null,null,"Белозерск г, Дзержинского ул, д. 3А",null,null,null,null,"Белозерск г, Дзержинского ул, д. 3А",null,null,"Белозерск г, Дзержинского ул, д. 3А",null,null,null,null,null,null,null,null,null,null,null,null,"Общий счет РО+"]
[{"$f":"\"Белозерск г, Дзержинского ул, д.5А\"","v":"Белозерск г, Дзержинского ул, д.5А"},{"$f":"\"Белозерск г, Дзержинского ул, д.5А\"","v":"Белозерск г, Дзержинского ул, д.5А"},{"$f":"\"Белозерск г, Дзержинского ул, д.5А\"","v":"Белозерск г, Дзержинского ул, д.5А"},{"$f":"\"Белозерск г, Дзержинского ул, д.5А\"","v":"Белозерск г, Дзержинского ул, д.5А"},{"$f":"\"Белозерск г, Дзержинского ул, д.5А\"","v":"Белозерск г, Дзержинского ул, д.5А"},{"$f":"\"Белозерск г, Дзержинского ул, д.50\"","v":"Белозерск г, Дзержинского ул, д.50"},null,null,null,null,null,null,null,{"$f":"\"Белозерск г, Дзержинского ул, д.50\"","v":"Белозерск г, Дзержинского ул, д.50"},null,null,null,null,null,null,null,null,null,null,null,null,null,null,null,null,"Белозерск г, Дзержинского ул, д. 5А",null,null,null,null,"Белозерск г, Дзержинского ул, д. 5А",null,null,null,null,null,null,null,null,null,null,"Белозерск г, Дзержинского ул, д. 5А",null,null,null,null,null,null,"Белозерск г, Дзержинского ул, д. 5А",null,null,null,null,null,"Белозерск г, Дзержинского ул, д. 5А",null,null,null,null,null,null,null,null,"Белозерск г, Дзержинского ул, д. 5А",null,null,null,null,null,"Белозерск г, Дзержинского ул, д. 5А",null,null,null,null,null,null,null,"Белозерск г, Дзержинского ул, д. 5А",null,null,null,null,null,null,"Белозерск г, Дзержинского ул, д. 5А",null,null,null,null,null,null,null,null,"Белозерск г, Дзержинского ул, д. 5А",null,null,null,null,"Белозерск г, Дзержинского ул, д. 5А",null,null,null,null,null,null,null,null,"Белозерск г, Дзержинского ул, д. 5А",null,null,null,null,"Белозерск г, Дзержинского ул, д. 5А",null,null,null,null,"Белозерск г, Дзержинского ул, д. 5А",null,null,"Белозерск г, Дзержинского ул, д. 5А",null,null,null,null,null,null,null,null,null,null,null,null,"Общий счет РО+"]
[{"$f":"\"Белозерск г, Дзержинского ул, д.35А\"","v":"Белозерск г, Дзержинского ул, д.35А"},"Белозерск г, Дзержинского ул, д.35А","Белозерск г, Дзержинского ул, д.35А","Белозерск г, Дзержинского ул, д.35А","Белозерск г, Дзержинского ул, д.35А","Белозерск г, Дзержинского ул, д.35А",null,null,null,null,null,null,null,{"$f":"\"Белозерск г, Дзержинского ул, д.35А\"","v":"Белозерск г, Дзержинского ул, д.35А"},null,null,null,null,null,null,null,null,null,null,null,null,null,null,null,null,"Белозерск г, Дзержинского ул, д. 35А",null,null,null,null,"Белозерск г, Дзержинского ул, д. 35А",null,null,null,null,null,null,null,null,null,null,"Белозерск г, Дзержинского ул, д. 35А",null,null,null,null,null,null,"Белозерск г, Дзержинского ул, д. 35А",null,null,null,null,null,"Белозерск г, Дзержинского ул, д. 35А",null,null,null,null,null,null,null,null,"Белозерск г, Дзержинского ул, д. 35А",null,null,null,null,null,"Белозерск г, Дзержинского ул, д. 35А",null,null,null,null,null,null,null,"Белозерск г, Дзержинского ул, д. 35А",null,null,null,null,null,null,"Белозерск г, Дзержинского ул, д. 35А",null,null,null,null,null,null,null,null,"Белозерск г, Дзержинского ул, д. 35А",null,null,null,null,"Белозерск г, Дзержинского ул, д. 35А",null,null,null,null,null,null,null,null,"Белозерск г, Дзержинского ул, д. 35А",null,null,null,null,"Белозерск г, Дзержинского ул, д. 35А",null,null,null,null,"Белозерск г, Дзержинского ул, д. 35А",null,null,"Белозерск г, Дзержинского ул, д. 35А",null,null,null,null,null,null,null,null,null,null,null,null,"Общий счет РО+"]
[{"$f":"\"Белозерск г, Дзержинского ул, д.37\"","v":"Белозерск г, Дзержинского ул, д.37"},"Белозерск г, Дзержинского ул, д.37","Белозерск г, Дзержинского ул, д.37","Белозерск г, Дзержинского ул, д.37","Белозерск г, Дзержинского ул, д.37","Белозерск г, Дзержинского ул, д.37",null,null,null,null,null,null,null,{"$f":"\"Белозерск г, Дзержинского ул, д.37\"","v":"Белозерск г, Дзержинского ул, д.37"},null,null,null,null,null,null,null,null,null,null,null,null,null,null,null,null,"Белозерск г, Дзержинского ул, д. 37",null,null,null,null,"Белозерск г, Дзержинского ул, д. 37",null,null,null,null,null,null,null,null,null,null,"Белозерск г, Дзержинского ул, д. 37",null,null,null,null,null,null,"Белозерск г, Дзержинского ул, д. 37",null,null,null,null,null,"Белозерск г, Дзержинского ул, д. 37",null,null,null,null,null,null,null,null,"Белозерск г, Дзержинского ул, д. 37",null,null,null,null,null,"Белозерск г, Дзержинского ул, д. 37",null,null,null,null,null,null,null,"Белозерск г, Дзержинского ул, д. 37",null,null,null,null,null,null,"Белозерск г, Дзержинского ул, д. 37",null,null,null,null,null,null,null,null,"Белозерск г, Дзержинского ул, д. 37",null,null,null,null,"Белозерск г, Дзержинского ул, д. 37",null,null,null,null,null,null,null,null,"Белозерск г, Дзержинского ул, д. 37",null,null,null,null,"Белозерск г, Дзержинского ул, д. 37",null,null,null,null,"Белозерск г, Дзержинского ул, д. 37",null,null,"Белозерск г, Дзержинского ул, д. 37",null,null,null,null,null,null,null,null,null,null,null,null,"Общий счет РО+"]
[{"$f":"\"Белозерск г, Дзержинского ул, д.37А\"","v":"Белозерск г, Дзержинского ул, д.37А"},"Белозерск г, Дзержинского ул, д.37А","Белозерск г, Дзержинского ул, д.37А","Белозерск г, Дзержинского ул, д.37А","Белозерск г, Дзержинского ул, д.37А","Белозерск г, Дзержинского ул, д.37А",null,null,null,null,null,null,null,{"$f":"\"Белозерск г, Дзержинского ул, д.37А\"","v":"Белозерск г, Дзержинского ул, д.37А"},null,null,null,null,null,null,null,null,null,null,null,null,null,null,null,null,"Белозерск г, Дзержинского ул, д. 37А",null,null,null,null,null,null,null,null,null,null,null,null,null,null,null,null,null,null,null,null,null,null,null,null,null,null,null,null,null,null,null,null,null,null,null,null,null,null,null,null,null,null,null,null,null,null,null,null,null,null,null,null,null,null,null,null,null,null,null,null,null,null,null,null,null,null,null,null,null,null,null,null,null,null,null,null,null,null,null,null,null,null,null,null,null,null,null,null,null,null,null,null,null,null,null,null,null,null,null,null,null,null,null,null,null,null,null,"Общий счет РО - 252,50",null,"Исключен 01.04.2019"]
[{"$f":"\"Белозерск г, Дзержинского ул, д.38\"","v":"Белозерск г, Дзержинского ул, д.38"},{"$f":"\"Белозерск г, Дзержинского ул, д.38\"","v":"Белозерск г, Дзержинского ул, д.38"},{"$f":"\"Белозерск г, Дзержинского ул, д.38\"","v":"Белозерск г, Дзержинского ул, д.38"},{"$f":"\"Белозерск г, Дзержинского ул, д.38\"","v":"Белозерск г, Дзержинского ул, д.38"},{"$f":"\"Белозерск г, Дзержинского ул, д.38\"","v":"Белозерск г, Дзержинского ул, д.38"},null,null,null,null,null,null,null,null,null,null,null,null,null,null,null,null,null,null,null,null,null,null,null,null,null,null,null,null,null,null,null,null,null,null,null,null,null,null,null,null,null,null,null,null,null,null,null,null,null,null,null,null,null,null,null,null,null,null,null,null,null,null,null,null,null,null,null,null,null,null,null,null,null,null,null,null,null,null,null,null,null,null,null,null,null,null,null,null,null,null,null,null,null,null,null,null,null,null,null,null,null,null,null,null,null,null,null,null,null,null,null,null,null,null,null,null,null,null,null,null,null,null,null,null,null,null,null,null,null,null,null,null,null,"Общий счет РО","признан аварийным расчет прекращен с 01.05.2016","Исключен 28.11.2016"]
[{"$f":"\"Белозерск г, Дзержинского ул, д.38А\"","v":"Белозерск г, Дзержинского ул, д.38А"},"Белозерск г, Дзержинского ул, д.38А","Белозерск г, Дзержинского ул, д.38А","Белозерск г, Дзержинского ул, д.38А","Белозерск г, Дзержинского ул, д.38А","Белозерск г, Дзержинского ул, д.38А",null,null,null,null,null,null,null,{"$f":"\"Белозерск г, Дзержинского ул, д.38А\"","v":"Белозерск г, Дзержинского ул, д.38А"},null,null,null,null,null,null,null,null,null,null,null,null,null,null,null,null,"Белозерск г, Дзержинского ул, д. 38А",null,null,null,null,"Белозерск г, Дзержинского ул, д. 38А",null,null,null,null,null,null,null,null,null,null,"Белозерск г, Дзержинского ул, д. 38А",null,null,null,null,null,null,"Белозерск г, Дзержинского ул, д. 38А",null,null,null,null,null,"Белозерск г, Дзержинского ул, д. 38А",null,null,null,null,null,null,null,null,"Белозерск г, Дзержинского ул, д. 38А",null,null,null,null,null,"Белозерск г, Дзержинского ул, д. 38А",null,null,null,null,null,null,null,"Белозерск г, Дзержинского ул, д. 38А",null,null,null,null,null,null,"Белозерск г, Дзержинского ул, д. 38А",null,null,null,null,null,null,null,null,"Белозерск г, Дзержинского ул, д. 38А",null,null,null,null,"Белозерск г, Дзержинского ул, д. 38А",null,null,null,null,null,null,null,null,"Белозерск г, Дзержинского ул, д. 38А",null,null,null,null,"Белозерск г, Дзержинского ул, д. 38А",null,null,null,null,null,null,null,null,null,null,null,null,null,null,null,null,null,null,null,null,"Общий счет РО+520","Признан аварийным. Постановление 894 от 10.07.2025"]
[{"$f":"\"Белозерск г, Дзержинского ул, д.39Б\"","v":"Белозерск г, Дзержинского ул, д.39Б"},"Белозерск г, Дзержинского ул, д.39Б","Белозерск г, Дзержинского ул, д.39Б","Белозерск г, Дзержинского ул, д.39Б","Белозерск г, Дзержинского ул, д.39Б","Белозерск г, Дзержинского ул, д.39Б",null,null,null,null,null,null,null,{"$f":"\"Белозерск г, Дзержинского ул, д.39Б\"","v":"Белозерск г, Дзержинского ул, д.39Б"},null,null,null,null,null,null,null,null,null,null,null,null,null,null,null,null,"Белозерск г, Дзержинского ул, д. 39Б",null,null,null,null,"Белозерск г, Дзержинского ул, д. 39Б",null,null,null,null,null,null,null,null,null,null,"Белозерск г, Дзержинского ул, д. 39Б",null,null,null,null,null,null,"Белозерск г, Дзержинского ул, д. 39Б",null,null,null,null,null,"Белозерск г, Дзержинского ул, д. 39Б",null,null,null,null,null,null,null,null,"Белозерск г, Дзержинского ул, д. 39Б",null,null,null,null,null,"Белозерск г, Дзержинского ул, д. 39Б",null,null,null,null,null,null,null,"Белозерск г, Дзержинского ул, д. 39Б",null,null,null,null,null,null,"Белозерск г, Дзержинского ул, д. 39Б",null,null,null,null,null,null,null,null,"Белозерск г, Дзержинского ул, д. 39Б",null,null,null,null,"Белозерск г, Дзержинского ул, д. 39Б",null,null,null,null,null,null,null,null,"Белозерск г, Дзержинского ул, д. 39Б",null,null,null,null,null,null,null,null,null,null,null,null,null,null,null,null,null,null,null,null,null,null,null,null,null,"Общий счет РО+ 501,20","Признан аварийным. Постановление 214 от 12.02.2025","Исключен 02.04.2025"]
[{"$f":"\"Белозерск г, Дзержинского ул, д.39\"","v":"Белозерск г, Дзержинского ул, д.39"},"Белозерск г, Дзержинского ул, д.39","Белозерск г, Дзержинского ул, д.39","Белозерск г, Дзержинского ул, д.39","Белозерск г, Дзержинского ул, д.39","Белозерск г, Дзержинского ул, д.39",null,null,null,null,null,null,null,{"$f":"\"Белозерск г, Дзержинского ул, д.39\"","v":"Белозерск г, Дзержинского ул, д.39"},null,null,null,null,null,null,null,null,null,null,null,null,null,null,null,null,"Белозерск г, Дзержинского ул, д. 39",null,null,null,null,"Белозерск г, Дзержинского ул, д. 39",null,null,null,null,null,null,null,null,null,null,"Белозерск г, Дзержинского ул, д. 39",null,null,null,null,null,null,"Белозерск г, Дзержинского ул, д. 39",null,null,null,null,null,"Белозерск г, Дзержинского ул, д. 39",null,null,null,null,null,null,null,null,"Белозерск г, Дзержинского ул, д. 39",null,null,null,null,null,"Белозерск г, Дзержинского ул, д. 39",null,null,null,null,null,null,null,"Белозерск г, Дзержинского ул, д. 39",null,null,null,null,null,null,"Белозерск г, Дзержинского ул, д. 39",null,null,null,null,null,null,null,null,"Белозерск г, Дзержинского ул, д. 39",null,null,null,null,"Белозерск г, Дзержинского ул, д. 39",null,null,null,null,null,null,null,null,"Белозерск г, Дзержинского ул, д. 39",null,null,null,null,"Белозерск г, Дзержинского ул, д. 39",null,null,null,null,"Белозерск г, Дзержинского ул, д. 39",null,null,"Белозерск г, Дзержинского ул, д. 39",null,null,null,null,null,null,null,null,null,null,null,null,"Общий счет РО+"]
[{"$f":"\"Белозерск г, Дзержинского ул, д.39А\"","v":"Белозерск г, Дзержинского ул, д.39А"},"Белозерск г, Дзержинского ул, д.39А","Белозерск г, Дзержинского ул, д.39А","Белозерск г, Дзержинского ул, д.39А","Белозерск г, Дзержинского ул, д.39А","Белозерск г, Дзержинского ул, д.39А",null,null,null,null,null,null,null,{"$f":"\"Белозерск г, Дзержинского ул, д.39А\"","v":"Белозерск г, Дзержинского ул, д.39А"},null,null,null,null,null,null,null,null,null,null,null,null,null,null,null,null,"Белозерск г, Дзержинского ул, д. 39А",null,null,null,null,"Белозерск г, Дзержинского ул, д. 39А",null,null,null,null,null,null,null,null,null,null,"Белозерск г, Дзержинского ул, д. 39А",null,null,null,null,null,null,"Белозерск г, Дзержинского ул, д. 39А",null,null,null,null,null,"Белозерск г, Дзержинского ул, д. 39А",null,null,null,null,null,null,null,null,"Белозерск г, Дзержинского ул, д. 39А",null,null,null,null,null,"Белозерск г, Дзержинского ул, д. 39А",null,null,null,null,null,null,null,"Белозерск г, Дзержинского ул, д. 39А",null,null,null,null,null,null,"Белозерск г, Дзержинского ул, д. 39А",null,null,null,null,null,null,null,null,"Белозерск г, Дзержинского ул, д. 39А",null,null,null,null,"Белозерск г, Дзержинского ул, д. 39А",null,null,null,null,null,null,null,null,"Белозерск г, Дзержинского ул, д. 39А",null,null,null,null,"Белозерск г, Дзержинского ул, д. 39А",null,null,null,null,"Белозерск г, Дзержинского ул, д. 39А",null,null,"Белозерск г, Дзержинского ул, д. 39А",null,null,null,null,null,null,null,null,null,null,null,null,"Общий счет РО+"]
[{"$f":"\"Белозерск г, Дзержинского ул, д.40А\"","v":"Белозерск г, Дзержинского ул, д.40А"},{"$f":"\"Белозерск г, Дзержинского ул, д.40А\"","v":"Белозерск г, Дзержинского ул, д.40А"},{"$f":"\"Белозерск г, Дзержинского ул, д.40А\"","v":"Белозерск г, Дзержинского ул, д.40А"},{"$f":"\"Белозерск г, Дзержинского ул, д.40А\"","v":"Белозерск г, Дзержинского ул, д.40А"}]
[{"$f":"\"Белозерск г, Дзержинского ул, д.45\"","v":"Белозерск г, Дзержинского ул, д.45"},"Белозерск г, Дзержинского ул, д.45","Белозерск г, Дзержинского ул, д.45","Белозерск г, Дзержинского ул, д.45","Белозерск г, Дзержинского ул, д.45","Белозерск г, Дзержинского ул, д.45",null,null,null,null,null,null,null,{"$f":"\"Белозерск г, Дзержинского ул, д.45\"","v":"Белозерск г, Дзержинского ул, д.45"},null,null,null,null,null,null,null,null,null,null,null,null,null,null,null,null,"Белозерск г, Дзержинского ул, д. 45",null,null,null,null,"Белозерск г, Дзержинского ул, д. 45",null,null,null,null,null,null,null,null,null,null,"Белозерск г, Дзержинского ул, д. 45",null,null,null,null,null,null,"Белозерск г, Дзержинского ул, д. 45",null,null,null,null,null,"Белозерск г, Дзержинского ул, д. 45",null,null,null,null,null,null,null,null,"Белозерск г, Дзержинского ул, д. 45",null,null,null,null,null,"Белозерск г, Дзержинского ул, д. 45",null,null,null,null,null,null,null,"Белозерск г, Дзержинского ул, д. 45",null,null,null,null,null,null,"Белозерск г, Дзержинского ул, д. 45",null,null,null,null,null,null,null,null,"Белозерск г, Дзержинского ул, д. 45",null,null,null,null,"Белозерск г, Дзержинского ул, д. 45",null,null,null,null,null,null,null,null,"Белозерск г, Дзержинского ул, д. 45",null,null,null,null,"Белозерск г, Дзержинского ул, д. 45",null,null,null,null,"Белозерск г, Дзержинского ул, д. 45",null,null,"Белозерск г, Дзержинского ул, д. 45",null,null,null,null,null,null,null,null,null,null,null,null,"Общий счет РО+","Признан аварийным. Постановление 18 от 15.01.2026"]
[{"$f":"\"Белозерск г, Дзержинского ул, д.48\"","v":"Белозерск г, Дзержинского ул, д.48"},"Белозерск г, Дзержинского ул, д.48","Белозерск г, Дзержинского ул, д.48","Белозерск г, Дзержинского ул, д.48","Белозерск г, Дзержинского ул, д.48","Белозерск г, Дзержинского ул, д.48",null,null,null,null,null,null,null,{"$f":"\"Белозерск г, Дзержинского ул, д.48\"","v":"Белозерск г, Дзержинского ул, д.48"},null,null,null,null,null,null,null,null,null,null,null,null,null,null,null,null,"Белозерск г, Дзержинского ул, д. 48",null,null,null,null,"Белозерск г, Дзержинского ул, д. 48",null,null,null,null,null,null,null,null,null,null,"Белозерск г, Дзержинского ул, д. 48",null,null,null,null,null,null,"Белозерск г, Дзержинского ул, д. 48",null,null,null,null,null,"Белозерск г, Дзержинского ул, д. 48",null,null,null,null,null,null,null,null,"Белозерск г, Дзержинского ул, д. 48",null,null,null,null,null,"Белозерск г, Дзержинского ул, д. 48",null,null,null,null,null,null,null,"Белозерск г, Дзержинского ул, д. 48",null,null,null,null,null,null,"Белозерск г, Дзержинского ул, д. 48",null,null,null,null,null,null,null,null,"Белозерск г, Дзержинского ул, д. 48",null,null,null,null,"Белозерск г, Дзержинского ул, д. 48",null,null,null,null,null,null,null,null,null,null,null,null,null,null,null,null,null,null,null,null,null,null,null,null,null,null,null,null,null,null,null,null,null,null,"Общий счет РО+506,80","Признан аварийным. Постановление 1179 от 24.10.2024","Исключен 07.11.2024"]
[{"$f":"\"Белозерск г, Дзержинского ул, д.50\"","v":"Белозерск г, Дзержинского ул, д.50"},{"$f":"\"Белозерск г, Дзержинского ул, д.50\"","v":"Белозерск г, Дзержинского ул, д.50"},{"$f":"\"Белозерск г, Дзержинского ул, д.50\"","v":"Белозерск г, Дзержинского ул, д.50"},{"$f":"\"Белозерск г, Дзержинского ул, д.50\"","v":"Белозерск г, Дзержинского ул, д.50"},{"$f":"\"Белозерск г, Дзержинского ул, д.50\"","v":"Белозерск г, Дзержинского ул, д.50"},{"$f":"\"Белозерск г, Дзержинского ул, д.5А\"","v":"Белозерск г, Дзержинского ул, д.5А"},null,null,null,null,null,null,null,{"$f":"\"Белозерск г, Дзержинского ул, д.5А\"","v":"Белозерск г, Дзержинского ул, д.5А"},null,null,null,null,null,null,null,null,null,null,null,null,null,null,null,null,"Белозерск г, Дзержинского ул, д. 50",null,null,null,null,"Белозерск г, Дзержинского ул, д. 50",null,null,null,null,null,null,null,null,null,null,"Белозерск г, Дзержинского ул, д. 50",null,null,null,null,null,null,"Белозерск г, Дзержинского ул, д. 50",null,null,null,null,null,"Белозерск г, Дзержинского ул, д. 50",null,null,null,null,null,null,null,null,null,null,null,null,null,null,null,null,null,null,null,null,null,null,null,null,null,null,null,null,null,null,null,null,null,null,null,null,null,null,null,null,null,null,null,null,null,null,null,null,null,null,null,null,null,null,null,null,null,null,null,null,null,null,null,null,null,null,null,null,null,null,null,null,null,null,null,null,null,null,"Общий счет РО - 328,10","Признан аварийным. Заключение № 149 от 10.06.2021","Исключен 06.09.2021"]
[{"$f":"\"Белозерск г, Дзержинского ул, д.7\"","v":"Белозерск г, Дзержинского ул, д.7"},{"$f":"\"Белозерск г, Дзержинского ул, д.7\"","v":"Белозерск г, Дзержинского ул, д.7"},{"$f":"\"Белозерск г, Дзержинского ул, д.7\"","v":"Белозерск г, Дзержинского ул, д.7"},{"$f":"\"Белозерск г, Дзержинского ул, д.7\"","v":"Белозерск г, Дзержинского ул, д.7"},null,null,null,null,null,null,null,null,null,null,null,null,null,null,null,null,null,null,null,null,null,null,null,null,null,null,null,null,null,null,null,null,null,null,null,null,null,null,null,null,null,null,null,null,null,null,null,null,null,null,null,null,null,null,null,null,null,null,null,null,null,null,null,null,null,null,null,null,null,null,null,null,null,null,null,null,null,null,null,null,null,null,null,null,null,null,null,null,null,null,null,null,null,null,null,null,null,null,null,null,null,null,null,null,null,null,null,null,null,null,null,null,null,null,null,null,null,null,null,null,null,null,null,null,null,null,null,null,null,null,null,null,null,null,"Общий счет РО","признан аварийным. Расчет прекращен с 01.02.2016","Исключен 20.06.2016"]
[{"$f":"\"Белозерск г, Дзержинского ул, д.74\"","v":"Белозерск г, Дзержинского ул, д.74"},"Белозерск г, Дзержинского ул, д.74","Белозерск г, Дзержинского ул, д.74","Белозерск г, Дзержинского ул, д.74","Белозерск г, Дзержинского ул, д.74","Белозерск г, Дзержинского ул, д.74",null,null,null,null,null,null,null,{"$f":"\"Белозерск г, Дзержинского ул, д.74\"","v":"Белозерск г, Дзержинского ул, д.74"},null,null,null,null,null,null,null,null,null,null,null,null,null,null,null,null,"Белозерск г, Дзержинского ул, д. 74",null,null,null,null,"Белозерск г, Дзержинского ул, д. 74",null,null,null,null,null,null,null,null,null,null,"Белозерск г, Дзержинского ул, д. 74",null,null,null,null,null,null,"Белозерск г, Дзержинского ул, д. 74",null,null,null,null,null,"Белозерск г, Дзержинского ул, д. 74",null,null,null,null,null,null,null,null,"Белозерск г, Дзержинского ул, д. 74",null,null,null,null,null,"Белозерск г, Дзержинского ул, д. 74",null,null,null,null,null,null,null,"Белозерск г, Дзержинского ул, д. 74",null,null,null,null,null,null,"Белозерск г, Дзержинского ул, д. 74",null,null,null,null,null,null,null,null,"Белозерск г, Дзержинского ул, д. 74",null,null,null,null,"Белозерск г, Дзержинского ул, д. 74",null,null,null,null,null,null,null,null,"Белозерск г, Дзержинского ул, д. 74",null,null,null,null,"Белозерск г, Дзержинского ул, д. 74",null,null,null,null,"Белозерск г, Дзержинского ул, д. 74",null,null,"Белозерск г, Дзержинского ул, д. 74",null,null,null,null,null,null,null,null,null,null,null,null,"Общий счет РО+"]
[{"$f":"\"Белозерск г, Дзержинского ул, д.9\"","v":"Белозерск г, Дзержинского ул, д.9"},"Белозерск г, Дзержинского ул, д.9","Белозерск г, Дзержинского ул, д.9","Белозерск г, Дзержинского ул, д.9","Белозерск г, Дзержинского ул, д.9","Белозерск г, Дзержинского ул, д.9",null,null,null,null,null,null,null,{"$f":"\"Белозерск г, Дзержинского ул, д.9\"","v":"Белозерск г, Дзержинского ул, д.9"},null,null,null,null,null,null,null,null,null,null,null,null,null,null,null,null,"Белозерск г, Дзержинского ул, д. 9",null,null,null,null,null,null,null,null,null,null,null,null,null,null,null,null,null,null,null,null,null,null,null,null,null,null,null,null,null,null,null,null,null,null,null,null,null,null,null,null,null,null,null,null,null,null,null,null,null,null,null,null,null,null,null,null,null,null,null,null,null,null,null,null,null,null,null,null,null,null,null,null,null,null,null,null,null,null,null,null,null,null,null,null,null,null,null,null,null,null,null,null,null,null,null,null,null,null,null,null,null,null,null,null,null,null,null,"Общий счет РО - 255,70",null,"Исключен 01.04.2019"]
[null,null,null,null,null,null,null,null,null,null,null,null,null,{"$f":"\"Белозерск г, д.1\"","v":"Белозерск г, д.1"},null,null,null,null,null,null,null,null,null,null,null,null,null,null,null,null,null,null,null,null,null,"Белозерск г, Карголом Хутор, д. 1",null,null,null,null,null,null,null,null,null,null,"Белозерск г, Карголом х, д. 1",null,null,null,null,null,null,"Белозерск г, Карголом х, д. 1",null,null,null,null,null,"Белозерск г, хутор Карголом, д. 1",null,null,null,null,null,null,null,null,"Белозерск г, хутор Карголом, д. 1",null,null,null,null,null,"Белозерск г, хутор Карголом, д. 1",null,null,null,null,null,null,null,"Белозерск г, хутор Карголом, д. 1",null,null,null,null,null,null,"Белозерск г, хутор Карголом, д. 1",null,null,null,null,null,null,null,null,"Белозерск г, хутор Карголом, д. 1",null,null,null,null,"Белозерск г, хутор Карголом, д. 1",null,null,null,null,null,null,null,null,"Белозерск г, хутор Карголом, д. 1",null,null,null,null,"Белозерск г, хутор Карголом, д. 1",null,null,null,null,"Белозерск г, хутор Карголом, д. 1",null,null,null,null,null,null,null,null,null,null,null,null,null,null,null,"Общий счет РО+251,12","Дом Минобороны законсервирован","Исключен 03.12.2025"]
[null,null,null,null,null,null,null,null,null,null,null,null,null,null,null,null,null,null,null,null,null,null,null,null,null,null,null,null,null,null,null,null,null,null,null,"Белозерск г, Карголом Хутор, д. 2",null,null,null,null,null,null,null,null,null,null,"Белозерск г, Карголом х, д. 2",null,null,null,null,null,null,"Белозерск г, Карголом х, д. 2",null,null,null,null,null,"Белозерск г, хутор Карголом, д. 2",null,null,null,null,null,null,null,null,"Белозерск г, хутор Карголом, д. 2",null,null,null,null,null,"Белозерск г, хутор Карголом, д. 2",null,null,null,null,null,null,null,"Белозерск г, хутор Карголом, д. 2",null,null,null,null,null,null,"Белозерск г, хутор Карголом, д. 2",null,null,null,null,null,null,null,null,"Белозерск г, хутор Карголом, д. 2",null,null,null,null,"Белозерск г, хутор Карголом, д. 2",null,null,null,null,null,null,null,null,"Белозерск г, хутор Карголом, д. 2",null,null,null,null,"Белозерск г, хутор Карголом, д. 2",null,null,null,null,"Белозерск г, хутор Карголом, д. 2",null,null,null,null,null,null,null,null,null,null,null,null,null,null,null,"Общий счет РО+251,12","Дом Минобороны законсервирован","Исключен 03.12.2025"]
[{"$f":"\"Белозерск г, Карла Маркса ул, д.2\"","v":"Белозерск г, Карла Маркса ул, д.2"},"Белозерск г, Карла Маркса ул, д.2","Белозерск г, Карла Маркса ул, д.2","Белозерск г, Карла Маркса ул, д.2","Белозерск г, Карла Маркса ул, д.2","Белозерск г, Карла Маркса ул, д.2",null,null,null,null,null,null,null,{"$f":"\"Белозерск г, Карла Маркса ул, д.2\"","v":"Белозерск г, Карла Маркса ул, д.2"},null,null,null,null,null,null,null,null,null,null,null,null,null,null,null,null,"Белозерск г, Карла Маркса ул, д. 2",null,null,null,null,"Белозерск г, Карла Маркса ул, д. 2",null,null,null,null,null,null,null,null,null,null,"Белозерск г, Карла Маркса ул, д. 2",null,null,null,null,null,null,"Белозерск г, Карла Маркса ул, д. 2",null,null,null,null,null,"Белозерск г, Карла Маркса ул, д. 2",null,null,null,null,null,null,null,null,"Белозерск г, Карла Маркса ул, д. 2",null,null,null,null,null,"Белозерск г, Карла Маркса ул, д. 2",null,null,null,null,null,null,null,"Белозерск г, Карла Маркса ул, д. 2",null,null,null,null,null,null,"Белозерск г, Карла Маркса ул, д. 2",null,null,null,null,null,null,null,null,"Белозерск г, Карла Маркса ул, д. 2",null,null,null,null,"Белозерск г, Карла Маркса ул, д. 2",null,null,null,null,null,null,null,null,"Белозерск г, Карла Маркса ул, д. 2",null,null,null,null,"Белозерск г, Карла Маркса ул, д. 2",null,null,null,null,"Белозерск г, Карла Маркса ул, д. 2",null,null,"Белозерск г, Карла Маркса ул, д. 2",null,null,null,null,null,null,null,null,null,null,null,null,"Общий счет РО+"]
[{"$f":"\"Белозерск г, Карла Маркса ул, д.4\"","v":"Белозерск г, Карла Маркса ул, д.4"},"Белозерск г, Карла Маркса ул, д.4","Белозерск г, Карла Маркса ул, д.4","Белозерск г, Карла Маркса ул, д.4","Белозерск г, Карла Маркса ул, д.4","Белозерск г, Карла Маркса ул, д.4",null,null,null,null,null,null,null,{"$f":"\"Белозерск г, Карла Маркса ул, д.4\"","v":"Белозерск г, Карла Маркса ул, д.4"},null,null,null,null,null,null,null,null,null,null,null,null,null,null,null,null,"Белозерск г, Карла Маркса ул, д. 4",null,null,null,null,"Белозерск г, Карла Маркса ул, д. 4",null,null,null,null,null,null,null,null,null,null,"Белозерск г, Карла Маркса ул, д. 4",null,null,null,null,null,null,"Белозерск г, Карла Маркса ул, д. 4",null,null,null,null,null,"Белозерск г, Карла Маркса ул, д. 4",null,null,null,null,null,null,null,null,"Белозерск г, Карла Маркса ул, д. 4",null,null,null,null,null,"Белозерск г, Карла Маркса ул, д. 4",null,null,null,null,null,null,null,"Белозерск г, Карла Маркса ул, д. 4",null,null,null,null,null,null,"Белозерск г, Карла Маркса ул, д. 4",null,null,null,null,null,null,null,null,"Белозерск г, Карла Маркса ул, д. 4",null,null,null,null,"Белозерск г, Карла Маркса ул, д. 4",null,null,null,null,null,null,null,null,"Белозерск г, Карла Маркса ул, д. 4",null,null,null,null,"Белозерск г, Карла Маркса ул, д. 4",null,null,null,null,"Белозерск г, Карла Маркса ул, д. 4",null,null,"Белозерск г, Карла Маркса ул, д. 4",null,null,null,null,null,null,null,null,null,null,null,null,"Общий счет РО+"]
[{"$f":"\"Белозерск г, Карла Маркса ул, д.4А\"","v":"Белозерск г, Карла Маркса ул, д.4А"},"Белозерск г, Карла Маркса ул, д.4А","Белозерск г, Карла Маркса ул, д.4А","Белозерск г, Карла Маркса ул, д.4А","Белозерск г, Карла Маркса ул, д.4А","Белозерск г, Карла Маркса ул, д.4А",null,null,null,null,null,null,null,{"$f":"\"Белозерск г, Карла Маркса ул, д.4А\"","v":"Белозерск г, Карла Маркса ул, д.4А"},null,null,null,null,null,null,null,null,null,null,null,null,null,null,null,null,"Белозерск г, Карла Маркса ул, д. 4А",null,null,null,null,"Белозерск г, Карла Маркса ул, д. 4А",null,null,null,null,null,null,null,null,null,null,"Белозерск г, Карла Маркса ул, д. 4А",null,null,null,null,null,null,"Белозерск г, Карла Маркса ул, д. 4А",null,null,null,null,null,"Белозерск г, Карла Маркса ул, д. 4А",null,null,null,null,null,null,null,null,"Белозерск г, Карла Маркса ул, д. 4А",null,null,null,null,null,"Белозерск г, Карла Маркса ул, д. 4А",null,null,null,null,null,null,null,"Белозерск г, Карла Маркса ул, д. 4А",null,null,null,null,null,null,"Белозерск г, Карла Маркса ул, д. 4А",null,null,null,null,null,null,null,null,"Белозерск г, Карла Маркса ул, д. 4А",null,null,null,null,"Белозерск г, Карла Маркса ул, д. 4А",null,null,null,null,null,null,null,null,null,null,null,null,null,null,null,null,null,null,null,null,null,null,null,null,null,null,null,null,null,null,null,null,null,null,"Общий счет РО+517,60","Признан аварийным.  Постановление 803 от 30.07.2024","Исключен 07.11.2024"]
[null,null,null,null,null,null,null,null,null,null,null,null,null,null,null,null,null,null,null,null,null,null,null,null,null,null,null,null,null,null,null,null,null,null,null,null,null,null,null,null,null,null,null,null,null,null,null,null,null,null,null,null,null,null,null,null,null,null,null,null,null,null,null,null,null,null,null,null,"Белозерск г, Карла Маркса ул, д. 4Б, корпус 2",null,null,null,null,null,"Белозерск г, Карла Маркса ул, д. 4Б, корпус 2",null,null,null,null,null,null,null,"Белозерск г, Карла Маркса ул, д. 4Б, корпус 2",null,null,null,null,null,null,"Белозерск г, Карла Маркса ул, д. 4Б, корпус 2",null,null,null,null,null,null,null,null,"Белозерск г, Карла Маркса ул, д. 4Б, корпус 2",null,null,null,null,"Белозерск г, Карла Маркса ул, д. 4Б, корпус 2",null,null,null,null,null,null,null,null,"Белозерск г, Карла Маркса ул, д. 4Б, корпус 2",null,null,null,null,"Белозерск г, Карла Маркса ул, д. 4Б, корпус 2",null,null,null,null,"Белозерск г, Карла Маркса ул, д. 4Б, корпус 2",null,null,"Белозерск г, Карла Маркса ул, д. 4Б, корпус 2",null,null,null,null,null,null,null,null,null,null,null,null,"Общий счет РО+","С 01.12.2025"]
[null,null,null,null,null,null,null,null,null,null,null,null,null,null,null,null,null,null,null,null,null,null,null,null,null,null,null,null,null,null,null,null,null,null,null,null,null,null,null,null,null,null,null,null,null,null,null,null,null,null,null,null,null,null,null,null,null,null,null,null,null,null,null,null,null,null,null,null,null,null,null,null,null,null,null,null,null,null,null,null,null,null,null,null,null,null,null,null,null,null,null,null,null,null,null,null,null,null,"Белозерск г, Карла Маркса ул, д. 4Б",null,null,null,null,"Белозерск г, Карла Маркса ул, д. 4Б",null,null,null,null,null,null,null,null,"Белозерск г, Карла Маркса ул, д. 4Б",null,null,null,null,"Белозерск г, Карла Маркса ул, д. 4Б",null,null,null,null,"Белозерск г, Карла Маркса ул, д. 4Б",null,null,"Белозерск г, Карла Маркса ул, д. 4Б",null,null,null,null,null,null,null,null,null,null,null,null,"Общий счет РО+","с 01.12.2025"]
[null,null,null,null,null,null,null,null,null,null,null,null,null,null,null,null,null,null,null,null,null,null,null,null,null,null,null,null,null,null,null,null,null,null,null,null,null,null,null,null,null,null,null,null,null,null,null,null,null,null,null,null,null,null,null,null,null,null,null,null,null,null,null,null,null,null,null,null,null,null,null,null,null,null,null,null,null,null,null,null,null,null,null,null,null,null,null,null,null,null,null,null,null,null,null,null,null,null,null,null,null,null,null,null,null,null,null,null,null,null,null,null,null,null,null,null,null,"Белозерск г, Карла Маркса ул, д. 12",null,null,null,null,"Белозерск г, Карла Маркса ул, д. 12",null,null,"Белозерск г, Карла Маркса ул, д. 12",null,null,null,null,null,null,null,null,null,null,null,null,null,"Обязанность с 01.04.2026"]
[null,null,null,null,null,null,null,null,null,null,null,null,null,null,null,null,null,null,null,null,null,null,null,null,null,null,null,null,null,null,null,null,null,null,null,null,null,null,null,null,null,null,null,null,null,null,null,null,null,null,null,null,null,null,null,null,null,null,null,null,null,null,null,null,null,null,null,null,"Белозерск г, Карла Маркса ул, д. 12А",null,null,null,null,null,"Белозерск г, Карла Маркса ул, д. 12А",null,null,null,null,null,null,null,"Белозерск г, Карла Маркса ул, д. 12А",null,null,null,null,null,null,"Белозерск г, Карла Маркса ул, д. 12А",null,null,null,null,null,null,null,null,"Белозерск г, Карла Маркса ул, д. 12А",null,null,null,null,"Белозерск г, Карла Маркса ул, д. 12А",null,null,null,null,null,null,null,null,"Белозерск г, Карла Маркса ул, д. 12А",null,null,null,null,"Белозерск г, Карла Маркса ул, д. 12А",null,null,null,null,"Белозерск г, Карла Маркса ул, д. 12А",null,null,"Белозерск г, Карла Маркса ул, д. 12А",null,null,null,null,null,null,null,null,null,null,null,null,"Общий счет РО+","с 01.12.2025"]
[{"$f":"\"Белозерск г, Карла Маркса ул, д.18\"","v":"Белозерск г, Карла Маркса ул, д.18"},"Белозерск г, Карла Маркса ул, д.18","Белозерск г, Карла Маркса ул, д.18","Белозерск г, Карла Маркса ул, д.18","Белозерск г, Карла Маркса ул, д.18","Белозерск г, Карла Маркса ул, д.18",null,null,null,null,null,null,null,{"$f":"\"Белозерск г, Карла Маркса ул, д.18\"","v":"Белозерск г, Карла Маркса ул, д.18"},null,null,null,null,null,null,null,null,null,null,null,null,null,null,null,null,"Белозерск г, Карла Маркса ул, д. 18",null,null,null,null,"Белозерск г, Карла Маркса ул, д. 18",null,null,null,null,null,null,null,null,null,null,"Белозерск г, Карла Маркса ул, д. 18",null,null,null,null,null,null,"Белозерск г, Карла Маркса ул, д. 18",null,null,null,null,null,"Белозерск г, Карла Маркса ул, д. 18",null,null,null,null,null,null,null,null,"Белозерск г, Карла Маркса ул, д. 18",null,null,null,null,null,"Белозерск г, Карла Маркса ул, д. 18",null,null,null,null,null,null,null,"Белозерск г, Карла Маркса ул, д. 18",null,null,null,null,null,null,"Белозерск г, Карла Маркса ул, д. 18",null,null,null,null,null,null,null,null,"Белозерск г, Карла Маркса ул, д. 18",null,null,null,null,"Белозерск г, Карла Маркса ул, д. 18",null,null,null,null,null,null,null,null,"Белозерск г, Карла Маркса ул, д. 18",null,null,null,null,"Белозерск г, Карла Маркса ул, д. 18",null,null,null,null,"Белозерск г, Карла Маркса ул, д. 18",null,null,"Белозерск г, Карла Маркса ул, д. 18",null,null,null,null,null,null,null,null,null,null,null,null,"Общий счет РО+"]
[null,null,null,null,null,null,null,null,null,null,null,null,null,null,null,null,null,null,null,null,null,null,null,null,null,null,null,null,null,null,null,null,null,null,null,null,null,null,null,null,null,null,null,null,null,null,null,null,null,null,null,null,null,null,null,null,null,null,null,"Белозерск г, Карла Маркса ул, д. 28А",null,null,null,null,null,null,null,null,"Белозерск г, Карла Маркса ул, д. 28А",null,null,null,null,null,"Белозерск г, Карла Маркса ул, д. 28А",null,null,null,null,null,null,null,"Белозерск г, Карла Маркса ул, д. 28А",null,null,null,null,null,null,"Белозерск г, Карла Маркса ул, д. 28А",null,null,null,null,null,null,null,null,"Белозерск г, Карла Маркса ул, д. 28А",null,null,null,null,"Белозерск г, Карла Маркса ул, д. 28А",null,null,null,null,null,null,null,null,"Белозерск г, Карла Маркса ул, д. 28А",null,null,null,null,"Белозерск г, Карла Маркса ул, д. 28А",null,null,null,null,"Белозерск г, Карла Маркса ул, д. 28А",null,null,"Белозерск г, Карла Маркса ул, д. 28А",null,null,null,null,null,null,null,null,null,null,null,null,"Общий счет РО+"]
[null,null,null,null,null,null,null,null,null,null,null,null,null,null,null,null,null,null,null,null,null,null,null,null,null,null,null,null,null,null,null,null,null,null,null,null,null,null,null,null,null,null,null,null,null,null,null,null,null,null,null,null,null,null,null,null,null,null,null,"Белозерск г, Карла Маркса ул, д. 28Б",null,null,null,null,null,null,null,null,"Белозерск г, Карла Маркса ул, д. 28Б",null,null,null,null,null,"Белозерск г, Карла Маркса ул, д. 28Б",null,null,null,null,null,null,null,"Белозерск г, Карла Маркса ул, д. 28Б",null,null,null,null,null,null,"Белозерск г, Карла Маркса ул, д. 28Б",null,null,null,null,null,null,null,null,"Белозерск г, Карла Маркса ул, д. 28Б",null,null,null,null,"Белозерск г, Карла Маркса ул, д. 28Б",null,null,null,null,null,null,null,null,"Белозерск г, Карла Маркса ул, д. 28Б",null,null,null,null,"Белозерск г, Карла Маркса ул, д. 28Б",null,null,null,null,"Белозерск г, Карла Маркса ул, д. 28Б",null,null,"Белозерск г, Карла Маркса ул, д. 28Б",null,null,null,null,null,null,null,null,null,null,null,null,"Общий счет РО+"]
[{"$f":"\"Белозерск г, Коммунистическая ул, д.13\"","v":"Белозерск г, Коммунистическая ул, д.13"},"Белозерск г, Коммунистическая ул, д.13","Белозерск г, Коммунистическая ул, д.13","Белозерск г, Коммунистическая ул, д.13","Белозерск г, Коммунистическая ул, д.13","Белозерск г, Коммунистическая ул, д.13",null,null,null,null,null,null,null,{"$f":"\"Белозерск г, Коммунистическая ул, д.13\"","v":"Белозерск г, Коммунистическая ул, д.13"},null,null,null,null,null,null,null,null,null,null,null,null,null,null,null,null,"Белозерск г, Коммунистическая ул, д. 13",null,null,null,null,"Белозерск г, Коммунистическая ул, д. 13",null,null,null,null,null,null,null,null,null,null,"Белозерск г, Коммунистическая ул, д. 13",null,null,null,null,null,null,"Белозерск г, Коммунистическая ул, д. 13",null,null,null,null,null,"Белозерск г, Коммунистическая ул, д. 13",null,null,null,null,null,null,null,null,"Белозерск г, Коммунистическая ул, д. 13",null,null,null,null,null,"Белозерск г, Коммунистическая ул, д. 13",null,null,null,null,null,null,null,"Белозерск г, Коммунистическая ул, д. 13",null,null,null,null,null,null,"Белозерск г, Коммунистическая ул, д. 13",null,null,null,null,null,null,null,null,"Белозерск г, Коммунистическая ул, д. 13",null,null,null,null,"Белозерск г, Коммунистическая ул, д. 13",null,null,null,null,null,null,null,null,"Белозерск г, Коммунистическая ул, д. 13",null,null,null,null,"Белозерск г, Коммунистическая ул, д. 13",null,null,null,null,"Белозерск г, Коммунистическая ул, д. 13",null,null,"Белозерск г, Коммунистическая ул, д. 13",null,null,null,null,null,null,null,null,null,null,null,null,"Общий счет РО+"]
[{"$f":"\"Белозерск г, Коммунистическая ул, д.14\"","v":"Белозерск г, Коммунистическая ул, д.14"},"Белозерск г, Коммунистическая ул, д.14","Белозерск г, Коммунистическая ул, д.14","Белозерск г, Коммунистическая ул, д.14","Белозерск г, Коммунистическая ул, д.14","Белозерск г, Коммунистическая ул, д.14",null,null,null,null,null,null,null,{"$f":"\"Белозерск г, Коммунистическая ул, д.14\"","v":"Белозерск г, Коммунистическая ул, д.14"},null,null,null,null,null,null,null,null,null,null,null,null,null,null,null,null,"Белозерск г, Коммунистическая ул, д. 14",null,null,null,null,"Белозерск г, Коммунистическая ул, д. 14",null,null,null,null,null,null,null,null,null,null,"Белозерск г, Коммунистическая ул, д. 14",null,null,null,null,null,null,"Белозерск г, Коммунистическая ул, д. 14",null,null,null,null,null,"Белозерск г, Коммунистическая ул, д. 14",null,null,null,null,null,null,null,null,"Белозерск г, Коммунистическая ул, д. 14",null,null,null,null,null,"Белозерск г, Коммунистическая ул, д. 14",null,null,null,null,null,null,null,"Белозерск г, Коммунистическая ул, д. 14",null,null,null,null,null,null,"Белозерск г, Коммунистическая ул, д. 14",null,null,null,null,null,null,null,null,"Белозерск г, Коммунистическая ул, д. 14",null,null,null,null,"Белозерск г, Коммунистическая ул, д. 14",null,null,null,null,null,null,null,null,"Белозерск г, Коммунистическая ул, д. 14",null,null,null,null,"Белозерск г, Коммунистическая ул, д. 14",null,null,null,null,"Белозерск г, Коммунистическая ул, д. 14",null,null,"Белозерск г, Коммунистическая ул, д. 14",null,null,null,null,null,null,null,null,null,null,null,null,"Общий счет РО+"]
[{"$f":"\"Белозерск г, Коммунистическая ул, д.16\"","v":"Белозерск г, Коммунистическая ул, д.16"},"Белозерск г, Коммунистическая ул, д.16","Белозерск г, Коммунистическая ул, д.16","Белозерск г, Коммунистическая ул, д.16","Белозерск г, Коммунистическая ул, д.16","Белозерск г, Коммунистическая ул, д.16",null,null,null,null,null,null,null,{"$f":"\"Белозерск г, Коммунистическая ул, д.16\"","v":"Белозерск г, Коммунистическая ул, д.16"},null,null,null,null,null,null,null,null,null,null,null,null,null,null,null,null,"Белозерск г, Коммунистическая ул, д. 16",null,null,null,null,"Белозерск г, Коммунистическая ул, д. 16",null,null,null,null,null,null,null,null,null,null,"Белозерск г, Коммунистическая ул, д. 16",null,null,null,null,null,null,"Белозерск г, Коммунистическая ул, д. 16",null,null,null,null,null,"Белозерск г, Коммунистическая ул, д. 16",null,null,null,null,null,null,null,null,"Белозерск г, Коммунистическая ул, д. 16",null,null,null,null,null,"Белозерск г, Коммунистическая ул, д. 16",null,null,null,null,null,null,null,"Белозерск г, Коммунистическая ул, д. 16",null,null,null,null,null,null,"Белозерск г, Коммунистическая ул, д. 16",null,null,null,null,null,null,null,null,"Белозерск г, Коммунистическая ул, д. 16",null,null,null,null,"Белозерск г, Коммунистическая ул, д. 16",null,null,null,null,null,null,null,null,"Белозерск г, Коммунистическая ул, д. 16",null,null,null,null,"Белозерск г, Коммунистическая ул, д. 16",null,null,null,null,"Белозерск г, Коммунистическая ул, д. 16",null,null,"Белозерск г, Коммунистическая ул, д. 16",null,null,null,null,null,null,null,null,null,null,null,null,"Общий счет РО+"]
[{"$f":"\"Белозерск г, Коммунистическая ул, д.34\"","v":"Белозерск г, Коммунистическая ул, д.34"},"Белозерск г, Коммунистическая ул, д.34","Белозерск г, Коммунистическая ул, д.34","Белозерск г, Коммунистическая ул, д.34","Белозерск г, Коммунистическая ул, д.34","Белозерск г, Коммунистическая ул, д.34",null,null,null,null,null,null,null,{"$f":"\"Белозерск г, Коммунистическая ул, д.34\"","v":"Белозерск г, Коммунистическая ул, д.34"},null,null,null,null,null,null,null,null,null,null,null,null,null,null,null,null,"Белозерск г, Коммунистическая ул, д. 34",null,null,null,null,"Белозерск г, Коммунистическая ул, д. 34",null,null,null,null,null,null,null,null,null,null,"Белозерск г, Коммунистическая ул, д. 34",null,null,null,null,null,null,"Белозерск г, Коммунистическая ул, д. 34",null,null,null,null,null,"Белозерск г, Коммунистическая ул, д. 34",null,null,null,null,null,null,null,null,"Белозерск г, Коммунистическая ул, д. 34",null,null,null,null,null,"Белозерск г, Коммунистическая ул, д. 34",null,null,null,null,null,null,null,"Белозерск г, Коммунистическая ул, д. 34",null,null,null,null,null,null,"Белозерск г, Коммунистическая ул, д. 34",null,null,null,null,null,null,null,null,"Белозерск г, Коммунистическая ул, д. 34",null,null,null,null,"Белозерск г, Коммунистическая ул, д. 34",null,null,null,null,null,null,null,null,"Белозерск г, Коммунистическая ул, д. 34",null,null,null,null,"Белозерск г, Коммунистическая ул, д. 34",null,null,null,null,"Белозерск г, Коммунистическая ул, д. 34",null,null,"Белозерск г, Коммунистическая ул, д. 34",null,null,null,null,null,null,null,null,null,null,null,null,"Общий счет РО+"]
[{"$f":"\"Белозерск г, Коммунистическая ул, д.37\"","v":"Белозерск г, Коммунистическая ул, д.37"},"Белозерск г, Коммунистическая ул, д.37","Белозерск г, Коммунистическая ул, д.37","Белозерск г, Коммунистическая ул, д.37","Белозерск г, Коммунистическая ул, д.37","Белозерск г, Коммунистическая ул, д.37",null,null,null,null,null,null,null,{"$f":"\"Белозерск г, Коммунистическая ул, д.37\"","v":"Белозерск г, Коммунистическая ул, д.37"},null,null,null,null,null,null,null,null,null,null,null,null,null,null,null,null,"Белозерск г, Коммунистическая ул, д. 37",null,null,null,null,"Белозерск г, Коммунистическая ул, д. 37",null,null,null,null,null,null,null,null,null,null,"Белозерск г, Коммунистическая ул, д. 37",null,null,null,null,null,null,"Белозерск г, Коммунистическая ул, д. 37",null,null,null,null,null,"Белозерск г, Коммунистическая ул, д. 37",null,null,null,null,null,null,null,null,"Белозерск г, Коммунистическая ул, д. 37",null,null,null,null,null,"Белозерск г, Коммунистическая ул, д. 37",null,null,null,null,null,null,null,"Белозерск г, Коммунистическая ул, д. 37",null,null,null,null,null,null,"Белозерск г, Коммунистическая ул, д. 37",null,null,null,null,null,null,null,null,"Белозерск г, Коммунистическая ул, д. 37",null,null,null,null,"Белозерск г, Коммунистическая ул, д. 37",null,null,null,null,null,null,null,null,"Белозерск г, Коммунистическая ул, д. 37",null,null,null,null,"Белозерск г, Коммунистическая ул, д. 37",null,null,null,null,"Белозерск г, Коммунистическая ул, д. 37",null,null,"Белозерск г, Коммунистическая ул, д. 37",null,null,null,null,null,null,null,null,null,null,null,null,"Общий счет РО+"]
[{"$f":"\"Белозерск г, Коммунистическая ул, д.53\"","v":"Белозерск г, Коммунистическая ул, д.53"},"Белозерск г, Коммунистическая ул, д.53","Белозерск г, Коммунистическая ул, д.53","Белозерск г, Коммунистическая ул, д.53","Белозерск г, Коммунистическая ул, д.53","Белозерск г, Коммунистическая ул, д.53",null,null,null,null,null,null,null,{"$f":"\"Белозерск г, Коммунистическая ул, д.53\"","v":"Белозерск г, Коммунистическая ул, д.53"},null,null,null,null,null,null,null,null,null,null,null,null,null,null,null,null,"Белозерск г, Коммунистическая ул, д. 53",null,null,null,null,"Белозерск г, Коммунистическая ул, д. 53",null,null,null,null,null,null,null,null,null,null,"Белозерск г, Коммунистическая ул, д. 53",null,null,null,null,null,null,"Белозерск г, Коммунистическая ул, д. 53",null,null,null,null,null,"Белозерск г, Коммунистическая ул, д. 53",null,null,null,null,null,null,null,null,"Белозерск г, Коммунистическая ул, д. 53",null,null,null,null,null,"Белозерск г, Коммунистическая ул, д. 53",null,null,null,null,null,null,null,"Белозерск г, Коммунистическая ул, д. 53",null,null,null,null,null,null,"Белозерск г, Коммунистическая ул, д. 53",null,null,null,null,null,null,null,null,"Белозерск г, Коммунистическая ул, д. 53",null,null,null,null,"Белозерск г, Коммунистическая ул, д. 53",null,null,null,null,null,null,null,null,null,null,null,null,null,null,null,null,null,null,null,null,null,null,null,null,null,null,null,null,null,null,null,null,null,null,"Общий счет РО+191,50","Признан аварийным. Постановление 504 от 17.05.2024","Исключен 07.11.2024"]
[{"$f":"\"Белозерск г, Коммунистическая ул, д.62а\"","v":"Белозерск г, Коммунистическая ул, д.62а"},{"$f":"\"Белозерск г, Коммунистическая ул, д.62а\"","v":"Белозерск г, Коммунистическая ул, д.62а"},{"$f":"\"Белозерск г, Коммунистическая ул, д.62А\"","v":"Белозерск г, Коммунистическая ул, д.62А"},{"$f":"\"Белозерск г, Коммунистическая ул, д.62А\"","v":"Белозерск г, Коммунистическая ул, д.62А"},{"$f":"\"Белозерск г, Коммунистическая ул, д.62А\"","v":"Белозерск г, Коммунистическая ул, д.62А"},{"$f":"\"Белозерск г, Коммунистическая ул, д.62А\"","v":"Белозерск г, Коммунистическая ул, д.62А"},null,null,null,null,null,null,null,{"$f":"\"Белозерск г, Коммунистическая ул, д.62А\"","v":"Белозерск г, Коммунистическая ул, д.62А"},null,null,null,null,null,null,null,null,null,null,null,null,null,null,null,null,"Белозерск г, Коммунистическая ул, д. 62А",null,null,null,null,"Белозерск г, Коммунистическая ул, д. 62А",null,null,null,null,null,null,null,null,null,null,"Белозерск г, Коммунистическая ул, д. 62А",null,null,null,null,null,null,"Белозерск г, Коммунистическая ул, д. 62А",null,null,null,null,null,"Белозерск г, Коммунистическая ул, д. 62А",null,null,null,null,null,null,null,null,"Белозерск г, Коммунистическая ул, д. 62А",null,null,null,null,null,"Белозерск г, Коммунистическая ул, д. 62А",null,null,null,null,null,null,null,"Белозерск г, Коммунистическая ул, д. 62А",null,null,null,null,null,null,"Белозерск г, Коммунистическая ул, д. 62А",null,null,null,null,null,null,null,null,"Белозерск г, Коммунистическая ул, д. 62А",null,null,null,null,"Белозерск г, Коммунистическая ул, д. 62А",null,null,null,null,null,null,null,null,"Белозерск г, Коммунистическая ул, д. 62А",null,null,null,null,"Белозерск г, Коммунистическая ул, д. 62А",null,null,null,null,"Белозерск г, Коммунистическая ул, д. 62А",null,null,"Белозерск г, Коммунистическая ул, д. 62А",null,null,null,null,null,null,null,null,null,null,null,null,"Общий счет РО+"]
[null,null,null,null,null,null,null,null,null,null,null,null,null,null,null,null,null,null,null,null,null,null,null,null,null,null,null,null,null,null,null,null,null,null,null,null,null,null,null,null,null,null,null,null,null,null,null,null,null,null,null,null,null,null,null,null,null,null,null,"Белозерск г, Коммунистическая ул, д. 62Б",null,null,null,null,null,null,null,null,"Белозерск г, Коммунистическая ул, д. 62Б",null,null,null,null,null,"Белозерск г, Коммунистическая ул, д. 62Б",null,null,null,null,null,null,null,"Белозерск г, Коммунистическая ул, д. 62Б",null,null,null,null,null,null,"Белозерск г, Коммунистическая ул, д. 62Б",null,null,null,null,null,null,null,null,"Белозерск г, Коммунистическая ул, д. 62Б",null,null,null,null,"Белозерск г, Коммунистическая ул, д. 62Б",null,null,null,null,null,null,null,null,"Белозерск г, Коммунистическая ул, д. 62Б",null,null,null,null,"Белозерск г, Коммунистическая ул, д. 62Б",null,null,null,null,"Белозерск г, Коммунистическая ул, д. 62Б",null,null,"Белозерск г, Коммунистическая ул, д. 62Б",null,null,null,null,null,null,null,null,null,null,null,null,"Общий счет РО+"]
[{"$f":"\"Белозерск г, Коммунистическая ул, д.77\"","v":"Белозерск г, Коммунистическая ул, д.77"},"Белозерск г, Коммунистическая ул, д.77","Белозерск г, Коммунистическая ул, д.77","Белозерск г, Коммунистическая ул, д.77","Белозерск г, Коммунистическая ул, д.77","Белозерск г, Коммунистическая ул, д.77",null,null,null,null,null,null,null,{"$f":"\"Белозерск г, Коммунистическая ул, д.77\"","v":"Белозерск г, Коммунистическая ул, д.77"},null,null,null,null,null,null,null,null,null,null,null,null,null,null,null,null,"Белозерск г, Коммунистическая ул, д. 77",null,null,null,null,"Белозерск г, Коммунистическая ул, д. 77",null,null,null,null,null,null,null,null,null,null,"Белозерск г, Коммунистическая ул, д. 77",null,null,null,null,null,null,"Белозерск г, Коммунистическая ул, д. 77",null,null,null,null,null,"Белозерск г, Коммунистическая ул, д. 77",null,null,null,null,null,null,null,null,"Белозерск г, Коммунистическая ул, д. 77",null,null,null,null,null,"Белозерск г, Коммунистическая ул, д. 77",null,null,null,null,null,null,null,"Белозерск г, Коммунистическая ул, д. 77",null,null,null,null,null,null,"Белозерск г, Коммунистическая ул, д. 77",null,null,null,null,null,null,null,null,"Белозерск г, Коммунистическая ул, д. 77",null,null,null,null,"Белозерск г, Коммунистическая ул, д. 77",null,null,null,null,null,null,null,null,"Белозерск г, Коммунистическая ул, д. 77",null,null,null,null,"Белозерск г, Коммунистическая ул, д. 77",null,null,null,null,"Белозерск г, Коммунистическая ул, д. 77",null,null,"Белозерск г, Коммунистическая ул, д. 77",null,null,null,null,null,null,null,null,null,null,null,null,"Общий счет РО+","Признан аварийным. Постановление 1701 от 29.12.2025"]
[{"$f":"\"Белозерск г, Коммунистическая ул, д.83\"","v":"Белозерск г, Коммунистическая ул, д.83"},"Белозерск г, Коммунистическая ул, д.83","Белозерск г, Коммунистическая ул, д.83","Белозерск г, Коммунистическая ул, д.83","Белозерск г, Коммунистическая ул, д.83","Белозерск г, Коммунистическая ул, д.83",null,null,null,null,null,null,null,{"$f":"\"Белозерск г, Коммунистическая ул, д.83\"","v":"Белозерск г, Коммунистическая ул, д.83"},null,null,null,null,null,null,null,null,null,null,null,null,null,null,null,null,"Белозерск г, Коммунистическая ул, д. 83",null,null,null,null,"Белозерск г, Коммунистическая ул, д. 83",null,null,null,null,null,null,null,null,null,null,"Белозерск г, Коммунистическая ул, д. 83",null,null,null,null,null,null,"Белозерск г, Коммунистическая ул, д. 83",null,null,null,null,null,"Белозерск г, Коммунистическая ул, д. 83",null,null,null,null,null,null,null,null,"Белозерск г, Коммунистическая ул, д. 83",null,null,null,null,null,"Белозерск г, Коммунистическая ул, д. 83",null,null,null,null,null,null,null,"Белозерск г, Коммунистическая ул, д. 83",null,null,null,null,null,null,"Белозерск г, Коммунистическая ул, д. 83",null,null,null,null,null,null,null,null,"Белозерск г, Коммунистическая ул, д. 83",null,null,null,null,"Белозерск г, Коммунистическая ул, д. 83",null,null,null,null,null,null,null,null,null,null,null,null,null,null,null,null,null,null,null,null,null,null,null,null,null,null,null,null,null,null,null,null,null,null,"Общий счет РО+261,60","Признан аварийным. Постановление 499 от 16.05.2024","Исключен 07.11.2024"]
[{"$f":"\"Белозерск г, Коммунистическая ул, д.110\"","v":"Белозерск г, Коммунистическая ул, д.110"},"Белозерск г, Коммунистическая ул, д.110","Белозерск г, Коммунистическая ул, д.110","Белозерск г, Коммунистическая ул, д.110","Белозерск г, Коммунистическая ул, д.110","Белозерск г, Коммунистическая ул, д.110",null,null,null,null,null,null,null,{"$f":"\"Белозерск г, Коммунистическая ул, д.110\"","v":"Белозерск г, Коммунистическая ул, д.110"},null,null,null,null,null,null,null,null,null,null,null,null,null,null,null,null,"Белозерск г, Коммунистическая ул, д. 110",null,null,null,null,"Белозерск г, Коммунистическая ул, д. 110",null,null,null,null,null,null,null,null,null,null,"Белозерск г, Коммунистическая ул, д. 110",null,null,null,null,null,null,"Белозерск г, Коммунистическая ул, д. 110",null,null,null,null,null,"Белозерск г, Коммунистическая ул, д. 110",null,null,null,null,null,null,null,null,null,null,null,null,null,null,null,null,null,null,null,null,null,null,null,null,null,null,null,null,null,null,null,null,null,null,null,null,null,null,null,null,null,null,null,null,null,null,null,null,null,null,null,null,null,null,null,null,null,null,null,null,null,null,null,null,null,null,null,null,null,null,null,null,null,null,null,null,null,null,"Общий счет РО - 205,00","Признан аварийным. Заключение № 137 от23.12.2020","Исключен 06.09.2021"]
[{"$f":"\"Белозерск г, Коммунистическая ул, д.117А\"","v":"Белозерск г, Коммунистическая ул, д.117А"},"Белозерск г, Коммунистическая ул, д.117А","Белозерск г, Коммунистическая ул, д.117А","Белозерск г, Коммунистическая ул, д.117А","Белозерск г, Коммунистическая ул, д.117А","Белозерск г, Коммунистическая ул, д.117А",null,null,null,null,null,null,null,{"$f":"\"Белозерск г, Коммунистическая ул, д.117А\"","v":"Белозерск г, Коммунистическая ул, д.117А"},null,null,null,null,null,null,null,null,null,null,null,null,null,null,null,null,"Белозерск г, Коммунистическая ул, д. 117А",null,null,null,null,"Белозерск г, Коммунистическая ул, д. 117А",null,null,null,null,null,null,null,null,null,null,"Белозерск г, Коммунистическая ул, д. 117А",null,null,null,null,null,null,"Белозерск г, Коммунистическая ул, д. 117А",null,null,null,null,null,"Белозерск г, Коммунистическая ул, д. 117А",null,null,null,null,null,null,null,null,"Белозерск г, Коммунистическая ул, д. 117А",null,null,null,null,null,"Белозерск г, Коммунистическая ул, д. 117А",null,null,null,null,null,null,null,"Белозерск г, Коммунистическая ул, д. 117А",null,null,null,null,null,null,"Белозерск г, Коммунистическая ул, д. 117А",null,null,null,null,null,null,null,null,"Белозерск г, Коммунистическая ул, д. 117А",null,null,null,null,null,null,null,null,null,null,null,null,null,null,null,null,null,null,null,null,null,null,null,null,null,null,null,null,null,null,null,null,null,null,null,null,null,null,null,"Общий счет РО-338,60","Признан аварийным. Постановление 84 от 09.02.2024","Исключен 05.03.2024"]
[{"$f":"\"Белозерск г, Коммунистическая ул, д.143\"","v":"Белозерск г, Коммунистическая ул, д.143"},"Белозерск г, Коммунистическая ул, д.143","Белозерск г, Коммунистическая ул, д.143","Белозерск г, Коммунистическая ул, д.143","Белозерск г, Коммунистическая ул, д.143","Белозерск г, Коммунистическая ул, д.143",null,null,null,null,null,null,null,{"$f":"\"Белозерск г, Коммунистическая ул, д.143\"","v":"Белозерск г, Коммунистическая ул, д.143"},null,null,null,null,null,null,null,null,null,null,null,null,null,null,null,null,"Белозерск г, Коммунистическая ул, д. 143",null,null,null,null,"Белозерск г, Коммунистическая ул, д. 143",null,null,null,null,null,null,null,null,null,null,"Белозерск г, Коммунистическая ул, д. 143",null,null,null,null,null,null,"Белозерск г, Коммунистическая ул, д. 143",null,null,null,null,null,"Белозерск г, Коммунистическая ул, д. 143",null,null,null,null,null,null,null,null,"Белозерск г, Коммунистическая ул, д. 143",null,null,null,null,null,"Белозерск г, Коммунистическая ул, д. 143",null,null,null,null,null,null,null,"Белозерск г, Коммунистическая ул, д. 143",null,null,null,null,null,null,"Белозерск г, Коммунистическая ул, д. 143",null,null,null,null,null,null,null,null,"Белозерск г, Коммунистическая ул, д. 143",null,null,null,null,"Белозерск г, Коммунистическая ул, д. 143",null,null,null,null,null,null,null,null,"Белозерск г, Коммунистическая ул, д. 143",null,null,null,null,"Белозерск г, Коммунистическая ул, д. 143",null,null,null,null,"Белозерск г, Коммунистическая ул, д. 143",null,null,"Белозерск г, Коммунистическая ул, д. 143",null,null,null,null,null,null,null,null,null,null,null,null,"Общий счет РО+"]
[{"$f":"\"Белозерск г, Коммунистическая ул, д.48\"","v":"Белозерск г, Коммунистическая ул, д.48"},"Белозерск г, Коммунистическая ул, д.48","Белозерск г, Коммунистическая ул, д.48","Белозерск г, Коммунистическая ул, д.48","Белозерск г, Коммунистическая ул, д.48","Белозерск г, Коммунистическая ул, д.48",null,null,null,null,null,null,null,{"$f":"\"Белозерск г, Коммунистическая ул, д.48\"","v":"Белозерск г, Коммунистическая ул, д.48"},null,null,null,null,null,null,null,null,null,null,null,null,null,null,null,null,"Белозерск г, Коммунистическая ул, д. 48",null,null,null,null,"Белозерск г, Коммунистическая ул, д. 48",null,null,null,null,null,null,null,null,null,null,"Белозерск г, Коммунистическая ул, д. 48",null,null,null,null,null,null,"Белозерск г, Коммунистическая ул, д. 48",null,null,null,null,null,"Белозерск г, Коммунистическая ул, д. 48",null,null,null,null,null,null,null,null,null,null,null,null,null,null,null,null,null,null,null,null,null,null,null,null,null,null,null,null,null,null,null,null,null,null,null,null,null,null,null,null,null,null,null,null,null,null,null,null,null,null,null,null,null,null,null,null,null,null,null,null,null,null,null,null,null,null,null,null,null,null,null,null,null,null,null,null,null,null,"Общий счет РО - 244,70","Признан аварийным. Заключение № 197 от 04.06.2021","Исключен 06.09.2021"]
[{"$f":"\"Белозерск г, Коммунистическая ул, д.59\"","v":"Белозерск г, Коммунистическая ул, д.59"},"Белозерск г, Коммунистическая ул, д.59","Белозерск г, Коммунистическая ул, д.59","Белозерск г, Коммунистическая ул, д.59","Белозерск г, Коммунистическая ул, д.59","Белозерск г, Коммунистическая ул, д.59",null,null,null,null,null,null,null,{"$f":"\"Белозерск г, Коммунистическая ул, д.59\"","v":"Белозерск г, Коммунистическая ул, д.59"},null,null,null,null,null,null,null,null,null,null,null,null,null,null,null,null,"Белозерск г, Коммунистическая ул, д. 59",null,null,null,null,null,null,null,null,null,null,null,null,null,null,null,null,null,null,null,null,null,null,null,null,null,null,null,null,null,null,null,null,null,null,null,null,null,null,null,null,null,null,null,null,null,null,null,null,null,null,null,null,null,null,null,null,null,null,null,null,null,null,null,null,null,null,null,null,null,null,null,null,null,null,null,null,null,null,null,null,null,null,null,null,null,null,null,null,null,null,null,null,null,null,null,null,null,null,null,null,null,null,null,null,null,null,null,"Общий счет РО - 280,60",null,"Исключен 01.04.2019"]
[{"$f":"\"Белозерск г, Коммунистическая ул, д.59А\"","v":"Белозерск г, Коммунистическая ул, д.59А"},"Белозерск г, Коммунистическая ул, д.59А","Белозерск г, Коммунистическая ул, д.59А","Белозерск г, Коммунистическая ул, д.59А","Белозерск г, Коммунистическая ул, д.59А","Белозерск г, Коммунистическая ул, д.59А",null,null,null,null,null,null,null,{"$f":"\"Белозерск г, Коммунистическая ул, д.59А\"","v":"Белозерск г, Коммунистическая ул, д.59А"},null,null,null,null,null,null,null,null,null,null,null,null,null,null,null,null,"Белозерск г, Коммунистическая ул, д. 59А",null,null,null,null,null,null,null,null,null,null,null,null,null,null,null,null,null,null,null,null,null,null,null,null,null,null,null,null,null,null,null,null,null,null,null,null,null,null,null,null,null,null,null,null,null,null,null,null,null,null,null,null,null,null,null,null,null,null,null,null,null,null,null,null,null,null,null,null,null,null,null,null,null,null,null,null,null,null,null,null,null,null,null,null,null,null,null,null,null,null,null,null,null,null,null,null,null,null,null,null,null,null,null,null,null,null,null,"Общий счет РО - 279,40",null,"Исключен 01.04.2019"]
[{"$f":"\"Белозерск г, Коммунистическая ул, д.69\"","v":"Белозерск г, Коммунистическая ул, д.69"},{"$f":"\"Белозерск г, Коммунистическая ул, д.69\"","v":"Белозерск г, Коммунистическая ул, д.69"},{"$f":"\"Белозерск г, Коммунистическая ул, д.69\"","v":"Белозерск г, Коммунистическая ул, д.69"},{"$f":"\"Белозерск г, Коммунистическая ул, д.69\"","v":"Белозерск г, Коммунистическая ул, д.69"}]
[{"$f":"\"Белозерск г, Коммунистическая ул, д.70\"","v":"Белозерск г, Коммунистическая ул, д.70"},"Белозерск г, Коммунистическая ул, д.70","Белозерск г, Коммунистическая ул, д.70","Белозерск г, Коммунистическая ул, д.70","Белозерск г, Коммунистическая ул, д.70","Белозерск г, Коммунистическая ул, д.70",null,null,null,null,null,null,null,{"$f":"\"Белозерск г, Коммунистическая ул, д.70\"","v":"Белозерск г, Коммунистическая ул, д.70"},null,null,null,null,null,null,null,null,null,null,null,null,null,null,null,null,"Белозерск г, Коммунистическая ул, д. 70",null,null,null,null,"Белозерск г, Коммунистическая ул, д. 70",null,null,null,null,null,null,null,null,null,null,"Белозерск г, Коммунистическая ул, д. 70",null,null,null,null,null,null,"Белозерск г, Коммунистическая ул, д. 70",null,null,null,null,null,"Белозерск г, Коммунистическая ул, д. 70",null,null,null,null,null,null,null,null,"Белозерск г, Коммунистическая ул, д. 70",null,null,null,null,null,"Белозерск г, Коммунистическая ул, д. 70",null,null,null,null,null,null,null,"Белозерск г, Коммунистическая ул, д. 70",null,null,null,null,null,null,"Белозерск г, Коммунистическая ул, д. 70",null,null,null,null,null,null,null,null,null,null,null,null,null,null,null,null,null,null,null,null,null,null,null,null,null,null,null,null,null,null,null,null,null,null,null,null,null,null,null,null,null,null,null,null,null,null,null,null,"Общий счет РО 420,20","Признан аварийным. Заключение № 199 от 21.06.2023"]
[{"$f":"\"Белозерск г, Коммунистическая ул, д.75\"","v":"Белозерск г, Коммунистическая ул, д.75"},{"$f":"\"Белозерск г, Коммунистическая ул, д.75\"","v":"Белозерск г, Коммунистическая ул, д.75"},{"$f":"\"Белозерск г, Коммунистическая ул, д.75\"","v":"Белозерск г, Коммунистическая ул, д.75"},{"$f":"\"Белозерск г, Коммунистическая ул, д.75\"","v":"Белозерск г, Коммунистическая ул, д.75"},{"$f":"\"Белозерск г, Коммунистическая ул, д.75\"","v":"Белозерск г, Коммунистическая ул, д.75"},null,null,null,null,null,null,null,null,null,null,null,null,null,null,null,null,null,null,null,null,null,null,null,null,null,null,null,null,null,null,null,null,null,null,null,null,null,null,null,null,null,null,null,null,null,null,null,null,null,null,null,null,null,null,null,null,null,null,null,null,null,null,null,null,null,null,null,null,null,null,null,null,null,null,null,null,null,null,null,null,null,null,null,null,null,null,null,null,null,null,null,null,null,null,null,null,null,null,null,null,null,null,null,null,null,null,null,null,null,null,null,null,null,null,null,null,null,null,null,null,null,null,null,null,null,null,null,null,null,null,null,null,null,"Общий счет РО","признан аварийным. Расчет прекращен с 01.10.2016","Исключен 28.11.2016"]
[{"$f":"\"Белозерск г, Коммунистическая ул, д.78\"","v":"Белозерск г, Коммунистическая ул, д.78"},"Белозерск г, Коммунистическая ул, д.78","Белозерск г, Коммунистическая ул, д.78","Белозерск г, Коммунистическая ул, д.78","Белозерск г, Коммунистическая ул, д.78","Белозерск г, Коммунистическая ул, д.78",null,null,null,null,null,null,null,{"$f":"\"Белозерск г, Коммунистическая ул, д.78\"","v":"Белозерск г, Коммунистическая ул, д.78"},null,null,null,null,null,null,null,null,null,null,null,null,null,null,null,null,"Белозерск г, Коммунистическая ул, д. 78",null,null,null,null,"Белозерск г, Коммунистическая ул, д. 78",null,null,null,null,null,null,null,null,null,null,"Белозерск г, Коммунистическая ул, д. 78",null,null,null,null,null,null,"Белозерск г, Коммунистическая ул, д. 78",null,null,null,null,null,"Белозерск г, Коммунистическая ул, д. 78",null,null,null,null,null,null,null,null,"Белозерск г, Коммунистическая ул, д. 78",null,null,null,null,null,"Белозерск г, Коммунистическая ул, д. 78",null,null,null,null,null,null,null,"Белозерск г, Коммунистическая ул, д. 78",null,null,null,null,null,null,"Белозерск г, Коммунистическая ул, д. 78",null,null,null,null,null,null,null,null,null,null,null,null,null,null,null,null,null,null,null,null,null,null,null,null,null,null,null,null,null,null,null,null,null,null,null,null,null,null,null,null,null,null,null,null,null,null,null,null,"Общий счет РО 292,90","Признан аварийным. Заключение № 198 от 21.06.2023"]
[null,null,{"$f":"\"Белозерск г, Коммунистическая ул, д.80\"","v":"Белозерск г, Коммунистическая ул, д.80"},{"$f":"\"Белозерск г, Коммунистическая ул, д.80\"","v":"Белозерск г, Коммунистическая ул, д.80"},{"$f":"\"Белозерск г, Коммунистическая ул, д.80\"","v":"Белозерск г, Коммунистическая ул, д.80"},null,null,null,null,null,null,null,null,null,null,null,null,null,null,null,null,null,null,null,null,null,null,null,null,null,null,null,null,null,null,null,null,null,null,null,null,null,null,null,null,null,null,null,null,null,null,null,null,null,null,null,null,null,null,null,null,null,null,null,null,null,null,null,null,null,null,null,null,null,null,null,null,null,null,null,null,null,null,null,null,null,null,null,null,null,null,null,null,null,null,null,null,null,null,null,null,null,null,null,null,null,null,null,null,null,null,null,null,null,null,null,null,null,null,null,null,null,null,null,null,null,null,null,null,null,null,null,null,null,null,null,null,null,"Общий счет РО","признан аварийным. Расчет прекращен с 01.05.2016","Исключен 28.11.2016"]
[{"$f":"\"Белозерск г, Комсомольская ул, д.31Б\"","v":"Белозерск г, Комсомольская ул, д.31Б"},{"$f":"\"Белозерск г, Комсомольская ул, д.31Б\"","v":"Белозерск г, Комсомольская ул, д.31Б"}]
[{"$f":"\"Белозерск г, Комсомольская ул, д.38\"","v":"Белозерск г, Комсомольская ул, д.38"},"Белозерск г, Комсомольская ул, д.38","Белозерск г, Комсомольская ул, д.38","Белозерск г, Комсомольская ул, д.38","Белозерск г, Комсомольская ул, д.38","Белозерск г, Комсомольская ул, д.38",null,null,null,null,null,null,null,{"$f":"\"Белозерск г, Комсомольская ул, д.38\"","v":"Белозерск г, Комсомольская ул, д.38"},null,null,null,null,null,null,null,null,null,null,null,null,null,null,null,null,"Белозерск г, Комсомольская ул, д. 38",null,null,null,null,null,null,null,null,null,null,null,null,null,null,null,null,null,null,null,null,null,null,null,null,null,null,null,null,null,null,null,null,null,null,null,null,null,null,null,null,null,null,null,null,null,null,null,null,null,null,null,null,null,null,null,null,null,null,null,null,null,null,null,null,null,null,null,null,null,null,null,null,null,null,null,null,null,null,null,null,null,null,null,null,null,null,null,null,null,null,null,null,null,null,null,null,null,null,null,null,null,null,null,null,null,null,null,"Общий счет РО - 300,6",null,"Исключен 01.04.2019"]
[{"$f":"\"Белозерск г, Комсомольская ул, д.61\"","v":"Белозерск г, Комсомольская ул, д.61"}]
[{"$f":"\"Белозерск г, Комсомольская ул, д.63\"","v":"Белозерск г, Комсомольская ул, д.63"},"Белозерск г, Комсомольская ул, д.63","Белозерск г, Комсомольская ул, д.63","Белозерск г, Комсомольская ул, д.63","Белозерск г, Комсомольская ул, д.63","Белозерск г, Комсомольская ул, д.63",null,null,null,null,null,null,null,{"$f":"\"Белозерск г, Комсомольская ул, д.63\"","v":"Белозерск г, Комсомольская ул, д.63"},null,null,null,null,null,null,null,null,null,null,null,null,null,null,null,null,"Белозерск г, Комсомольская ул, д. 63",null,null,null,null,null,null,null,null,null,null,null,null,null,null,null,null,null,null,null,null,null,null,null,null,null,null,null,null,null,null,null,null,null,null,null,null,null,null,null,null,null,null,null,null,null,null,null,null,null,null,null,null,null,null,null,null,null,null,null,null,null,null,null,null,null,null,null,null,null,null,null,null,null,null,null,null,null,null,null,null,null,null,null,null,null,null,null,null,null,null,null,null,null,null,null,null,null,null,null,null,null,null,null,null,null,null,null,"Общий счет РО - 192,40",null,"Исключен 01.04.2019"]
[{"$f":"\"Белозерск г, Комсомольская ул, д.66\"","v":"Белозерск г, Комсомольская ул, д.66"},"Белозерск г, Комсомольская ул, д.66","Белозерск г, Комсомольская ул, д.66","Белозерск г, Комсомольская ул, д.66","Белозерск г, Комсомольская ул, д.66","Белозерск г, Комсомольская ул, д.66",null,null,null,null,null,null,null,{"$f":"\"Белозерск г, Комсомольская ул, д.66\"","v":"Белозерск г, Комсомольская ул, д.66"},null,null,null,null,null,null,null,null,null,null,null,null,null,null,null,null,"Белозерск г, Комсомольская ул, д. 66",null,null,null,null,"Белозерск г, Комсомольская ул, д. 66",null,null,null,null,null,null,null,null,null,null,"Белозерск г, Комсомольская ул, д. 66",null,null,null,null,null,null,"Белозерск г, Комсомольская ул, д. 66",null,null,null,null,null,"Белозерск г, Комсомольская ул, д. 66",null,null,null,null,null,null,null,null,"Белозерск г, Комсомольская ул, д. 66",null,null,null,null,null,"Белозерск г, Комсомольская ул, д. 66",null,null,null,null,null,null,null,"Белозерск г, Комсомольская ул, д. 66",null,null,null,null,null,null,"Белозерск г, Комсомольская ул, д. 66",null,null,null,null,null,null,null,null,"Белозерск г, Комсомольская ул, д. 66",null,null,null,null,"Белозерск г, Комсомольская ул, д. 66",null,null,null,null,null,null,null,null,"Белозерск г, Комсомольская ул, д. 66",null,null,null,null,"Белозерск г, Комсомольская ул, д. 66",null,null,null,null,"Белозерск г, Комсомольская ул, д. 66",null,null,"Белозерск г, Комсомольская ул, д. 66",null,null,null,null,null,null,null,null,null,null,null,null,"Общий счет РО+"]
[{"$f":"\"Белозерск г, Красноармейская ул, д.15\"","v":"Белозерск г, Красноармейская ул, д.15"},"Белозерск г, Красноармейская ул, д.15","Белозерск г, Красноармейская ул, д.15","Белозерск г, Красноармейская ул, д.15","Белозерск г, Красноармейская ул, д.15","Белозерск г, Красноармейская ул, д.15",null,null,null,null,null,null,null,{"$f":"\"Белозерск г, Красноармейская ул, д.15\"","v":"Белозерск г, Красноармейская ул, д.15"},null,null,null,null,null,null,null,null,null,null,null,null,null,null,null,null,"Белозерск г, Красноармейская ул, д. 15",null,null,null,null,null,null,null,null,null,null,null,null,null,null,null,null,null,null,null,null,null,null,null,null,null,null,null,null,null,null,null,null,null,null,null,null,null,null,null,null,null,null,null,null,null,null,null,null,null,null,null,null,null,null,null,null,null,null,null,null,null,null,null,null,null,null,null,null,null,null,null,null,null,null,null,null,null,null,null,null,null,null,null,null,null,null,null,null,null,null,null,null,null,null,null,null,null,null,null,null,null,null,null,null,null,null,null,"Общий счет РО - 267,90",null,"Исключен 01.04.2019"]
[{"$f":"\"Белозерск г, Красноармейская ул, д.19А\"","v":"Белозерск г, Красноармейская ул, д.19А"},"Белозерск г, Красноармейская ул, д.19А","Белозерск г, Красноармейская ул, д.19А","Белозерск г, Красноармейская ул, д.19А","Белозерск г, Красноармейская ул, д.19А","Белозерск г, Красноармейская ул, д.19А",null,null,null,null,null,null,null,{"$f":"\"Белозерск г, Красноармейская ул, д.19А\"","v":"Белозерск г, Красноармейская ул, д.19А"},null,null,null,null,null,null,null,null,null,null,null,null,null,null,null,null,"Белозерск г, Красноармейская ул, д. 19А",null,null,null,null,"Белозерск г, Красноармейская ул, д. 19А",null,null,null,null,null,null,null,null,null,null,"Белозерск г, Красноармейская ул, д. 19А",null,null,null,null,null,null,"Белозерск г, Красноармейская ул, д. 19А",null,null,null,null,null,"Белозерск г, Красноармейская ул, д. 19А",null,null,null,null,null,null,null,null,"Белозерск г, Красноармейская ул, д. 19А",null,null,null,null,null,"Белозерск г, Красноармейская ул, д. 19А",null,null,null,null,null,null,null,null,null,null,null,null,null,null,null,null,null,null,null,null,null,null,null,null,null,null,null,null,null,null,null,null,null,null,null,null,null,null,null,null,null,null,null,null,null,null,null,null,null,null,null,null,null,null,null,null,null,null,null,null,null,null,null,"Общий счет РО - 302,90","Признан аварийным. Заключение № 173 от 25.05.2022","Исключен 19.09.2022"]
[{"$f":"\"Белозерск г, Красноармейская ул, д.60А\"","v":"Белозерск г, Красноармейская ул, д.60А"},"Белозерск г, Красноармейская ул, д.60А","Белозерск г, Красноармейская ул, д.60А","Белозерск г, Красноармейская ул, д.60А","Белозерск г, Красноармейская ул, д.60А","Белозерск г, Красноармейская ул, д.60А",null,null,null,null,null,null,null,{"$f":"\"Белозерск г, Красноармейская ул, д.60А\"","v":"Белозерск г, Красноармейская ул, д.60А"},null,null,null,null,null,null,null,null,null,null,null,null,null,null,null,null,"Белозерск г, Красноармейская ул, д. 60А",null,null,null,null,"Белозерск г, Красноармейская ул, д. 60А",null,null,null,null,null,null,null,null,null,null,"Белозерск г, Красноармейская ул, д. 60А",null,null,null,null,null,null,"Белозерск г, Красноармейская ул, д. 60А",null,null,null,null,null,"Белозерск г, Красноармейская ул, д. 60А",null,null,null,null,null,null,null,null,"Белозерск г, Красноармейская ул, д. 60А",null,null,null,null,null,"Белозерск г, Красноармейская ул, д. 60А",null,null,null,null,null,null,null,"Белозерск г, Красноармейская ул, д. 60А",null,null,null,null,null,null,"Белозерск г, Красноармейская ул, д. 60А",null,null,null,null,null,null,null,null,"Белозерск г, Красноармейская ул, д. 60А",null,null,null,null,"Белозерск г, Красноармейская ул, д. 60А",null,null,null,null,null,null,null,null,"Белозерск г, Красноармейская ул, д. 60А",null,null,null,null,"Белозерск г, Красноармейская ул, д. 60А",null,null,null,null,"Белозерск г, Красноармейская ул, д. 60А",null,null,"Белозерск г, Красноармейская ул, д. 60А",null,null,null,null,null,null,null,null,null,null,null,null,"Общий счет РО+"]
[{"$f":"\"Белозерск г, Красноармейская ул, д.61А\"","v":"Белозерск г, Красноармейская ул, д.61А"},"Белозерск г, Красноармейская ул, д.61А","Белозерск г, Красноармейская ул, д.61А","Белозерск г, Красноармейская ул, д.61А","Белозерск г, Красноармейская ул, д.61А","Белозерск г, Красноармейская ул, д.61А",null,null,null,null,null,null,null,{"$f":"\"Белозерск г, Красноармейская ул, д.61А\"","v":"Белозерск г, Красноармейская ул, д.61А"},null,null,null,null,null,null,null,null,null,null,null,null,null,null,null,null,"Белозерск г, Красноармейская ул, д. 61А",null,null,null,null,"Белозерск г, Красноармейская ул, д. 61А",null,null,null,null,null,null,null,null,null,null,"Белозерск г, Красноармейская ул, д. 61А",null,null,null,null,null,null,"Белозерск г, Красноармейская ул, д. 61А",null,null,null,null,null,"Белозерск г, Красноармейская ул, д. 61А",null,null,null,null,null,null,null,null,"Белозерск г, Красноармейская ул, д. 61А",null,null,null,null,null,"Белозерск г, Красноармейская ул, д. 61А",null,null,null,null,null,null,null,"Белозерск г, Красноармейская ул, д. 61А",null,null,null,null,null,null,"Белозерск г, Красноармейская ул, д. 61А",null,null,null,null,null,null,null,null,"Белозерск г, Красноармейская ул, д. 61А",null,null,null,null,"Белозерск г, Красноармейская ул, д. 61А",null,null,null,null,null,null,null,null,"Белозерск г, Красноармейская ул, д. 61А",null,null,null,null,"Белозерск г, Красноармейская ул, д. 61А",null,null,null,null,"Белозерск г, Красноармейская ул, д. 61А",null,null,"Белозерск г, Красноармейская ул, д. 61А",null,null,null,null,null,null,null,null,null,null,null,null,"Общий счет РО+"]
[{"$f":"\"Белозерск г, Красноармейская ул, д.63Б\"","v":"Белозерск г, Красноармейская ул, д.63Б"},"Белозерск г, Красноармейская ул, д.63Б","Белозерск г, Красноармейская ул, д.63Б","Белозерск г, Красноармейская ул, д.63Б","Белозерск г, Красноармейская ул, д.63Б","Белозерск г, Красноармейская ул, д.63Б",null,null,null,null,null,null,null,{"$f":"\"Белозерск г, Красноармейская ул, д.63Б\"","v":"Белозерск г, Красноармейская ул, д.63Б"},null,null,null,null,null,null,null,null,null,null,null,null,null,null,null,null,"Белозерск г, Красноармейская ул, д. 63Б",null,null,null,null,null,null,null,null,null,null,null,null,null,null,null,null,null,null,null,null,null,null,null,null,null,null,null,null,null,null,null,null,null,null,null,null,null,null,null,null,null,null,null,null,null,null,null,null,null,null,null,null,null,null,null,null,null,null,null,null,null,null,null,null,null,null,null,null,null,null,null,null,null,null,null,null,null,null,null,null,null,null,null,null,null,null,null,null,null,null,null,null,null,null,null,null,null,null,null,null,null,null,null,null,null,null,null,"Общий счет РО - 280,80",null,"Исключен 01.04.2019"]
[{"$f":"\"Белозерск г, Красноармейская ул, д.69\"","v":"Белозерск г, Красноармейская ул, д.69"},"Белозерск г, Красноармейская ул, д.69","Белозерск г, Красноармейская ул, д.69","Белозерск г, Красноармейская ул, д.69","Белозерск г, Красноармейская ул, д.69","Белозерск г, Красноармейская ул, д.69",null,null,null,null,null,null,null,{"$f":"\"Белозерск г, Красноармейская ул, д.69\"","v":"Белозерск г, Красноармейская ул, д.69"},null,null,null,null,null,null,null,null,null,null,null,null,null,null,null,null,"Белозерск г, Красноармейская ул, д. 69",null,null,null,null,"Белозерск г, Красноармейская ул, д. 69",null,null,null,null,null,null,null,null,null,null,"Белозерск г, Красноармейская ул, д. 69",null,null,null,null,null,null,"Белозерск г, Красноармейская ул, д. 69",null,null,null,null,null,"Белозерск г, Красноармейская ул, д. 69",null,null,null,null,null,null,null,null,"Белозерск г, Красноармейская ул, д. 69",null,null,null,null,null,"Белозерск г, Красноармейская ул, д. 69",null,null,null,null,null,null,null,"Белозерск г, Красноармейская ул, д. 69",null,null,null,null,null,null,"Белозерск г, Красноармейская ул, д. 69",null,null,null,null,null,null,null,null,"Белозерск г, Красноармейская ул, д. 69",null,null,null,null,"Белозерск г, Красноармейская ул, д. 69",null,null,null,null,null,null,null,null,"Белозерск г, Красноармейская ул, д. 69",null,null,null,null,"Белозерск г, Красноармейская ул, д. 69",null,null,null,null,"Белозерск г, Красноармейская ул, д. 69",null,null,"Белозерск г, Красноармейская ул, д. 69",null,null,null,null,null,null,null,null,null,null,null,null,"Общий счет РО+"]
[{"$f":"\"Белозерск г, Красный пер, д.5\"","v":"Белозерск г, Красный пер, д.5"},"Белозерск г, Красный пер, д.5","Белозерск г, Красный пер, д.5","Белозерск г, Красный пер, д.5","Белозерск г, Красный пер, д.5","Белозерск г, Красный пер, д.5",null,null,null,null,null,null,null,{"$f":"\"Белозерск г, Красный пер, д.5\"","v":"Белозерск г, Красный пер, д.5"},null,null,null,null,null,null,null,null,null,null,null,null,null,null,null,null,"Белозерск г, Красный пер, д. 5",null,null,null,null,"Белозерск г, Красный пер, д. 5",null,null,null,null,null,null,null,null,null,null,"Белозерск г, Красный пер, д. 5",null,null,null,null,null,null,"Белозерск г, Красный пер, д. 5",null,null,null,null,null,"Белозерск г, Красный пер, д. 5",null,null,null,null,null,null,null,null,"Белозерск г, Красный пер, д. 5",null,null,null,null,null,"Белозерск г, Красный пер, д. 5",null,null,null,null,null,null,null,"Белозерск г, Красный пер, д. 5",null,null,null,null,null,null,"Белозерск г, Красный пер, д. 5",null,null,null,null,null,null,null,null,"Белозерск г, Красный пер, д. 5",null,null,null,null,"Белозерск г, Красный пер, д. 5",null,null,null,null,null,null,null,null,"Белозерск г, Красный пер, д. 5",null,null,null,null,null,null,null,null,null,null,null,null,null,null,null,null,null,null,null,null,null,null,null,null,null,"Общий счет РО+ 511,20","Признан аварийным. Постановление 212 от 12.02.2025","Исключен 02.04.2025"]
[{"$f":"\"Белозерск г, Ленина ул, д.8\"","v":"Белозерск г, Ленина ул, д.8"},"Белозерск г, Ленина ул, д.8","Белозерск г, Ленина ул, д.8","Белозерск г, Ленина ул, д.8","Белозерск г, Ленина ул, д.8","Белозерск г, Ленина ул, д.8",null,null,null,null,null,null,null,{"$f":"\"Белозерск г, Ленина ул, д.8\"","v":"Белозерск г, Ленина ул, д.8"},null,null,null,null,null,null,null,null,null,null,null,null,null,null,null,null,"Белозерск г, Ленина ул, д. 8",null,null,null,null,"Белозерск г, Ленина ул, д. 8",null,null,null,null,null,null,null,null,null,null,"Белозерск г, Ленина ул, д. 8",null,null,null,null,null,null,"Белозерск г, Ленина ул, д. 8",null,null,null,null,null,"Белозерск г, Ленина ул, д. 8",null,null,null,null,null,null,null,null,"Белозерск г, Ленина ул, д. 8",null,null,null,null,null,"Белозерск г, Ленина ул, д. 8",null,null,null,null,null,null,null,"Белозерск г, Ленина ул, д. 8",null,null,null,null,null,null,"Белозерск г, Ленина ул, д. 8",null,null,null,null,null,null,null,null,"Белозерск г, Ленина ул, д. 8",null,null,null,null,"Белозерск г, Ленина ул, д. 8",null,null,null,null,null,null,null,null,"Белозерск г, Ленина ул, д. 8",null,null,null,null,"Белозерск г, Ленина ул, д. 8",null,null,null,null,"Белозерск г, Ленина ул, д. 8",null,null,"Белозерск г, Ленина ул, д. 8",null,null,null,null,null,null,null,null,null,null,null,null,"Общий счет РО+"]
[{"$f":"\"Белозерск г, Ленина ул, д.9\"","v":"Белозерск г, Ленина ул, д.9"},"Белозерск г, Ленина ул, д.9","Белозерск г, Ленина ул, д.9","Белозерск г, Ленина ул, д.9","Белозерск г, Ленина ул, д.9","Белозерск г, Ленина ул, д.9",null,null,null,null,null,null,null,{"$f":"\"Белозерск г, Ленина ул, д.9\"","v":"Белозерск г, Ленина ул, д.9"},null,null,null,null,null,null,null,null,null,null,null,null,null,null,null,null,"Белозерск г, Ленина ул, д. 9",null,null,null,null,"Белозерск г, Ленина ул, д. 9",null,null,null,null,null,null,null,null,null,null,"Белозерск г, Ленина ул, д. 9",null,null,null,null,null,null,"Белозерск г, Ленина ул, д. 9",null,null,null,null,null,"Белозерск г, Ленина ул, д. 9",null,null,null,null,null,null,null,null,"Белозерск г, Ленина ул, д. 9",null,null,null,null,null,"Белозерск г, Ленина ул, д. 9",null,null,null,null,null,null,null,"Белозерск г, Ленина ул, д. 9",null,null,null,null,null,null,"Белозерск г, Ленина ул, д. 9",null,null,null,null,null,null,null,null,"Белозерск г, Ленина ул, д. 9",null,null,null,null,"Белозерск г, Ленина ул, д. 9",null,null,null,null,null,null,null,null,"Белозерск г, Ленина ул, д. 9",null,null,null,null,"Белозерск г, Ленина ул, д. 9",null,null,null,null,"Белозерск г, Ленина ул, д. 9",null,null,"Белозерск г, Ленина ул, д. 9",null,null,null,null,null,null,null,null,null,null,null,null,"Общий счет РО+","Признан аварийным. Постановление 19 от 16.01.2026"]
[{"$f":"\"Белозерск г, Ленина ул, д.21\"","v":"Белозерск г, Ленина ул, д.21"},"Белозерск г, Ленина ул, д.21","Белозерск г, Ленина ул, д.21","Белозерск г, Ленина ул, д.21","Белозерск г, Ленина ул, д.21","Белозерск г, Ленина ул, д.21",null,null,null,null,null,null,null,{"$f":"\"Белозерск г, Ленина ул, д.21\"","v":"Белозерск г, Ленина ул, д.21"},null,null,null,null,null,null,null,null,null,null,null,null,null,null,null,null,null,null,null,null,null,null,null,null,null,null,null,null,null,null,null,null,null,null,null,null,null,null,null,null,null,null,null,null,null,null,null,null,null,null,null,null,null,null,null,null,null,null,null,null,null,null,null,null,null,null,null,null,null,null,null,null,null,null,null,"Белозерск г, Ленина ул, д. 21",null,null,null,null,null,null,null,null,"Белозерск г, Ленина ул, д. 21",null,null,null,null,"Белозерск г, Ленина ул, д. 21",null,null,null,null,null,null,null,null,"Белозерск г, Ленина ул, д. 21",null,null,null,null,"Белозерск г, Ленина ул, д. 21",null,null,null,null,"Белозерск г, Ленина ул, д. 21",null,null,"Белозерск г, Ленина ул, д. 21",null,null,null,null,null,null,null,null,null,null,null,null,"Общий счет РО площадь 241,50","признан аварийным. Заключение № 85 от 09.11.2017 г. Решение отменено судом.","Исключен 30.11.2018.                        Включен 06.03.2023"]
[{"$f":"\"Белозерск г, Ленина ул, д.24\"","v":"Белозерск г, Ленина ул, д.24"},"Белозерск г, Ленина ул, д.24","Белозерск г, Ленина ул, д.24","Белозерск г, Ленина ул, д.24","Белозерск г, Ленина ул, д.24","Белозерск г, Ленина ул, д.24",null,null,null,null,null,null,null,{"$f":"\"Белозерск г, Ленина ул, д.24\"","v":"Белозерск г, Ленина ул, д.24"},null,null,null,null,null,null,null,null,null,null,null,null,null,null,null,null,"Белозерск г, Ленина ул, д. 24",null,null,null,null,"Белозерск г, Ленина ул, д. 24",null,null,null,null,null,null,null,null,null,null,"Белозерск г, Ленина ул, д. 24",null,null,null,null,null,null,"Белозерск г, Ленина ул, д. 24",null,null,null,null,null,"Белозерск г, Ленина ул, д. 24",null,null,null,null,null,null,null,null,"Белозерск г, Ленина ул, д. 24",null,null,null,null,null,"Белозерск г, Ленина ул, д. 24",null,null,null,null,null,null,null,"Белозерск г, Ленина ул, д. 24",null,null,null,null,null,null,"Белозерск г, Ленина ул, д. 24",null,null,null,null,null,null,null,null,"Белозерск г, Ленина ул, д. 24",null,null,null,null,"Белозерск г, Ленина ул, д. 24",null,null,null,null,null,null,null,null,"Белозерск г, Ленина ул, д. 24",null,null,null,null,"Белозерск г, Ленина ул, д. 24",null,null,null,null,null,null,null,null,null,null,null,null,null,null,null,null,null,null,null,null,"Общий счет РО+342,90"]
[{"$f":"\"Белозерск г, Ленина ул, д.25\"","v":"Белозерск г, Ленина ул, д.25"},"Белозерск г, Ленина ул, д.25","Белозерск г, Ленина ул, д.25","Белозерск г, Ленина ул, д.25","Белозерск г, Ленина ул, д.25","Белозерск г, Ленина ул, д.25",null,null,null,null,null,null,null,{"$f":"\"Белозерск г, Ленина ул, д.25\"","v":"Белозерск г, Ленина ул, д.25"},null,null,null,null,null,null,null,null,null,null,null,null,null,null,null,null,"Белозерск г, Ленина ул, д. 25",null,null,null,null,"Белозерск г, Ленина ул, д. 25",null,null,null,null,null,null,null,null,null,null,"Белозерск г, Ленина ул, д. 25",null,null,null,null,null,null,"Белозерск г, Ленина ул, д. 25",null,null,null,null,null,"Белозерск г, Ленина ул, д. 25",null,null,null,null,null,null,null,null,"Белозерск г, Ленина ул, д. 25",null,null,null,null,null,"Белозерск г, Ленина ул, д. 25",null,null,null,null,null,null,null,"Белозерск г, Ленина ул, д. 25",null,null,null,null,null,null,"Белозерск г, Ленина ул, д. 25",null,null,null,null,null,null,null,null,"Белозерск г, Ленина ул, д. 25",null,null,null,null,"Белозерск г, Ленина ул, д. 25",null,null,null,null,null,null,null,null,"Белозерск г, Ленина ул, д. 25",null,null,null,null,"Белозерск г, Ленина ул, д. 25",null,null,null,null,"Белозерск г, Ленина ул, д. 25",null,null,"Белозерск г, Ленина ул, д. 25",null,null,null,null,null,null,null,null,null,null,null,null,"Общий счет РО+"]
[{"$f":"\"Белозерск г, Ленина ул, д.25А\"","v":"Белозерск г, Ленина ул, д.25А"},"Белозерск г, Ленина ул, д.25А","Белозерск г, Ленина ул, д.25А","Белозерск г, Ленина ул, д.25А","Белозерск г, Ленина ул, д.25А","Белозерск г, Ленина ул, д.25А",null,null,null,null,null,null,null,{"$f":"\"Белозерск г, Ленина ул, д.25А\"","v":"Белозерск г, Ленина ул, д.25А"},null,null,null,null,null,null,null,null,null,null,null,null,null,null,null,null,"Белозерск г, Ленина ул, д. 25А",null,null,null,null,"Белозерск г, Ленина ул, д. 25А",null,null,null,null,null,null,null,null,null,null,"Белозерск г, Ленина ул, д. 25А",null,null,null,null,null,null,"Белозерск г, Ленина ул, д. 25А",null,null,null,null,null,"Белозерск г, Ленина ул, д. 25А",null,null,null,null,null,null,null,null,"Белозерск г, Ленина ул, д. 25А",null,null,null,null,null,"Белозерск г, Ленина ул, д. 25А",null,null,null,null,null,null,null,"Белозерск г, Ленина ул, д. 25А",null,null,null,null,null,null,"Белозерск г, Ленина ул, д. 25А",null,null,null,null,null,null,null,null,"Белозерск г, Ленина ул, д. 25А",null,null,null,null,"Белозерск г, Ленина ул, д. 25А",null,null,null,null,null,null,null,null,"Белозерск г, Ленина ул, д. 25А",null,null,null,null,"Белозерск г, Ленина ул, д. 25А",null,null,null,null,"Белозерск г, Ленина ул, д. 25А",null,null,"Белозерск г, Ленина ул, д. 25А",null,null,null,null,null,null,null,null,null,null,null,null,"Общий счет РО+"]
[{"$f":"\"Белозерск г, Ленина ул, д.33\"","v":"Белозерск г, Ленина ул, д.33"},"Белозерск г, Ленина ул, д.33","Белозерск г, Ленина ул, д.33","Белозерск г, Ленина ул, д.33","Белозерск г, Ленина ул, д.33","Белозерск г, Ленина ул, д.33",null,null,null,null,null,null,null,{"$f":"\"Белозерск г, Ленина ул, д.33\"","v":"Белозерск г, Ленина ул, д.33"},null,null,null,null,null,null,null,null,null,null,null,null,null,null,null,null,"Белозерск г, Ленина ул, д. 33",null,null,null,null,"Белозерск г, Ленина ул, д. 33",null,null,null,null,null,null,null,null,null,null,"Белозерск г, Ленина ул, д. 33",null,null,null,null,null,null,"Белозерск г, Ленина ул, д. 33",null,null,null,null,null,"Белозерск г, Ленина ул, д. 33",null,null,null,null,null,null,null,null,"Белозерск г, Ленина ул, д. 33",null,null,null,null,null,"Белозерск г, Ленина ул, д. 33",null,null,null,null,null,null,null,"Белозерск г, Ленина ул, д. 33",null,null,null,null,null,null,"Белозерск г, Ленина ул, д. 33",null,null,null,null,null,null,null,null,"Белозерск г, Ленина ул, д. 33",null,null,null,null,"Белозерск г, Ленина ул, д. 33",null,null,null,null,null,null,null,null,"Белозерск г, Ленина ул, д. 33",null,null,null,null,"Белозерск г, Ленина ул, д. 33",null,null,null,null,"Белозерск г, Ленина ул, д. 33",null,null,"Белозерск г, Ленина ул, д. 33",null,null,null,null,null,null,null,null,null,null,null,null,"Общий счет РО+"]
[{"$f":"\"Белозерск г, Ленина ул, д.60\"","v":"Белозерск г, Ленина ул, д.60"},"Белозерск г, Ленина ул, д.60","Белозерск г, Ленина ул, д.60","Белозерск г, Ленина ул, д.60","Белозерск г, Ленина ул, д.60","Белозерск г, Ленина ул, д.60",null,null,null,null,null,null,null,{"$f":"\"Белозерск г, Ленина ул, д.60\"","v":"Белозерск г, Ленина ул, д.60"},null,null,null,null,null,null,null,null,null,null,null,null,null,null,null,null,"Белозерск г, Ленина ул, д. 60",null,null,null,null,"Белозерск г, Ленина ул, д. 60",null,null,null,null,null,null,null,null,null,null,"Белозерск г, Ленина ул, д. 60",null,null,null,null,null,null,"Белозерск г, Ленина ул, д. 60",null,null,null,null,null,"Белозерск г, Ленина ул, д. 60",null,null,null,null,null,null,null,null,"Белозерск г, Ленина ул, д. 60",null,null,null,null,null,"Белозерск г, Ленина ул, д. 60",null,null,null,null,null,null,null,"Белозерск г, Ленина ул, д. 60",null,null,null,null,null,null,"Белозерск г, Ленина ул, д. 60",null,null,null,null,null,null,null,null,"Белозерск г, Ленина ул, д. 60",null,null,null,null,"Белозерск г, Ленина ул, д. 60",null,null,null,null,null,null,null,null,"Белозерск г, Ленина ул, д. 60",null,null,null,null,"Белозерск г, Ленина ул, д. 60",null,null,null,null,"Белозерск г, Ленина ул, д. 60",null,null,"Белозерск г, Ленина ул, д. 60",null,null,null,null,null,null,null,null,null,null,null,null,"Общий счет РО+"]
[{"$f":"\"Белозерск г, Ленина ул, д.61А\"","v":"Белозерск г, Ленина ул, д.61А"},"Белозерск г, Ленина ул, д.61А","Белозерск г, Ленина ул, д.61А","Белозерск г, Ленина ул, д.61А","Белозерск г, Ленина ул, д.61А","Белозерск г, Ленина ул, д.61А",null,null,null,null,null,null,null,{"$f":"\"Белозерск г, Ленина ул, д.61А\"","v":"Белозерск г, Ленина ул, д.61А"},null,null,null,null,null,null,null,null,null,null,null,null,null,null,null,null,"Белозерск г, Ленина ул, д. 61А",null,null,null,null,"Белозерск г, Ленина ул, д. 61А",null,null,null,null,null,null,null,null,null,null,"Белозерск г, Ленина ул, д. 61А",null,null,null,null,null,null,"Белозерск г, Ленина ул, д. 61А",null,null,null,null,null,"Белозерск г, Ленина ул, д. 61А",null,null,null,null,null,null,null,null,"Белозерск г, Ленина ул, д. 61А",null,null,null,null,null,"Белозерск г, Ленина ул, д. 61А",null,null,null,null,null,null,null,"Белозерск г, Ленина ул, д. 61А",null,null,null,null,null,null,"Белозерск г, Ленина ул, д. 61А",null,null,null,null,null,null,null,null,"Белозерск г, Ленина ул, д. 61А",null,null,null,null,"Белозерск г, Ленина ул, д. 61А",null,null,null,null,null,null,null,null,"Белозерск г, Ленина ул, д. 61А",null,null,null,null,"Белозерск г, Ленина ул, д. 61А",null,null,null,null,"Белозерск г, Ленина ул, д. 61А",null,null,"Белозерск г, Ленина ул, д. 61А",null,null,null,null,null,null,null,null,null,null,null,null,"Общий счет РО+"]
[{"$f":"\"Белозерск г, Ленина ул, д.87А\"","v":"Белозерск г, Ленина ул, д.87А"},"Белозерск г, Ленина ул, д.87А","Белозерск г, Ленина ул, д.87А","Белозерск г, Ленина ул, д.87А","Белозерск г, Ленина ул, д.87А","Белозерск г, Ленина ул, д.87А",null,null,null,null,null,null,null,{"$f":"\"Белозерск г, Ленина ул, д.87А\"","v":"Белозерск г, Ленина ул, д.87А"},null,null,null,null,null,null,null,null,null,null,null,null,null,null,null,null,"Белозерск г, Ленина ул, д. 87А",null,null,null,null,"Белозерск г, Ленина ул, д. 87А",null,null,null,null,null,null,null,null,null,null,"Белозерск г, Ленина ул, д. 87А",null,null,null,null,null,null,"Белозерск г, Ленина ул, д. 87А",null,null,null,null,null,"Белозерск г, Ленина ул, д. 87А",null,null,null,null,null,null,null,null,"Белозерск г, Ленина ул, д. 87А",null,null,null,null,null,"Белозерск г, Ленина ул, д. 87А",null,null,null,null,null,null,null,"Белозерск г, Ленина ул, д. 87А",null,null,null,null,null,null,"Белозерск г, Ленина ул, д. 87А",null,null,null,null,null,null,null,null,"Белозерск г, Ленина ул, д. 87А",null,null,null,null,"Белозерск г, Ленина ул, д. 87А",null,null,null,null,null,null,null,null,"Белозерск г, Ленина ул, д. 87А",null,null,null,null,"Белозерск г, Ленина ул, д. 87А",null,null,null,null,"Белозерск г, Ленина ул, д. 87А",null,null,"Белозерск г, Ленина ул, д. 87А",null,null,null,null,null,null,null,null,null,null,null,null,"Общий счет РО+"]
[{"$f":"\"Белозерск г, Ленина ул, д.99\"","v":"Белозерск г, Ленина ул, д.99"},"Белозерск г, Ленина ул, д.99","Белозерск г, Ленина ул, д.99","Белозерск г, Ленина ул, д.99","Белозерск г, Ленина ул, д.99","Белозерск г, Ленина ул, д.99",null,null,null,null,null,null,null,{"$f":"\"Белозерск г, Ленина ул, д.99\"","v":"Белозерск г, Ленина ул, д.99"},null,null,null,null,null,null,null,null,null,null,null,null,null,null,null,null,"Белозерск г, Ленина ул, д. 99",null,null,null,null,"Белозерск г, Ленина ул, д. 99",null,null,null,null,null,null,null,null,null,null,"Белозерск г, Ленина ул, д. 99",null,null,null,null,null,null,"Белозерск г, Ленина ул, д. 99",null,null,null,null,null,"Белозерск г, Ленина ул, д. 99",null,null,null,null,null,null,null,null,"Белозерск г, Ленина ул, д. 99",null,null,null,null,null,"Белозерск г, Ленина ул, д. 99",null,null,null,null,null,null,null,"Белозерск г, Ленина ул, д. 99",null,null,null,null,null,null,"Белозерск г, Ленина ул, д. 99",null,null,null,null,null,null,null,null,"Белозерск г, Ленина ул, д. 99",null,null,null,null,"Белозерск г, Ленина ул, д. 99",null,null,null,null,null,null,null,null,null,null,null,null,null,null,null,null,null,null,null,null,null,null,null,null,null,null,null,null,null,null,null,null,null,null,"Общий счет РО+581,60","Признан аварийным. Постановление 958 от 04.09.2024","Исключен 07.11.2024"]
[{"$f":"\"Белозерск г, Ленина ул, д.100А\"","v":"Белозерск г, Ленина ул, д.100А"},"Белозерск г, Ленина ул, д.100А","Белозерск г, Ленина ул, д.100А","Белозерск г, Ленина ул, д.100А","Белозерск г, Ленина ул, д.100А","Белозерск г, Ленина ул, д.100А",null,null,null,null,null,null,null,{"$f":"\"Белозерск г, Ленина ул, д.100А\"","v":"Белозерск г, Ленина ул, д.100А"},null,null,null,null,null,null,null,null,null,null,null,null,null,null,null,null,"Белозерск г, Ленина ул, д. 100А",null,null,null,null,"Белозерск г, Ленина ул, д. 100А",null,null,null,null,null,null,null,null,null,null,"Белозерск г, Ленина ул, д. 100А",null,null,null,null,null,null,"Белозерск г, Ленина ул, д. 100А",null,null,null,null,null,"Белозерск г, Ленина ул, д. 100А",null,null,null,null,null,null,null,null,"Белозерск г, Ленина ул, д. 100А",null,null,null,null,null,"Белозерск г, Ленина ул, д. 100А",null,null,null,null,null,null,null,"Белозерск г, Ленина ул, д. 100А",null,null,null,null,null,null,"Белозерск г, Ленина ул, д. 100А",null,null,null,null,null,null,null,null,"Белозерск г, Ленина ул, д. 100А",null,null,null,null,null,null,null,null,null,null,null,null,null,null,null,null,null,null,null,null,null,null,null,null,null,null,null,null,null,null,null,null,null,null,null,null,null,null,null,"Общий счет РО-438,60","Признан аварийным. Постановление 83 от 09.02.2024","Исключен 05.03.2024"]
[{"$f":"\"Белозерск г, Ленина ул, д.102\"","v":"Белозерск г, Ленина ул, д.102"},"Белозерск г, Ленина ул, д.102","Белозерск г, Ленина ул, д.102","Белозерск г, Ленина ул, д.102","Белозерск г, Ленина ул, д.102","Белозерск г, Ленина ул, д.102",null,null,null,null,null,null,null,{"$f":"\"Белозерск г, Ленина ул, д.102\"","v":"Белозерск г, Ленина ул, д.102"},null,null,null,null,null,null,null,null,null,null,null,null,null,null,null,null,"Белозерск г, Ленина ул, д. 102",null,null,null,null,"Белозерск г, Ленина ул, д. 102",null,null,null,null,null,null,null,null,null,null,"Белозерск г, Ленина ул, д. 102",null,null,null,null,null,null,"Белозерск г, Ленина ул, д. 102",null,null,null,null,null,"Белозерск г, Ленина ул, д. 102",null,null,null,null,null,null,null,null,"Белозерск г, Ленина ул, д. 102",null,null,null,null,null,"Белозерск г, Ленина ул, д. 102",null,null,null,null,null,null,null,"Белозерск г, Ленина ул, д. 102",null,null,null,null,null,null,"Белозерск г, Ленина ул, д. 102",null,null,null,null,null,null,null,null,"Белозерск г, Ленина ул, д. 102",null,null,null,null,null,null,null,null,null,null,null,null,null,null,null,null,null,null,null,null,null,null,null,null,null,null,null,null,null,null,null,null,null,null,null,null,null,null,null,"Общий счет РО-502,30","Признан аварийным. Постановление № 1648 от 26.12.2023","Исключен 05.03.2024"]
[{"$f":"\"Белозерск г, Ленина ул, д.102А\"","v":"Белозерск г, Ленина ул, д.102А"},"Белозерск г, Ленина ул, д.102А","Белозерск г, Ленина ул, д.102А","Белозерск г, Ленина ул, д.102А","Белозерск г, Ленина ул, д.102А","Белозерск г, Ленина ул, д.102А",null,null,null,null,null,null,null,{"$f":"\"Белозерск г, Ленина ул, д.102А\"","v":"Белозерск г, Ленина ул, д.102А"},null,null,null,null,null,null,null,null,null,null,null,null,null,null,null,null,"Белозерск г, Ленина ул, д. 102А",null,null,null,null,"Белозерск г, Ленина ул, д. 102А",null,null,null,null,null,null,null,null,null,null,"Белозерск г, Ленина ул, д. 102А",null,null,null,null,null,null,"Белозерск г, Ленина ул, д. 102А",null,null,null,null,null,"Белозерск г, Ленина ул, д. 102А",null,null,null,null,null,null,null,null,"Белозерск г, Ленина ул, д. 102А",null,null,null,null,null,"Белозерск г, Ленина ул, д. 102А",null,null,null,null,null,null,null,"Белозерск г, Ленина ул, д. 102А",null,null,null,null,null,null,"Белозерск г, Ленина ул, д. 102А",null,null,null,null,null,null,null,null,"Белозерск г, Ленина ул, д. 102А",null,null,null,null,"Белозерск г, Ленина ул, д. 102А",null,null,null,null,null,null,null,null,"Белозерск г, Ленина ул, д. 102А",null,null,null,null,"Белозерск г, Ленина ул, д. 102А",null,null,null,null,"Белозерск г, Ленина ул, д. 102А",null,null,"Белозерск г, Ленина ул, д. 102А",null,null,null,null,null,null,null,null,null,null,null,null,"Общий счет РО+"]
[{"$f":"\"Белозерск г, Ленина ул, д.104\"","v":"Белозерск г, Ленина ул, д.104"},"Белозерск г, Ленина ул, д.104","Белозерск г, Ленина ул, д.104","Белозерск г, Ленина ул, д.104","Белозерск г, Ленина ул, д.104","Белозерск г, Ленина ул, д.104",null,null,null,null,null,null,null,{"$f":"\"Белозерск г, Ленина ул, д.104\"","v":"Белозерск г, Ленина ул, д.104"},null,null,null,null,null,null,null,null,null,null,null,null,null,null,null,null,"Белозерск г, Ленина ул, д. 104",null,null,null,null,"Белозерск г, Ленина ул, д. 104",null,null,null,null,null,null,null,null,null,null,"Белозерск г, Ленина ул, д. 104",null,null,null,null,null,null,"Белозерск г, Ленина ул, д. 104",null,null,null,null,null,"Белозерск г, Ленина ул, д. 104",null,null,null,null,null,null,null,null,"Белозерск г, Ленина ул, д. 104",null,null,null,null,null,"Белозерск г, Ленина ул, д. 104",null,null,null,null,null,null,null,null,null,null,null,null,null,null,null,null,null,null,null,null,null,null,null,null,null,null,null,null,null,null,null,null,null,null,null,null,null,null,null,null,null,null,null,null,null,null,null,null,null,null,null,null,null,null,null,null,null,null,null,null,null,null,null,"Общий счет РО - 506,00","Признан аварийным. Постановление № 211 от 04.07.2022","Исключен 19.09.2022"]
[{"$f":"\"Белозерск г, Ленина ул, д.104А\"","v":"Белозерск г, Ленина ул, д.104А"},"Белозерск г, Ленина ул, д.104А","Белозерск г, Ленина ул, д.104А","Белозерск г, Ленина ул, д.104А","Белозерск г, Ленина ул, д.104А","Белозерск г, Ленина ул, д.104А",null,null,null,null,null,null,null,{"$f":"\"Белозерск г, Ленина ул, д.104А\"","v":"Белозерск г, Ленина ул, д.104А"},null,null,null,null,null,null,null,null,null,null,null,null,null,null,null,null,"Белозерск г, Ленина ул, д. 104А",null,null,null,null,"Белозерск г, Ленина ул, д. 104А",null,null,null,null,null,null,null,null,null,null,"Белозерск г, Ленина ул, д. 104А",null,null,null,null,null,null,"Белозерск г, Ленина ул, д. 104А",null,null,null,null,null,"Белозерск г, Ленина ул, д. 104А",null,null,null,null,null,null,null,null,"Белозерск г, Ленина ул, д. 104А",null,null,null,null,null,"Белозерск г, Ленина ул, д. 104А",null,null,null,null,null,null,null,"Белозерск г, Ленина ул, д. 104А",null,null,null,null,null,null,"Белозерск г, Ленина ул, д. 104А",null,null,null,null,null,null,null,null,"Белозерск г, Ленина ул, д. 104А",null,null,null,null,"Белозерск г, Ленина ул, д. 104А",null,null,null,null,null,null,null,null,"Белозерск г, Ленина ул, д. 104А",null,null,null,null,"Белозерск г, Ленина ул, д. 104А",null,null,null,null,"Белозерск г, Ленина ул, д. 104А",null,null,"Белозерск г, Ленина ул, д. 104А",null,null,null,null,null,null,null,null,null,null,null,null,"Общий счет РО+"]
[{"$f":"\"Белозерск г, Ленина ул, д.106\"","v":"Белозерск г, Ленина ул, д.106"},"Белозерск г, Ленина ул, д.106","Белозерск г, Ленина ул, д.106","Белозерск г, Ленина ул, д.106","Белозерск г, Ленина ул, д.106","Белозерск г, Ленина ул, д.106",null,null,null,null,null,null,null,{"$f":"\"Белозерск г, Ленина ул, д.106\"","v":"Белозерск г, Ленина ул, д.106"},null,null,null,null,null,null,null,null,null,null,null,null,null,null,null,null,null,null,null,null,null,null,null,null,null,null,null,null,null,null,null,null,null,null,null,null,null,null,null,null,null,null,null,null,null,null,null,null,null,null,null,null,null,null,null,null,null,null,null,null,null,null,null,null,null,null,null,null,null,null,null,null,null,null,null,null,null,null,null,null,null,null,null,null,null,null,null,null,null,null,null,null,null,null,null,null,null,null,null,null,null,null,null,null,null,null,null,null,null,null,null,null,null,null,null,null,null,null,null,null,null,null,null,null,"Общий счет РО площадь 483,80","признан аварийным. Заключение № 77 от 10.10.2017","Исключен 30.11.2018"]
[{"$f":"\"Белозерск г, Ленина ул, д.11А\"","v":"Белозерск г, Ленина ул, д.11А"},{"$f":"\"Белозерск г, Ленина ул, д.11А\"","v":"Белозерск г, Ленина ул, д.11А"},{"$f":"\"Белозерск г, Ленина ул, д.11А\"","v":"Белозерск г, Ленина ул, д.11А"},{"$f":"\"Белозерск г, Ленина ул, д.11А\"","v":"Белозерск г, Ленина ул, д.11А"}]
[{"$f":"\"Белозерск г, Ленина ул, д.19\"","v":"Белозерск г, Ленина ул, д.19"},"Белозерск г, Ленина ул, д.19","Белозерск г, Ленина ул, д.19","Белозерск г, Ленина ул, д.19","Белозерск г, Ленина ул, д.19","Белозерск г, Ленина ул, д.19",null,null,null,null,null,null,null,{"$f":"\"Белозерск г, Ленина ул, д.19\"","v":"Белозерск г, Ленина ул, д.19"},null,null,null,null,null,null,null,null,null,null,null,null,null,null,null,null,null,null,null,null,null,null,null,null,null,null,null,null,null,null,null,null,null,null,null,null,null,null,null,null,null,null,null,null,null,null,null,null,null,null,null,null,null,null,null,null,null,null,null,null,null,null,null,null,null,null,null,null,null,null,null,null,null,null,null,null,null,null,null,null,null,null,null,null,null,null,null,null,null,null,null,null,null,null,null,null,null,null,null,null,null,null,null,null,null,null,null,null,null,null,null,null,null,null,null,null,null,null,null,null,null,null,null,null,"Общий счет РО площадь 170,30","признан аварийным Заключение № 74 от 25.09.2017","Исключен 30.11.2018"]
[{"$f":"\"Белозерск г, Ленина ул, д.2А\"","v":"Белозерск г, Ленина ул, д.2А"},"Белозерск г, Ленина ул, д.2А","Белозерск г, Ленина ул, д.2А","Белозерск г, Ленина ул, д.2А","Белозерск г, Ленина ул, д.2А","Белозерск г, Ленина ул, д.2А",null,null,null,null,null,null,null,{"$f":"\"Белозерск г, Ленина ул, д.2А\"","v":"Белозерск г, Ленина ул, д.2А"},null,null,null,null,null,null,null,null,null,null,null,null,null,null,null,null,"Белозерск г, Ленина ул, д. 2А",null,null,null,null,null,null,null,null,null,null,null,null,null,null,null,null,null,null,null,null,null,null,null,null,null,null,null,null,null,null,null,null,null,null,null,null,null,null,null,null,null,null,null,null,null,null,null,null,null,null,null,null,null,null,null,null,null,null,null,null,null,null,null,null,null,null,null,null,null,null,null,null,null,null,null,null,null,null,null,null,null,null,null,null,null,null,null,null,null,null,null,null,null,null,null,null,null,null,null,null,null,null,null,null,null,null,null,"Общий счет РО - 278,50",null,"Исключен 01.04.2019"]
[{"$f":"\"Белозерск г, Ленина ул, д.34\"","v":"Белозерск г, Ленина ул, д.34"},"Белозерск г, Ленина ул, д.34","Белозерск г, Ленина ул, д.34","Белозерск г, Ленина ул, д.34","Белозерск г, Ленина ул, д.34","Белозерск г, Ленина ул, д.34",null,null,null,null,null,null,null,{"$f":"\"Белозерск г, Ленина ул, д.34\"","v":"Белозерск г, Ленина ул, д.34"},null,null,null,null,null,null,null,null,null,null,null,null,null,null,null,null,null,null,null,null,null,null,null,null,null,null,null,null,null,null,null,null,null,null,null,null,null,null,null,null,null,null,null,null,null,null,null,null,null,null,null,null,null,null,null,null,null,null,null,null,null,null,null,null,null,null,null,null,null,null,null,null,null,null,null,null,null,null,null,null,null,null,null,null,null,null,null,null,null,null,null,null,null,null,null,null,null,null,null,null,null,null,null,null,null,null,null,null,null,null,null,null,null,null,null,null,null,null,null,null,null,null,null,null,"Общий счет РО","Признан аварийным. Прекращён расчет с августа 2017 года. Площадь 301,30","Исключен 30.11.2018"]
[{"$f":"\"Белозерск г, Ленина ул, д.36\"","v":"Белозерск г, Ленина ул, д.36"},"Белозерск г, Ленина ул, д.36","Белозерск г, Ленина ул, д.36","Белозерск г, Ленина ул, д.36","Белозерск г, Ленина ул, д.36","Белозерск г, Ленина ул, д.36",null,null,null,null,null,null,null,{"$f":"\"Белозерск г, Ленина ул, д.36\"","v":"Белозерск г, Ленина ул, д.36"},null,null,null,null,null,null,null,null,null,null,null,null,null,null,null,null,"Белозерск г, Ленина ул, д. 36",null,null,null,null,"Белозерск г, Ленина ул, д. 36",null,null,null,null,null,null,null,null,null,null,"Белозерск г, Ленина ул, д. 36",null,null,null,null,null,null,"Белозерск г, Ленина ул, д. 36",null,null,null,null,null,"Белозерск г, Ленина ул, д. 36",null,null,null,null,null,null,null,null,null,null,null,null,null,null,null,null,null,null,null,null,null,null,null,null,null,null,null,null,null,null,null,null,null,null,null,null,null,null,null,null,null,null,null,null,null,null,null,null,null,null,null,null,null,null,null,null,null,null,null,null,null,null,null,null,null,null,null,null,null,null,null,null,null,null,null,null,null,null,"Общий счет РО - 267,40","Признан аварийным. Заключение № 151 от 12.07.2021","Исключен 06.09.2021"]
[{"$f":"\"Белозерск г, Ленина ул, д.8а\"","v":"Белозерск г, Ленина ул, д.8а"},{"$f":"\"Белозерск г, Ленина ул, д.8а\"","v":"Белозерск г, Ленина ул, д.8а"},{"$f":"\"Белозерск г, Ленина ул, д.8А\"","v":"Белозерск г, Ленина ул, д.8А"},{"$f":"\"Белозерск г, Ленина ул, д.8А\"","v":"Белозерск г, Ленина ул, д.8А"},{"$f":"\"Белозерск г, Ленина ул, д.8А\"","v":"Белозерск г, Ленина ул, д.8А"},{"$f":"\"Белозерск г, Ленина ул, д.8А\"","v":"Белозерск г, Ленина ул, д.8А"},null,null,null,null,null,null,null,{"$f":"\"Белозерск г, Ленина ул, д.8А\"","v":"Белозерск г, Ленина ул, д.8А"},null,null,null,null,null,null,null,null,null,null,null,null,null,null,null,null,"Белозерск г, Ленина ул, д. 8А",null,null,null,null,null,null,null,null,null,null,null,null,null,null,null,null,null,null,null,null,null,null,null,null,null,null,null,null,null,null,null,null,null,null,null,null,null,null,null,null,null,null,null,null,null,null,null,null,null,null,null,null,null,null,null,null,null,null,null,null,null,null,null,null,null,null,null,null,null,null,null,null,null,null,null,null,null,null,null,null,null,null,null,null,null,null,null,null,null,null,null,null,null,null,null,null,null,null,null,null,null,null,null,null,null,null,null,"Общий счет РО - 265,30",null,"Исключен 01.04.2019"]
[{"$f":"\"Белозерск г, Ленина ул, д.91А\"","v":"Белозерск г, Ленина ул, д.91А"},"Белозерск г, Ленина ул, д.91А","Белозерск г, Ленина ул, д.91А","Белозерск г, Ленина ул, д.91А","Белозерск г, Ленина ул, д.91А","Белозерск г, Ленина ул, д.91А",null,null,null,null,null,null,null,{"$f":"\"Белозерск г, Ленина ул, д.91А\"","v":"Белозерск г, Ленина ул, д.91А"},null,null,null,null,null,null,null,null,null,null,null,null,null,null,null,null,"Белозерск г, Ленина ул, д. 91А",null,null,null,null,null,null,null,null,null,null,null,null,null,null,null,null,null,null,null,null,null,null,null,null,null,null,null,null,null,null,null,null,null,null,null,null,null,null,null,null,null,null,null,null,null,null,null,null,null,null,null,null,null,null,null,null,null,null,null,null,null,null,null,null,null,null,null,null,null,null,null,null,null,null,null,null,null,null,null,null,null,null,null,null,null,null,null,null,null,null,null,null,null,null,null,null,null,null,null,null,null,null,null,null,null,null,null,"Общий счет РО - 271,30",null,"Исключен 01.04.2019"]
[{"$f":"\"Белозерск г, Ленина ул, д.97\"","v":"Белозерск г, Ленина ул, д.97"},"Белозерск г, Ленина ул, д.97","Белозерск г, Ленина ул, д.97","Белозерск г, Ленина ул, д.97","Белозерск г, Ленина ул, д.97","Белозерск г, Ленина ул, д.97",null,null,null,null,null,null,null,{"$f":"\"Белозерск г, Ленина ул, д.97\"","v":"Белозерск г, Ленина ул, д.97"},null,null,null,null,null,null,null,null,null,null,null,null,null,null,null,null,"Белозерск г, Ленина ул, д. 97",null,null,null,null,"Белозерск г, Ленина ул, д. 97",null,null,null,null,null,null,null,null,null,null,"Белозерск г, Ленина ул, д. 97",null,null,null,null,null,null,"Белозерск г, Ленина ул, д. 97",null,null,null,null,null,"Белозерск г, Ленина ул, д. 97",null,null,null,null,null,null,null,null,"Белозерск г, Ленина ул, д. 97",null,null,null,null,null,"Белозерск г, Ленина ул, д. 97",null,null,null,null,null,null,null,"Белозерск г, Ленина ул, д. 97",null,null,null,null,null,null,"Белозерск г, Ленина ул, д. 97",null,null,null,null,null,null,null,null,null,null,null,null,null,null,null,null,null,null,null,null,null,null,null,null,null,null,null,null,null,null,null,null,null,null,null,null,null,null,null,null,null,null,null,null,null,null,null,null,"Общий счет РО 311,80","Признан аварийным. Заключение № 196от 21.06.2023"]
[{"$f":"\"Белозерск г, Луначарского ул, д.5\"","v":"Белозерск г, Луначарского ул, д.5"},"Белозерск г, Луначарского ул, д.5","Белозерск г, Луначарского ул, д.5","Белозерск г, Луначарского ул, д.5","Белозерск г, Луначарского ул, д.5","Белозерск г, Луначарского ул, д.5",null,null,null,null,null,null,null,{"$f":"\"Белозерск г, Луначарского ул, д.5\"","v":"Белозерск г, Луначарского ул, д.5"},null,null,null,null,null,null,null,null,null,null,null,null,null,null,null,null,"Белозерск г, Луначарского ул, д. 5",null,null,null,null,"Белозерск г, Луначарского ул, д. 5",null,null,null,null,null,null,null,null,null,null,"Белозерск г, Луначарского ул, д. 5",null,null,null,null,null,null,"Белозерск г, Луначарского ул, д. 5",null,null,null,null,null,"Белозерск г, Луначарского ул, д. 5",null,null,null,null,null,null,null,null,"Белозерск г, Луначарского ул, д. 5",null,null,null,null,null,"Белозерск г, Луначарского ул, д. 5",null,null,null,null,null,null,null,"Белозерск г, Луначарского ул, д. 5",null,null,null,null,null,null,"Белозерск г, Луначарского ул, д. 5",null,null,null,null,null,null,null,null,"Белозерск г, Луначарского ул, д. 5",null,null,null,null,"Белозерск г, Луначарского ул, д. 5",null,null,null,null,null,null,null,null,null,null,null,null,null,null,null,null,null,null,null,null,null,null,null,null,null,null,null,null,null,null,null,null,null,null,"Общий счет РО+333,20","Признан аварийным. Постановление № 1182 от 24.10.2024","Исключен 07.11.2024"]
[{"$f":"\"Белозерск г, Луначарского ул, д.24\"","v":"Белозерск г, Луначарского ул, д.24"},"Белозерск г, Луначарского ул, д.24","Белозерск г, Луначарского ул, д.24","Белозерск г, Луначарского ул, д.24","Белозерск г, Луначарского ул, д.24","Белозерск г, Луначарского ул, д.24",null,null,null,null,null,null,null,{"$f":"\"Белозерск г, Луначарского ул, д.24\"","v":"Белозерск г, Луначарского ул, д.24"},null,null,null,null,null,null,null,null,null,null,null,null,null,null,null,null,"Белозерск г, Луначарского ул, д. 24",null,null,null,null,"Белозерск г, Луначарского ул, д. 24",null,null,null,null,null,null,null,null,null,null,"Белозерск г, Луначарского ул, д. 24",null,null,null,null,null,null,"Белозерск г, Луначарского ул, д. 24",null,null,null,null,null,"Белозерск г, Луначарского ул, д. 24",null,null,null,null,null,null,null,null,"Белозерск г, Луначарского ул, д. 24",null,null,null,null,null,"Белозерск г, Луначарского ул, д. 24",null,null,null,null,null,null,null,"Белозерск г, Луначарского ул, д. 24",null,null,null,null,null,null,"Белозерск г, Луначарского ул, д. 24",null,null,null,null,null,null,null,null,"Белозерск г, Луначарского ул, д. 24",null,null,null,null,null,null,null,null,null,null,null,null,null,null,null,null,null,null,null,null,null,null,null,null,null,null,null,null,null,null,null,null,null,null,null,null,null,null,null,"Общий счет РО-345,50","Признан аварийным. Постановление 1511 от 30.11.2023","Исключен 05.03.2024"]
[{"$f":"\"Белозерск г, Луначарского ул, д.30\"","v":"Белозерск г, Луначарского ул, д.30"},"Белозерск г, Луначарского ул, д.30","Белозерск г, Луначарского ул, д.30","Белозерск г, Луначарского ул, д.30","Белозерск г, Луначарского ул, д.30","Белозерск г, Луначарского ул, д.30",null,null,null,null,null,null,null,{"$f":"\"Белозерск г, Луначарского ул, д.30\"","v":"Белозерск г, Луначарского ул, д.30"},null,null,null,null,null,null,null,null,null,null,null,null,null,null,null,null,"Белозерск г, Луначарского ул, д. 30",null,null,null,null,"Белозерск г, Луначарского ул, д. 30",null,null,null,null,null,null,null,null,null,null,null,null,null,null,null,null,null,null,null,null,null,null,null,null,null,null,null,null,null,null,null,null,null,null,null,null,null,null,null,null,null,null,null,null,null,null,null,null,null,null,null,null,null,null,null,null,null,null,null,null,null,null,null,null,null,null,null,null,null,null,null,null,null,null,null,null,null,null,null,null,null,null,null,null,null,null,null,null,null,null,null,null,null,null,null,null,null,null,null,null,null,null,"Общий счет РО - 213,70",null,"Исключен 20.01.2020"]
[{"$f":"\"Белозерск г, Луначарского ул, д.42\"","v":"Белозерск г, Луначарского ул, д.42"},"Белозерск г, Луначарского ул, д.42","Белозерск г, Луначарского ул, д.42","Белозерск г, Луначарского ул, д.42","Белозерск г, Луначарского ул, д.42","Белозерск г, Луначарского ул, д.42",null,null,null,null,null,null,null,{"$f":"\"Белозерск г, Луначарского ул, д.42\"","v":"Белозерск г, Луначарского ул, д.42"},null,null,null,null,null,null,null,null,null,null,null,null,null,null,null,null,"Белозерск г, Луначарского ул, д. 42",null,null,null,null,"Белозерск г, Луначарского ул, д. 42",null,null,null,null,null,null,null,null,null,null,"Белозерск г, Луначарского ул, д. 42",null,null,null,null,null,null,"Белозерск г, Луначарского ул, д. 42",null,null,null,null,null,"Белозерск г, Луначарского ул, д. 42",null,null,null,null,null,null,null,null,"Белозерск г, Луначарского ул, д. 42",null,null,null,null,null,"Белозерск г, Луначарского ул, д. 42",null,null,null,null,null,null,null,"Белозерск г, Луначарского ул, д. 42",null,null,null,null,null,null,"Белозерск г, Луначарского ул, д. 42",null,null,null,null,null,null,null,null,"Белозерск г, Луначарского ул, д. 42",null,null,null,null,"Белозерск г, Луначарского ул, д. 42",null,null,null,null,null,null,null,null,"Белозерск г, Луначарского ул, д. 42",null,null,null,null,"Белозерск г, Луначарского ул, д. 42",null,null,null,null,"Белозерск г, Луначарского ул, д. 42",null,null,"Белозерск г, Луначарского ул, д. 42",null,null,null,null,null,null,null,null,null,null,null,null,"Общий счет РО+"]
[{"$f":"\"Белозерск г, Луначарского ул, д.56Б\"","v":"Белозерск г, Луначарского ул, д.56Б"},"Белозерск г, Луначарского ул, д.56Б","Белозерск г, Луначарского ул, д.56Б","Белозерск г, Луначарского ул, д.56Б","Белозерск г, Луначарского ул, д.56Б","Белозерск г, Луначарского ул, д.56Б",null,null,null,null,null,null,null,{"$f":"\"Белозерск г, Луначарского ул, д.56Б\"","v":"Белозерск г, Луначарского ул, д.56Б"},null,null,null,null,null,null,null,null,null,null,null,null,null,null,null,null,"Белозерск г, Луначарского ул, д. 56Б",null,null,null,null,"Белозерск г, Луначарского ул, д. 56Б",null,null,null,null,null,null,null,null,null,null,"Белозерск г, Луначарского ул, д. 56Б",null,null,null,null,null,null,"Белозерск г, Луначарского ул, д. 56Б",null,null,null,null,null,"Белозерск г, Луначарского ул, д. 56Б",null,null,null,null,null,null,null,null,"Белозерск г, Луначарского ул, д. 56Б",null,null,null,null,null,"Белозерск г, Луначарского ул, д. 56Б",null,null,null,null,null,null,null,"Белозерск г, Луначарского ул, д. 56Б",null,null,null,null,null,null,"Белозерск г, Луначарского ул, д. 56Б",null,null,null,null,null,null,null,null,"Белозерск г, Луначарского ул, д. 56Б",null,null,null,null,"Белозерск г, Луначарского ул, д. 56Б",null,null,null,null,null,null,null,null,"Белозерск г, Луначарского ул, д. 56Б",null,null,null,null,"Белозерск г, Луначарского ул, д. 56Б",null,null,null,null,"Белозерск г, Луначарского ул, д. 56Б",null,null,"Белозерск г, Луначарского ул, д. 56Б",null,null,null,null,null,null,null,null,null,null,null,null,"Общий счет РО+"]
[{"$f":"\"Белозерск г, Луначарского ул, д.6\"","v":"Белозерск г, Луначарского ул, д.6"},"Белозерск г, Луначарского ул, д.6","Белозерск г, Луначарского ул, д.6","Белозерск г, Луначарского ул, д.6","Белозерск г, Луначарского ул, д.6","Белозерск г, Луначарского ул, д.6",null,null,null,null,null,null,null,{"$f":"\"Белозерск г, Луначарского ул, д.6\"","v":"Белозерск г, Луначарского ул, д.6"},null,null,null,null,null,null,null,null,null,null,null,null,null,null,null,null,"Белозерск г, Луначарского ул, д. 6",null,null,null,null,"Белозерск г, Луначарского ул, д. 6",null,null,null,null,null,null,null,null,null,null,"Белозерск г, Луначарского ул, д. 6",null,null,null,null,null,null,"Белозерск г, Луначарского ул, д. 6",null,null,null,null,null,"Белозерск г, Луначарского ул, д. 6",null,null,null,null,null,null,null,null,null,null,null,null,null,null,null,null,null,null,null,null,null,null,null,null,null,null,null,null,null,null,null,null,null,null,null,null,null,null,null,null,null,null,null,null,null,null,null,null,null,null,null,null,null,null,null,null,null,null,null,null,null,null,null,null,null,null,null,null,null,null,null,null,null,null,null,null,null,null,"Общий счет РО - 339,90","Признан аварийным Постановление № 403 от 25.12.2020","Исключен 06.09.2021"]
[{"$f":"\"Белозерск г, Луначарского ул, д.6А\"","v":"Белозерск г, Луначарского ул, д.6А"},"Белозерск г, Луначарского ул, д.6А","Белозерск г, Луначарского ул, д.6А","Белозерск г, Луначарского ул, д.6А","Белозерск г, Луначарского ул, д.6А","Белозерск г, Луначарского ул, д.6А",null,null,null,null,null,null,null,{"$f":"\"Белозерск г, Луначарского ул, д.6А\"","v":"Белозерск г, Луначарского ул, д.6А"},null,null,null,null,null,null,null,null,null,null,null,null,null,null,null,null,"Белозерск г, Луначарского ул, д. 6А",null,null,null,null,"Белозерск г, Луначарского ул, д. 6А",null,null,null,null,null,null,null,null,null,null,"Белозерск г, Луначарского ул, д. 6А",null,null,null,null,null,null,"Белозерск г, Луначарского ул, д. 6А",null,null,null,null,null,"Белозерск г, Луначарского ул, д. 6А",null,null,null,null,null,null,null,null,null,null,null,null,null,null,null,null,null,null,null,null,null,null,null,null,null,null,null,null,null,null,null,null,null,null,null,null,null,null,null,null,null,null,null,null,null,null,null,null,null,null,null,null,null,null,null,null,null,null,null,null,null,null,null,null,null,null,null,null,null,null,null,null,null,null,null,null,null,null,"Общий счет РО - 333,60","Признан аварийным. Постановление №401 от 24.12.2020 г.","Исключен 06.09.2021"]
[{"$f":"\"Белозерск г, Максима Горького ул, д.44А\"","v":"Белозерск г, Максима Горького ул, д.44А"},"Белозерск г, Максима Горького ул, д.44А","Белозерск г, Максима Горького ул, д.44А","Белозерск г, Максима Горького ул, д.44А","Белозерск г, Максима Горького ул, д.44А","Белозерск г, Максима Горького ул, д.44А",null,null,null,null,null,null,null,{"$f":"\"Белозерск г, Максима Горького ул, д.44А\"","v":"Белозерск г, Максима Горького ул, д.44А"},null,null,null,null,null,null,null,null,null,null,null,null,null,null,null,null,null,null,null,null,null,null,null,null,null,null,null,null,null,null,null,null,null,null,null,null,null,null,null,null,null,null,null,null,null,null,null,null,null,null,null,null,null,null,null,null,null,null,null,null,null,null,null,null,null,null,null,null,null,null,null,null,null,null,null,null,null,null,null,null,null,null,null,null,null,null,null,null,null,null,null,null,null,null,null,null,null,null,null,null,null,null,null,null,null,null,null,null,null,null,null,null,null,null,null,null,null,null,null,null,null,null,null,null,"Общий счет РО площадь 517,30","Признан аварийным Акт № 38 от 04.05.2017","Исключен 30.11.2018"]
[{"$f":"\"Белозерск г, Малоземова ул, д.39\"","v":"Белозерск г, Малоземова ул, д.39"},"Белозерск г, Малоземова ул, д.39","Белозерск г, Малоземова ул, д.39","Белозерск г, Малоземова ул, д.39","Белозерск г, Малоземова ул, д.39","Белозерск г, Малоземова ул, д.39",null,null,null,null,null,null,null,{"$f":"\"Белозерск г, Малоземова ул, д.39\"","v":"Белозерск г, Малоземова ул, д.39"},null,null,null,null,null,null,null,null,null,null,null,null,null,null,null,null,"Белозерск г, Малоземова ул, д. 39",null,null,null,null,"Белозерск г, Малоземова ул, д. 39",null,null,null,null,null,null,null,null,null,null,"Белозерск г, Малоземова ул, д. 39",null,null,null,null,null,null,"Белозерск г, Малоземова ул, д. 39",null,null,null,null,null,"Белозерск г, Малоземова ул, д. 39",null,null,null,null,null,null,null,null,"Белозерск г, Малоземова ул, д. 39",null,null,null,null,null,"Белозерск г, Малоземова ул, д. 39",null,null,null,null,null,null,null,"Белозерск г, Малоземова ул, д. 39",null,null,null,null,null,null,"Белозерск г, Малоземова ул, д. 39",null,null,null,null,null,null,null,null,"Белозерск г, Малоземова ул, д. 39",null,null,null,null,"Белозерск г, Малоземова ул, д. 39",null,null,null,null,null,null,null,null,"Белозерск г, Малоземова ул, д. 39",null,null,null,null,"Белозерск г, Малоземова ул, д. 39",null,null,null,null,null,null,null,null,null,null,null,null,null,null,null,null,null,null,null,null,"Общий счет РО+512,10","Признан аварийным. Постановление 939 от 23.07.2025"]
[{"$f":"\"Белозерск г, Малоземова ул, д.63\"","v":"Белозерск г, Малоземова ул, д.63"},"Белозерск г, Малоземова ул, д.63","Белозерск г, Малоземова ул, д.63","Белозерск г, Малоземова ул, д.63","Белозерск г, Малоземова ул, д.63","Белозерск г, Малоземова ул, д.63",null,null,null,null,null,null,null,{"$f":"\"Белозерск г, Малоземова ул, д.63\"","v":"Белозерск г, Малоземова ул, д.63"},null,null,null,null,null,null,null,null,null,null,null,null,null,null,null,null,"Белозерск г, Малоземова ул, д. 63",null,null,null,null,"Белозерск г, Малоземова ул, д. 63",null,null,null,null,null,null,null,null,null,null,"Белозерск г, Малоземова ул, д. 63",null,null,null,null,null,null,"Белозерск г, Малоземова ул, д. 63",null,null,null,null,null,"Белозерск г, Малоземова ул, д. 63",null,null,null,null,null,null,null,null,"Белозерск г, Малоземова ул, д. 63",null,null,null,null,null,"Белозерск г, Малоземова ул, д. 63",null,null,null,null,null,null,null,"Белозерск г, Малоземова ул, д. 63",null,null,null,null,null,null,"Белозерск г, Малоземова ул, д. 63",null,null,null,null,null,null,null,null,"Белозерск г, Малоземова ул, д. 63",null,null,null,null,"Белозерск г, Малоземова ул, д. 63",null,null,null,null,null,null,null,null,"Белозерск г, Малоземова ул, д. 63",null,null,null,null,"Белозерск г, Малоземова ул, д. 63",null,null,null,null,"Белозерск г, Малоземова ул, д. 63",null,null,"Белозерск г, Малоземова ул, д. 63",null,null,null,null,null,null,null,null,null,null,null,null,"Общий счет РО+"]
[{"$f":"\"Белозерск г, Малоземова ул, д.68\"","v":"Белозерск г, Малоземова ул, д.68"},"Белозерск г, Малоземова ул, д.68","Белозерск г, Малоземова ул, д.68","Белозерск г, Малоземова ул, д.68","Белозерск г, Малоземова ул, д.68","Белозерск г, Малоземова ул, д.68",null,null,null,null,null,null,null,{"$f":"\"Белозерск г, Малоземова ул, д.68\"","v":"Белозерск г, Малоземова ул, д.68"},null,null,null,null,null,null,null,null,null,null,null,null,null,null,null,null,"Белозерск г, Малоземова ул, д. 68",null,null,null,null,null,null,null,null,null,null,null,null,null,null,null,null,null,null,null,null,null,null,null,null,null,null,null,null,null,null,null,null,null,null,null,null,null,null,null,null,null,null,null,null,null,null,null,null,null,null,null,null,null,null,null,null,null,null,null,null,null,null,null,null,null,null,null,null,null,null,null,null,null,null,null,null,null,null,null,null,null,null,null,null,null,null,null,null,null,null,null,null,null,null,null,null,null,null,null,null,null,null,null,null,null,null,null,"Общий счет РО - 271,60",null,"Исключен 01.04.2019"]
[{"$f":"\"Белозерск г, Новая ул, д.36\"","v":"Белозерск г, Новая ул, д.36"},"Белозерск г, Новая ул, д.36","Белозерск г, Новая ул, д.36","Белозерск г, Новая ул, д.36","Белозерск г, Новая ул, д.36","Белозерск г, Новая ул, д.36",null,null,null,null,null,null,null,{"$f":"\"Белозерск г, Новая ул, д.36\"","v":"Белозерск г, Новая ул, д.36"},null,null,null,null,null,null,null,null,null,null,null,null,null,null,null,null,"Белозерск г, Новая ул, д. 36",null,null,null,null,null,null,null,null,null,null,null,null,null,null,null,null,null,null,null,null,null,null,null,null,null,null,null,null,null,null,null,null,null,null,null,null,null,null,null,null,null,null,null,null,null,null,null,null,null,null,null,null,null,null,null,null,null,null,null,null,null,null,null,null,null,null,null,null,null,null,null,null,null,null,null,null,null,null,null,null,null,null,null,null,null,null,null,null,null,null,null,null,null,null,null,null,null,null,null,null,null,null,null,null,null,null,null,"Общий счет РО - 249",null,"Исключен 01.04.2019"]
[{"$f":"\"Белозерск г, Новая ул, д.41\"","v":"Белозерск г, Новая ул, д.41"},"Белозерск г, Новая ул, д.41","Белозерск г, Новая ул, д.41","Белозерск г, Новая ул, д.41","Белозерск г, Новая ул, д.41","Белозерск г, Новая ул, д.41",null,null,null,null,null,null,null,{"$f":"\"Белозерск г, Новая ул, д.41\"","v":"Белозерск г, Новая ул, д.41"},null,null,null,null,null,null,null,null,null,null,null,null,null,null,null,null,"Белозерск г, Новая ул, д. 41",null,null,null,null,"Белозерск г, Новая ул, д. 41",null,null,null,null,null,null,null,null,null,null,"Белозерск г, Новая ул, д. 41",null,null,null,null,null,null,"Белозерск г, Новая ул, д. 41",null,null,null,null,null,"Белозерск г, Новая ул, д. 41",null,null,null,null,null,null,null,null,"Белозерск г, Новая ул, д. 41",null,null,null,null,null,"Белозерск г, Новая ул, д. 41",null,null,null,null,null,null,null,"Белозерск г, Новая ул, д. 41",null,null,null,null,null,null,"Белозерск г, Новая ул, д. 41",null,null,null,null,null,null,null,null,"Белозерск г, Новая ул, д. 41",null,null,null,null,"Белозерск г, Новая ул, д. 41",null,null,null,null,null,null,null,null,"Белозерск г, Новая ул, д. 41",null,null,null,null,"Белозерск г, Новая ул, д. 41",null,null,null,null,"Белозерск г, Новая ул, д. 41",null,null,"Белозерск г, Новая ул, д. 41",null,null,null,null,null,null,null,null,null,null,null,null,"Общий счет РО+"]
[{"$f":"\"Белозерск г, Орлова ул, д.40\"","v":"Белозерск г, Орлова ул, д.40"},"Белозерск г, Орлова ул, д.40","Белозерск г, Орлова ул, д.40","Белозерск г, Орлова ул, д.40","Белозерск г, Орлова ул, д.40","Белозерск г, Орлова ул, д.40",null,null,null,null,null,null,null,{"$f":"\"Белозерск г, Орлова ул, д.40\"","v":"Белозерск г, Орлова ул, д.40"},null,null,null,null,null,null,null,null,null,null,null,null,null,null,null,null,"Белозерск г, Орлова ул, д. 40",null,null,null,null,"Белозерск г, Орлова ул, д. 40",null,null,null,null,null,null,null,null,null,null,"Белозерск г, Орлова ул, д. 40",null,null,null,null,null,null,"Белозерск г, Орлова ул, д. 40",null,null,null,null,null,null,null,null,null,null,null,null,null,null,null,null,null,null,null,null,null,null,null,null,null,null,null,null,null,null,null,null,null,null,null,null,null,null,null,null,null,null,null,null,null,null,null,null,null,null,null,null,null,null,null,null,null,null,null,null,null,null,null,null,null,null,null,null,null,null,null,null,null,null,null,null,null,null,null,null,null,null,null,null,"Общий счет РО - 248,90","Признан аварийным. Заключение № 130 от 16.11.2020","Исключен 28.12.2020"]
[{"$f":"\"Белозерск г, П.К.Георгиевского наб, д.39\"","v":"Белозерск г, П.К.Георгиевского наб, д.39"},"Белозерск г, П.К.Георгиевского наб, д.39","Белозерск г, П.К.Георгиевского наб, д.39","Белозерск г, П.К.Георгиевского наб, д.39","Белозерск г, П.К.Георгиевского наб, д.39","Белозерск г, П.К.Георгиевского наб, д.39",null,null,null,null,null,null,null,{"$f":"\"Белозерск г, П.К.Георгиевского наб, д.39\"","v":"Белозерск г, П.К.Георгиевского наб, д.39"},null,null,null,null,null,null,null,null,null,null,null,null,null,null,null,null,"Белозерск г, П.К.Георгиевского наб, д. 39",null,null,null,null,"Белозерск г, П.К.Георгиевского наб, д. 39",null,null,null,null,null,null,null,null,null,null,"Белозерск г, П.К.Георгиевского наб, д. 39",null,null,null,null,null,null,"Белозерск г, П.К.Георгиевского наб, д. 39",null,null,null,null,null,"Белозерск г, П.К.Георгиевского наб, д. 39",null,null,null,null,null,null,null,null,"Белозерск г, П.К.Георгиевского наб, д. 39",null,null,null,null,null,"Белозерск г, П.К.Георгиевского наб, д. 39",null,null,null,null,null,null,null,"Белозерск г, П.К.Георгиевского наб, д. 39",null,null,null,null,null,null,"Белозерск г, П.К.Георгиевского наб, д. 39",null,null,null,null,null,null,null,null,"Белозерск г, П.К.Георгиевского наб, д. 39",null,null,null,null,"Белозерск г, П.К.Георгиевского наб, д. 39",null,null,null,null,null,null,null,null,"Белозерск г, П.К.Георгиевского наб, д. 39",null,null,null,null,"Белозерск г, П.К.Георгиевского наб, д. 39",null,null,null,null,"Белозерск г, П.К.Георгиевского наб, д. 39",null,null,"Белозерск г, П.К.Георгиевского наб, д. 39",null,null,null,null,null,null,null,null,null,null,null,null,"Общий счет РО+","Признан аварийным. Постановление 1419 от 06.11.2025"]
[{"$f":"\"Белозерск г, П.К.Георгиевского наб, д.40А\"","v":"Белозерск г, П.К.Георгиевского наб, д.40А"},"Белозерск г, П.К.Георгиевского наб, д.40А","Белозерск г, П.К.Георгиевского наб, д.40А","Белозерск г, П.К.Георгиевского наб, д.40А","Белозерск г, П.К.Георгиевского наб, д.40А","Белозерск г, П.К.Георгиевского наб, д.40А",null,null,null,null,null,null,null,{"$f":"\"Белозерск г, П.К.Георгиевского наб, д.40А\"","v":"Белозерск г, П.К.Георгиевского наб, д.40А"},null,null,null,null,null,null,null,null,null,null,null,null,null,null,null,null,"Белозерск г, П.К.Георгиевского наб, д. 40А",null,null,null,null,"Белозерск г, П.К.Георгиевского наб, д. 40А",null,null,null,null,null,null,null,null,null,null,"Белозерск г, П.К.Георгиевского наб, д. 40А",null,null,null,null,null,null,"Белозерск г, П.К.Георгиевского наб, д. 40А",null,null,null,null,null,"Белозерск г, П.К.Георгиевского наб, д. 40А",null,null,null,null,null,null,null,null,"Белозерск г, П.К.Георгиевского наб, д. 40А",null,null,null,null,null,"Белозерск г, П.К.Георгиевского наб, д. 40А",null,null,null,null,null,null,null,"Белозерск г, П.К.Георгиевского наб, д. 40А",null,null,null,null,null,null,"Белозерск г, П.К.Георгиевского наб, д. 40А",null,null,null,null,null,null,null,null,"Белозерск г, П.К.Георгиевского наб, д. 40А",null,null,null,null,"Белозерск г, П.К.Георгиевского наб, д. 40А",null,null,null,null,null,null,null,null,"Белозерск г, П.К.Георгиевского наб, д. 40А",null,null,null,null,"Белозерск г, П.К.Георгиевского наб, д. 40А",null,null,null,null,"Белозерск г, П.К.Георгиевского наб, д. 40А",null,null,"Белозерск г, П.К.Георгиевского наб, д. 40А",null,null,null,null,null,null,null,null,null,null,null,null,"Общий счет РО+"]
[{"$f":"\"Белозерск г, П.К.Георгиевского наб, д.44\"","v":"Белозерск г, П.К.Георгиевского наб, д.44"},"Белозерск г, П.К.Георгиевского наб, д.44","Белозерск г, П.К.Георгиевского наб, д.44","Белозерск г, П.К.Георгиевского наб, д.44","Белозерск г, П.К.Георгиевского наб, д.44","Белозерск г, П.К.Георгиевского наб, д.44",null,null,null,null,null,null,null,{"$f":"\"Белозерск г, П.К.Георгиевского наб, д.44\"","v":"Белозерск г, П.К.Георгиевского наб, д.44"},null,null,null,null,null,null,null,null,null,null,null,null,null,null,null,null,"Белозерск г, П.К.Георгиевского наб, д. 44",null,null,null,null,"Белозерск г, П.К.Георгиевского наб, д. 44",null,null,null,null,null,null,null,null,null,null,"Белозерск г, П.К.Георгиевского наб, д. 44",null,null,null,null,null,null,"Белозерск г, П.К.Георгиевского наб, д. 44",null,null,null,null,null,"Белозерск г, П.К.Георгиевского наб, д. 44",null,null,null,null,null,null,null,null,"Белозерск г, П.К.Георгиевского наб, д. 44",null,null,null,null,null,"Белозерск г, П.К.Георгиевского наб, д. 44",null,null,null,null,null,null,null,"Белозерск г, П.К.Георгиевского наб, д. 44",null,null,null,null,null,null,"Белозерск г, П.К.Георгиевского наб, д. 44",null,null,null,null,null,null,null,null,"Белозерск г, П.К.Георгиевского наб, д. 44",null,null,null,null,"Белозерск г, П.К.Георгиевского наб, д. 44",null,null,null,null,null,null,null,null,"Белозерск г, П.К.Георгиевского наб, д. 44",null,null,null,null,"Белозерск г, П.К.Георгиевского наб, д. 44",null,null,null,null,"Белозерск г, П.К.Георгиевского наб, д. 44",null,null,"Белозерск г, П.К.Георгиевского наб, д. 44",null,null,null,null,null,null,null,null,null,null,null,null,"Общий счет РО+","Признан аварийным. Постановление 1599 от 11.12.2025"]
[null,null,null,null,null,null,null,null,null,null,null,null,null,null,null,null,null,null,null,null,null,null,null,null,null,null,null,null,null,null,null,null,null,null,null,null,null,null,null,null,null,null,null,null,null,null,null,null,null,null,null,null,null,null,null,null,null,null,null,null,null,null,null,null,null,null,null,null,null,null,null,null,null,null,"Белозерск г, П.К.Георгиевского наб, д. 49",null,null,null,null,null,null,null,"Белозерск г, П.К.Георгиевского наб, д. 49",null,null,null,null,null,null,"Белозерск г, П.К.Георгиевского наб, д. 49",null,null,null,null,null,null,null,null,"Белозерск г, П.К.Георгиевского наб, д. 49",null,null,null,null,"Белозерск г, П.К.Георгиевского наб, д. 49",null,null,null,null,null,null,null,null,"Белозерск г, П.К.Георгиевского наб, д. 49",null,null,null,null,"Белозерск г, П.К.Георгиевского наб, д. 49",null,null,null,null,"Белозерск г, П.К.Георгиевского наб, д. 49",null,null,"Белозерск г, П.К.Георгиевского наб, д. 49",null,null,null,null,null,null,null,null,null,null,null,null,"Общий счет РО+"]
[{"$f":"\"Белозерск г, П.К.Георгиевского наб, д.53\"","v":"Белозерск г, П.К.Георгиевского наб, д.53"},"Белозерск г, П.К.Георгиевского наб, д.53","Белозерск г, П.К.Георгиевского наб, д.53","Белозерск г, П.К.Георгиевского наб, д.53","Белозерск г, П.К.Георгиевского наб, д.53","Белозерск г, П.К.Георгиевского наб, д.53",null,null,null,null,null,null,null,{"$f":"\"Белозерск г, П.К.Георгиевского наб, д.53\"","v":"Белозерск г, П.К.Георгиевского наб, д.53"},null,null,null,null,null,null,null,null,null,null,null,null,null,null,null,null,"Белозерск г, П.К.Георгиевского наб, д. 53",null,null,null,null,"Белозерск г, П.К.Георгиевского наб, д. 53",null,null,null,null,null,null,null,null,null,null,null,null,null,null,null,null,null,null,null,null,null,null,null,null,null,null,null,null,null,null,null,null,null,null,null,null,null,null,null,null,null,null,null,null,null,null,null,null,null,null,null,null,null,null,null,null,null,null,null,null,null,null,null,null,null,null,null,null,null,null,null,null,null,null,null,null,null,null,null,null,null,null,null,null,null,null,null,null,null,null,null,null,null,null,null,null,null,null,null,null,null,null,"Общий счет РО - 118,90",null,"Исключен 20.01.2020"]
[{"$f":"\"Белозерск г, П.К.Георгиевского наб, д.55\"","v":"Белозерск г, П.К.Георгиевского наб, д.55"},"Белозерск г, П.К.Георгиевского наб, д.55","Белозерск г, П.К.Георгиевского наб, д.55","Белозерск г, П.К.Георгиевского наб, д.55","Белозерск г, П.К.Георгиевского наб, д.55","Белозерск г, П.К.Георгиевского наб, д.55",null,null,null,null,null,null,null,{"$f":"\"Белозерск г, П.К.Георгиевского наб, д.55\"","v":"Белозерск г, П.К.Георгиевского наб, д.55"},null,null,null,null,null,null,null,null,null,null,null,null,null,null,null,null,"Белозерск г, П.К.Георгиевского наб, д. 55",null,null,null,null,"Белозерск г, П.К.Георгиевского наб, д. 55",null,null,null,null,null,null,null,null,null,null,null,null,null,null,null,null,null,null,null,null,null,null,null,null,null,null,null,null,null,null,null,null,null,null,null,null,null,null,null,null,null,null,null,null,null,null,null,null,null,null,null,null,null,null,null,null,null,null,null,null,null,null,null,null,null,null,null,null,null,null,null,null,null,null,null,null,null,null,null,null,null,null,null,null,null,null,null,null,null,null,null,null,null,null,null,null,null,null,null,null,null,null,"Общий счет РО - 181,90",null,"Исключен 20.01.2020"]
[{"$f":"\"Белозерск г, П.К.Георгиевского наб, д.58\"","v":"Белозерск г, П.К.Георгиевского наб, д.58"},"Белозерск г, П.К.Георгиевского наб, д.58","Белозерск г, П.К.Георгиевского наб, д.58","Белозерск г, П.К.Георгиевского наб, д.58","Белозерск г, П.К.Георгиевского наб, д.58","Белозерск г, П.К.Георгиевского наб, д.58",null,null,null,null,null,null,null,{"$f":"\"Белозерск г, П.К.Георгиевского наб, д.58\"","v":"Белозерск г, П.К.Георгиевского наб, д.58"},null,null,null,null,null,null,null,null,null,null,null,null,null,null,null,null,"Белозерск г, П.К.Георгиевского наб, д. 58",null,null,null,null,"Белозерск г, П.К.Георгиевского наб, д. 58",null,null,null,null,null,null,null,null,null,null,"Белозерск г, П.К.Георгиевского наб, д. 58",null,null,null,null,null,null,"Белозерск г, П.К.Георгиевского наб, д. 58",null,null,null,null,null,"Белозерск г, П.К.Георгиевского наб, д. 58",null,null,null,null,null,null,null,null,"Белозерск г, П.К.Георгиевского наб, д. 58",null,null,null,null,null,"Белозерск г, П.К.Георгиевского наб, д. 58",null,null,null,null,null,null,null,"Белозерск г, П.К.Георгиевского наб, д. 58",null,null,null,null,null,null,"Белозерск г, П.К.Георгиевского наб, д. 58",null,null,null,null,null,null,null,null,"Белозерск г, П.К.Георгиевского наб, д. 58",null,null,null,null,"Белозерск г, П.К.Георгиевского наб, д. 58",null,null,null,null,null,null,null,null,"Белозерск г, П.К.Георгиевского наб, д. 58",null,null,null,null,"Белозерск г, П.К.Георгиевского наб, д. 58",null,null,null,null,null,null,null,null,null,null,null,null,null,null,null,null,null,null,null,null,"Общий счет РО+345,30","Признан аварийным. Постановление 604 от 05.05.2025"]
[{"$f":"\"Белозерск г, П.К.Георгиевского наб, д.59\"","v":"Белозерск г, П.К.Георгиевского наб, д.59"},"Белозерск г, П.К.Георгиевского наб, д.59","Белозерск г, П.К.Георгиевского наб, д.59","Белозерск г, П.К.Георгиевского наб, д.59","Белозерск г, П.К.Георгиевского наб, д.59","Белозерск г, П.К.Георгиевского наб, д.59",null,null,null,null,null,null,null,{"$f":"\"Белозерск г, П.К.Георгиевского наб, д.59\"","v":"Белозерск г, П.К.Георгиевского наб, д.59"},null,null,null,null,null,null,null,null,null,null,null,null,null,null,null,null,"Белозерск г, П.К.Георгиевского наб, д. 59",null,null,null,null,"Белозерск г, П.К.Георгиевского наб, д. 59",null,null,null,null,null,null,null,null,null,null,"Белозерск г, П.К.Георгиевского наб, д. 59",null,null,null,null,null,null,"Белозерск г, П.К.Георгиевского наб, д. 59",null,null,null,null,null,"Белозерск г, П.К.Георгиевского наб, д. 59",null,null,null,null,null,null,null,null,"Белозерск г, П.К.Георгиевского наб, д. 59",null,null,null,null,null,"Белозерск г, П.К.Георгиевского наб, д. 59",null,null,null,null,null,null,null,"Белозерск г, П.К.Георгиевского наб, д. 59",null,null,null,null,null,null,"Белозерск г, П.К.Георгиевского наб, д. 59",null,null,null,null,null,null,null,null,null,null,null,null,null,null,null,null,null,null,null,null,null,null,null,null,null,null,null,null,null,null,null,null,null,null,null,null,null,null,null,null,null,null,null,null,null,null,null,null,"Общий счет РО 440,30","Признан аварийным. Постановление 1228 от 11.10.2023"]
[{"$f":"\"Белозерск г, П.К.Георгиевского наб, д.75А\"","v":"Белозерск г, П.К.Георгиевского наб, д.75А"},"Белозерск г, П.К.Георгиевского наб, д.75А","Белозерск г, П.К.Георгиевского наб, д.75А","Белозерск г, П.К.Георгиевского наб, д.75А","Белозерск г, П.К.Георгиевского наб, д.75А","Белозерск г, П.К.Георгиевского наб, д.75А",null,null,null,null,null,null,null,{"$f":"\"Белозерск г, П.К.Георгиевского наб, д.75А\"","v":"Белозерск г, П.К.Георгиевского наб, д.75А"},null,null,null,null,null,null,null,null,null,null,null,null,null,null,null,null,"Белозерск г, П.К.Георгиевского наб, д. 75А",null,null,null,null,"Белозерск г, П.К.Георгиевского наб, д. 75А",null,null,null,null,null,null,null,null,null,null,"Белозерск г, П.К.Георгиевского наб, д. 75А",null,null,null,null,null,null,"Белозерск г, П.К.Георгиевского наб, д. 75А",null,null,null,null,null,"Белозерск г, П.К.Георгиевского наб, д. 75А",null,null,null,null,null,null,null,null,"Белозерск г, П.К.Георгиевского наб, д. 75А",null,null,null,null,null,"Белозерск г, П.К.Георгиевского наб, д. 75А",null,null,null,null,null,null,null,"Белозерск г, П.К.Георгиевского наб, д. 75А",null,null,null,null,null,null,"Белозерск г, П.К.Георгиевского наб, д. 75А",null,null,null,null,null,null,null,null,"Белозерск г, П.К.Георгиевского наб, д. 75А",null,null,null,null,"Белозерск г, П.К.Георгиевского наб, д. 75А",null,null,null,null,null,null,null,null,null,null,null,null,null,null,null,null,null,null,null,null,null,null,null,null,null,null,null,null,null,null,null,null,null,null,"Общий счет РО+331,70","Признан аварийным. Постановление 1178 от 24.10.2024","Исключен 07.11.2024"]
[{"$f":"\"Белозерск г, П.К.Георгиевского наб, д.75\"","v":"Белозерск г, П.К.Георгиевского наб, д.75"},"Белозерск г, П.К.Георгиевского наб, д.75","Белозерск г, П.К.Георгиевского наб, д.75","Белозерск г, П.К.Георгиевского наб, д.75","Белозерск г, П.К.Георгиевского наб, д.75","Белозерск г, П.К.Георгиевского наб, д.75",null,null,null,null,null,null,null,{"$f":"\"Белозерск г, П.К.Георгиевского наб, д.75\"","v":"Белозерск г, П.К.Георгиевского наб, д.75"},null,null,null,null,null,null,null,null,null,null,null,null,null,null,null,null,"Белозерск г, П.К.Георгиевского наб, д. 75",null,null,null,null,"Белозерск г, П.К.Георгиевского наб, д. 75",null,null,null,null,null,null,null,null,null,null,"Белозерск г, П.К.Георгиевского наб, д. 75",null,null,null,null,null,null,"Белозерск г, П.К.Георгиевского наб, д. 75",null,null,null,null,null,"Белозерск г, П.К.Георгиевского наб, д. 75",null,null,null,null,null,null,null,null,"Белозерск г, П.К.Георгиевского наб, д. 75",null,null,null,null,null,"Белозерск г, П.К.Георгиевского наб, д. 75",null,null,null,null,null,null,null,"Белозерск г, П.К.Георгиевского наб, д. 75",null,null,null,null,null,null,"Белозерск г, П.К.Георгиевского наб, д. 75",null,null,null,null,null,null,null,null,"Белозерск г, П.К.Георгиевского наб, д. 75",null,null,null,null,"Белозерск г, П.К.Георгиевского наб, д. 75",null,null,null,null,null,null,null,null,"Белозерск г, П.К.Георгиевского наб, д. 75",null,null,null,null,"Белозерск г, П.К.Георгиевского наб, д. 75",null,null,null,null,"Белозерск г, П.К.Георгиевского наб, д. 75",null,null,"Белозерск г, П.К.Георгиевского наб, д. 75",null,null,null,null,null,null,null,null,null,null,null,null,"Общий счет РО+"]
[{"$f":"\"Белозерск г, П.К.Георгиевского наб, д.77\"","v":"Белозерск г, П.К.Георгиевского наб, д.77"},"Белозерск г, П.К.Георгиевского наб, д.77","Белозерск г, П.К.Георгиевского наб, д.77","Белозерск г, П.К.Георгиевского наб, д.77","Белозерск г, П.К.Георгиевского наб, д.77","Белозерск г, П.К.Георгиевского наб, д.77",null,null,null,null,null,null,null,{"$f":"\"Белозерск г, П.К.Георгиевского наб, д.77\"","v":"Белозерск г, П.К.Георгиевского наб, д.77"},null,null,null,null,null,null,null,null,null,null,null,null,null,null,null,null,"Белозерск г, П.К.Георгиевского наб, д. 77",null,null,null,null,"Белозерск г, П.К.Георгиевского наб, д. 77",null,null,null,null,null,null,null,null,null,null,"Белозерск г, П.К.Георгиевского наб, д. 77",null,null,null,null,null,null,"Белозерск г, П.К.Георгиевского наб, д. 77",null,null,null,null,null,"Белозерск г, П.К.Георгиевского наб, д. 77",null,null,null,null,null,null,null,null,"Белозерск г, П.К.Георгиевского наб, д. 77",null,null,null,null,null,"Белозерск г, П.К.Георгиевского наб, д. 77",null,null,null,null,null,null,null,"Белозерск г, П.К.Георгиевского наб, д. 77",null,null,null,null,null,null,"Белозерск г, П.К.Георгиевского наб, д. 77",null,null,null,null,null,null,null,null,null,null,null,null,null,null,null,null,null,null,null,null,null,null,null,null,null,null,null,null,null,null,null,null,null,null,null,null,null,null,null,null,null,null,null,null,null,null,null,null,"Общий счет РО 396,80","Признан аварийным. Постановление № 651 от 23.05.2023"]
[{"$f":"\"Белозерск г, П.К.Георгиевского наб, д.79\"","v":"Белозерск г, П.К.Георгиевского наб, д.79"},"Белозерск г, П.К.Георгиевского наб, д.79","Белозерск г, П.К.Георгиевского наб, д.79","Белозерск г, П.К.Георгиевского наб, д.79","Белозерск г, П.К.Георгиевского наб, д.79","Белозерск г, П.К.Георгиевского наб, д.79",null,null,null,null,null,null,null,{"$f":"\"Белозерск г, П.К.Георгиевского наб, д.79\"","v":"Белозерск г, П.К.Георгиевского наб, д.79"},null,null,null,null,null,null,null,null,null,null,null,null,null,null,null,null,"Белозерск г, П.К.Георгиевского наб, д. 79",null,null,null,null,"Белозерск г, П.К.Георгиевского наб, д. 79",null,null,null,null,null,null,null,null,null,null,"Белозерск г, П.К.Георгиевского наб, д. 79",null,null,null,null,null,null,"Белозерск г, П.К.Георгиевского наб, д. 79",null,null,null,null,null,"Белозерск г, П.К.Георгиевского наб, д. 79",null,null,null,null,null,null,null,null,"Белозерск г, П.К.Георгиевского наб, д. 79",null,null,null,null,null,"Белозерск г, П.К.Георгиевского наб, д. 79",null,null,null,null,null,null,null,"Белозерск г, П.К.Георгиевского наб, д. 79",null,null,null,null,null,null,"Белозерск г, П.К.Георгиевского наб, д. 79",null,null,null,null,null,null,null,null,"Белозерск г, П.К.Георгиевского наб, д. 79",null,null,null,null,"Белозерск г, П.К.Георгиевского наб, д. 79",null,null,null,null,null,null,null,null,null,null,null,null,null,null,null,null,null,null,null,null,null,null,null,null,null,null,null,null,null,null,null,null,null,null,"Общий счет РО+339,80","Признан аварийным. Постановление 1176 от 24.10.2024","Исключен 07.11.2024"]
[{"$f":"\"Белозерск г, Папанинцев ул, д.1А\"","v":"Белозерск г, Папанинцев ул, д.1А"},{"$f":"\"Белозерск г, Папанинцев ул, д.1А\"","v":"Белозерск г, Папанинцев ул, д.1А"},{"$f":"\"Белозерск г, Папанинцев ул, д.1А\"","v":"Белозерск г, Папанинцев ул, д.1А"},{"$f":"\"Белозерск г, Папанинцев ул, д.1А\"","v":"Белозерск г, Папанинцев ул, д.1А"},{"$f":"\"Белозерск г, Папанинцев ул, д.1А\"","v":"Белозерск г, Папанинцев ул, д.1А"},null,null,null,null,null,null,null,null,null,null,null,null,null,null,null,null,null,null,null,null,null,null,null,null,null,null,null,null,null,null,null,null,null,null,null,null,null,null,null,null,null,null,null,null,null,null,null,null,null,null,null,null,null,null,null,null,null,null,null,null,null,null,null,null,null,null,null,null,null,null,null,null,null,null,null,null,null,null,null,null,null,null,null,null,null,null,null,null,null,null,null,null,null,null,null,null,null,null,null,null,null,null,null,null,null,null,null,null,null,null,null,null,null,null,null,null,null,null,null,null,null,null,null,null,null,null,null,null,null,null,null,null,null,"Общий счет РО","признан аварийным. Расчет прекращен с 01.10.2016","Исключен 28.11.2016"]
[{"$f":"\"Белозерск г, Папанинцев ул, д.1Б\"","v":"Белозерск г, Папанинцев ул, д.1Б"},{"$f":"\"Белозерск г, Папанинцев ул, д.1Б\"","v":"Белозерск г, Папанинцев ул, д.1Б"},{"$f":"\"Белозерск г, Папанинцев ул, д.1Б\"","v":"Белозерск г, Папанинцев ул, д.1Б"},{"$f":"\"Белозерск г, Папанинцев ул, д.1Б\"","v":"Белозерск г, Папанинцев ул, д.1Б"},{"$f":"\"Белозерск г, Папанинцев ул, д.1Б\"","v":"Белозерск г, Папанинцев ул, д.1Б"},null,null,null,null,null,null,null,null,null,null,null,null,null,null,null,null,null,null,null,null,null,null,null,null,null,null,null,null,null,null,null,null,null,null,null,null,null,null,null,null,null,null,null,null,null,null,null,null,null,null,null,null,null,null,null,null,null,null,null,null,null,null,null,null,null,null,null,null,null,null,null,null,null,null,null,null,null,null,null,null,null,null,null,null,null,null,null,null,null,null,null,null,null,null,null,null,null,null,null,null,null,null,null,null,null,null,null,null,null,null,null,null,null,null,null,null,null,null,null,null,null,null,null,null,null,null,null,null,null,null,null,null,null,"Общий счет РО","признан аварийным. Расчет прекращен с 01.08.2016","Исключен 28.11.2016"]
[{"$f":"\"Белозерск г, Папанинцев ул, д.36\"","v":"Белозерск г, Папанинцев ул, д.36"},"Белозерск г, Папанинцев ул, д.36","Белозерск г, Папанинцев ул, д.36","Белозерск г, Папанинцев ул, д.36","Белозерск г, Папанинцев ул, д.36","Белозерск г, Папанинцев ул, д.36",null,null,null,null,null,null,null,{"$f":"\"Белозерск г, Папанинцев ул, д.36\"","v":"Белозерск г, Папанинцев ул, д.36"},null,null,null,null,null,null,null,null,null,null,null,null,null,null,null,null,"Белозерск г, Папанинцев ул, д. 36",null,null,null,null,"Белозерск г, Папанинцев ул, д. 36",null,null,null,null,null,null,null,null,null,null,"Белозерск г, Папанинцев ул, д. 36",null,null,null,null,null,null,"Белозерск г, Папанинцев ул, д. 36",null,null,null,null,null,"Белозерск г, Папанинцев ул, д. 36",null,null,null,null,null,null,null,null,"Белозерск г, Папанинцев ул, д. 36",null,null,null,null,null,"Белозерск г, Папанинцев ул, д. 36",null,null,null,null,null,null,null,"Белозерск г, Папанинцев ул, д. 36",null,null,null,null,null,null,"Белозерск г, Папанинцев ул, д. 36",null,null,null,null,null,null,null,null,"Белозерск г, Папанинцев ул, д. 36",null,null,null,null,"Белозерск г, Папанинцев ул, д. 36",null,null,null,null,null,null,null,null,"Белозерск г, Папанинцев ул, д. 36",null,null,null,null,"Белозерск г, Папанинцев ул, д. 36",null,null,null,null,"Белозерск г, Папанинцев ул, д. 36",null,null,"Белозерск г, Папанинцев ул, д. 36",null,null,null,null,null,null,null,null,null,null,null,null,"Общий счет РО+"]
[{"$f":"\"Белозерск г, Папанинцев ул, д.66А\"","v":"Белозерск г, Папанинцев ул, д.66А"},"Белозерск г, Папанинцев ул, д.66А","Белозерск г, Папанинцев ул, д.66А","Белозерск г, Папанинцев ул, д.66А","Белозерск г, Папанинцев ул, д.66А","Белозерск г, Папанинцев ул, д.66А",null,null,null,null,null,null,null,{"$f":"\"Белозерск г, Папанинцев ул, д.66А\"","v":"Белозерск г, Папанинцев ул, д.66А"},null,null,null,null,null,null,null,null,null,null,null,null,null,null,null,null,"Белозерск г, Папанинцев ул, д. 66А",null,null,null,null,"Белозерск г, Папанинцев ул, д. 66А",null,null,null,null,null,null,null,null,null,null,"Белозерск г, Папанинцев ул, д. 66А",null,null,null,null,null,null,"Белозерск г, Папанинцев ул, д. 66А",null,null,null,null,null,"Белозерск г, Папанинцев ул, д. 66А",null,null,null,null,null,null,null,null,"Белозерск г, Папанинцев ул, д. 66А",null,null,null,null,null,"Белозерск г, Папанинцев ул, д. 66А",null,null,null,null,null,null,null,"Белозерск г, Папанинцев ул, д. 66А",null,null,null,null,null,null,"Белозерск г, Папанинцев ул, д. 66А",null,null,null,null,null,null,null,null,"Белозерск г, Папанинцев ул, д. 66А",null,null,null,null,"Белозерск г, Папанинцев ул, д. 66А",null,null,null,null,null,null,null,null,"Белозерск г, Папанинцев ул, д. 66А",null,null,null,null,"Белозерск г, Папанинцев ул, д. 66А",null,null,null,null,"Белозерск г, Папанинцев ул, д. 66А",null,null,"Белозерск г, Папанинцев ул, д. 66А",null,null,null,null,null,null,null,null,null,null,null,null,"Общий счет РО+"]
[{"$f":"\"Белозерск г, Первомайская ул, д.17А\"","v":"Белозерск г, Первомайская ул, д.17А"},"Белозерск г, Первомайская ул, д.17А","Белозерск г, Первомайская ул, д.17А","Белозерск г, Первомайская ул, д.17А","Белозерск г, Первомайская ул, д.17А","Белозерск г, Первомайская ул, д.17А",null,null,null,null,null,null,null,{"$f":"\"Белозерск г, Первомайская ул, д.17А\"","v":"Белозерск г, Первомайская ул, д.17А"},null,null,null,null,null,null,null,null,null,null,null,null,null,null,null,null,"Белозерск г, Первомайская ул, д. 17А",null,null,null,null,null,null,null,null,null,null,null,null,null,null,null,null,null,null,null,null,null,null,null,null,null,null,null,null,null,null,null,null,null,null,null,null,null,null,null,null,null,null,null,null,null,null,null,null,null,null,null,null,null,null,null,null,null,null,null,null,null,null,null,null,null,null,null,null,null,null,null,null,null,null,null,null,null,null,null,null,null,null,null,null,null,null,null,null,null,null,null,null,null,null,null,null,null,null,null,null,null,null,null,null,null,null,null,"Общий счет РО - 215,70",null,"Исключен 01.04.2019"]
[{"$f":"\"Белозерск г, Первомайская ул, д.30А\"","v":"Белозерск г, Первомайская ул, д.30А"},{"$f":"\"Белозерск г, Первомайская ул, д.30А\"","v":"Белозерск г, Первомайская ул, д.30А"},{"$f":"\"Белозерск г, Первомайская ул, д.30А\"","v":"Белозерск г, Первомайская ул, д.30А"},{"$f":"\"Белозерск г, Первомайская ул, д.30А\"","v":"Белозерск г, Первомайская ул, д.30А"},null,null,null,null,null,null,null,null,null,null,null,null,null,null,null,null,null,null,null,null,null,null,null,null,null,null,null,null,null,null,null,null,null,null,null,null,null,null,null,null,null,null,null,null,null,null,null,null,null,null,null,null,null,null,null,null,null,null,null,null,null,null,null,null,null,null,null,null,null,null,null,null,null,null,null,null,null,null,null,null,null,null,null,null,null,null,null,null,null,null,null,null,null,null,null,null,null,null,null,null,null,null,null,null,null,null,null,null,null,null,null,null,null,null,null,null,null,null,null,null,null,null,null,null,null,null,null,null,null,null,null,null,null,null,"Общий счет РО","Признан аварийным. Расчет прекращен с 01.04.2016г.","Исключен 20.06.2016"]
[{"$f":"\"Белозерск г, Первомайская ул, д.43\"","v":"Белозерск г, Первомайская ул, д.43"},"Белозерск г, Первомайская ул, д.43","Белозерск г, Первомайская ул, д.43","Белозерск г, Первомайская ул, д.43","Белозерск г, Первомайская ул, д.43","Белозерск г, Первомайская ул, д.43",null,null,null,null,null,null,null,{"$f":"\"Белозерск г, Первомайская ул, д.43\"","v":"Белозерск г, Первомайская ул, д.43"},null,null,null,null,null,null,null,null,null,null,null,null,null,null,null,null,"Белозерск г, Первомайская ул, д. 43",null,null,null,null,"Белозерск г, Первомайская ул, д. 43",null,null,null,null,null,null,null,null,null,null,"Белозерск г, Первомайская ул, д. 43",null,null,null,null,null,null,"Белозерск г, Первомайская ул, д. 43",null,null,null,null,null,"Белозерск г, Первомайская ул, д. 43",null,null,null,null,null,null,null,null,"Белозерск г, Первомайская ул, д. 43",null,null,null,null,null,"Белозерск г, Первомайская ул, д. 43",null,null,null,null,null,null,null,"Белозерск г, Первомайская ул, д. 43",null,null,null,null,null,null,"Белозерск г, Первомайская ул, д. 43",null,null,null,null,null,null,null,null,"Белозерск г, Первомайская ул, д. 43",null,null,null,null,"Белозерск г, Первомайская ул, д. 43",null,null,null,null,null,null,null,null,"Белозерск г, Первомайская ул, д. 43",null,null,null,null,"Белозерск г, Первомайская ул, д. 43",null,null,null,null,null,null,null,null,null,null,null,null,null,null,null,null,null,null,null,null,"Общий счет РО+322,40","Признан аварийным. Постановление 1045 от 15.08.2025"]
[{"$f":"\"Белозерск г, Пионерская ул, д.13А\"","v":"Белозерск г, Пионерская ул, д.13А"},{"$f":"\"Белозерск г, Пионерская ул, д.13А\"","v":"Белозерск г, Пионерская ул, д.13А"},{"$f":"\"Белозерск г, Пионерская ул, д.13А\"","v":"Белозерск г, Пионерская ул, д.13А"},{"$f":"\"Белозерск г, Пионерская ул, д.13А\"","v":"Белозерск г, Пионерская ул, д.13А"},null,null,null,null,null,null,null,null,null,null,null,null,null,null,null,null,null,null,null,null,null,null,null,null,null,null,null,null,null,null,null,null,null,null,null,null,null,null,null,null,null,null,null,null,null,null,null,null,null,null,null,null,null,null,null,null,null,null,null,null,null,null,null,null,null,null,null,null,null,null,null,null,null,null,null,null,null,null,null,null,null,null,null,null,null,null,null,null,null,null,null,null,null,null,null,null,null,null,null,null,null,null,null,null,null,null,null,null,null,null,null,null,null,null,null,null,null,null,null,null,null,null,null,null,null,null,null,null,null,null,null,null,null,null,"Общий счет РО","Признан аварийным. Расчет прекращен с мая 2016","Исключен 20.06.2016"]
[{"$f":"\"Белозерск г, Пионерская ул, д.16\"","v":"Белозерск г, Пионерская ул, д.16"},"Белозерск г, Пионерская ул, д.16","Белозерск г, Пионерская ул, д.16","Белозерск г, Пионерская ул, д.16","Белозерск г, Пионерская ул, д.16","Белозерск г, Пионерская ул, д.16",null,null,null,null,null,null,null,{"$f":"\"Белозерск г, Пионерская ул, д.16\"","v":"Белозерск г, Пионерская ул, д.16"},null,null,null,null,null,null,null,null,null,null,null,null,null,null,null,null,"Белозерск г, Пионерская ул, д. 16",null,null,null,null,"Белозерск г, Пионерская ул, д. 16",null,null,null,null,null,null,null,null,null,null,"Белозерск г, Пионерская ул, д. 16",null,null,null,null,null,null,"Белозерск г, Пионерская ул, д. 16",null,null,null,null,null,"Белозерск г, Пионерская ул, д. 16",null,null,null,null,null,null,null,null,"Белозерск г, Пионерская ул, д. 16",null,null,null,null,null,"Белозерск г, Пионерская ул, д. 16",null,null,null,null,null,null,null,"Белозерск г, Пионерская ул, д. 16",null,null,null,null,null,null,"Белозерск г, Пионерская ул, д. 16",null,null,null,null,null,null,null,null,"Белозерск г, Пионерская ул, д. 16",null,null,null,null,"Белозерск г, Пионерская ул, д. 16",null,null,null,null,null,null,null,null,"Белозерск г, Пионерская ул, д. 16",null,null,null,null,"Белозерск г, Пионерская ул, д. 16",null,null,null,null,"Белозерск г, Пионерская ул, д. 16",null,null,"Белозерск г, Пионерская ул, д. 16",null,null,null,null,null,null,null,null,null,null,null,null,"Общий счет РО+"]
[{"$f":"\"Белозерск г, Пионерская ул, д.2Б\"","v":"Белозерск г, Пионерская ул, д.2Б"},{"$f":"\"Белозерск г, Пионерская ул, д.2Б\"","v":"Белозерск г, Пионерская ул, д.2Б"}]
[{"$f":"\"Белозерск г, Пионерская ул, д.2В\"","v":"Белозерск г, Пионерская ул, д.2В"},"Белозерск г, Пионерская ул, д.2В","Белозерск г, Пионерская ул, д.2В","Белозерск г, Пионерская ул, д.2В","Белозерск г, Пионерская ул, д.2В","Белозерск г, Пионерская ул, д.2В",null,null,null,null,null,null,null,{"$f":"\"Белозерск г, Пионерская ул, д.2В\"","v":"Белозерск г, Пионерская ул, д.2В"},null,null,null,null,null,null,null,null,null,null,null,null,null,null,null,null,"Белозерск г, Пионерская ул, д. 2В",null,null,null,null,null,null,null,null,null,null,null,null,null,null,null,null,null,null,null,null,null,null,null,null,null,null,null,null,null,null,null,null,null,null,null,null,null,null,null,null,null,null,null,null,null,null,null,null,null,null,null,null,null,null,null,null,null,null,null,null,null,null,null,null,null,null,null,null,null,null,null,null,null,null,null,null,null,null,null,null,null,null,null,null,null,null,null,null,null,null,null,null,null,null,null,null,null,null,null,null,null,null,null,null,null,null,null,"Общий счет РО - 301,30",null,"Исключен 01.04.2019"]
[{"$f":"\"Белозерск г, Пионерская ул, д.31\"","v":"Белозерск г, Пионерская ул, д.31"}]
[{"$f":"\"Белозерск г, Пионерская ул, д.38\"","v":"Белозерск г, Пионерская ул, д.38"},"Белозерск г, Пионерская ул, д.38","Белозерск г, Пионерская ул, д.38","Белозерск г, Пионерская ул, д.38","Белозерск г, Пионерская ул, д.38","Белозерск г, Пионерская ул, д.38",null,null,null,null,null,null,null,{"$f":"\"Белозерск г, Пионерская ул, д.38\"","v":"Белозерск г, Пионерская ул, д.38"},null,null,null,null,null,null,null,null,null,null,null,null,null,null,null,null,"Белозерск г, Пионерская ул, д. 38",null,null,null,null,"Белозерск г, Пионерская ул, д. 38",null,null,null,null,null,null,null,null,null,null,"Белозерск г, Пионерская ул, д. 38",null,null,null,null,null,null,"Белозерск г, Пионерская ул, д. 38",null,null,null,null,null,"Белозерск г, Пионерская ул, д. 38",null,null,null,null,null,null,null,null,"Белозерск г, Пионерская ул, д. 38",null,null,null,null,null,"Белозерск г, Пионерская ул, д. 38",null,null,null,null,null,null,null,"Белозерск г, Пионерская ул, д. 38",null,null,null,null,null,null,"Белозерск г, Пионерская ул, д. 38",null,null,null,null,null,null,null,null,"Белозерск г, Пионерская ул, д. 38",null,null,null,null,"Белозерск г, Пионерская ул, д. 38",null,null,null,null,null,null,null,null,"Белозерск г, Пионерская ул, д. 38",null,null,null,null,"Белозерск г, Пионерская ул, д. 38",null,null,null,null,"Белозерск г, Пионерская ул, д. 38",null,null,"Белозерск г, Пионерская ул, д. 38",null,null,null,null,null,null,null,null,null,null,null,null,"Общий счет РО+"]
[{"$f":"\"Белозерск г, Пионерская ул, д.40\"","v":"Белозерск г, Пионерская ул, д.40"},"Белозерск г, Пионерская ул, д.40","Белозерск г, Пионерская ул, д.40","Белозерск г, Пионерская ул, д.40","Белозерск г, Пионерская ул, д.40","Белозерск г, Пионерская ул, д.40",null,null,null,null,null,null,null,{"$f":"\"Белозерск г, Пионерская ул, д.40\"","v":"Белозерск г, Пионерская ул, д.40"},null,null,null,null,null,null,null,null,null,null,null,null,null,null,null,null,"Белозерск г, Пионерская ул, д. 40",null,null,null,null,"Белозерск г, Пионерская ул, д. 40",null,null,null,null,null,null,null,null,null,null,"Белозерск г, Пионерская ул, д. 40",null,null,null,null,null,null,"Белозерск г, Пионерская ул, д. 40",null,null,null,null,null,"Белозерск г, Пионерская ул, д. 40",null,null,null,null,null,null,null,null,"Белозерск г, Пионерская ул, д. 40",null,null,null,null,null,"Белозерск г, Пионерская ул, д. 40",null,null,null,null,null,null,null,"Белозерск г, Пионерская ул, д. 40",null,null,null,null,null,null,"Белозерск г, Пионерская ул, д. 40",null,null,null,null,null,null,null,null,"Белозерск г, Пионерская ул, д. 40",null,null,null,null,"Белозерск г, Пионерская ул, д. 40",null,null,null,null,null,null,null,null,"Белозерск г, Пионерская ул, д. 40",null,null,null,null,"Белозерск г, Пионерская ул, д. 40",null,null,null,null,"Белозерск г, Пионерская ул, д. 40",null,null,"Белозерск г, Пионерская ул, д. 40",null,null,null,null,null,null,null,null,null,null,null,null,"Общий счет РО+"]
[{"$f":"\"Белозерск г, Пионерская ул, д.43\"","v":"Белозерск г, Пионерская ул, д.43"},"Белозерск г, Пионерская ул, д.43","Белозерск г, Пионерская ул, д.43","Белозерск г, Пионерская ул, д.43","Белозерск г, Пионерская ул, д.43","Белозерск г, Пионерская ул, д.43",null,null,null,null,null,null,null,{"$f":"\"Белозерск г, Пионерская ул, д.43\"","v":"Белозерск г, Пионерская ул, д.43"},null,null,null,null,null,null,null,null,null,null,null,null,null,null,null,null,"Белозерск г, Пионерская ул, д. 43",null,null,null,null,"Белозерск г, Пионерская ул, д. 43",null,null,null,null,null,null,null,null,null,null,"Белозерск г, Пионерская ул, д. 43",null,null,null,null,null,null,"Белозерск г, Пионерская ул, д. 43",null,null,null,null,null,"Белозерск г, Пионерская ул, д. 43",null,null,null,null,null,null,null,null,"Белозерск г, Пионерская ул, д. 43",null,null,null,null,null,"Белозерск г, Пионерская ул, д. 43",null,null,null,null,null,null,null,"Белозерск г, Пионерская ул, д. 43",null,null,null,null,null,null,"Белозерск г, Пионерская ул, д. 43",null,null,null,null,null,null,null,null,"Белозерск г, Пионерская ул, д. 43",null,null,null,null,"Белозерск г, Пионерская ул, д. 43",null,null,null,null,null,null,null,null,"Белозерск г, Пионерская ул, д. 43",null,null,null,null,"Белозерск г, Пионерская ул, д. 43",null,null,null,null,"Белозерск г, Пионерская ул, д. 43",null,null,"Белозерск г, Пионерская ул, д. 43",null,null,null,null,null,null,null,null,null,null,null,null,"Общий счет РО+"]
[{"$f":"\"Белозерск г, Пионерская ул, д.45а\"","v":"Белозерск г, Пионерская ул, д.45а"},{"$f":"\"Белозерск г, Пионерская ул, д.45а\"","v":"Белозерск г, Пионерская ул, д.45а"},{"$f":"\"Белозерск г, Пионерская ул, д.45А\"","v":"Белозерск г, Пионерская ул, д.45А"},{"$f":"\"Белозерск г, Пионерская ул, д.45А\"","v":"Белозерск г, Пионерская ул, д.45А"},{"$f":"\"Белозерск г, Пионерская ул, д.45А\"","v":"Белозерск г, Пионерская ул, д.45А"},{"$f":"\"Белозерск г, Пионерская ул, д.45А\"","v":"Белозерск г, Пионерская ул, д.45А"},null,null,null,null,null,null,null,{"$f":"\"Белозерск г, Пионерская ул, д.45А\"","v":"Белозерск г, Пионерская ул, д.45А"},null,null,null,null,null,null,null,null,null,null,null,null,null,null,null,null,"Белозерск г, Пионерская ул, д. 45А",null,null,null,null,"Белозерск г, Пионерская ул, д. 45А",null,null,null,null,null,null,null,null,null,null,"Белозерск г, Пионерская ул, д. 45А",null,null,null,null,null,null,"Белозерск г, Пионерская ул, д. 45А",null,null,null,null,null,"Белозерск г, Пионерская ул, д. 45А",null,null,null,null,null,null,null,null,"Белозерск г, Пионерская ул, д. 45А",null,null,null,null,null,"Белозерск г, Пионерская ул, д. 45А",null,null,null,null,null,null,null,"Белозерск г, Пионерская ул, д. 45А",null,null,null,null,null,null,"Белозерск г, Пионерская ул, д. 45А",null,null,null,null,null,null,null,null,"Белозерск г, Пионерская ул, д. 45А",null,null,null,null,"Белозерск г, Пионерская ул, д. 45А",null,null,null,null,null,null,null,null,"Белозерск г, Пионерская ул, д. 45А",null,null,null,null,"Белозерск г, Пионерская ул, д. 45А",null,null,null,null,"Белозерск г, Пионерская ул, д. 45А",null,null,"Белозерск г, Пионерская ул, д. 45А",null,null,null,null,null,null,null,null,null,null,null,null,"Общий счет РО+"]
[{"$f":"\"Белозерск г, Пионерская ул, д.45\"","v":"Белозерск г, Пионерская ул, д.45"},"Белозерск г, Пионерская ул, д.45","Белозерск г, Пионерская ул, д.45","Белозерск г, Пионерская ул, д.45","Белозерск г, Пионерская ул, д.45","Белозерск г, Пионерская ул, д.45",null,null,null,null,null,null,null,{"$f":"\"Белозерск г, Пионерская ул, д.45\"","v":"Белозерск г, Пионерская ул, д.45"},null,null,null,null,null,null,null,null,null,null,null,null,null,null,null,null,"Белозерск г, Пионерская ул, д. 45",null,null,null,null,"Белозерск г, Пионерская ул, д. 45",null,null,null,null,null,null,null,null,null,null,"Белозерск г, Пионерская ул, д. 45",null,null,null,null,null,null,"Белозерск г, Пионерская ул, д. 45",null,null,null,null,null,"Белозерск г, Пионерская ул, д. 45",null,null,null,null,null,null,null,null,"Белозерск г, Пионерская ул, д. 45",null,null,null,null,null,"Белозерск г, Пионерская ул, д. 45",null,null,null,null,null,null,null,"Белозерск г, Пионерская ул, д. 45",null,null,null,null,null,null,"Белозерск г, Пионерская ул, д. 45",null,null,null,null,null,null,null,null,"Белозерск г, Пионерская ул, д. 45",null,null,null,null,"Белозерск г, Пионерская ул, д. 45",null,null,null,null,null,null,null,null,"Белозерск г, Пионерская ул, д. 45",null,null,null,null,"Белозерск г, Пионерская ул, д. 45",null,null,null,null,"Белозерск г, Пионерская ул, д. 45",null,null,"Белозерск г, Пионерская ул, д. 45",null,null,null,null,null,null,null,null,null,null,null,null,"Общий счет РО+"]
[{"$f":"\"Белозерск г, Пионерская ул, д.50А\"","v":"Белозерск г, Пионерская ул, д.50А"},"Белозерск г, Пионерская ул, д.50А","Белозерск г, Пионерская ул, д.50А","Белозерск г, Пионерская ул, д.50А","Белозерск г, Пионерская ул, д.50А","Белозерск г, Пионерская ул, д.50А",null,null,null,null,null,null,null,{"$f":"\"Белозерск г, Пионерская ул, д.50А\"","v":"Белозерск г, Пионерская ул, д.50А"},null,null,null,null,null,null,null,null,null,null,null,null,null,null,null,null,"Белозерск г, Пионерская ул, д. 50А",null,null,null,null,"Белозерск г, Пионерская ул, д. 50А",null,null,null,null,null,null,null,null,null,null,"Белозерск г, Пионерская ул, д. 50А",null,null,null,null,null,null,"Белозерск г, Пионерская ул, д. 50А",null,null,null,null,null,"Белозерск г, Пионерская ул, д. 50А",null,null,null,null,null,null,null,null,"Белозерск г, Пионерская ул, д. 50А",null,null,null,null,null,"Белозерск г, Пионерская ул, д. 50А",null,null,null,null,null,null,null,"Белозерск г, Пионерская ул, д. 50А",null,null,null,null,null,null,"Белозерск г, Пионерская ул, д. 50А",null,null,null,null,null,null,null,null,"Белозерск г, Пионерская ул, д. 50А",null,null,null,null,"Белозерск г, Пионерская ул, д. 50А",null,null,null,null,null,null,null,null,null,null,null,null,null,null,null,null,null,null,null,null,null,null,null,null,null,null,null,null,null,null,null,null,null,null,"Общий счет РО+261,30","Признан аварийным. Постановление № 1072 от 30.09.2024","Исключен 07.11.2024"]
[{"$f":"\"Белозерск г, Пионерская ул, д.59\"","v":"Белозерск г, Пионерская ул, д.59"},"Белозерск г, Пионерская ул, д.59","Белозерск г, Пионерская ул, д.59","Белозерск г, Пионерская ул, д.59","Белозерск г, Пионерская ул, д.59","Белозерск г, Пионерская ул, д.59",null,null,null,null,null,null,null,{"$f":"\"Белозерск г, Пионерская ул, д.59\"","v":"Белозерск г, Пионерская ул, д.59"},null,null,null,null,null,null,null,null,null,null,null,null,null,null,null,null,"Белозерск г, Пионерская ул, д. 59",null,null,null,null,"Белозерск г, Пионерская ул, д. 59",null,null,null,null,null,null,null,null,null,null,"Белозерск г, Пионерская ул, д. 59",null,null,null,null,null,null,"Белозерск г, Пионерская ул, д. 59",null,null,null,null,null,"Белозерск г, Пионерская ул, д. 59",null,null,null,null,null,null,null,null,"Белозерск г, Пионерская ул, д. 59",null,null,null,null,null,"Белозерск г, Пионерская ул, д. 59",null,null,null,null,null,null,null,"Белозерск г, Пионерская ул, д. 59",null,null,null,null,null,null,"Белозерск г, Пионерская ул, д. 59",null,null,null,null,null,null,null,null,"Белозерск г, Пионерская ул, д. 59",null,null,null,null,"Белозерск г, Пионерская ул, д. 59",null,null,null,null,null,null,null,null,"Белозерск г, Пионерская ул, д. 59",null,null,null,null,"Белозерск г, Пионерская ул, д. 59",null,null,null,null,"Белозерск г, Пионерская ул, д. 59",null,null,"Белозерск г, Пионерская ул, д. 59",null,null,null,null,null,null,null,null,null,null,null,null,"Общий счет РО+"]
[{"$f":"\"Белозерск г, Пионерская ул, д.63\"","v":"Белозерск г, Пионерская ул, д.63"},"Белозерск г, Пионерская ул, д.63","Белозерск г, Пионерская ул, д.63","Белозерск г, Пионерская ул, д.63","Белозерск г, Пионерская ул, д.63","Белозерск г, Пионерская ул, д.63",null,null,null,null,null,null,null,{"$f":"\"Белозерск г, Пионерская ул, д.63\"","v":"Белозерск г, Пионерская ул, д.63"},null,null,null,null,null,null,null,null,null,null,null,null,null,null,null,null,"Белозерск г, Пионерская ул, д. 63",null,null,null,null,"Белозерск г, Пионерская ул, д. 63",null,null,null,null,null,null,null,null,null,null,"Белозерск г, Пионерская ул, д. 63",null,null,null,null,null,null,"Белозерск г, Пионерская ул, д. 63",null,null,null,null,null,"Белозерск г, Пионерская ул, д. 63",null,null,null,null,null,null,null,null,"Белозерск г, Пионерская ул, д. 63",null,null,null,null,null,"Белозерск г, Пионерская ул, д. 63",null,null,null,null,null,null,null,"Белозерск г, Пионерская ул, д. 63",null,null,null,null,null,null,"Белозерск г, Пионерская ул, д. 63",null,null,null,null,null,null,null,null,"Белозерск г, Пионерская ул, д. 63",null,null,null,null,"Белозерск г, Пионерская ул, д. 63",null,null,null,null,null,null,null,null,"Белозерск г, Пионерская ул, д. 63",null,null,null,null,"Белозерск г, Пионерская ул, д. 63",null,null,null,null,"Белозерск г, Пионерская ул, д. 63",null,null,"Белозерск г, Пионерская ул, д. 63",null,null,null,null,null,null,null,null,null,null,null,null,"Общий счет РО+"]
[{"$f":"\"Белозерск г, Пионерская ул, д.63А\"","v":"Белозерск г, Пионерская ул, д.63А"},"Белозерск г, Пионерская ул, д.63А","Белозерск г, Пионерская ул, д.63А","Белозерск г, Пионерская ул, д.63А","Белозерск г, Пионерская ул, д.63А","Белозерск г, Пионерская ул, д.63А",null,null,null,null,null,null,null,{"$f":"\"Белозерск г, Пионерская ул, д.63А\"","v":"Белозерск г, Пионерская ул, д.63А"},null,null,null,null,null,null,null,null,null,null,null,null,null,null,null,null,"Белозерск г, Пионерская ул, д. 63А",null,null,null,null,"Белозерск г, Пионерская ул, д. 63А",null,null,null,null,null,null,null,null,null,null,"Белозерск г, Пионерская ул, д. 63А",null,null,null,null,null,null,"Белозерск г, Пионерская ул, д. 63А",null,null,null,null,null,"Белозерск г, Пионерская ул, д. 63А",null,null,null,null,null,null,null,null,"Белозерск г, Пионерская ул, д. 63А",null,null,null,null,null,"Белозерск г, Пионерская ул, д. 63А",null,null,null,null,null,null,null,"Белозерск г, Пионерская ул, д. 63А",null,null,null,null,null,null,"Белозерск г, Пионерская ул, д. 63А",null,null,null,null,null,null,null,null,"Белозерск г, Пионерская ул, д. 63А",null,null,null,null,"Белозерск г, Пионерская ул, д. 63А",null,null,null,null,null,null,null,null,"Белозерск г, Пионерская ул, д. 63А",null,null,null,null,"Белозерск г, Пионерская ул, д. 63А",null,null,null,null,"Белозерск г, Пионерская ул, д. 63А",null,null,"Белозерск г, Пионерская ул, д. 63А",null,null,null,null,null,null,null,null,null,null,null,null,"Общий счет РО+"]
[{"$f":"\"Белозерск г, Пионерская ул, д.74\"","v":"Белозерск г, Пионерская ул, д.74"},"Белозерск г, Пионерская ул, д.74","Белозерск г, Пионерская ул, д.74","Белозерск г, Пионерская ул, д.74","Белозерск г, Пионерская ул, д.74","Белозерск г, Пионерская ул, д.74",null,null,null,null,null,null,null,{"$f":"\"Белозерск г, Пионерская ул, д.74\"","v":"Белозерск г, Пионерская ул, д.74"},null,null,null,null,null,null,null,null,null,null,null,null,null,null,null,null,"Белозерск г, Пионерская ул, д. 74",null,null,null,null,"Белозерск г, Пионерская ул, д. 74",null,null,null,null,null,null,null,null,null,null,"Белозерск г, Пионерская ул, д. 74",null,null,null,null,null,null,"Белозерск г, Пионерская ул, д. 74",null,null,null,null,null,"Белозерск г, Пионерская ул, д. 74",null,null,null,null,null,null,null,null,"Белозерск г, Пионерская ул, д. 74",null,null,null,null,null,"Белозерск г, Пионерская ул, д. 74",null,null,null,null,null,null,null,"Белозерск г, Пионерская ул, д. 74",null,null,null,null,null,null,"Белозерск г, Пионерская ул, д. 74",null,null,null,null,null,null,null,null,"Белозерск г, Пионерская ул, д. 74",null,null,null,null,"Белозерск г, Пионерская ул, д. 74",null,null,null,null,null,null,null,null,"Белозерск г, Пионерская ул, д. 74",null,null,null,null,null,null,null,null,null,null,null,null,null,null,null,null,null,null,null,null,null,null,null,null,null,"Общий счет РО+ 739,90","Признан аварийным. Постановление № 362 от 05.03.2025","Исключен 02.04.2025"]
[{"$f":"\"Белозерск г, Садовый пер, д.29\"","v":"Белозерск г, Садовый пер, д.29"},"Белозерск г, Садовый пер, д.29","Белозерск г, Садовый пер, д.29","Белозерск г, Садовый пер, д.29","Белозерск г, Садовый пер, д.29","Белозерск г, Садовый пер, д.29",null,null,null,null,null,null,null,{"$f":"\"Белозерск г, Садовый пер, д.29\"","v":"Белозерск г, Садовый пер, д.29"},null,null,null,null,null,null,null,null,null,null,null,null,null,null,null,null,"Белозерск г, Садовый пер, д. 29",null,null,null,null,"Белозерск г, Садовый пер, д. 29",null,null,null,null,null,null,null,null,null,null,"Белозерск г, Садовый пер, д. 29",null,null,null,null,null,null,"Белозерск г, Садовый пер, д. 29",null,null,null,null,null,"Белозерск г, Садовый пер, д. 29",null,null,null,null,null,null,null,null,"Белозерск г, Садовый пер, д. 29",null,null,null,null,null,"Белозерск г, Садовый пер, д. 29",null,null,null,null,null,null,null,"Белозерск г, Садовый пер, д. 29",null,null,null,null,null,null,"Белозерск г, Садовый пер, д. 29",null,null,null,null,null,null,null,null,"Белозерск г, Садовый пер, д. 29",null,null,null,null,"Белозерск г, Садовый пер, д. 29",null,null,null,null,null,null,null,null,"Белозерск г, Садовый пер, д. 29",null,null,null,null,"Белозерск г, Садовый пер, д. 29",null,null,null,null,"Белозерск г, Садовый пер, д. 29",null,null,"Белозерск г, Садовый пер, д. 29",null,null,null,null,null,null,null,null,null,null,null,null,"Общий счет РО+"]
[{"$f":"\"Белозерск г, Свердлова ул, д.1\"","v":"Белозерск г, Свердлова ул, д.1"},"Белозерск г, Свердлова ул, д.1","Белозерск г, Свердлова ул, д.1","Белозерск г, Свердлова ул, д.1","Белозерск г, Свердлова ул, д.1","Белозерск г, Свердлова ул, д.1",null,null,null,null,null,null,null,{"$f":"\"Белозерск г, Свердлова ул, д.1\"","v":"Белозерск г, Свердлова ул, д.1"},null,null,null,null,null,null,null,null,null,null,null,null,null,null,null,null,"Белозерск г, Свердлова ул, д. 1",null,null,null,null,"Белозерск г, Свердлова ул, д. 1",null,null,null,null,null,null,null,null,null,null,"Белозерск г, Свердлова ул, д. 1",null,null,null,null,null,null,"Белозерск г, Свердлова ул, д. 1",null,null,null,null,null,"Белозерск г, Свердлова ул, д. 1",null,null,null,null,null,null,null,null,"Белозерск г, Свердлова ул, д. 1",null,null,null,null,null,"Белозерск г, Свердлова ул, д. 1",null,null,null,null,null,null,null,"Белозерск г, Свердлова ул, д. 1",null,null,null,null,null,null,"Белозерск г, Свердлова ул, д. 1",null,null,null,null,null,null,null,null,"Белозерск г, Свердлова ул, д. 1",null,null,null,null,"Белозерск г, Свердлова ул, д. 1",null,null,null,null,null,null,null,null,"Белозерск г, Свердлова ул, д. 1",null,null,null,null,"Белозерск г, Свердлова ул, д. 1",null,null,null,null,"Белозерск г, Свердлова ул, д. 1",null,null,null,null,null,null,null,null,null,null,null,null,null,null,null,"Общий счет РО+405,80","Признан аварийным. Постановление 1212 от 26.09.2025","Исключен 03.12.2025"]
[{"$f":"\"Белозерск г, Свердлова ул, д.11\"","v":"Белозерск г, Свердлова ул, д.11"},"Белозерск г, Свердлова ул, д.11","Белозерск г, Свердлова ул, д.11","Белозерск г, Свердлова ул, д.11","Белозерск г, Свердлова ул, д.11","Белозерск г, Свердлова ул, д.11",null,null,null,null,null,null,null,{"$f":"\"Белозерск г, Свердлова ул, д.11\"","v":"Белозерск г, Свердлова ул, д.11"},null,null,null,null,null,null,null,null,null,null,null,null,null,null,null,null,"Белозерск г, Свердлова ул, д. 11",null,null,null,null,"Белозерск г, Свердлова ул, д. 11",null,null,null,null,null,null,null,null,null,null,"Белозерск г, Свердлова ул, д. 11",null,null,null,null,null,null,"Белозерск г, Свердлова ул, д. 11",null,null,null,null,null,null,null,null,null,null,null,null,null,null,null,null,null,null,null,null,null,null,null,null,null,null,null,null,null,null,null,null,null,null,null,null,null,null,null,null,null,null,null,null,null,null,null,null,null,null,null,null,null,null,null,null,null,null,null,null,null,null,null,null,null,null,null,null,null,null,null,null,null,null,null,null,null,null,null,null,null,null,null,null,"Общий счет РО - 232","Признан аварийным. Постановление № 190, от 22.03.2019 Заключение № 106 от 12.03.2019 г.","Исключен 28.12.2020"]
[{"$f":"\"Белозерск г, Свободы ул, д.20\"","v":"Белозерск г, Свободы ул, д.20"},"Белозерск г, Свободы ул, д.20","Белозерск г, Свободы ул, д.20","Белозерск г, Свободы ул, д.20","Белозерск г, Свободы ул, д.20","Белозерск г, Свободы ул, д.20",null,null,null,null,null,null,null,{"$f":"\"Белозерск г, Свободы ул, д.20\"","v":"Белозерск г, Свободы ул, д.20"},null,null,null,null,null,null,null,null,null,null,null,null,null,null,null,null,"Белозерск г, Свободы ул, д. 20",null,null,null,null,"Белозерск г, Свободы ул, д. 20",null,null,null,null,null,null,null,null,null,null,"Белозерск г, Свободы ул, д. 20",null,null,null,null,null,null,"Белозерск г, Свободы ул, д. 20",null,null,null,null,null,"Белозерск г, Свободы ул, д. 20",null,null,null,null,null,null,null,null,"Белозерск г, Свободы ул, д. 20",null,null,null,null,null,"Белозерск г, Свободы ул, д. 20",null,null,null,null,null,null,null,"Белозерск г, Свободы ул, д. 20",null,null,null,null,null,null,"Белозерск г, Свободы ул, д. 20",null,null,null,null,null,null,null,null,"Белозерск г, Свободы ул, д. 20",null,null,null,null,"Белозерск г, Свободы ул, д. 20",null,null,null,null,null,null,null,null,"Белозерск г, Свободы ул, д. 20",null,null,null,null,"Белозерск г, Свободы ул, д. 20",null,null,null,null,"Белозерск г, Свободы ул, д. 20",null,null,"Белозерск г, Свободы ул, д. 20",null,null,null,null,null,null,null,null,null,null,null,null,"Общий счет РО+"]
[{"$f":"\"Белозерск г, Свободы ул, д.21А\"","v":"Белозерск г, Свободы ул, д.21А"},"Белозерск г, Свободы ул, д.21А","Белозерск г, Свободы ул, д.21А","Белозерск г, Свободы ул, д.21А","Белозерск г, Свободы ул, д.21А","Белозерск г, Свободы ул, д.21А",null,null,null,null,null,null,null,{"$f":"\"Белозерск г, Свободы ул, д.21А\"","v":"Белозерск г, Свободы ул, д.21А"},null,null,null,null,null,null,null,null,null,null,null,null,null,null,null,null,"Белозерск г, Свободы ул, д. 21А",null,null,null,null,"Белозерск г, Свободы ул, д. 21А",null,null,null,null,null,null,null,null,null,null,"Белозерск г, Свободы ул, д. 21А",null,null,null,null,null,null,"Белозерск г, Свободы ул, д. 21А",null,null,null,null,null,"Белозерск г, Свободы ул, д. 21А",null,null,null,null,null,null,null,null,"Белозерск г, Свободы ул, д. 21А",null,null,null,null,null,"Белозерск г, Свободы ул, д. 21А",null,null,null,null,null,null,null,"Белозерск г, Свободы ул, д. 21А",null,null,null,null,null,null,"Белозерск г, Свободы ул, д. 21А",null,null,null,null,null,null,null,null,"Белозерск г, Свободы ул, д. 21А",null,null,null,null,"Белозерск г, Свободы ул, д. 21А",null,null,null,null,null,null,null,null,"Белозерск г, Свободы ул, д. 21А",null,null,null,null,"Белозерск г, Свободы ул, д. 21А",null,null,null,null,"Белозерск г, Свободы ул, д. 21А",null,null,"Белозерск г, Свободы ул, д. 21А",null,null,null,null,null,null,null,null,null,null,null,null,"Общий счет РО+"]
[{"$f":"\"Белозерск г, Свободы ул, д.22А\"","v":"Белозерск г, Свободы ул, д.22А"},"Белозерск г, Свободы ул, д.22А","Белозерск г, Свободы ул, д.22А","Белозерск г, Свободы ул, д.22А","Белозерск г, Свободы ул, д.22А","Белозерск г, Свободы ул, д.22А",null,null,null,null,null,null,null,{"$f":"\"Белозерск г, Свободы ул, д.22А\"","v":"Белозерск г, Свободы ул, д.22А"},null,null,null,null,null,null,null,null,null,null,null,null,null,null,null,null,"Белозерск г, Свободы ул, д. 22А",null,null,null,null,"Белозерск г, Свободы ул, д. 22А",null,null,null,null,null,null,null,null,null,null,"Белозерск г, Свободы ул, д. 22А",null,null,null,null,null,null,"Белозерск г, Свободы ул, д. 22А",null,null,null,null,null,"Белозерск г, Свободы ул, д. 22А",null,null,null,null,null,null,null,null,"Белозерск г, Свободы ул, д. 22А",null,null,null,null,null,"Белозерск г, Свободы ул, д. 22А",null,null,null,null,null,null,null,"Белозерск г, Свободы ул, д. 22А",null,null,null,null,null,null,"Белозерск г, Свободы ул, д. 22А",null,null,null,null,null,null,null,null,"Белозерск г, Свободы ул, д. 22А",null,null,null,null,"Белозерск г, Свободы ул, д. 22А",null,null,null,null,null,null,null,null,"Белозерск г, Свободы ул, д. 22А",null,null,null,null,"Белозерск г, Свободы ул, д. 22А",null,null,null,null,"Белозерск г, Свободы ул, д. 22А",null,null,"Белозерск г, Свободы ул, д. 22А",null,null,null,null,null,null,null,null,null,null,null,null,"Общий счет РО+"]
[{"$f":"\"Белозерск г, Свободы ул, д.3А\"","v":"Белозерск г, Свободы ул, д.3А"},"Белозерск г, Свободы ул, д.3А","Белозерск г, Свободы ул, д.3А","Белозерск г, Свободы ул, д.3А","Белозерск г, Свободы ул, д.3А","Белозерск г, Свободы ул, д.3А",null,null,null,null,null,null,null,{"$f":"\"Белозерск г, Свободы ул, д.3А\"","v":"Белозерск г, Свободы ул, д.3А"},null,null,null,null,null,null,null,null,null,null,null,null,null,null,null,null,"Белозерск г, Свободы ул, д. 3А",null,null,null,null,null,null,null,null,null,null,null,null,null,null,null,null,null,null,null,null,null,null,null,null,null,null,null,null,null,null,null,null,null,null,null,null,null,null,null,null,null,null,null,null,null,null,null,null,null,null,null,null,null,null,null,null,null,null,null,null,null,null,null,null,null,null,null,null,null,null,null,null,null,null,null,null,null,null,null,null,null,null,null,null,null,null,null,null,null,null,null,null,null,null,null,null,null,null,null,null,null,null,null,null,null,null,null,"Общий счет РО - 173,10",null,"Исключен 01.04.2019"]
[{"$f":"\"Белозерск г, Свободы ул, д.3В\"","v":"Белозерск г, Свободы ул, д.3В"},"Белозерск г, Свободы ул, д.3В","Белозерск г, Свободы ул, д.3В","Белозерск г, Свободы ул, д.3В","Белозерск г, Свободы ул, д.3В","Белозерск г, Свободы ул, д.3В",null,null,null,null,null,null,null,{"$f":"\"Белозерск г, Свободы ул, д.3В\"","v":"Белозерск г, Свободы ул, д.3В"},null,null,null,null,null,null,null,null,null,null,null,null,null,null,null,null,"Белозерск г, Свободы ул, д. 3В",null,null,null,null,null,null,null,null,null,null,null,null,null,null,null,null,null,null,null,null,null,null,null,null,null,null,null,null,null,null,null,null,null,null,null,null,null,null,null,null,null,null,null,null,null,null,null,null,null,null,null,null,null,null,null,null,null,null,null,null,null,null,null,null,null,null,null,null,null,null,null,null,null,null,null,null,null,null,null,null,null,null,null,null,null,null,null,null,null,null,null,null,null,null,null,null,null,null,null,null,null,null,null,null,null,null,null,"Общий счет РО - 227,70",null,"Исключен 01.04.2019"]
[{"$f":"\"Белозерск г, Свободы ул, д.56А\"","v":"Белозерск г, Свободы ул, д.56А"},"Белозерск г, Свободы ул, д.56А","Белозерск г, Свободы ул, д.56А","Белозерск г, Свободы ул, д.56А","Белозерск г, Свободы ул, д.56А","Белозерск г, Свободы ул, д.56А",null,null,null,null,null,null,null,{"$f":"\"Белозерск г, Свободы ул, д.56А\"","v":"Белозерск г, Свободы ул, д.56А"},null,null,null,null,null,null,null,null,null,null,null,null,null,null,null,null,"Белозерск г, Свободы ул, д. 56А",null,null,null,null,"Белозерск г, Свободы ул, д. 56А",null,null,null,null,null,null,null,null,null,null,"Белозерск г, Свободы ул, д. 56А",null,null,null,null,null,null,"Белозерск г, Свободы ул, д. 56А",null,null,null,null,null,"Белозерск г, Свободы ул, д. 56А",null,null,null,null,null,null,null,null,"Белозерск г, Свободы ул, д. 56А",null,null,null,null,null,"Белозерск г, Свободы ул, д. 56А",null,null,null,null,null,null,null,"Белозерск г, Свободы ул, д. 56А",null,null,null,null,null,null,"Белозерск г, Свободы ул, д. 56А",null,null,null,null,null,null,null,null,"Белозерск г, Свободы ул, д. 56А",null,null,null,null,"Белозерск г, Свободы ул, д. 56А",null,null,null,null,null,null,null,null,null,null,null,null,null,null,null,null,null,null,null,null,null,null,null,null,null,null,null,null,null,null,null,null,null,null,"Общий счет РО+333,50","Признан аварийным. Постановление 825 от 06.08.2024","Исключен 07.11.2024"]
[{"$f":"\"Белозерск г, Свободы ул, д.57\"","v":"Белозерск г, Свободы ул, д.57"},"Белозерск г, Свободы ул, д.57","Белозерск г, Свободы ул, д.57","Белозерск г, Свободы ул, д.57","Белозерск г, Свободы ул, д.57","Белозерск г, Свободы ул, д.57",null,null,null,null,null,null,null,{"$f":"\"Белозерск г, Свободы ул, д.57\"","v":"Белозерск г, Свободы ул, д.57"},null,null,null,null,null,null,null,null,null,null,null,null,null,null,null,null,"Белозерск г, Свободы ул, д. 57",null,null,null,null,"Белозерск г, Свободы ул, д. 57",null,null,null,null,null,null,null,null,null,null,"Белозерск г, Свободы ул, д. 57",null,null,null,null,null,null,"Белозерск г, Свободы ул, д. 57",null,null,null,null,null,"Белозерск г, Свободы ул, д. 57",null,null,null,null,null,null,null,null,"Белозерск г, Свободы ул, д. 57",null,null,null,null,null,"Белозерск г, Свободы ул, д. 57",null,null,null,null,null,null,null,"Белозерск г, Свободы ул, д. 57",null,null,null,null,null,null,"Белозерск г, Свободы ул, д. 57",null,null,null,null,null,null,null,null,"Белозерск г, Свободы ул, д. 57",null,null,null,null,"Белозерск г, Свободы ул, д. 57",null,null,null,null,null,null,null,null,"Белозерск г, Свободы ул, д. 57",null,null,null,null,"Белозерск г, Свободы ул, д. 57",null,null,null,null,"Белозерск г, Свободы ул, д. 57",null,null,"Белозерск г, Свободы ул, д. 57",null,null,null,null,null,null,null,null,null,null,null,null,"Общий счет РО+"]
[{"$f":"\"Белозерск г, Свободы ул, д.58А\"","v":"Белозерск г, Свободы ул, д.58А"},"Белозерск г, Свободы ул, д.58А","Белозерск г, Свободы ул, д.58А","Белозерск г, Свободы ул, д.58А","Белозерск г, Свободы ул, д.58А","Белозерск г, Свободы ул, д.58А",null,null,null,null,null,null,null,{"$f":"\"Белозерск г, Свободы ул, д.58А\"","v":"Белозерск г, Свободы ул, д.58А"},null,null,null,null,null,null,null,null,null,null,null,null,null,null,null,null,"Белозерск г, Свободы ул, д. 58А",null,null,null,null,"Белозерск г, Свободы ул, д. 58А",null,null,null,null,null,null,null,null,null,null,"Белозерск г, Свободы ул, д. 58А",null,null,null,null,null,null,"Белозерск г, Свободы ул, д. 58А",null,null,null,null,null,"Белозерск г, Свободы ул, д. 58А",null,null,null,null,null,null,null,null,"Белозерск г, Свободы ул, д. 58А",null,null,null,null,null,"Белозерск г, Свободы ул, д. 58А",null,null,null,null,null,null,null,"Белозерск г, Свободы ул, д. 58А",null,null,null,null,null,null,"Белозерск г, Свободы ул, д. 58А",null,null,null,null,null,null,null,null,"Белозерск г, Свободы ул, д. 58А",null,null,null,null,"Белозерск г, Свободы ул, д. 58А",null,null,null,null,null,null,null,null,"Белозерск г, Свободы ул, д. 58А",null,null,null,null,"Белозерск г, Свободы ул, д. 58А",null,null,null,null,"Белозерск г, Свободы ул, д. 58А",null,null,"Белозерск г, Свободы ул, д. 58А",null,null,null,null,null,null,null,null,null,null,null,null,"Общий счет РО+","Признан аварийным. Постановление № 1527 от 25.11.2025 г"]
[{"$f":"\"Белозерск г, Свободы ул, д.60А\"","v":"Белозерск г, Свободы ул, д.60А"},"Белозерск г, Свободы ул, д.60А","Белозерск г, Свободы ул, д.60А","Белозерск г, Свободы ул, д.60А","Белозерск г, Свободы ул, д.60А","Белозерск г, Свободы ул, д.60А",null,null,null,null,null,null,null,{"$f":"\"Белозерск г, Свободы ул, д.60А\"","v":"Белозерск г, Свободы ул, д.60А"},null,null,null,null,null,null,null,null,null,null,null,null,null,null,null,null,"Белозерск г, Свободы ул, д. 60А",null,null,null,null,"Белозерск г, Свободы ул, д. 60А",null,null,null,null,null,null,null,null,null,null,"Белозерск г, Свободы ул, д. 60А",null,null,null,null,null,null,"Белозерск г, Свободы ул, д. 60А",null,null,null,null,null,"Белозерск г, Свободы ул, д. 60А",null,null,null,null,null,null,null,null,"Белозерск г, Свободы ул, д. 60А",null,null,null,null,null,"Белозерск г, Свободы ул, д. 60А",null,null,null,null,null,null,null,"Белозерск г, Свободы ул, д. 60А",null,null,null,null,null,null,"Белозерск г, Свободы ул, д. 60А",null,null,null,null,null,null,null,null,"Белозерск г, Свободы ул, д. 60А",null,null,null,null,"Белозерск г, Свободы ул, д. 60А",null,null,null,null,null,null,null,null,"Белозерск г, Свободы ул, д. 60А",null,null,null,null,"Белозерск г, Свободы ул, д. 60А",null,null,null,null,"Белозерск г, Свободы ул, д. 60А",null,null,"Белозерск г, Свободы ул, д. 60А",null,null,null,null,null,null,null,null,null,null,null,null,"Общий счет РО+"]
[{"$f":"\"Белозерск г, Советский пр-кт, д.4\"","v":"Белозерск г, Советский пр-кт, д.4"},"Белозерск г, Советский пр-кт, д.4","Белозерск г, Советский пр-кт, д.4","Белозерск г, Советский пр-кт, д.4","Белозерск г, Советский пр-кт, д.4","Белозерск г, Советский пр-кт, д.4",null,null,null,null,null,null,null,{"$f":"\"Белозерск г, Советский пр-кт, д.4\"","v":"Белозерск г, Советский пр-кт, д.4"},null,null,null,null,null,null,null,null,null,null,null,null,null,null,null,null,"Белозерск г, Советский пр-кт, д. 4",null,null,null,null,"Белозерск г, Советский пр-кт, д. 4",null,null,null,null,null,null,null,null,null,null,"Белозерск г, Советский пр-кт, д. 4",null,null,null,null,null,null,"Белозерск г, Советский пр-кт, д. 4",null,null,null,null,null,"Белозерск г, Советский пр-кт, д. 4",null,null,null,null,null,null,null,null,"Белозерск г, Советский пр-кт, д. 4",null,null,null,null,null,"Белозерск г, Советский пр-кт, д. 4",null,null,null,null,null,null,null,"Белозерск г, Советский пр-кт, д. 4",null,null,null,null,null,null,"Белозерск г, Советский пр-кт, д. 4",null,null,null,null,null,null,null,null,"Белозерск г, Советский пер, д. 4",null,null,null,null,"Белозерск г, Советский пер, д. 4",null,null,null,null,null,null,null,null,"Белозерск г, Советский пер, д. 4",null,null,null,null,"Белозерск г, Советский пер, д. 4",null,null,null,null,"Белозерск г, Советский пер, д. 4",null,null,"Белозерск г, Советский пер, д. 4",null,null,null,null,null,null,null,null,null,null,null,null,"Общий счет РО+"]
[{"$f":"\"Белозерск г, Советский пр-кт, д.6\"","v":"Белозерск г, Советский пр-кт, д.6"},"Белозерск г, Советский пр-кт, д.6","Белозерск г, Советский пр-кт, д.6","Белозерск г, Советский пр-кт, д.6","Белозерск г, Советский пр-кт, д.6","Белозерск г, Советский пр-кт, д.6",null,null,null,null,null,null,null,{"$f":"\"Белозерск г, Советский пр-кт, д.6\"","v":"Белозерск г, Советский пр-кт, д.6"},null,null,null,null,null,null,null,null,null,null,null,null,null,null,null,null,"Белозерск г, Советский пр-кт, д. 6",null,null,null,null,"Белозерск г, Советский пр-кт, д. 6",null,null,null,null,null,null,null,null,null,null,"Белозерск г, Советский пр-кт, д. 6",null,null,null,null,null,null,"Белозерск г, Советский пр-кт, д. 6",null,null,null,null,null,"Белозерск г, Советский пр-кт, д. 6",null,null,null,null,null,null,null,null,"Белозерск г, Советский пр-кт, д. 6",null,null,null,null,null,"Белозерск г, Советский пр-кт, д. 6",null,null,null,null,null,null,null,"Белозерск г, Советский пр-кт, д. 6",null,null,null,null,null,null,"Белозерск г, Советский пер, д. 6",null,null,null,null,null,null,null,null,"Белозерск г, Советский пер, д. 6",null,null,null,null,"Белозерск г, Советский пер, д. 6",null,null,null,null,null,null,null,null,"Белозерск г, Советский пер, д. 6",null,null,null,null,"Белозерск г, Советский пер, д. 6",null,null,null,null,"Белозерск г, Советский пер, д. 6",null,null,"Белозерск г, Советский пер, д. 6",null,null,null,null,null,null,null,null,null,null,null,null,"Общий счет РО+"]
[{"$f":"\"Белозерск г, Советский пр-кт, д.1В\"","v":"Белозерск г, Советский пр-кт, д.1В"},"Белозерск г, Советский пр-кт, д.1В","Белозерск г, Советский пр-кт, д.1В","Белозерск г, Советский пр-кт, д.1В","Белозерск г, Советский пр-кт, д.1В","Белозерск г, Советский пр-кт, д.1В",null,null,null,null,null,null,null,{"$f":"\"Белозерск г, Советский пр-кт, д.1В\"","v":"Белозерск г, Советский пр-кт, д.1В"},null,null,null,null,null,null,null,null,null,null,null,null,null,null,null,null,"Белозерск г, Советский пр-кт, д. 1В",null,null,null,null,"Белозерск г, Советский пр-кт, д. 1В",null,null,null,null,null,null,null,null,null,null,"Белозерск г, Советский пр-кт, д. 1В",null,null,null,null,null,null,"Белозерск г, Советский пр-кт, д. 1В",null,null,null,null,null,"Белозерск г, Советский пр-кт, д. 1В",null,null,null,null,null,null,null,null,"Белозерск г, Советский пр-кт, д. 1В",null,null,null,null,null,"Белозерск г, Советский пр-кт, д. 1В",null,null,null,null,null,null,null,"Белозерск г, Советский пр-кт, д. 1В",null,null,null,null,null,null,"Белозерск г, Советский пр-кт, д. 1В",null,null,null,null,null,null,null,null,"Белозерск г, Советский пр-кт, д. 1В",null,null,null,null,"Белозерск г, Советский пр-кт, д. 1В",null,null,null,null,null,null,null,null,"Белозерск г, Советский пр-кт, д. 1В",null,null,null,null,"Белозерск г, Советский пр-кт, д. 1В",null,null,null,null,"Белозерск г, Советский пр-кт, д. 1В",null,null,"Белозерск г, Советский пр-кт, д. 1В",null,null,null,null,null,null,null,null,null,null,null,null,"Общий счет РО+"]
[{"$f":"\"Белозерск г, Советский пр-кт, д.1А\"","v":"Белозерск г, Советский пр-кт, д.1А"},"Белозерск г, Советский пр-кт, д.1А","Белозерск г, Советский пр-кт, д.1А","Белозерск г, Советский пр-кт, д.1А","Белозерск г, Советский пр-кт, д.1А","Белозерск г, Советский пр-кт, д.1А",null,null,null,null,null,null,null,{"$f":"\"Белозерск г, Советский пр-кт, д.1А\"","v":"Белозерск г, Советский пр-кт, д.1А"},null,null,null,null,null,null,null,null,null,null,null,null,null,null,null,null,"Белозерск г, Советский пр-кт, д. 1А",null,null,null,null,"Белозерск г, Советский пр-кт, д. 1А",null,null,null,null,null,null,null,null,null,null,"Белозерск г, Советский пр-кт, д. 1А",null,null,null,null,null,null,"Белозерск г, Советский пр-кт, д. 1А",null,null,null,null,null,"Белозерск г, Советский пр-кт, д. 1А",null,null,null,null,null,null,null,null,"Белозерск г, Советский пр-кт, д. 1А",null,null,null,null,null,"Белозерск г, Советский пр-кт, д. 1А",null,null,null,null,null,null,null,"Белозерск г, Советский пр-кт, д. 1А",null,null,null,null,null,null,"Белозерск г, Советский пр-кт, д. 1А",null,null,null,null,null,null,null,null,"Белозерск г, Советский пр-кт, д. 1А",null,null,null,null,"Белозерск г, Советский пр-кт, д. 1А",null,null,null,null,null,null,null,null,"Белозерск г, Советский пр-кт, д. 1А",null,null,null,null,null,null,null,null,null,null,null,null,null,null,null,null,null,null,null,null,null,null,null,null,null,"Общий счет РО+ 520,30","Признан аварийным. Постановление № 1623 от 25.11.2024","Исключен 02.04.2025"]
[{"$f":"\"Белозерск г, Советский пр-кт, д.1Б\"","v":"Белозерск г, Советский пр-кт, д.1Б"},"Белозерск г, Советский пр-кт, д.1Б","Белозерск г, Советский пр-кт, д.1Б","Белозерск г, Советский пр-кт, д.1Б","Белозерск г, Советский пр-кт, д.1Б","Белозерск г, Советский пр-кт, д.1Б",null,null,null,null,null,null,null,{"$f":"\"Белозерск г, Советский пр-кт, д.1Б\"","v":"Белозерск г, Советский пр-кт, д.1Б"},null,null,null,null,null,null,null,null,null,null,null,null,null,null,null,null,"Белозерск г, Советский пр-кт, д. 1Б",null,null,null,null,"Белозерск г, Советский пр-кт, д. 1Б",null,null,null,null,null,null,null,null,null,null,"Белозерск г, Советский пр-кт, д. 1Б",null,null,null,null,null,null,"Белозерск г, Советский пр-кт, д. 1Б",null,null,null,null,null,"Белозерск г, Советский пр-кт, д. 1Б",null,null,null,null,null,null,null,null,"Белозерск г, Советский пр-кт, д. 1Б",null,null,null,null,null,"Белозерск г, Советский пр-кт, д. 1Б",null,null,null,null,null,null,null,"Белозерск г, Советский пр-кт, д. 1Б",null,null,null,null,null,null,"Белозерск г, Советский пр-кт, д. 1Б",null,null,null,null,null,null,null,null,"Белозерск г, Советский пр-кт, д. 1Б",null,null,null,null,"Белозерск г, Советский пр-кт, д. 1Б",null,null,null,null,null,null,null,null,"Белозерск г, Советский пр-кт, д. 1Б",null,null,null,null,"Белозерск г, Советский пр-кт, д. 1Б",null,null,null,null,"Белозерск г, Советский пр-кт, д. 1Б",null,null,"Белозерск г, Советский пр-кт, д. 1Б",null,null,null,null,null,null,null,null,null,null,null,null,"Общий счет РО+"]
[{"$f":"\"Белозерск г, Советский пр-кт, д.2А\"","v":"Белозерск г, Советский пр-кт, д.2А"},"Белозерск г, Советский пр-кт, д.2А","Белозерск г, Советский пр-кт, д.2А","Белозерск г, Советский пр-кт, д.2А","Белозерск г, Советский пр-кт, д.2А","Белозерск г, Советский пр-кт, д.2А",null,null,null,null,null,null,null,{"$f":"\"Белозерск г, Советский пр-кт, д.2А\"","v":"Белозерск г, Советский пр-кт, д.2А"},null,null,null,null,null,null,null,null,null,null,null,null,null,null,null,null,"Белозерск г, Советский пр-кт, д. 2А",null,null,null,null,"Белозерск г, Советский пр-кт, д. 2А",null,null,null,null,null,null,null,null,null,null,"Белозерск г, Советский пр-кт, д. 2А",null,null,null,null,null,null,"Белозерск г, Советский пр-кт, д. 2А",null,null,null,null,null,"Белозерск г, Советский пр-кт, д. 2А",null,null,null,null,null,null,null,null,"Белозерск г, Советский пр-кт, д. 2А",null,null,null,null,null,"Белозерск г, Советский пр-кт, д. 2А",null,null,null,null,null,null,null,"Белозерск г, Советский пр-кт, д. 2А",null,null,null,null,null,null,"Белозерск г, Советский пр-кт, д. 2А",null,null,null,null,null,null,null,null,"Белозерск г, Советский пр-кт, д. 2А",null,null,null,null,"Белозерск г, Советский пр-кт, д. 2А",null,null,null,null,null,null,null,null,"Белозерск г, Советский пр-кт, д. 2А",null,null,null,null,"Белозерск г, Советский пр-кт, д. 2А",null,null,null,null,"Белозерск г, Советский пр-кт, д. 2А",null,null,"Белозерск г, Советский пр-кт, д. 2А",null,null,null,null,null,null,null,null,null,null,null,null,"Общий счет РО+"]
[{"$f":"\"Белозерск г, Советский пр-кт, д.3А\"","v":"Белозерск г, Советский пр-кт, д.3А"},"Белозерск г, Советский пр-кт, д.3А","Белозерск г, Советский пр-кт, д.3А","Белозерск г, Советский пр-кт, д.3А","Белозерск г, Советский пр-кт, д.3А","Белозерск г, Советский пр-кт, д.3А",null,null,null,null,null,null,null,{"$f":"\"Белозерск г, Советский пр-кт, д.3А\"","v":"Белозерск г, Советский пр-кт, д.3А"},null,null,null,null,null,null,null,null,null,null,null,null,null,null,null,null,"Белозерск г, Советский пр-кт, д. 3А",null,null,null,null,"Белозерск г, Советский пр-кт, д. 3А",null,null,null,null,null,null,null,null,null,null,"Белозерск г, Советский пр-кт, д. 3А",null,null,null,null,null,null,"Белозерск г, Советский пр-кт, д. 3А",null,null,null,null,null,"Белозерск г, Советский пр-кт, д. 3А",null,null,null,null,null,null,null,null,"Белозерск г, Советский пр-кт, д. 3А",null,null,null,null,null,"Белозерск г, Советский пр-кт, д. 3А",null,null,null,null,null,null,null,"Белозерск г, Советский пр-кт, д. 3А",null,null,null,null,null,null,"Белозерск г, Советский пр-кт, д. 3А",null,null,null,null,null,null,null,null,"Белозерск г, Советский пр-кт, д. 3А",null,null,null,null,"Белозерск г, Советский пр-кт, д. 3А",null,null,null,null,null,null,null,null,"Белозерск г, Советский пр-кт, д. 3А",null,null,null,null,"Белозерск г, Советский пр-кт, д. 3А",null,null,null,null,"Белозерск г, Советский пр-кт, д. 3А",null,null,"Белозерск г, Советский пр-кт, д. 3А",null,null,null,null,null,null,null,null,null,null,null,null,"Общий счет РО+"]
[{"$f":"\"Белозерск г, Советский пр-кт, д.5А\"","v":"Белозерск г, Советский пр-кт, д.5А"},"Белозерск г, Советский пр-кт, д.5А","Белозерск г, Советский пр-кт, д.5А","Белозерск г, Советский пр-кт, д.5А","Белозерск г, Советский пр-кт, д.5А","Белозерск г, Советский пр-кт, д.5А",null,null,null,null,null,null,null,{"$f":"\"Белозерск г, Советский пр-кт, д.5А\"","v":"Белозерск г, Советский пр-кт, д.5А"},null,null,null,null,null,null,null,null,null,null,null,null,null,null,null,null,"Белозерск г, Советский пр-кт, д. 5А",null,null,null,null,"Белозерск г, Советский пр-кт, д. 5А",null,null,null,null,null,null,null,null,null,null,"Белозерск г, Советский пр-кт, д. 5А",null,null,null,null,null,null,"Белозерск г, Советский пр-кт, д. 5А",null,null,null,null,null,"Белозерск г, Советский пр-кт, д. 5А",null,null,null,null,null,null,null,null,"Белозерск г, Советский пр-кт, д. 5А",null,null,null,null,null,"Белозерск г, Советский пр-кт, д. 5А",null,null,null,null,null,null,null,"Белозерск г, Советский пр-кт, д. 5А",null,null,null,null,null,null,"Белозерск г, Советский пр-кт, д. 5А",null,null,null,null,null,null,null,null,"Белозерск г, Советский пр-кт, д. 5А",null,null,null,null,"Белозерск г, Советский пр-кт, д. 5А",null,null,null,null,null,null,null,null,"Белозерск г, Советский пр-кт, д. 5А",null,null,null,null,"Белозерск г, Советский пр-кт, д. 5А",null,null,null,null,"Белозерск г, Советский пр-кт, д. 5А",null,null,"Белозерск г, Советский пр-кт, д. 5А",null,null,null,null,null,null,null,null,null,null,null,null,"Общий счет РО+"]
[{"$f":"\"Белозерск г, Советский пр-кт, д.9\"","v":"Белозерск г, Советский пр-кт, д.9"},"Белозерск г, Советский пр-кт, д.9","Белозерск г, Советский пр-кт, д.9","Белозерск г, Советский пр-кт, д.9","Белозерск г, Советский пр-кт, д.9","Белозерск г, Советский пр-кт, д.9",null,null,null,null,null,null,null,{"$f":"\"Белозерск г, Советский пр-кт, д.9\"","v":"Белозерск г, Советский пр-кт, д.9"},null,null,null,null,null,null,null,null,null,null,null,null,null,null,null,null,"Белозерск г, Советский пр-кт, д. 9",null,null,null,null,"Белозерск г, Советский пр-кт, д. 9",null,null,null,null,null,null,null,null,null,null,"Белозерск г, Советский пр-кт, д. 9",null,null,null,null,null,null,"Белозерск г, Советский пр-кт, д. 9",null,null,null,null,null,"Белозерск г, Советский пр-кт, д. 9",null,null,null,null,null,null,null,null,"Белозерск г, Советский пр-кт, д. 9",null,null,null,null,null,"Белозерск г, Советский пр-кт, д. 9",null,null,null,null,null,null,null,"Белозерск г, Советский пр-кт, д. 9",null,null,null,null,null,null,"Белозерск г, Советский пр-кт, д. 9",null,null,null,null,null,null,null,null,"Белозерск г, Советский пр-кт, д. 9",null,null,null,null,"Белозерск г, Советский пр-кт, д. 9",null,null,null,null,null,null,null,null,"Белозерск г, Советский пр-кт, д. 9",null,null,null,null,"Белозерск г, Советский пр-кт, д. 9",null,null,null,null,"Белозерск г, Советский пр-кт, д. 9",null,null,"Белозерск г, Советский пр-кт, д. 9",null,null,null,null,null,null,null,null,null,null,null,null,"Общий счет РО+"]
[{"$f":"\"Белозерск г, Советский пр-кт, д.9Б\"","v":"Белозерск г, Советский пр-кт, д.9Б"},"Белозерск г, Советский пр-кт, д.9Б","Белозерск г, Советский пр-кт, д.9Б","Белозерск г, Советский пр-кт, д.9Б","Белозерск г, Советский пр-кт, д.9Б","Белозерск г, Советский пр-кт, д.9Б",null,null,null,null,null,null,null,{"$f":"\"Белозерск г, Советский пр-кт, д.9Б\"","v":"Белозерск г, Советский пр-кт, д.9Б"},null,null,null,null,null,null,null,null,null,null,null,null,null,null,null,null,"Белозерск г, Советский пр-кт, д. 9Б",null,null,null,null,"Белозерск г, Советский пр-кт, д. 9Б",null,null,null,null,null,null,null,null,null,null,"Белозерск г, Советский пр-кт, д. 9Б",null,null,null,null,null,null,"Белозерск г, Советский пр-кт, д. 9Б",null,null,null,null,null,"Белозерск г, Советский пр-кт, д. 9Б",null,null,null,null,null,null,null,null,"Белозерск г, Советский пр-кт, д. 9Б",null,null,null,null,null,"Белозерск г, Советский пр-кт, д. 9Б",null,null,null,null,null,null,null,"Белозерск г, Советский пр-кт, д. 9Б",null,null,null,null,null,null,"Белозерск г, Советский пр-кт, д. 9Б",null,null,null,null,null,null,null,null,"Белозерск г, Советский пр-кт, д. 9Б",null,null,null,null,"Белозерск г, Советский пр-кт, д. 9Б",null,null,null,null,null,null,null,null,"Белозерск г, Советский пр-кт, д. 9Б",null,null,null,null,"Белозерск г, Советский пр-кт, д. 9Б",null,null,null,null,"Белозерск г, Советский пр-кт, д. 9Б",null,null,"Белозерск г, Советский пр-кт, д. 9Б",null,null,null,null,null,null,null,null,null,null,null,null,"Общий счет РО+"]
[{"$f":"\"Белозерск г, Советский пр-кт, д.9А\"","v":"Белозерск г, Советский пр-кт, д.9А"},"Белозерск г, Советский пр-кт, д.9А","Белозерск г, Советский пр-кт, д.9А","Белозерск г, Советский пр-кт, д.9А","Белозерск г, Советский пр-кт, д.9А","Белозерск г, Советский пр-кт, д.9А",null,null,null,null,null,null,null,{"$f":"\"Белозерск г, Советский пр-кт, д.9А\"","v":"Белозерск г, Советский пр-кт, д.9А"},null,null,null,null,null,null,null,null,null,null,null,null,null,null,null,null,"Белозерск г, Советский пр-кт, д. 9А",null,null,null,null,"Белозерск г, Советский пр-кт, д. 9А",null,null,null,null,null,null,null,null,null,null,"Белозерск г, Советский пр-кт, д. 9А",null,null,null,null,null,null,"Белозерск г, Советский пр-кт, д. 9А",null,null,null,null,null,"Белозерск г, Советский пр-кт, д. 9А",null,null,null,null,null,null,null,null,"Белозерск г, Советский пр-кт, д. 9А",null,null,null,null,null,"Белозерск г, Советский пр-кт, д. 9А",null,null,null,null,null,null,null,"Белозерск г, Советский пр-кт, д. 9А",null,null,null,null,null,null,"Белозерск г, Советский пр-кт, д. 9А",null,null,null,null,null,null,null,null,"Белозерск г, Советский пр-кт, д. 9А",null,null,null,null,"Белозерск г, Советский пр-кт, д. 9А",null,null,null,null,null,null,null,null,"Белозерск г, Советский пр-кт, д. 9А",null,null,null,null,"Белозерск г, Советский пр-кт, д. 9А",null,null,null,null,"Белозерск г, Советский пр-кт, д. 9А",null,null,"Белозерск г, Советский пр-кт, д. 9А",null,null,null,null,null,null,null,null,null,null,null,null,"Общий счет РО+"]
[{"$f":"\"Белозерск г, Советский пр-кт, д.11\"","v":"Белозерск г, Советский пр-кт, д.11"},"Белозерск г, Советский пр-кт, д.11","Белозерск г, Советский пр-кт, д.11","Белозерск г, Советский пр-кт, д.11","Белозерск г, Советский пр-кт, д.11","Белозерск г, Советский пр-кт, д.11",null,null,null,null,null,null,null,{"$f":"\"Белозерск г, Советский пр-кт, д.11\"","v":"Белозерск г, Советский пр-кт, д.11"},null,null,null,null,null,null,null,null,null,null,null,null,null,null,null,null,"Белозерск г, Советский пр-кт, д. 11",null,null,null,null,"Белозерск г, Советский пр-кт, д. 11",null,null,null,null,null,null,null,null,null,null,"Белозерск г, Советский пр-кт, д. 11",null,null,null,null,null,null,"Белозерск г, Советский пр-кт, д. 11",null,null,null,null,null,"Белозерск г, Советский пр-кт, д. 11",null,null,null,null,null,null,null,null,"Белозерск г, Советский пр-кт, д. 11",null,null,null,null,null,"Белозерск г, Советский пр-кт, д. 11",null,null,null,null,null,null,null,"Белозерск г, Советский пр-кт, д. 11",null,null,null,null,null,null,"Белозерск г, Советский пр-кт, д. 11",null,null,null,null,null,null,null,null,"Белозерск г, Советский пр-кт, д. 11",null,null,null,null,"Белозерск г, Советский пр-кт, д. 11",null,null,null,null,null,null,null,null,"Белозерск г, Советский пр-кт, д. 11",null,null,null,null,"Белозерск г, Советский пр-кт, д. 11",null,null,null,null,"Белозерск г, Советский пр-кт, д. 11",null,null,"Белозерск г, Советский пр-кт, д. 11",null,null,null,null,null,null,null,null,null,null,null,null,"Общий счет РО+"]
[{"$f":"\"Белозерск г, Советский пр-кт, д.20\"","v":"Белозерск г, Советский пр-кт, д.20"},"Белозерск г, Советский пр-кт, д.20","Белозерск г, Советский пр-кт, д.20","Белозерск г, Советский пр-кт, д.20","Белозерск г, Советский пр-кт, д.20","Белозерск г, Советский пр-кт, д.20",null,null,null,null,null,null,null,{"$f":"\"Белозерск г, Советский пр-кт, д.20\"","v":"Белозерск г, Советский пр-кт, д.20"},null,null,null,null,null,null,null,null,null,null,null,null,null,null,null,null,"Белозерск г, Советский пр-кт, д. 20",null,null,null,null,"Белозерск г, Советский пр-кт, д. 20",null,null,null,null,null,null,null,null,null,null,"Белозерск г, Советский пр-кт, д. 20",null,null,null,null,null,null,"Белозерск г, Советский пр-кт, д. 20",null,null,null,null,null,"Белозерск г, Советский пр-кт, д. 20",null,null,null,null,null,null,null,null,"Белозерск г, Советский пр-кт, д. 20",null,null,null,null,null,"Белозерск г, Советский пр-кт, д. 20",null,null,null,null,null,null,null,"Белозерск г, Советский пр-кт, д. 20",null,null,null,null,null,null,"Белозерск г, Советский пр-кт, д. 20",null,null,null,null,null,null,null,null,null,null,null,null,null,null,null,null,null,null,null,null,null,null,null,null,null,null,null,null,null,null,null,null,null,null,null,null,null,null,null,null,null,null,null,null,null,null,null,null,"Общий счет РО 373,80","Признан аварийным. Постановление 702 от 01.06.2023"]
[{"$f":"\"Белозерск г, Советский пр-кт, д.21\"","v":"Белозерск г, Советский пр-кт, д.21"},"Белозерск г, Советский пр-кт, д.21","Белозерск г, Советский пр-кт, д.21","Белозерск г, Советский пр-кт, д.21","Белозерск г, Советский пр-кт, д.21","Белозерск г, Советский пр-кт, д.21",null,null,null,null,null,null,null,{"$f":"\"Белозерск г, Советский пр-кт, д.21\"","v":"Белозерск г, Советский пр-кт, д.21"},null,null,null,null,null,null,null,null,null,null,null,null,null,null,null,null,"Белозерск г, Советский пр-кт, д. 21",null,null,null,null,"Белозерск г, Советский пр-кт, д. 21",null,null,null,null,null,null,null,null,null,null,"Белозерск г, Советский пр-кт, д. 21",null,null,null,null,null,null,"Белозерск г, Советский пр-кт, д. 21",null,null,null,null,null,"Белозерск г, Советский пр-кт, д. 21",null,null,null,null,null,null,null,null,"Белозерск г, Советский пр-кт, д. 21",null,null,null,null,null,"Белозерск г, Советский пр-кт, д. 21",null,null,null,null,null,null,null,"Белозерск г, Советский пр-кт, д. 21",null,null,null,null,null,null,"Белозерск г, Советский пр-кт, д. 21",null,null,null,null,null,null,null,null,"Белозерск г, Советский пр-кт, д. 21",null,null,null,null,"Белозерск г, Советский пр-кт, д. 21",null,null,null,null,null,null,null,null,"Белозерск г, Советский пр-кт, д. 21",null,null,null,null,"Белозерск г, Советский пр-кт, д. 21",null,null,null,null,"Белозерск г, Советский пр-кт, д. 21",null,null,"Белозерск г, Советский пр-кт, д. 21",null,null,null,null,null,null,null,null,null,null,null,null,"Общий счет РО+"]
[{"$f":"\"Белозерск г, Советский пр-кт, д.31\"","v":"Белозерск г, Советский пр-кт, д.31"},"Белозерск г, Советский пр-кт, д.31","Белозерск г, Советский пр-кт, д.31","Белозерск г, Советский пр-кт, д.31","Белозерск г, Советский пр-кт, д.31","Белозерск г, Советский пр-кт, д.31",null,null,null,null,null,null,null,{"$f":"\"Белозерск г, Советский пр-кт, д.31\"","v":"Белозерск г, Советский пр-кт, д.31"},null,null,null,null,null,null,null,null,null,null,null,null,null,null,null,null,"Белозерск г, Советский пр-кт, д. 31",null,null,null,null,"Белозерск г, Советский пр-кт, д. 31",null,null,null,null,null,null,null,null,null,null,"Белозерск г, Советский пр-кт, д. 31",null,null,null,null,null,null,"Белозерск г, Советский пр-кт, д. 31",null,null,null,null,null,"Белозерск г, Советский пр-кт, д. 31",null,null,null,null,null,null,null,null,"Белозерск г, Советский пр-кт, д. 31",null,null,null,null,null,"Белозерск г, Советский пр-кт, д. 31",null,null,null,null,null,null,null,"Белозерск г, Советский пр-кт, д. 31",null,null,null,null,null,null,"Белозерск г, Советский пр-кт, д. 31",null,null,null,null,null,null,null,null,"Белозерск г, Советский пр-кт, д. 31",null,null,null,null,"Белозерск г, Советский пр-кт, д. 31",null,null,null,null,null,null,null,null,"Белозерск г, Советский пр-кт, д. 31",null,null,null,null,"Белозерск г, Советский пр-кт, д. 31",null,null,null,null,"Белозерск г, Советский пр-кт, д. 31",null,null,"Белозерск г, Советский пр-кт, д. 31",null,null,null,null,null,null,null,null,null,null,null,null,"Общий счет РО+"]
[{"$f":"\"Белозерск г, Труда ул, д.23\"","v":"Белозерск г, Труда ул, д.23"},{"$f":"\"Белозерск г, Труда ул, д.23\"","v":"Белозерск г, Труда ул, д.23"},{"$f":"\"Белозерск г, Труда ул, д.23\"","v":"Белозерск г, Труда ул, д.23"},{"$f":"\"Белозерск г, Труда ул, д.23\"","v":"Белозерск г, Труда ул, д.23"},{"$f":"\"Белозерск г, Труда ул, д.23\"","v":"Белозерск г, Труда ул, д.23"},null,null,null,null,null,null,null,null,null,null,null,null,null,null,null,null,null,null,null,null,null,null,null,null,null,null,null,null,null,null,null,null,null,null,null,null,null,null,null,null,null,null,null,null,null,null,null,null,null,null,null,null,null,null,null,null,null,null,null,null,null,null,null,null,null,null,null,null,null,null,null,null,null,null,null,null,null,null,null,null,null,null,null,null,null,null,null,null,null,null,null,null,null,null,null,null,null,null,null,null,null,null,null,null,null,null,null,null,null,null,null,null,null,null,null,null,null,null,null,null,null,null,null,null,null,null,null,null,null,null,null,null,null,"Общий счет РО","признан аварийным. Расчет прекращен с 01.05.2016","Исключен 28.11.2016"]
[{"$f":"\"Белозерск г, Труда ул, д.25\"","v":"Белозерск г, Труда ул, д.25"},"Белозерск г, Труда ул, д.25","Белозерск г, Труда ул, д.25","Белозерск г, Труда ул, д.25","Белозерск г, Труда ул, д.25","Белозерск г, Труда ул, д.25",null,null,null,null,null,null,null,{"$f":"\"Белозерск г, Труда ул, д.25\"","v":"Белозерск г, Труда ул, д.25"},null,null,null,null,null,null,null,null,null,null,null,null,null,null,null,null,"Белозерск г, Труда ул, д. 25",null,null,null,null,"Белозерск г, Труда ул, д. 25",null,null,null,null,null,null,null,null,null,null,null,null,null,null,null,null,null,null,null,null,null,null,null,null,null,null,null,null,null,null,null,null,null,null,null,null,null,null,null,null,null,null,null,null,null,null,null,null,null,null,null,null,null,null,null,null,null,null,null,null,null,null,null,null,null,null,null,null,null,null,null,null,null,null,null,null,null,null,null,null,null,null,null,null,null,null,null,null,null,null,null,null,null,null,null,null,null,null,null,null,null,null,"Общий счет РО - 498,80","Признан аварийным. Заключение № 110 от 20.05.2019","Исключен 20.01.2020"]
[{"$f":"\"Белозерск г, Труда ул, д.30\"","v":"Белозерск г, Труда ул, д.30"},"Белозерск г, Труда ул, д.30","Белозерск г, Труда ул, д.30","Белозерск г, Труда ул, д.30","Белозерск г, Труда ул, д.30","Белозерск г, Труда ул, д.30",null,null,null,null,null,null,null,{"$f":"\"Белозерск г, Труда ул, д.30\"","v":"Белозерск г, Труда ул, д.30"},null,null,null,null,null,null,null,null,null,null,null,null,null,null,null,null,null,null,null,null,null,null,null,null,null,null,null,null,null,null,null,null,null,null,null,null,null,null,null,null,null,null,null,null,null,null,null,null,null,null,null,null,null,null,null,null,null,null,null,null,null,null,null,null,null,null,null,null,null,null,null,null,null,null,null,null,null,null,null,null,null,null,null,null,null,null,null,null,null,null,null,null,null,null,null,null,null,null,null,null,null,null,null,null,null,null,null,null,null,null,null,null,null,null,null,null,null,null,null,null,null,null,null,null,"Общий счет РО","Признан аварийным. Прекращён расчет с августа 2017 года. Площадь 326,40","Исключен 30.11.2018"]
[{"$f":"\"Белозерск г, Труда ул, д.31\"","v":"Белозерск г, Труда ул, д.31"},"Белозерск г, Труда ул, д.31","Белозерск г, Труда ул, д.31","Белозерск г, Труда ул, д.31","Белозерск г, Труда ул, д.31","Белозерск г, Труда ул, д.31",null,null,null,null,null,null,null,{"$f":"\"Белозерск г, Труда ул, д.31\"","v":"Белозерск г, Труда ул, д.31"},null,null,null,null,null,null,null,null,null,null,null,null,null,null,null,null,"Белозерск г, Труда ул, д. 31",null,null,null,null,"Белозерск г, Труда ул, д. 31",null,null,null,null,null,null,null,null,null,null,"Белозерск г, Труда ул, д. 31",null,null,null,null,null,null,"Белозерск г, Труда ул, д. 31",null,null,null,null,null,"Белозерск г, Труда ул, д. 31",null,null,null,null,null,null,null,null,"Белозерск г, Труда ул, д. 31",null,null,null,null,null,"Белозерск г, Труда ул, д. 31",null,null,null,null,null,null,null,"Белозерск г, Труда ул, д. 31",null,null,null,null,null,null,"Белозерск г, Труда ул, д. 31",null,null,null,null,null,null,null,null,"Белозерск г, Труда ул, д. 31",null,null,null,null,"Белозерск г, Труда ул, д. 31",null,null,null,null,null,null,null,null,"Белозерск г, Труда ул, д. 31",null,null,null,null,"Белозерск г, Труда ул, д. 31",null,null,null,null,"Белозерск г, Труда ул, д. 31",null,null,"Белозерск г, Труда ул, д. 31",null,null,null,null,null,null,null,null,null,null,null,null,"Общий счет РО+","Признан аварийным. Постановление 1702 от 29.12.2025"]
[{"$f":"\"Белозерск г, Труда ул, д.33\"","v":"Белозерск г, Труда ул, д.33"},"Белозерск г, Труда ул, д.33","Белозерск г, Труда ул, д.33","Белозерск г, Труда ул, д.33","Белозерск г, Труда ул, д.33","Белозерск г, Труда ул, д.33",null,null,null,null,null,null,null,{"$f":"\"Белозерск г, Труда ул, д.33\"","v":"Белозерск г, Труда ул, д.33"},null,null,null,null,null,null,null,null,null,null,null,null,null,null,null,null,"Белозерск г, Труда ул, д. 33",null,null,null,null,"Белозерск г, Труда ул, д. 33",null,null,null,null,null,null,null,null,null,null,"Белозерск г, Труда ул, д. 33",null,null,null,null,null,null,"Белозерск г, Труда ул, д. 33",null,null,null,null,null,"Белозерск г, Труда ул, д. 33",null,null,null,null,null,null,null,null,"Белозерск г, Труда ул, д. 33",null,null,null,null,null,"Белозерск г, Труда ул, д. 33",null,null,null,null,null,null,null,"Белозерск г, Труда ул, д. 33",null,null,null,null,null,null,"Белозерск г, Труда ул, д. 33",null,null,null,null,null,null,null,null,null,null,null,null,null,null,null,null,null,null,null,null,null,null,null,null,null,null,null,null,null,null,null,null,null,null,null,null,null,null,null,null,null,null,null,null,null,null,null,null,"Общий счет РО 504,60","Признан аварийным. Заключение № 191 от 21.03.2023"]
[{"$f":"\"Белозерск г, Труда ул, д.35\"","v":"Белозерск г, Труда ул, д.35"},"Белозерск г, Труда ул, д.35","Белозерск г, Труда ул, д.35","Белозерск г, Труда ул, д.35","Белозерск г, Труда ул, д.35","Белозерск г, Труда ул, д.35",null,null,null,null,null,null,null,{"$f":"\"Белозерск г, Труда ул, д.35\"","v":"Белозерск г, Труда ул, д.35"},null,null,null,null,null,null,null,null,null,null,null,null,null,null,null,null,"Белозерск г, Труда ул, д. 35",null,null,null,null,"Белозерск г, Труда ул, д. 35",null,null,null,null,null,null,null,null,null,null,"Белозерск г, Труда ул, д. 35",null,null,null,null,null,null,"Белозерск г, Труда ул, д. 35",null,null,null,null,null,"Белозерск г, Труда ул, д. 35",null,null,null,null,null,null,null,null,"Белозерск г, Труда ул, д. 35",null,null,null,null,null,"Белозерск г, Труда ул, д. 35",null,null,null,null,null,null,null,"Белозерск г, Труда ул, д. 35",null,null,null,null,null,null,"Белозерск г, Труда ул, д. 35",null,null,null,null,null,null,null,null,"Белозерск г, Труда ул, д. 35",null,null,null,null,"Белозерск г, Труда ул, д. 35",null,null,null,null,null,null,null,null,null,null,null,null,null,null,null,null,null,null,null,null,null,null,null,null,null,null,null,null,null,null,null,null,null,null,"Общий счет РО+343,0","Признан аварийным. Постановление № 959 от 04.09.2024","Исключен 07.11.2024"]
[{"$f":"\"Белозерск г, Урицкого ул, д.1\"","v":"Белозерск г, Урицкого ул, д.1"},"Белозерск г, Урицкого ул, д.1","Белозерск г, Урицкого ул, д.1","Белозерск г, Урицкого ул, д.1","Белозерск г, Урицкого ул, д.1","Белозерск г, Урицкого ул, д.1",null,null,null,null,null,null,null,{"$f":"\"Белозерск г, Урицкого ул, д.1\"","v":"Белозерск г, Урицкого ул, д.1"},null,null,null,null,null,null,null,null,null,null,null,null,null,null,null,null,"Белозерск г, Урицкого ул, д. 1",null,null,null,null,"Белозерск г, Урицкого ул, д. 1",null,null,null,null,null,null,null,null,null,null,"Белозерск г, Урицкого ул, д. 1",null,null,null,null,null,null,"Белозерск г, Урицкого ул, д. 1",null,null,null,null,null,"Белозерск г, Урицкого ул, д. 1",null,null,null,null,null,null,null,null,"Белозерск г, Урицкого ул, д. 1",null,null,null,null,null,"Белозерск г, Урицкого ул, д. 1",null,null,null,null,null,null,null,null,null,null,null,null,null,null,null,null,null,null,null,null,null,null,null,null,null,null,null,null,null,null,null,null,null,null,null,null,null,null,null,null,null,null,null,null,null,null,null,null,null,null,null,null,null,null,null,null,null,null,null,null,null,null,null,"Общий счет РО - 202,80","Признан аварийным. Постановление № 76 от 03.03.2022","Исключен 19.09.2022"]
[null,null,{"$f":"\"Белозерск г, Фрунзе ул, д.15А\"","v":"Белозерск г, Фрунзе ул, д.15А"},{"$f":"\"Белозерск г, Фрунзе ул, д.15А\"","v":"Белозерск г, Фрунзе ул, д.15А"},{"$f":"\"Белозерск г, Фрунзе ул, д.15А\"","v":"Белозерск г, Фрунзе ул, д.15А"},null,null,null,null,null,null,null,null,null,null,null,null,null,null,null,null,null,null,null,null,null,null,null,null,null,null,null,null,null,null,null,null,null,null,null,null,null,null,null,null,null,null,null,null,null,null,null,null,null,null,null,null,null,null,null,null,null,null,null,null,null,null,null,null,null,null,null,null,null,null,null,null,null,null,null,null,null,null,null,null,null,null,null,null,null,null,null,null,null,null,null,null,null,null,null,null,null,null,null,null,null,null,null,null,null,null,null,null,null,null,null,null,null,null,null,null,null,null,null,null,null,null,null,null,null,null,null,null,null,null,null,null,null,"Общий счет РО","признан аварийным. Расчет прекращен с 01.09.2016","Исключен 28.11.2016"]
[{"$f":"\"Белозерск г, Фрунзе ул, д.29А\"","v":"Белозерск г, Фрунзе ул, д.29А"},"Белозерск г, Фрунзе ул, д.29А","Белозерск г, Фрунзе ул, д.29А","Белозерск г, Фрунзе ул, д.29А","Белозерск г, Фрунзе ул, д.29А","Белозерск г, Фрунзе ул, д.29А",null,null,null,null,null,null,null,{"$f":"\"Белозерск г, Фрунзе ул, д.29А\"","v":"Белозерск г, Фрунзе ул, д.29А"},null,null,null,null,null,null,null,null,null,null,null,null,null,null,null,null,"Белозерск г, Фрунзе ул, д. 29А",null,null,null,null,null,null,null,null,null,null,null,null,null,null,null,null,null,null,null,null,null,null,null,null,null,null,null,null,null,null,null,null,null,null,null,null,null,null,null,null,null,null,null,null,null,null,null,null,null,null,null,null,null,null,null,null,null,null,null,null,null,null,null,null,null,null,null,null,null,null,null,null,null,null,null,null,null,null,null,null,null,null,null,null,null,null,null,null,null,null,null,null,null,null,null,null,null,null,null,null,null,null,null,null,null,null,null,"Общий счет РО - 239,90",null,"Исключен 01.04.2019"]
[{"$f":"\"Белозерск г, Фрунзе ул, д.50А\"","v":"Белозерск г, Фрунзе ул, д.50А"},{"$f":"\"Белозерск г, Фрунзе ул, д.50А\"","v":"Белозерск г, Фрунзе ул, д.50А"},{"$f":"\"Белозерск г, Фрунзе ул, д.50А\"","v":"Белозерск г, Фрунзе ул, д.50А"},{"$f":"\"Белозерск г, Фрунзе ул, д.50А\"","v":"Белозерск г, Фрунзе ул, д.50А"},null,null,null,null,null,null,null,null,null,null,null,null,null,null,null,null,null,null,null,null,null,null,null,null,null,null,null,null,null,null,null,null,null,null,null,null,null,null,null,null,null,null,null,null,null,null,null,null,null,null,null,null,null,null,null,null,null,null,null,null,null,null,null,null,null,null,null,null,null,null,null,null,null,null,null,null,null,null,null,null,null,null,null,null,null,null,null,null,null,null,null,null,null,null,null,null,null,null,null,null,null,null,null,null,null,null,null,null,null,null,null,null,null,null,null,null,null,null,null,null,null,null,null,null,null,null,null,null,null,null,null,null,null,null,"Общий счет РО","признан аварийным. Расчет прекращен с 01.05.2016","Исключен 20.06.2016"]
[{"$f":"\"Белозерск г, Фрунзе ул, д.67\"","v":"Белозерск г, Фрунзе ул, д.67"},"Белозерск г, Фрунзе ул, д.67","Белозерск г, Фрунзе ул, д.67","Белозерск г, Фрунзе ул, д.67","Белозерск г, Фрунзе ул, д.67","Белозерск г, Фрунзе ул, д.67",null,null,null,null,null,null,null,{"$f":"\"Белозерск г, Фрунзе ул, д.67\"","v":"Белозерск г, Фрунзе ул, д.67"},null,null,null,null,null,null,null,null,null,null,null,null,null,null,null,null,"Белозерск г, Фрунзе ул, д. 67",null,null,null,null,null,null,null,null,null,null,null,null,null,null,null,null,null,null,null,null,null,null,null,null,null,null,null,null,null,null,null,null,null,null,null,null,null,null,null,null,null,null,null,null,null,null,null,null,null,null,null,null,null,null,null,null,null,null,null,null,null,null,null,null,null,null,null,null,null,null,null,null,null,null,null,null,null,null,null,null,null,null,null,null,null,null,null,null,null,null,null,null,null,null,null,null,null,null,null,null,null,null,null,null,null,null,null,"Общий счет РО - 261,70",null,"Исключен 01.04.2019"]
[{"$f":"\"Белозерск г, Чкалова ул, д.11\"","v":"Белозерск г, Чкалова ул, д.11"},{"$f":"\"Белозерск г, Чкалова ул, д.11\"","v":"Белозерск г, Чкалова ул, д.11"},{"$f":"\"Белозерск г, Чкалова ул, д.11\"","v":"Белозерск г, Чкалова ул, д.11"},{"$f":"\"Белозерск г, Чкалова ул, д.11\"","v":"Белозерск г, Чкалова ул, д.11"},null,null,null,null,null,null,null,null,null,null,null,null,null,null,null,null,null,null,null,null,null,null,null,null,null,null,null,null,null,null,null,null,null,null,null,null,null,null,null,null,null,null,null,null,null,null,null,null,null,null,null,null,null,null,null,null,null,null,null,null,null,null,null,null,null,null,null,null,null,null,null,null,null,null,null,null,null,null,null,null,null,null,null,null,null,null,null,null,null,null,null,null,null,null,null,null,null,null,null,null,null,null,null,null,null,null,null,null,null,null,null,null,null,null,null,null,null,null,null,null,null,null,null,null,null,null,null,null,null,null,null,null,null,null,"Общий счет РО","признан аварийным. Расчет прекращен с 01.05.2016","Исключен 20.06.2016"]
[{"$f":"\"Белозерск г, Чкалова ул, д.14\"","v":"Белозерск г, Чкалова ул, д.14"},"Белозерск г, Чкалова ул, д.14","Белозерск г, Чкалова ул, д.14","Белозерск г, Чкалова ул, д.14","Белозерск г, Чкалова ул, д.14","Белозерск г, Чкалова ул, д.14",null,null,null,null,null,null,null,{"$f":"\"Белозерск г, Чкалова ул, д.14\"","v":"Белозерск г, Чкалова ул, д.14"},null,null,null,null,null,null,null,null,null,null,null,null,null,null,null,null,"Белозерск г, Чкалова ул, д. 14",null,null,null,null,"Белозерск г, Чкалова ул, д. 14",null,null,null,null,null,null,null,null,null,null,"Белозерск г, Чкалова ул, д. 14",null,null,null,null,null,null,"Белозерск г, Чкалова ул, д. 14",null,null,null,null,null,null,null,null,null,null,null,null,null,null,null,null,null,null,null,null,null,null,null,null,null,null,null,null,null,null,null,null,null,null,null,null,null,null,null,null,null,null,null,null,null,null,null,null,null,null,null,null,null,null,null,null,null,null,null,null,null,null,null,null,null,null,null,null,null,null,null,null,null,null,null,null,null,null,null,null,null,null,null,null,"Общий счет РО - 341,40","Признан аварийным. Заключение № 112 от 15.10.19 Постановление № 629, от 06.11.2019","Исключен 28.12.2020"]
[{"$f":"\"Белозерск г, Чкалова ул, д.1А\"","v":"Белозерск г, Чкалова ул, д.1А"},"Белозерск г, Чкалова ул, д.1А","Белозерск г, Чкалова ул, д.1А","Белозерск г, Чкалова ул, д.1А","Белозерск г, Чкалова ул, д.1А","Белозерск г, Чкалова ул, д.1А",null,null,null,null,null,null,null,{"$f":"\"Белозерск г, Чкалова ул, д.1А\"","v":"Белозерск г, Чкалова ул, д.1А"},null,null,null,null,null,null,null,null,null,null,null,null,null,null,null,null,"Белозерск г, Чкалова ул, д. 1А",null,null,null,null,"Белозерск г, Чкалова ул, д. 1А",null,null,null,null,null,null,null,null,null,null,"Белозерск г, Чкалова ул, д. 1А",null,null,null,null,null,null,"Белозерск г, Чкалова ул, д. 1А",null,null,null,null,null,"Белозерск г, Чкалова ул, д. 1А",null,null,null,null,null,null,null,null,"Белозерск г, Чкалова ул, д. 1А",null,null,null,null,null,"Белозерск г, Чкалова ул, д. 1А",null,null,null,null,null,null,null,"Белозерск г, Чкалова ул, д. 1А",null,null,null,null,null,null,"Белозерск г, Чкалова ул, д. 1А",null,null,null,null,null,null,null,null,"Белозерск г, Чкалова ул, д. 1А",null,null,null,null,"Белозерск г, Чкалова ул, д. 1А",null,null,null,null,null,null,null,null,"Белозерск г, Чкалова ул, д. 1А",null,null,null,null,"Белозерск г, Чкалова ул, д. 1А",null,null,null,null,"Белозерск г, Чкалова ул, д. 1А",null,null,"Белозерск г, Чкалова ул, д. 1А",null,null,null,null,null,null,null,null,null,null,null,null,"Общий счет РО+","Признан аварийным. Постановление 1600 от 11.12.2025"]
[{"$f":"\"Белозерск г, Шукшина ул, д.2\"","v":"Белозерск г, Шукшина ул, д.2"},"Белозерск г, Шукшина ул, д.2","Белозерск г, Шукшина ул, д.2","Белозерск г, Шукшина ул, д.2","Белозерск г, Шукшина ул, д.2","Белозерск г, Шукшина ул, д.2",null,null,null,null,null,null,null,{"$f":"\"Белозерск г, Шукшина ул, д.2\"","v":"Белозерск г, Шукшина ул, д.2"},null,null,null,null,null,null,null,null,null,null,null,null,null,null,null,null,"Белозерск г, Шукшина ул, д. 2",null,null,null,null,"Белозерск г, Шукшина ул, д. 2",null,null,null,null,null,null,null,null,null,null,"Белозерск г, Шукшина ул, д. 2",null,null,null,null,null,null,"Белозерск г, Шукшина ул, д. 2",null,null,null,null,null,"Белозерск г, Шукшина ул, д. 2",null,null,null,null,null,null,null,null,"Белозерск г, Шукшина ул, д. 2",null,null,null,null,null,"Белозерск г, Шукшина ул, д. 2",null,null,null,null,null,null,null,"Белозерск г, Шукшина ул, д. 2",null,null,null,null,null,null,"Белозерск г, Шукшина ул, д. 2",null,null,null,null,null,null,null,null,"Белозерск г, Шукшина ул, д. 2",null,null,null,null,"Белозерск г, Шукшина ул, д. 2",null,null,null,null,null,null,null,null,"Белозерск г, Шукшина ул, д. 2",null,null,null,null,"Белозерск г, Шукшина ул, д. 2",null,null,null,null,"Белозерск г, Шукшина ул, д. 2",null,null,"Белозерск г, Шукшина ул, д. 2",null,null,null,null,null,null,null,null,null,null,null,null,"Общий счет РО+"]
[{"$f":"\"Белозерск г, Шукшина ул, д.3\"","v":"Белозерск г, Шукшина ул, д.3"},"Белозерск г, Шукшина ул, д.3","Белозерск г, Шукшина ул, д.3","Белозерск г, Шукшина ул, д.3","Белозерск г, Шукшина ул, д.3","Белозерск г, Шукшина ул, д.3",null,null,null,null,null,null,null,{"$f":"\"Белозерск г, Шукшина ул, д.3\"","v":"Белозерск г, Шукшина ул, д.3"},null,null,null,null,null,null,null,null,null,null,null,null,null,null,null,null,"Белозерск г, Шукшина ул, д. 3",null,null,null,null,"Белозерск г, Шукшина ул, д. 3",null,null,null,null,null,null,null,null,null,null,"Белозерск г, Шукшина ул, д. 3",null,null,null,null,null,null,"Белозерск г, Шукшина ул, д. 3",null,null,null,null,null,"Белозерск г, Шукшина ул, д. 3",null,null,null,null,null,null,null,null,"Белозерск г, Шукшина ул, д. 3",null,null,null,null,null,"Белозерск г, Шукшина ул, д. 3",null,null,null,null,null,null,null,"Белозерск г, Шукшина ул, д. 3",null,null,null,null,null,null,"Белозерск г, Шукшина ул, д. 3",null,null,null,null,null,null,null,null,"Белозерск г, Шукшина ул, д. 3",null,null,null,null,"Белозерск г, Шукшина ул, д. 3",null,null,null,null,null,null,null,null,"Белозерск г, Шукшина ул, д. 3",null,null,null,null,"Белозерск г, Шукшина ул, д. 3",null,null,null,null,"Белозерск г, Шукшина ул, д. 3",null,null,"Белозерск г, Шукшина ул, д. 3",null,null,null,null,null,null,null,null,null,null,null,null,"Общий счет РО+"]
[{"$f":"\"Белозерск г, Шукшина ул, д.5\"","v":"Белозерск г, Шукшина ул, д.5"},"Белозерск г, Шукшина ул, д.5","Белозерск г, Шукшина ул, д.5","Белозерск г, Шукшина ул, д.5","Белозерск г, Шукшина ул, д.5","Белозерск г, Шукшина ул, д.5",null,null,null,null,null,null,null,{"$f":"\"Белозерск г, Шукшина ул, д.5\"","v":"Белозерск г, Шукшина ул, д.5"},null,null,null,null,null,null,null,null,null,null,null,null,null,null,null,null,"Белозерск г, Шукшина ул, д. 5",null,null,null,null,"Белозерск г, Шукшина ул, д. 5",null,null,null,null,null,null,null,null,null,null,"Белозерск г, Шукшина ул, д. 5",null,null,null,null,null,null,"Белозерск г, Шукшина ул, д. 5",null,null,null,null,null,"Белозерск г, Шукшина ул, д. 5",null,null,null,null,null,null,null,null,"Белозерск г, Шукшина ул, д. 5",null,null,null,null,null,"Белозерск г, Шукшина ул, д. 5",null,null,null,null,null,null,null,"Белозерск г, Шукшина ул, д. 5",null,null,null,null,null,null,"Белозерск г, Шукшина ул, д. 5",null,null,null,null,null,null,null,null,"Белозерск г, Шукшина ул, д. 5",null,null,null,null,"Белозерск г, Шукшина ул, д. 5",null,null,null,null,null,null,null,null,"Белозерск г, Шукшина ул, д. 5",null,null,null,null,"Белозерск г, Шукшина ул, д. 5",null,null,null,null,"Белозерск г, Шукшина ул, д. 5",null,null,"Белозерск г, Шукшина ул, д. 5",null,null,null,null,null,null,null,null,null,null,null,null,"Общий счет РО+"]
[{"$f":"\"Белозерск г, Шукшина ул, д.15А\"","v":"Белозерск г, Шукшина ул, д.15А"},"Белозерск г, Шукшина ул, д.15А","Белозерск г, Шукшина ул, д.15А","Белозерск г, Шукшина ул, д.15А","Белозерск г, Шукшина ул, д.15А","Белозерск г, Шукшина ул, д.15А",null,null,null,null,null,null,null,{"$f":"\"Белозерск г, Шукшина ул, д.15А\"","v":"Белозерск г, Шукшина ул, д.15А"},null,null,null,null,null,null,null,null,null,null,null,null,null,null,null,null,"Белозерск г, Шукшина ул, д. 15А",null,null,null,null,"Белозерск г, Шукшина ул, д. 15А",null,null,null,null,null,null,null,null,null,null,"Белозерск г, Шукшина ул, д. 15А",null,null,null,null,null,null,"Белозерск г, Шукшина ул, д. 15А",null,null,null,null,null,"Белозерск г, Шукшина ул, д. 15А",null,null,null,null,null,null,null,null,"Белозерск г, Шукшина ул, д. 15А",null,null,null,null,null,"Белозерск г, Шукшина ул, д. 15А",null,null,null,null,null,null,null,"Белозерск г, Шукшина ул, д. 15А",null,null,null,null,null,null,"Белозерск г, Шукшина ул, д. 15А",null,null,null,null,null,null,null,null,"Белозерск г, Шукшина ул, д. 15А",null,null,null,null,"Белозерск г, Шукшина ул, д. 15А",null,null,null,null,null,null,null,null,"Белозерск г, Шукшина ул, д. 15А",null,null,null,null,"Белозерск г, Шукшина ул, д. 15А",null,null,null,null,"Белозерск г, Шукшина ул, д. 15А",null,null,"Белозерск г, Шукшина ул, д. 15А",null,null,null,null,null,null,null,null,null,null,null,null,"Общий счет РО+","4-х квартирный"]
[{"$f":"\"Белозерск г, Шукшина ул, д.22А\"","v":"Белозерск г, Шукшина ул, д.22А"},"Белозерск г, Шукшина ул, д.22А","Белозерск г, Шукшина ул, д.22А","Белозерск г, Шукшина ул, д.22А","Белозерск г, Шукшина ул, д.22А","Белозерск г, Шукшина ул, д.22А",null,null,null,null,null,null,null,{"$f":"\"Белозерск г, Шукшина ул, д.22А\"","v":"Белозерск г, Шукшина ул, д.22А"},null,null,null,null,null,null,null,null,null,null,null,null,null,null,null,null,"Белозерск г, Шукшина ул, д. 22А",null,null,null,null,"Белозерск г, Шукшина ул, д. 22А",null,null,null,null,null,null,null,null,null,null,"Белозерск г, Шукшина ул, д. 22А",null,null,null,null,null,null,"Белозерск г, Шукшина ул, д. 22А",null,null,null,null,null,"Белозерск г, Шукшина ул, д. 22А",null,null,null,null,null,null,null,null,"Белозерск г, Шукшина ул, д. 22А",null,null,null,null,null,"Белозерск г, Шукшина ул, д. 22А",null,null,null,null,null,null,null,"Белозерск г, Шукшина ул, д. 22А",null,null,null,null,null,null,"Белозерск г, Шукшина ул, д. 22А",null,null,null,null,null,null,null,null,"Белозерск г, Шукшина ул, д. 22А",null,null,null,null,"Белозерск г, Шукшина ул, д. 22А",null,null,null,null,null,null,null,null,"Белозерск г, Шукшина ул, д. 22А",null,null,null,null,null,null,null,null,null,null,null,null,null,null,null,null,null,null,null,null,null,null,null,null,null,"Общий счет РО+ 562,40","Признан аварийным. Постановление № 170 от 13.12.2024","Исключен 02.04.2025"]
[{"$f":"\"Белозерск г, Энгельса ул, д.26\"","v":"Белозерск г, Энгельса ул, д.26"},"Белозерск г, Энгельса ул, д.26","Белозерск г, Энгельса ул, д.26","Белозерск г, Энгельса ул, д.26","Белозерск г, Энгельса ул, д.26","Белозерск г, Энгельса ул, д.26",null,null,null,null,null,null,null,{"$f":"\"Белозерск г, Энгельса ул, д.26\"","v":"Белозерск г, Энгельса ул, д.26"},null,null,null,null,null,null,null,null,null,null,null,null,null,null,null,null,"Белозерск г, Энгельса ул, д. 26",null,null,null,null,"Белозерск г, Энгельса ул, д. 26",null,null,null,null,null,null,null,null,null,null,"Белозерск г, Энгельса ул, д. 26",null,null,null,null,null,null,"Белозерск г, Энгельса ул, д. 26",null,null,null,null,null,"Белозерск г, Энгельса ул, д. 26",null,null,null,null,null,null,null,null,"Белозерск г, Энгельса ул, д. 26",null,null,null,null,null,"Белозерск г, Энгельса ул, д. 26",null,null,null,null,null,null,null,"Белозерск г, Энгельса ул, д. 26",null,null,null,null,null,null,"Белозерск г, Энгельса ул, д. 26",null,null,null,null,null,null,null,null,"Белозерск г, Энгельса ул, д. 26",null,null,null,null,"Белозерск г, Энгельса ул, д. 26",null,null,null,null,null,null,null,null,"Белозерск г, Энгельса ул, д. 26",null,null,null,null,"Белозерск г, Энгельса ул, д. 26",null,null,null,null,"Белозерск г, Энгельса ул, д. 26",null,null,"Белозерск г, Энгельса ул, д. 26",null,null,null,null,null,null,null,null,null,null,null,null,"Общий счет РО+"]
[{"$f":"\"Белозерск г, Энгельса ул, д.36\"","v":"Белозерск г, Энгельса ул, д.36"},"Белозерск г, Энгельса ул, д.36","Белозерск г, Энгельса ул, д.36","Белозерск г, Энгельса ул, д.36","Белозерск г, Энгельса ул, д.36","Белозерск г, Энгельса ул, д.36",null,null,null,null,null,null,null,{"$f":"\"Белозерск г, Энгельса ул, д.36\"","v":"Белозерск г, Энгельса ул, д.36"},null,null,null,null,null,null,null,null,null,null,null,null,null,null,null,null,"Белозерск г, Энгельса ул, д. 36",null,null,null,null,"Белозерск г, Энгельса ул, д. 36",null,null,null,null,null,null,null,null,null,null,"Белозерск г, Энгельса ул, д. 36",null,null,null,null,null,null,"Белозерск г, Энгельса ул, д. 36",null,null,null,null,null,"Белозерск г, Энгельса ул, д. 36",null,null,null,null,null,null,null,null,"Белозерск г, Энгельса ул, д. 36",null,null,null,null,null,"Белозерск г, Энгельса ул, д. 36",null,null,null,null,null,null,null,"Белозерск г, Энгельса ул, д. 36",null,null,null,null,null,null,"Белозерск г, Энгельса ул, д. 36",null,null,null,null,null,null,null,null,"Белозерск г, Энгельса ул, д. 36",null,null,null,null,"Белозерск г, Энгельса ул, д. 36",null,null,null,null,null,null,null,null,"Белозерск г, Энгельса ул, д. 36",null,null,null,null,"Белозерск г, Энгельса ул, д. 36",null,null,null,null,"Белозерск г, Энгельса ул, д. 36",null,null,"Белозерск г, Энгельса ул, д. 36",null,null,null,null,null,null,null,null,null,null,null,null,"Общий счет РО+"]
[null,null,null,null,null,null,null,null,null,null,null,null,null,null,null,null,null,null,null,null,null,null,null,null,null,null,null,null,null,null,null,null,null,null,null,null,null,null,null,null,null,null,null,null,null,null,null,null,null,null,null,null,null,null,null,null,null,null,null,null,null,null,null,null,null,null,null,null,null,null,null,null,null,null,null,null,null,null,null,null,null,null,null,null,null,null,null,null,null,null,null,null,null,null,null,null,null,null,null,null,null,null,null,null,null,null,null,null,null,null,null,null,"Белозерск г, Южный пер, д. 3",null,null,null,null,"Белозерск г, Южный пер, д. 3",null,null,null,null,"Белозерск г, Южный пер, д. 3",null,null,"Белозерск г, Южный пер, д. 3",null,null,null,null,null,null,null,null,null,null,null,null,null,"Обязанность с 01.04.2026"]
[null,null,null,null,null,null,null,null,null,null,null,null,null,null,null,null,null,null,null,null,null,null,null,null,null,null,null,null,null,null,null,null,null,null,null,null,null,null,null,null,null,null,null,null,null,null,null,null,null,null,null,null,null,null,null,null,null,null,null,null,null,null,null,null,null,null,null,null,null,null,null,null,null,null,null,null,null,null,null,null,null,null,null,null,null,null,null,null,null,null,null,null,null,null,null,null,null,null,null,null,null,null,null,null,null,null,null,null,null,null,null,null,null,null,null,null,null,"Белозерск г, Южный пер, д. 3А",null,null,null,null,"Белозерск г, Южный пер, д. 3А",null,null,"Белозерск г, Южный пер, д. 3А",null,null,null,null,null,null,null,null,null,null,null,null,null,"Обязанность с 01.04.2026"]
[{"$f":"\"Белозерск г, Юных Коммунаров ул, д.11\"","v":"Белозерск г, Юных Коммунаров ул, д.11"},"Белозерск г, Юных Коммунаров ул, д.11","Белозерск г, Юных Коммунаров ул, д.11","Белозерск г, Юных Коммунаров ул, д.11","Белозерск г, Юных Коммунаров ул, д.11","Белозерск г, Юных Коммунаров ул, д.11",null,null,null,null,null,null,null,null,null,null,null,null,null,null,null,null,null,null,null,null,null,null,null,null,null,null,null,null,null,null,null,null,null,null,null,null,null,null,null,null,null,null,null,null,null,null,null,null,null,null,null,null,null,null,null,null,null,null,null,null,null,null,null,null,null,null,null,null,null,null,null,null,null,null,null,null,null,null,null,null,null,null,null,null,null,null,null,null,null,null,null,null,null,null,null,null,null,null,null,null,null,null,null,null,null,null,null,null,null,null,null,null,null,null,null,null,null,null,null,null,null,null,null,null,null,null,null,null,null,null,null,null,"Общий счет РО 513,20","Постановление 131 от 13.05.2016","Исключен 10.07.2017"]
[{"$f":"\"Бечевинка с, Молодежная ул, д.3\"","v":"Бечевинка с, Молодежная ул, д.3"},"Бечевинка с, Молодежная ул, д.3","Бечевинка с, Молодежная ул, д.3","Бечевинка с, Молодежная ул, д.3","Бечевинка с, Молодежная ул, д.3","Бечевинка с, Молодежная ул, д.3",null,null,null,null,null,null,null,{"$f":"\"Бечевинка с, Молодежная ул, д.3\"","v":"Бечевинка с, Молодежная ул, д.3"},null,null,null,null,null,null,null,null,null,null,null,null,null,null,null,null,"Бечевинка с, Молодежная ул, д. 3",null,null,null,null,"Бечевинка с, Молодежная ул, д. 3",null,null,null,null,null,null,null,null,null,null,"Бечевинка с, Молодежная ул, д. 3",null,null,null,null,null,null,"Бечевинка с, Молодежная ул, д. 3",null,null,null,null,null,"Бечевинка с, Молодежная ул, д. 3",null,null,null,null,null,null,null,null,"Бечевинка с, Молодежная ул, д. 3",null,null,null,null,null,"Бечевинка с, Молодежная ул, д. 3",null,null,null,null,null,null,null,"Бечевинка с, Молодежная ул, д. 3",null,null,null,null,null,null,"Бечевинка с, Молодежная ул, д. 3",null,null,null,null,null,null,null,null,"Бечевинка с, Молодежная ул, д. 3",null,null,null,null,"Бечевинка с, Молодежная ул, д. 3",null,null,null,null,null,null,null,null,"Бечевинка с, Молодежная ул, д. 3",null,null,null,null,"Бечевинка с, Молодежная ул, д. 3",null,null,null,null,"Бечевинка с, Молодежная ул, д. 3",null,null,"Бечевинка с, Молодежная ул, д. 3",null,null,null,null,null,null,null,null,null,null,null,null,"Общий счет РО+"]
[{"$f":"\"Бечевинка с, Молодежная ул, д.5\"","v":"Бечевинка с, Молодежная ул, д.5"},"Бечевинка с, Молодежная ул, д.5","Бечевинка с, Молодежная ул, д.5","Бечевинка с, Молодежная ул, д.5","Бечевинка с, Молодежная ул, д.5","Бечевинка с, Молодежная ул, д.5",null,null,null,null,null,null,null,{"$f":"\"Бечевинка с, Молодежная ул, д.5\"","v":"Бечевинка с, Молодежная ул, д.5"},null,null,null,null,null,null,null,null,null,null,null,null,null,null,null,null,"Бечевинка с, Молодежная ул, д. 5",null,null,null,null,"Бечевинка с, Молодежная ул, д. 5",null,null,null,null,null,null,null,null,null,null,"Бечевинка с, Молодежная ул, д. 5",null,null,null,null,null,null,"Бечевинка с, Молодежная ул, д. 5",null,null,null,null,null,"Бечевинка с, Молодежная ул, д. 5",null,null,null,null,null,null,null,null,"Бечевинка с, Молодежная ул, д. 5",null,null,null,null,null,"Бечевинка с, Молодежная ул, д. 5",null,null,null,null,null,null,null,"Бечевинка с, Молодежная ул, д. 5",null,null,null,null,null,null,"Бечевинка с, Молодежная ул, д. 5",null,null,null,null,null,null,null,null,"Бечевинка с, Молодежная ул, д. 5",null,null,null,null,"Бечевинка с, Молодежная ул, д. 5",null,null,null,null,null,null,null,null,"Бечевинка с, Молодежная ул, д. 5",null,null,null,null,"Бечевинка с, Молодежная ул, д. 5",null,null,null,null,"Бечевинка с, Молодежная ул, д. 5",null,null,"Бечевинка с, Молодежная ул, д. 5",null,null,null,null,null,null,null,null,null,null,null,null,"Общий счет РО+"]
[{"$f":"\"Бечевинка с, Молодежная ул, д.7\"","v":"Бечевинка с, Молодежная ул, д.7"},"Бечевинка с, Молодежная ул, д.7","Бечевинка с, Молодежная ул, д.7","Бечевинка с, Молодежная ул, д.7","Бечевинка с, Молодежная ул, д.7","Бечевинка с, Молодежная ул, д.7",null,null,null,null,null,null,null,{"$f":"\"Бечевинка с, Молодежная ул, д.7\"","v":"Бечевинка с, Молодежная ул, д.7"},null,null,null,null,null,null,null,null,null,null,null,null,null,null,null,null,"Бечевинка с, Молодежная ул, д. 7",null,null,null,null,"Бечевинка с, Молодежная ул, д. 7",null,null,null,null,null,null,null,null,null,null,"Бечевинка с, Молодежная ул, д. 7",null,null,null,null,null,null,"Бечевинка с, Молодежная ул, д. 7",null,null,null,null,null,"Бечевинка с, Молодежная ул, д. 7",null,null,null,null,null,null,null,null,"Бечевинка с, Молодежная ул, д. 7",null,null,null,null,null,"Бечевинка с, Молодежная ул, д. 7",null,null,null,null,null,null,null,"Бечевинка с, Молодежная ул, д. 7",null,null,null,null,null,null,"Бечевинка с, Молодежная ул, д. 7",null,null,null,null,null,null,null,null,"Бечевинка с, Молодежная ул, д. 7",null,null,null,null,"Бечевинка с, Молодежная ул, д. 7",null,null,null,null,null,null,null,null,"Бечевинка с, Молодежная ул, д. 7",null,null,null,null,"Бечевинка с, Молодежная ул, д. 7",null,null,null,null,"Бечевинка с, Молодежная ул, д. 7",null,null,"Бечевинка с, Молодежная ул, д. 7",null,null,null,null,null,null,null,null,null,null,null,null,"Общий счет РО+"]
[{"$f":"\"Бечевинка с, Молодежная ул, д.9\"","v":"Бечевинка с, Молодежная ул, д.9"},"Бечевинка с, Молодежная ул, д.9","Бечевинка с, Молодежная ул, д.9","Бечевинка с, Молодежная ул, д.9","Бечевинка с, Молодежная ул, д.9","Бечевинка с, Молодежная ул, д.9",null,null,null,null,null,null,null,{"$f":"\"Бечевинка с, Молодежная ул, д.9\"","v":"Бечевинка с, Молодежная ул, д.9"},null,null,null,null,null,null,null,null,null,null,null,null,null,null,null,null,"Бечевинка с, Молодежная ул, д. 9",null,null,null,null,"Бечевинка с, Молодежная ул, д. 9",null,null,null,null,null,null,null,null,null,null,"Бечевинка с, Молодежная ул, д. 9",null,null,null,null,null,null,"Бечевинка с, Молодежная ул, д. 9",null,null,null,null,null,"Бечевинка с, Молодежная ул, д. 9",null,null,null,null,null,null,null,null,"Бечевинка с, Молодежная ул, д. 9",null,null,null,null,null,"Бечевинка с, Молодежная ул, д. 9",null,null,null,null,null,null,null,"Бечевинка с, Молодежная ул, д. 9",null,null,null,null,null,null,"Бечевинка с, Молодежная ул, д. 9",null,null,null,null,null,null,null,null,"Бечевинка с, Молодежная ул, д. 9",null,null,null,null,"Бечевинка с, Молодежная ул, д. 9",null,null,null,null,null,null,null,null,"Бечевинка с, Молодежная ул, д. 9",null,null,null,null,"Бечевинка с, Молодежная ул, д. 9",null,null,null,null,"Бечевинка с, Молодежная ул, д. 9",null,null,"Бечевинка с, Молодежная ул, д. 9",null,null,null,null,null,null,null,null,null,null,null,null,"Общий счет РО+"]
[{"$f":"\"Бечевинка с, Молодежная ул, д.11\"","v":"Бечевинка с, Молодежная ул, д.11"},"Бечевинка с, Молодежная ул, д.11","Бечевинка с, Молодежная ул, д.11","Бечевинка с, Молодежная ул, д.11","Бечевинка с, Молодежная ул, д.11","Бечевинка с, Молодежная ул, д.11",null,null,null,null,null,null,null,{"$f":"\"Бечевинка с, Молодежная ул, д.11\"","v":"Бечевинка с, Молодежная ул, д.11"},null,null,null,null,null,null,null,null,null,null,null,null,null,null,null,null,"Бечевинка с, Молодежная ул, д. 11",null,null,null,null,"Бечевинка с, Молодежная ул, д. 11",null,null,null,null,null,null,null,null,null,null,"Бечевинка с, Молодежная ул, д. 11",null,null,null,null,null,null,"Бечевинка с, Молодежная ул, д. 11",null,null,null,null,null,"Бечевинка с, Молодежная ул, д. 11",null,null,null,null,null,null,null,null,"Бечевинка с, Молодежная ул, д. 11",null,null,null,null,null,"Бечевинка с, Молодежная ул, д. 11",null,null,null,null,null,null,null,"Бечевинка с, Молодежная ул, д. 11",null,null,null,null,null,null,"Бечевинка с, Молодежная ул, д. 11",null,null,null,null,null,null,null,null,"Бечевинка с, Молодежная ул, д. 11",null,null,null,null,"Бечевинка с, Молодежная ул, д. 11",null,null,null,null,null,null,null,null,"Бечевинка с, Молодежная ул, д. 11",null,null,null,null,"Бечевинка с, Молодежная ул, д. 11",null,null,null,null,"Бечевинка с, Молодежная ул, д. 11",null,null,"Бечевинка с, Молодежная ул, д. 11",null,null,null,null,null,null,null,null,null,null,null,null,"Общий счет РО+"]
[{"$f":"\"Глушковское с/п, Глушково д, Молодежная ул, д. 36\"","v":"Глушковское с/п, Глушково д, Молодежная ул, д. 36"},"Глушковское с/п, Глушково д, Молодежная ул, д. 36","Глушковское с/п, Глушково д, Молодежная ул, д. 36","Глушковское с/п, Глушково д, Молодежная ул, д. 36","Глушковское с/п, Глушково д, Молодежная ул, д. 36","Глушковское с/п, Глушково д, Молодежная ул, д. 36",null,null,null,null,null,null,null,{"$f":"\"Глушковское с/п, Глушково д, Молодежная ул, д. 36\"","v":"Глушковское с/п, Глушково д, Молодежная ул, д. 36"},null,null,null,null,null,null,null,null,null,null,null,null,null,null,null,null,"Глушковское с/п, Глушково д, Молодежная ул, д. 36",null,null,null,null,"Глушковское с/п, Глушково д, Молодежная ул, д. 36",null,null,null,null,null,null,null,null,null,null,"Глушковское с/п, Глушково д, Молодежная ул, д. 36",null,null,null,null,null,null,"Глушковское с/п, Глушково д, Молодежная ул, д. 36",null,null,null,null,null,"Глушковское с/п, Глушково д, Молодежная ул, д. 36",null,null,null,null,null,null,null,null,"Глушковское с/п, Глушково д, Молодежная ул, д. 36",null,null,null,null,null,"Глушковское с/п, Глушково д, Молодежная ул, д. 36",null,null,null,null,null,null,null,"Глушковское с/п, Глушково д, Молодежная ул, д. 36",null,null,null,null,null,null,"Глушковское с/п, Глушково д, Молодежная ул, д. 36",null,null,null,null,null,null,null,null,"Глушковское с/п, Глушково д, Молодежная ул, д. 36",null,null,null,null,"Глушковское с/п, Глушково д, Молодежная ул, д. 36",null,null,null,null,null,null,null,null,"Глушковское с/п, Глушково д, Молодежная ул, д. 36",null,null,null,null,"Глушковское с/п, Глушково д, Молодежная ул, д. 36",null,null,null,null,"Глушковское с/п, Глушково д, Молодежная ул, д. 36",null,null,"Глушковское с/п, Глушково д, Молодежная ул, д. 36",null,null,null,null,null,null,null,null,null,null,null,null,"Общий счет РО+","4-х квартирный"]
[{"$f":"\"Глушковское с/п, Глушково д, Молодежная ул, д. 37\"","v":"Глушковское с/п, Глушково д, Молодежная ул, д. 37"},"Глушковское с/п, Глушково д, Молодежная ул, д. 37","Глушковское с/п, Глушково д, Молодежная ул, д. 37","Глушковское с/п, Глушково д, Молодежная ул, д. 37","Глушковское с/п, Глушково д, Молодежная ул, д. 37","Глушковское с/п, Глушково д, Молодежная ул, д. 37",null,null,null,null,null,null,null,{"$f":"\"Глушковское с/п, Глушково д, Молодежная ул, д. 37\"","v":"Глушковское с/п, Глушково д, Молодежная ул, д. 37"},null,null,null,null,null,null,null,null,null,null,null,null,null,null,null,null,"Глушковское с/п, Глушково д, Молодежная ул, д. 37",null,null,null,null,"Глушковское с/п, Глушково д, Молодежная ул, д. 37",null,null,null,null,null,null,null,null,null,null,"Глушковское с/п, Глушково д, Молодежная ул, д. 37",null,null,null,null,null,null,"Глушковское с/п, Глушково д, Молодежная ул, д. 37",null,null,null,null,null,"Глушковское с/п, Глушково д, Молодежная ул, д. 37",null,null,null,null,null,null,null,null,"Глушковское с/п, Глушково д, Молодежная ул, д. 37",null,null,null,null,null,"Глушковское с/п, Глушково д, Молодежная ул, д. 37",null,null,null,null,null,null,null,"Глушковское с/п, Глушково д, Молодежная ул, д. 37",null,null,null,null,null,null,"Глушковское с/п, Глушково д, Молодежная ул, д. 37",null,null,null,null,null,null,null,null,"Глушковское с/п, Глушково д, Молодежная ул, д. 37",null,null,null,null,"Глушковское с/п, Глушково д, Молодежная ул, д. 37",null,null,null,null,null,null,null,null,"Глушковское с/п, Глушково д, Молодежная ул, д. 37",null,null,null,null,"Глушковское с/п, Глушково д, Молодежная ул, д. 37",null,null,null,null,"Глушковское с/п, Глушково д, Молодежная ул, д. 37",null,null,"Глушковское с/п, Глушково д, Молодежная ул, д. 37",null,null,null,null,null,null,null,null,null,null,null,null,"Общий счет РО+","4-х квартирный"]
[{"$f":"\"Глушковское с/п, Глушково д, Молодежная ул, д. 38\"","v":"Глушковское с/п, Глушково д, Молодежная ул, д. 38"},"Глушковское с/п, Глушково д, Молодежная ул, д. 38","Глушковское с/п, Глушково д, Молодежная ул, д. 38","Глушковское с/п, Глушково д, Молодежная ул, д. 38","Глушковское с/п, Глушково д, Молодежная ул, д. 38","Глушковское с/п, Глушково д, Молодежная ул, д. 38",null,null,null,null,null,null,null,{"$f":"\"Глушковское с/п, Глушково д, Молодежная ул, д. 38\"","v":"Глушковское с/п, Глушково д, Молодежная ул, д. 38"},null,null,null,null,null,null,null,null,null,null,null,null,null,null,null,null,"Глушковское с/п, Глушково д, Молодежная ул, д. 38",null,null,null,null,"Глушковское с/п, Глушково д, Молодежная ул, д. 38",null,null,null,null,null,null,null,null,null,null,"Глушковское с/п, Глушково д, Молодежная ул, д. 38",null,null,null,null,null,null,"Глушковское с/п, Глушково д, Молодежная ул, д. 38",null,null,null,null,null,"Глушковское с/п, Глушково д, Молодежная ул, д. 38",null,null,null,null,null,null,null,null,"Глушковское с/п, Глушково д, Молодежная ул, д. 38",null,null,null,null,null,"Глушковское с/п, Глушково д, Молодежная ул, д. 38",null,null,null,null,null,null,null,"Глушковское с/п, Глушково д, Молодежная ул, д. 38",null,null,null,null,null,null,"Глушковское с/п, Глушково д, Молодежная ул, д. 38",null,null,null,null,null,null,null,null,"Глушковское с/п, Глушково д, Молодежная ул, д. 38",null,null,null,null,"Глушковское с/п, Глушково д, Молодежная ул, д. 38",null,null,null,null,null,null,null,null,"Глушковское с/п, Глушково д, Молодежная ул, д. 38",null,null,null,null,"Глушковское с/п, Глушково д, Молодежная ул, д. 38",null,null,null,null,"Глушковское с/п, Глушково д, Молодежная ул, д. 38",null,null,"Глушковское с/п, Глушково д, Молодежная ул, д. 38",null,null,null,null,null,null,null,null,null,null,null,null,"Общий счет РО+"]
[{"$f":"\"Глушковское с/п, Глушково д, Молодежная ул, д. 39\"","v":"Глушковское с/п, Глушково д, Молодежная ул, д. 39"},"Глушковское с/п, Глушково д, Молодежная ул, д. 39","Глушковское с/п, Глушково д, Молодежная ул, д. 39","Глушковское с/п, Глушково д, Молодежная ул, д. 39","Глушковское с/п, Глушково д, Молодежная ул, д. 39","Глушковское с/п, Глушково д, Молодежная ул, д. 39",null,null,null,null,null,null,null,{"$f":"\"Глушковское с/п, Глушково д, Молодежная ул, д. 39\"","v":"Глушковское с/п, Глушково д, Молодежная ул, д. 39"},null,null,null,null,null,null,null,null,null,null,null,null,null,null,null,null,"Глушковское с/п, Глушково д, Молодежная ул, д. 39",null,null,null,null,"Глушковское с/п, Глушково д, Молодежная ул, д. 39",null,null,null,null,null,null,null,null,null,null,"Глушковское с/п, Глушково д, Молодежная ул, д. 39",null,null,null,null,null,null,"Глушковское с/п, Глушково д, Молодежная ул, д. 39",null,null,null,null,null,"Глушковское с/п, Глушково д, Молодежная ул, д. 39",null,null,null,null,null,null,null,null,"Глушковское с/п, Глушково д, Молодежная ул, д. 39",null,null,null,null,null,"Глушковское с/п, Глушково д, Молодежная ул, д. 39",null,null,null,null,null,null,null,"Глушковское с/п, Глушково д, Молодежная ул, д. 39",null,null,null,null,null,null,"Глушковское с/п, Глушково д, Молодежная ул, д. 39",null,null,null,null,null,null,null,null,"Глушковское с/п, Глушково д, Молодежная ул, д. 39",null,null,null,null,"Глушковское с/п, Глушково д, Молодежная ул, д. 39",null,null,null,null,null,null,null,null,"Глушковское с/п, Глушково д, Молодежная ул, д. 39",null,null,null,null,"Глушковское с/п, Глушково д, Молодежная ул, д. 39",null,null,null,null,"Глушковское с/п, Глушково д, Молодежная ул, д. 39",null,null,"Глушковское с/п, Глушково д, Молодежная ул, д. 39",null,null,null,null,null,null,null,null,null,null,null,null,"Общий счет РО+","4-х квартирный"]
[{"$f":"\"Глушковское с/п, Глушково д, Молодежная ул, д. 40\"","v":"Глушковское с/п, Глушково д, Молодежная ул, д. 40"},"Глушковское с/п, Глушково д, Молодежная ул, д. 40","Глушковское с/п, Глушково д, Молодежная ул, д. 40","Глушковское с/п, Глушково д, Молодежная ул, д. 40","Глушковское с/п, Глушково д, Молодежная ул, д. 40","Глушковское с/п, Глушково д, Молодежная ул, д. 40",null,null,null,null,null,null,null,{"$f":"\"Глушковское с/п, Глушково д, Молодежная ул, д. 40\"","v":"Глушковское с/п, Глушково д, Молодежная ул, д. 40"},null,null,null,null,null,null,null,null,null,null,null,null,null,null,null,null,"Глушковское с/п, Глушково д, Молодежная ул, д. 40",null,null,null,null,"Глушковское с/п, Глушково д, Молодежная ул, д. 40",null,null,null,null,null,null,null,null,null,null,"Глушковское с/п, Глушково д, Молодежная ул, д. 40",null,null,null,null,null,null,"Глушковское с/п, Глушково д, Молодежная ул, д. 40",null,null,null,null,null,"Глушковское с/п, Глушково д, Молодежная ул, д. 40",null,null,null,null,null,null,null,null,"Глушковское с/п, Глушково д, Молодежная ул, д. 40",null,null,null,null,null,"Глушковское с/п, Глушково д, Молодежная ул, д. 40",null,null,null,null,null,null,null,"Глушковское с/п, Глушково д, Молодежная ул, д. 40",null,null,null,null,null,null,"Глушковское с/п, Глушково д, Молодежная ул, д. 40",null,null,null,null,null,null,null,null,"Глушковское с/п, Глушково д, Молодежная ул, д. 40",null,null,null,null,"Глушковское с/п, Глушково д, Молодежная ул, д. 40",null,null,null,null,null,null,null,null,"Глушковское с/п, Глушково д, Молодежная ул, д. 40",null,null,null,null,"Глушковское с/п, Глушково д, Молодежная ул, д. 40",null,null,null,null,"Глушковское с/п, Глушково д, Молодежная ул, д. 40",null,null,"Глушковское с/п, Глушково д, Молодежная ул, д. 40",null,null,null,null,null,null,null,null,null,null,null,null,"Общий счет РО+","4-х квартирный"]
[{"$f":"\"Глушковское с/п, Глушково д, Молодежная ул, д. 41\"","v":"Глушковское с/п, Глушково д, Молодежная ул, д. 41"},"Глушковское с/п, Глушково д, Молодежная ул, д. 41","Глушковское с/п, Глушково д, Молодежная ул, д. 41","Глушковское с/п, Глушково д, Молодежная ул, д. 41","Глушковское с/п, Глушково д, Молодежная ул, д. 41","Глушковское с/п, Глушково д, Молодежная ул, д. 41",null,null,null,null,null,null,null,{"$f":"\"Глушковское с/п, Глушково д, Молодежная ул, д. 41\"","v":"Глушковское с/п, Глушково д, Молодежная ул, д. 41"},null,null,null,null,null,null,null,null,null,null,null,null,null,null,null,null,"Глушковское с/п, Глушково д, Молодежная ул, д. 41",null,null,null,null,null,null,null,null,null,null,null,null,null,null,null,null,null,null,null,null,null,null,null,null,null,null,null,null,null,null,null,null,null,null,null,null,null,null,null,null,null,null,null,null,null,null,null,null,null,null,null,null,null,null,null,null,null,null,null,null,null,null,null,null,null,null,null,null,null,null,null,null,null,null,null,null,null,null,null,null,null,null,null,null,null,null,null,null,null,null,null,null,null,null,null,null,null,null,null,null,null,null,null,null,null,null,null,"Общий счет РО - 264,80",null,"Исключен 01.04.2019"]
[{"$f":"\"Глушковское с/п, Глушково д, Молодежная ул, д. 42\"","v":"Глушковское с/п, Глушково д, Молодежная ул, д. 42"},"Глушковское с/п, Глушково д, Молодежная ул, д. 42","Глушковское с/п, Глушково д, Молодежная ул, д. 42","Глушковское с/п, Глушково д, Молодежная ул, д. 42","Глушковское с/п, Глушково д, Молодежная ул, д. 42","Глушковское с/п, Глушково д, Молодежная ул, д. 42",null,null,null,null,null,null,null,{"$f":"\"Глушковское с/п, Глушково д, Молодежная ул, д. 42\"","v":"Глушковское с/п, Глушково д, Молодежная ул, д. 42"},null,null,null,null,null,null,null,null,null,null,null,null,null,null,null,null,"Глушковское с/п, Глушково д, Молодежная ул, д. 42",null,null,null,null,"Глушковское с/п, Глушково д, Молодежная ул, д. 42",null,null,null,null,null,null,null,null,null,null,"Глушковское с/п, Глушково д, Молодежная ул, д. 42",null,null,null,null,null,null,"Глушковское с/п, Глушково д, Молодежная ул, д. 42",null,null,null,null,null,"Глушковское с/п, Глушково д, Молодежная ул, д. 42",null,null,null,null,null,null,null,null,"Глушковское с/п, Глушково д, Молодежная ул, д. 42",null,null,null,null,null,"Глушковское с/п, Глушково д, Молодежная ул, д. 42",null,null,null,null,null,null,null,"Глушковское с/п, Глушково д, Молодежная ул, д. 42",null,null,null,null,null,null,"Глушковское с/п, Глушково д, Молодежная ул, д. 42",null,null,null,null,null,null,null,null,"Глушковское с/п, Глушково д, Молодежная ул, д. 42",null,null,null,null,null,null,null,null,null,null,null,null,null,null,null,null,null,null,null,null,null,null,null,null,null,null,null,null,null,null,null,null,null,null,null,null,null,null,null,"Общий счет РО-280,50",null,"Исключен 05.03.2024"]
[null,null,null,null,null,null,null,null,null,null,null,null,null,null,null,null,null,null,null,null,null,null,null,null,null,null,null,null,null,null,null,null,null,null,null,null,null,null,null,null,null,null,null,null,null,null,null,null,null,null,null,null,null,null,null,null,null,null,null,null,null,null,null,null,null,null,null,null,null,null,null,null,null,null,null,null,null,null,null,null,null,null,null,null,null,null,null,null,null,null,null,null,null,null,null,null,null,null,null,null,null,null,null,null,null,null,null,null,null,null,null,null,null,null,null,null,null,"Зубово с., Набережная ул., д. 25",null,null,null,null,"Зубово с., Набережная ул., д. 25",null,null,"Зубово с., Набережная ул., д. 25",null,null,null,null,null,null,null,null,null,null,null,null,"Общий счет РО+","Обязанность с 01.01.2026"]
[null,null,null,null,null,null,null,null,null,null,null,null,null,null,null,null,null,null,null,null,null,null,null,null,null,null,null,null,null,null,null,null,null,null,null,null,null,null,null,null,null,null,null,null,null,null,null,null,null,null,null,null,null,null,null,null,null,null,null,null,null,null,null,null,null,null,null,null,null,null,null,null,null,null,null,null,null,null,null,null,null,null,null,null,null,null,null,null,null,null,null,null,null,null,null,null,null,null,null,null,null,null,null,null,null,null,null,null,null,null,null,null,null,null,null,null,null,"Зубово с., Пушкинская ул., д. 4",null,null,null,null,"Зубово с., Пушкинская ул., д. 4",null,null,"Зубово с., Пушкинская ул., д. 4",null,null,null,null,null,null,null,null,null,null,null,null,"Общий счет РО+","Обязанность с 01.01.2026"]
[null,null,null,null,null,null,null,null,null,null,null,null,null,null,null,null,null,null,null,null,null,null,null,null,null,null,null,null,null,null,null,null,null,null,null,null,null,null,null,null,null,null,null,null,null,null,null,null,null,null,null,null,null,null,null,null,null,null,null,null,null,null,null,null,null,null,null,null,null,null,null,null,null,null,null,null,null,null,null,null,null,null,null,null,null,null,null,null,null,null,null,null,null,null,null,null,null,null,null,null,null,null,null,null,null,null,null,null,null,null,null,null,null,null,null,null,null,"Зубово с., Пушкинская ул., д.9а",null,null,null,null,"Зубово с., Пушкинская ул., д.9а",null,null,"Зубово с., Пушкинская ул., д.9а",null,null,null,null,null,null,null,null,null,null,null,null,"Общий счет РО+","Обязанность с 01.01.2026"]
[{"$f":"\"Куностьское с/п, Нижняя Мондома п, Советская ул, д.15\"","v":"Куностьское с/п, Нижняя Мондома п, Советская ул, д.15"},"Куностьское с/п, Нижняя Мондома п, Советская ул, д.15","Куностьское с/п, Нижняя Мондома п, Советская ул, д.15","Куностьское с/п, Нижняя Мондома п, Советская ул, д.15","Куностьское с/п, Нижняя Мондома п, Советская ул, д.15","Куностьское с/п, Нижняя Мондома п, Советская ул, д.15",null,null,null,null,null,null,null,{"$f":"\"Куностьское с/п, Нижняя Мондома п, Советская ул, д.15\"","v":"Куностьское с/п, Нижняя Мондома п, Советская ул, д.15"},null,null,null,null,null,null,null,null,null,null,null,null,null,null,null,null,"Куностьское с/п, Нижняя Мондома п, Советская ул, д. 15",null,null,null,null,"Куностьское с/п, Нижняя Мондома п, Советская ул, д. 15",null,null,null,null,null,null,null,null,null,null,"Куностьское с/п, Нижняя Мондома п, Советская ул, д. 15",null,null,null,null,null,null,"Куностьское с/п, Нижняя Мондома п, Советская ул, д. 15",null,null,null,null,null,"Куностьское с/п, Нижняя Мондома п, Советская ул, д. 15",null,null,null,null,null,null,null,null,"Куностьское с/п, Нижняя Мондома п, Советская ул, д. 15",null,null,null,null,null,"Куностьское с/п, Нижняя Мондома п, Советская ул, д. 15",null,null,null,null,null,null,null,"Куностьское с/п, Нижняя Мондома п, Советская ул, д. 15",null,null,null,null,null,null,"Куностьское с/п, Нижняя Мондома п, Советская ул, д. 15",null,null,null,null,null,null,null,null,"Куностьское с/п, Нижняя Мондома п, Советская ул, д. 15",null,null,null,null,"Куностьское с/п, Нижняя Мондома п, Советская ул, д. 15",null,null,null,null,null,null,null,null,"Куностьское с/п, Нижняя Мондома п, Советская ул, д. 15",null,null,null,null,"Куностьское с/п, Нижняя Мондома п, Советская ул, д. 15",null,null,null,null,"Куностьское с/п, Нижняя Мондома п, Советская ул, д. 15",null,null,"Куностьское с/п, Нижняя Мондома п, Советская ул, д. 15",null,null,null,null,null,null,null,null,null,null,null,null,"Общий счет РО+"]
[{"$f":"\"Куностьское с/п, Нижняя Мондома п, Советская ул, д.17\"","v":"Куностьское с/п, Нижняя Мондома п, Советская ул, д.17"},"Куностьское с/п, Нижняя Мондома п, Советская ул, д.17","Куностьское с/п, Нижняя Мондома п, Советская ул, д.17","Куностьское с/п, Нижняя Мондома п, Советская ул, д.17","Куностьское с/п, Нижняя Мондома п, Советская ул, д.17","Куностьское с/п, Нижняя Мондома п, Советская ул, д.17",null,null,null,null,null,null,null,{"$f":"\"Куностьское с/п, Нижняя Мондома п, Советская ул, д.17\"","v":"Куностьское с/п, Нижняя Мондома п, Советская ул, д.17"},null,null,null,null,null,null,null,null,null,null,null,null,null,null,null,null,"Куностьское с/п, Нижняя Мондома п, Советская ул, д. 17",null,null,null,null,"Куностьское с/п, Нижняя Мондома п, Советская ул, д. 17",null,null,null,null,null,null,null,null,null,null,"Куностьское с/п, Нижняя Мондома п, Советская ул, д. 17",null,null,null,null,null,null,"Куностьское с/п, Нижняя Мондома п, Советская ул, д. 17",null,null,null,null,null,"Куностьское с/п, Нижняя Мондома п, Советская ул, д. 17",null,null,null,null,null,null,null,null,"Куностьское с/п, Нижняя Мондома п, Советская ул, д. 17",null,null,null,null,null,"Куностьское с/п, Нижняя Мондома п, Советская ул, д. 17",null,null,null,null,null,null,null,"Куностьское с/п, Нижняя Мондома п, Советская ул, д. 17",null,null,null,null,null,null,"Куностьское с/п, Нижняя Мондома п, Советская ул, д. 17",null,null,null,null,null,null,null,null,"Куностьское с/п, Нижняя Мондома п, Советская ул, д. 17",null,null,null,null,"Куностьское с/п, Нижняя Мондома п, Советская ул, д. 17",null,null,null,null,null,null,null,null,"Куностьское с/п, Нижняя Мондома п, Советская ул, д. 17",null,null,null,null,"Куностьское с/п, Нижняя Мондома п, Советская ул, д. 17",null,null,null,null,"Куностьское с/п, Нижняя Мондома п, Советская ул, д. 17",null,null,"Куностьское с/п, Нижняя Мондома п, Советская ул, д. 17",null,null,null,null,null,null,null,null,null,null,null,null,"Общий счет РО+"]
[{"$f":"\"Маэкса с, Свободы ул, д.1\"","v":"Маэкса с, Свободы ул, д.1"},"Маэкса с, Свободы ул, д.1","Маэкса с, Свободы ул, д.1","Маэкса с, Свободы ул, д.1","Маэкса с, Свободы ул, д.1","Маэкса с, Свободы ул, д.1",null,null,null,null,null,null,null,{"$f":"\"Маэкса с, Свободы ул, д.1\"","v":"Маэкса с, Свободы ул, д.1"},null,null,null,null,null,null,null,null,null,null,null,null,null,null,null,null,"Маэкса с, Свободы ул, д. 1",null,null,null,null,"Маэкса с, Свободы ул, д. 1",null,null,null,null,null,null,null,null,null,null,"Маэкса с, Свободы ул, д. 1",null,null,null,null,null,null,"Маэкса с, Свободы ул, д. 1",null,null,null,null,null,"Маэкса с, Свободы ул, д. 1",null,null,null,null,null,null,null,null,"Маэкса с, Свободы ул, д. 1",null,null,null,null,null,"Маэкса с, Свободы ул, д. 1",null,null,null,null,null,null,null,"Маэкса с, Свободы ул, д. 1",null,null,null,null,null,null,"Маэкса с, Свободы ул, д. 1",null,null,null,null,null,null,null,null,"Маэкса с, Свободы ул, д. 1",null,null,null,null,"Маэкса с, Свободы ул, д. 1",null,null,null,null,null,null,null,null,"Маэкса с, Свободы ул, д. 1",null,null,null,null,"Маэкса с, Свободы ул, д. 1",null,null,null,null,"Маэкса с, Свободы ул, д. 1",null,null,"Маэкса с, Свободы ул, д. 1",null,null,null,null,null,null,null,null,null,null,null,null,"Общий счет РО+"]
[{"$f":"\"Маэкса с, Свободы ул, д.7\"","v":"Маэкса с, Свободы ул, д.7"},"Маэкса с, Свободы ул, д.7","Маэкса с, Свободы ул, д.7","Маэкса с, Свободы ул, д.7","Маэкса с, Свободы ул, д.7","Маэкса с, Свободы ул, д.7",null,null,null,null,null,null,null,{"$f":"\"Маэкса с, Свободы ул, д.7\"","v":"Маэкса с, Свободы ул, д.7"},null,null,null,null,null,null,null,null,null,null,null,null,null,null,null,null,"Маэкса с, Свободы ул, д. 7",null,null,null,null,"Маэкса с, Свободы ул, д. 7",null,null,null,null,null,null,null,null,null,null,"Маэкса с, Свободы ул, д. 7",null,null,null,null,null,null,"Маэкса с, Свободы ул, д. 7",null,null,null,null,null,"Маэкса с, Свободы ул, д. 7",null,null,null,null,null,null,null,null,"Маэкса с, Свободы ул, д. 7",null,null,null,null,null,"Маэкса с, Свободы ул, д. 7",null,null,null,null,null,null,null,"Маэкса с, Свободы ул, д. 7",null,null,null,null,null,null,"Маэкса с, Свободы ул, д. 7",null,null,null,null,null,null,null,null,"Маэкса с, Свободы ул, д. 7",null,null,null,null,"Маэкса с, Свободы ул, д. 7",null,null,null,null,null,null,null,null,"Маэкса с, Свободы ул, д. 7",null,null,null,null,"Маэкса с, Свободы ул, д. 7",null,null,null,null,"Маэкса с, Свободы ул, д. 7",null,null,"Маэкса с, Свободы ул, д. 7",null,null,null,null,null,null,null,null,null,null,null,null,"Общий счет РО+"]
[{"$f":"\"Маэкса с, Свободы ул, д.11\"","v":"Маэкса с, Свободы ул, д.11"},"Маэкса с, Свободы ул, д.11","Маэкса с, Свободы ул, д.11","Маэкса с, Свободы ул, д.11","Маэкса с, Свободы ул, д.11","Маэкса с, Свободы ул, д.11",null,null,null,null,null,null,null,{"$f":"\"Маэкса с, Свободы ул, д.11\"","v":"Маэкса с, Свободы ул, д.11"},null,null,null,null,null,null,null,null,null,null,null,null,null,null,null,null,"Маэкса с, Свободы ул, д. 11",null,null,null,null,"Маэкса с, Свободы ул, д. 11",null,null,null,null,null,null,null,null,null,null,"Маэкса с, Свободы ул, д. 11",null,null,null,null,null,null,"Маэкса с, Свободы ул, д. 11",null,null,null,null,null,"Маэкса с, Свободы ул, д. 11",null,null,null,null,null,null,null,null,"Маэкса с, Свободы ул, д. 11",null,null,null,null,null,"Маэкса с, Свободы ул, д. 11",null,null,null,null,null,null,null,"Маэкса с, Свободы ул, д. 11",null,null,null,null,null,null,"Маэкса с, Свободы ул, д. 11",null,null,null,null,null,null,null,null,"Маэкса с, Свободы ул, д. 11",null,null,null,null,"Маэкса с, Свободы ул, д. 11",null,null,null,null,null,null,null,null,null,null,null,null,null,null,null,null,null,null,null,null,null,null,null,null,null,null,null,null,null,null,null,null,null,null,"Общий счет РО+341,10","Признан аварийным. Постановление 1071 от 30.09.2024","Исключен 07.11.2024"]
[{"$f":"\"Маэкса с, Свободы ул, д.15\"","v":"Маэкса с, Свободы ул, д.15"},"Маэкса с, Свободы ул, д.15","Маэкса с, Свободы ул, д.15","Маэкса с, Свободы ул, д.15","Маэкса с, Свободы ул, д.15","Маэкса с, Свободы ул, д.15",null,null,null,null,null,null,null,{"$f":"\"Маэкса с, Свободы ул, д.15\"","v":"Маэкса с, Свободы ул, д.15"},null,null,null,null,null,null,null,null,null,null,null,null,null,null,null,null,"Маэкса с, Свободы ул, д. 15",null,null,null,null,"Маэкса с, Свободы ул, д. 15",null,null,null,null,null,null,null,null,null,null,"Маэкса с, Свободы ул, д. 15",null,null,null,null,null,null,"Маэкса с, Свободы ул, д. 15",null,null,null,null,null,"Маэкса с, Свободы ул, д. 15",null,null,null,null,null,null,null,null,"Маэкса с, Свободы ул, д. 15",null,null,null,null,null,"Маэкса с, Свободы ул, д. 15",null,null,null,null,null,null,null,"Маэкса с, Свободы ул, д. 15",null,null,null,null,null,null,"Маэкса с, Свободы ул, д. 15",null,null,null,null,null,null,null,null,"Маэкса с, Свободы ул, д. 15",null,null,null,null,"Маэкса с, Свободы ул, д. 15",null,null,null,null,null,null,null,null,"Маэкса с, Свободы ул, д. 15",null,null,null,null,"Маэкса с, Свободы ул, д. 15",null,null,null,null,"Маэкса с, Свободы ул, д. 15",null,null,"Маэкса с, Свободы ул, д. 15",null,null,null,null,null,null,null,null,null,null,null,null,"Общий счет РО+"]
[{"$f":"\"Маэкса с, Свободы ул, д.85\"","v":"Маэкса с, Свободы ул, д.85"},"Маэкса с, Свободы ул, д.85","Маэкса с, Свободы ул, д.85","Маэкса с, Свободы ул, д.85","Маэкса с, Свободы ул, д.85","Маэкса с, Свободы ул, д.85",null,null,null,null,null,null,null,{"$f":"\"Маэкса с, Свободы ул, д.85\"","v":"Маэкса с, Свободы ул, д.85"},null,null,null,null,null,null,null,null,null,null,null,null,null,null,null,null,"Маэкса с, Свободы ул, д. 85",null,null,null,null,"Маэкса с, Свободы ул, д. 85",null,null,null,null,null,null,null,null,null,null,"Маэкса с, Свободы ул, д. 85",null,null,null,null,null,null,"Маэкса с, Свободы ул, д. 85",null,null,null,null,null,"Маэкса с, Свободы ул, д. 85",null,null,null,null,null,null,null,null,"Маэкса с, Свободы ул, д. 85",null,null,null,null,null,"Маэкса с, Свободы ул, д. 85",null,null,null,null,null,null,null,"Маэкса с, Свободы ул, д. 85",null,null,null,null,null,null,"Маэкса с, Свободы ул, д. 85",null,null,null,null,null,null,null,null,"Маэкса с, Свободы ул, д. 85",null,null,null,null,"Маэкса с, Свободы ул, д. 85",null,null,null,null,null,null,null,null,"Маэкса с, Свободы ул, д. 85",null,null,null,null,"Маэкса с, Свободы ул, д. 85",null,null,null,null,"Маэкса с, Свободы ул, д. 85",null,null,"Маэкса с, Свободы ул, д. 85",null,null,null,null,null,null,null,null,null,null,null,null,"Общий счет РО+"]
[{"$f":"\"Маэкса с, Свободы ул, д.87\"","v":"Маэкса с, Свободы ул, д.87"},"Маэкса с, Свободы ул, д.87","Маэкса с, Свободы ул, д.87","Маэкса с, Свободы ул, д.87","Маэкса с, Свободы ул, д.87","Маэкса с, Свободы ул, д.87",null,null,null,null,null,null,null,{"$f":"\"Маэкса с, Свободы ул, д.87\"","v":"Маэкса с, Свободы ул, д.87"},null,null,null,null,null,null,null,null,null,null,null,null,null,null,null,null,"Маэкса с, Свободы ул, д. 87",null,null,null,null,"Маэкса с, Свободы ул, д. 87",null,null,null,null,null,null,null,null,null,null,"Маэкса с, Свободы ул, д. 87",null,null,null,null,null,null,"Маэкса с, Свободы ул, д. 87",null,null,null,null,null,"Маэкса с, Свободы ул, д. 87",null,null,null,null,null,null,null,null,"Маэкса с, Свободы ул, д. 87",null,null,null,null,null,"Маэкса с, Свободы ул, д. 87",null,null,null,null,null,null,null,"Маэкса с, Свободы ул, д. 87",null,null,null,null,null,null,"Маэкса с, Свободы ул, д. 87",null,null,null,null,null,null,null,null,"Маэкса с, Свободы ул, д. 87",null,null,null,null,"Маэкса с, Свободы ул, д. 87",null,null,null,null,null,null,null,null,"Маэкса с, Свободы ул, д. 87",null,null,null,null,"Маэкса с, Свободы ул, д. 87",null,null,null,null,"Маэкса с, Свободы ул, д. 87",null,null,"Маэкса с, Свободы ул, д. 87",null,null,null,null,null,null,null,null,null,null,null,null,"Общий счет РО+"]
[{"$f":"\"Маэкса с, Свободы ул, д.102\"","v":"Маэкса с, Свободы ул, д.102"},"Маэкса с, Свободы ул, д.102","Маэкса с, Свободы ул, д.102","Маэкса с, Свободы ул, д.102","Маэкса с, Свободы ул, д.102","Маэкса с, Свободы ул, д.102",null,null,null,null,null,null,null,{"$f":"\"Маэкса с, Свободы ул, д.102\"","v":"Маэкса с, Свободы ул, д.102"},null,null,null,null,null,null,null,null,null,null,null,null,null,null,null,null,"Маэкса с, Свободы ул, д. 102",null,null,null,null,"Маэкса с, Свободы ул, д. 102",null,null,null,null,null,null,null,null,null,null,"Маэкса с, Свободы ул, д. 102",null,null,null,null,null,null,"Маэкса с, Свободы ул, д. 102",null,null,null,null,null,"Маэкса с, Свободы ул, д. 102",null,null,null,null,null,null,null,null,"Маэкса с, Свободы ул, д. 102",null,null,null,null,null,"Маэкса с, Свободы ул, д. 102",null,null,null,null,null,null,null,"Маэкса с, Свободы ул, д. 102",null,null,null,null,null,null,"Маэкса с, Свободы ул, д. 102",null,null,null,null,null,null,null,null,"Маэкса с, Свободы ул, д. 102",null,null,null,null,"Маэкса с, Свободы ул, д. 102",null,null,null,null,null,null,null,null,"Маэкса с, Свободы ул, д. 102",null,null,null,null,"Маэкса с, Свободы ул, д. 102",null,null,null,null,"Маэкса с, Свободы ул, д. 102",null,null,null,null,null,null,null,null,null,null,null,null,null,null,null,"Общий счет РО+321,20","Признан аварийным. Постановление 1293 от 10.10.2025","Исключен 03.12.2025"]
[{"$f":"\"Никановская с, Центральная ул, д.35\"","v":"Никановская с, Центральная ул, д.35"},"Никановская с, Центральная ул, д.35","Никановская с, Центральная ул, д.35","Никановская с, Центральная ул, д.35","Никановская с, Центральная ул, д.35","Никановская с, Центральная ул, д.35",null,null,null,null,null,null,null,{"$f":"\"Никановская с, Центральная ул, д.35\"","v":"Никановская с, Центральная ул, д.35"},null,null,null,null,null,null,null,null,null,null,null,null,null,null,null,null,"Никановская с, Центральная ул, д. 35",null,null,null,null,"Никановская с, Центральная ул, д. 35",null,null,null,null,null,null,null,null,null,null,"Никановская с, Центральная ул, д. 35",null,null,null,null,null,null,"Никановская с, Центральная ул, д. 35",null,null,null,null,null,"Никановская с, Центральная ул, д. 35",null,null,null,null,null,null,null,null,"Никановская с, Центральная ул, д. 35",null,null,null,null,null,"Никановская с, Центральная ул, д. 35",null,null,null,null,null,null,null,"Никановская с, Центральная ул, д. 35",null,null,null,null,null,null,"Никановская с, Центральная ул, д. 35",null,null,null,null,null,null,null,null,"Никановская с, Центральная ул, д. 35",null,null,null,null,"Никановская с, Центральная ул, д. 35",null,null,null,null,null,null,null,null,"Никановская с, Центральная ул, д. 35",null,null,null,null,"Никановская с, Центральная ул, д. 35",null,null,null,null,"Никановская с, Центральная ул, д. 35",null,null,"Никоновская с, Центральная ул, д. 35",null,null,null,null,null,null,null,null,null,null,null,null,"Общий счет РО+"]
[{"$f":"\"Никановская с, Центральная ул, д.37\"","v":"Никановская с, Центральная ул, д.37"},"Никановская с, Центральная ул, д.37","Никановская с, Центральная ул, д.37","Никановская с, Центральная ул, д.37","Никановская с, Центральная ул, д.37","Никановская с, Центральная ул, д.37",null,null,null,null,null,null,null,{"$f":"\"Никановская с, Центральная ул, д.37\"","v":"Никановская с, Центральная ул, д.37"},null,null,null,null,null,null,null,null,null,null,null,null,null,null,null,null,"Никановская с, Центральная ул, д. 37",null,null,null,null,"Никановская с, Центральная ул, д. 37",null,null,null,null,null,null,null,null,null,null,"Никановская с, Центральная ул, д. 37",null,null,null,null,null,null,"Никановская с, Центральная ул, д. 37",null,null,null,null,null,"Никановская с, Центральная ул, д. 37",null,null,null,null,null,null,null,null,"Никановская с, Центральная ул, д. 37",null,null,null,null,null,"Никановская с, Центральная ул, д. 37",null,null,null,null,null,null,null,"Никановская с, Центральная ул, д. 37",null,null,null,null,null,null,"Никановская с, Центральная ул, д. 37",null,null,null,null,null,null,null,null,"Никановская с, Центральная ул, д. 37",null,null,null,null,"Никановская с, Центральная ул, д. 37",null,null,null,null,null,null,null,null,"Никановская с, Центральная ул, д. 37",null,null,null,null,"Никановская с, Центральная ул, д. 37",null,null,null,null,"Никановская с, Центральная ул, д. 37",null,null,"Никоновская с, Центральная ул, д. 37",null,null,null,null,null,null,null,null,null,null,null,null,"Общий счет РО+"]
[{"$f":"\"Никановская с, Центральная ул, д.39\"","v":"Никановская с, Центральная ул, д.39"},"Никановская с, Центральная ул, д.39","Никановская с, Центральная ул, д.39","Никановская с, Центральная ул, д.39","Никановская с, Центральная ул, д.39","Никановская с, Центральная ул, д.39",null,null,null,null,null,null,null,{"$f":"\"Никановская с, Центральная ул, д.39\"","v":"Никановская с, Центральная ул, д.39"},null,null,null,null,null,null,null,null,null,null,null,null,null,null,null,null,"Никановская с, Центральная ул, д. 39",null,null,null,null,"Никановская с, Центральная ул, д. 39",null,null,null,null,null,null,null,null,null,null,"Никановская с, Центральная ул, д. 39",null,null,null,null,null,null,"Никановская с, Центральная ул, д. 39",null,null,null,null,null,"Никановская с, Центральная ул, д. 39",null,null,null,null,null,null,null,null,"Никановская с, Центральная ул, д. 39",null,null,null,null,null,"Никановская с, Центральная ул, д. 39",null,null,null,null,null,null,null,"Никановская с, Центральная ул, д. 39",null,null,null,null,null,null,"Никановская с, Центральная ул, д. 39",null,null,null,null,null,null,null,null,"Никановская с, Центральная ул, д. 39",null,null,null,null,"Никановская с, Центральная ул, д. 39",null,null,null,null,null,null,null,null,"Никановская с, Центральная ул, д. 39",null,null,null,null,"Никановская с, Центральная ул, д. 39",null,null,null,null,"Никановская с, Центральная ул, д. 39",null,null,"Никоновская с, Центральная ул, д. 39",null,null,null,null,null,null,null,null,null,null,null,null,"Общий счет РО+"]
[{"$f":"\"Шольского с/п, Зубово с, Пролетарская ул, д.18\"","v":"Шольского с/п, Зубово с, Пролетарская ул, д.18"},"Шольского с/п, Зубово с, Пролетарская ул, д.18","Шольского с/п, Зубово с, Пролетарская ул, д.18","Шольского с/п, Зубово с, Пролетарская ул, д.18","Шольского с/п, Зубово с, Пролетарская ул, д.18","Шольского с/п, Зубово с, Пролетарская ул, д.18",null,null,null,null,null,null,null,{"$f":"\"Шольского с/п, Зубово с, Пролетарская ул, д.18\"","v":"Шольского с/п, Зубово с, Пролетарская ул, д.18"},null,null,null,null,null,null,null,null,null,null,null,null,null,null,null,null,"Шольское с/п, Зубово с, Пролетарская ул, д. 18",null,null,null,null,"Шольское с/п, Зубово с, Пролетарская ул, д. 18",null,null,null,null,null,null,null,null,null,null,"Шольское с/п, Зубово с, Пролетарская ул, д. 18",null,null,null,null,null,null,"Шольское с/п, Зубово с, Пролетарская ул, д. 18",null,null,null,null,null,"Шольское с/п, Зубово с, Пролетарская ул, д. 18",null,null,null,null,null,null,null,null,"Шольское с/п, Зубово с, Пролетарская ул, д. 18",null,null,null,null,null,"Шольское с/п, Зубово с, Пролетарская ул, д. 18",null,null,null,null,null,null,null,"Шольское с/п, Зубово с, Пролетарская ул, д. 18",null,null,null,null,null,null,"Шольское с/п, Зубово с, Пролетарская ул, д. 18",null,null,null,null,null,null,null,null,"Шольское с/п, Зубово с, Пролетарская ул, д. 18",null,null,null,null,"Шольское с/п, Зубово с, Пролетарская ул, д. 18",null,null,null,null,null,null,null,null,null,null,null,null,null,null,null,null,null,null,null,null,null,null,null,null,null,null,null,null,null,null,null,null,null,null,"Общий счет РО+518,60","Признан аварийным. Постановление 643 от 18.06.2024","Исключен 07.11.2024"]

{"sheet":"Лист3","index":1,"n_rows":28,"n_cols":2,"rows_kept":28,"cut":false,"hidden":false,"merged":[]}
[]
["Артюшинское с/п, Анашкино д, д. 16","возврат декабрь 2023"]
["Белозерск г, 3 Интернационала ул, д.34","возврат сентябрь 2024"]
["Белозерск г, 3 Интернационала ул, д.7","возврат ноябрь 2020"]
["Белозерск г, 50 лет ВЛКСМ ул, д.3А","возврат сентябрь 2023"]
["Белозерск г, 50 лет ВЛКСМ ул, д.55","возврат сентябрь 2023"]
["Белозерск г, 50 лет ВЛКСМ ул, д.55А","возврат март 2023"]
["Белозерск г, 50 лет ВЛКСМ ул, д.62","возврат декабрь 2021"]
["Белозерск г, 50 лет ВЛКСМ ул, д.79","возврат сентябрь 2022"]
["Белозерск г, 50 лет ВЛКСМ ул, д.81","возврат апрель 2022"]
["Белозерск г, Белозер ул, д.6А","возврат февраль 2024"]
["Белозерск г, Васинова ул, д.51","возврат ноябрь 2020"]
["Белозерск г, Воровского ул, д.3Д","возврат июнь 2023"]
["Белозерск г, Декабристов ул, д.34","возврат май 2024"]
["Белозерск г, Декабристов ул, д.5А","возврат апрель 2022"]
["Белозерск г, Дзержинского ул, д.25А","возврат декабрь 2023"]
["Белозерск г, Карла Маркса ул, д.4А","возврат сентябрь 2024"]
["Белозерск г, Коммунистическая ул, д.48","возврат сентябрь 2021"]
["Белозерск г, Коммунистическая ул, д.70","возврат сентябрь 2023"]
["Белозерск г, Коммунистическая ул, д.78","возврат сентябрь 2023"]
["Белозерск г, Ленина ул, д.102","возврат февраль 2024"]
["Белозерск г, Ленина ул, д.104","возврат декабрь 2022"]
["Белозерск г, Ленина ул, д.97","возврат сентябрь 2023"]
["Белозерск г, Свободы ул, д.56А","возврат сентябрь 2024"]
["Белозерск г, Советский пр-кт, д.20","возврат декабрь 2023"]
["Белозерск г, Труда ул, д.33","возврат сентябрь 2023"]
["Белозерск г, Урицкого ул, д.1","возврат сентябрь 2022"]
["Белозерск г, Юных Коммунаров ул, д.11","возврат май 2024"]

{"sheet":"Лист2","index":2,"n_rows":175,"n_cols":3,"rows_kept":175,"cut":false,"hidden":false,"merged":[]}
[null,null,"Артюшинское с/п, Анашкино д, д. 14"]
[null,null,"Артюшинское с/п, Анашкино д, д. 33"]
[null,null,"Артюшинское с/п, Остров Сладкий д, д. 3"]
[null,null,"Артюшинское с/п, Остров Сладкий д, д. 9"]
[null,null,"Белозерск г, 3-го Интернационала ул, д. 1"]
[null,null,"Белозерск г, 3-го Интернационала ул, д. 14"]
[null,null,"Белозерск г, 3-го Интернационала ул, д. 16"]
[null,null,"Белозерск г, 3-го Интернационала ул, д. 34"]
[null,null,"Белозерск г, 3-го Интернационала ул, д. 83А"]
[null,null,"Белозерск г, 3-го Интернационала ул, д. 85"]
[null,null,"Белозерск г, 3-го Интернационала ул, д. 89"]
[null,null,"Белозерск г, 3-го Интернационала ул, д. 90"]
[null,null,"Белозерск г, 50 лет ВЛКСМ ул, д. 20А"]
[null,null,"Белозерск г, 50 лет ВЛКСМ ул, д. 5А"]
[null,null,"Белозерск г, 50 лет ВЛКСМ ул, д. 94"]
[null,null,"Белозерск г, 50 лет ВЛКСМ ул, д. 96"]
[null,null,"Белозерск г, 50 лет ВЛКСМ ул, д. 9А"]
[null,null,"Белозерск г, Белозер ул, д. 23"]
[null,null,"Белозерск г, Белозер ул, д. 4А"]
[null,null,"Белозерск г, Белозер ул, д. 6А"]
[null,null,"Белозерск г, Белозер ул, д. 8"]
[null,null,"Белозерск г, Васинова ул, д. 51А"]
[null,null,"Белозерск г, Великосельцева ул, д. 18А"]
[null,null,"Белозерск г, Великосельцева ул, д. 27А"]
[null,null,"Белозерск г, Володарского ул, д. 2"]
[null,null,"Белозерск г, Воровского ул, д. 1А"]
[null,null,"Белозерск г, Воровского ул, д. 3А"]
[null,null,"Белозерск г, Воровского ул, д. 3В"]
[null,null,"Белозерск г, Воровского ул, д. 3Е"]
[null,null,"Белозерск г, Галаничева ул, д. 29"]
[null,null,"Белозерск г, Галаничева ул, д. 31"]
[null,null,"Белозерск г, Галаничева ул, д. 36"]
[null,null,"Белозерск г, Декабристов ул, д. 1А"]
[null,null,"Белозерск г, Декабристов ул, д. 21"]
[null,null,"Белозерск г, Дзержинского ул, д. 3"]
[null,null,"Белозерск г, Дзержинского ул, д. 35А"]
[null,null,"Белозерск г, Дзержинского ул, д. 37"]
[null,null,"Белозерск г, Дзержинского ул, д. 38А"]
[null,null,"Белозерск г, Дзержинского ул, д. 39"]
[null,null,"Белозерск г, Дзержинского ул, д. 39А"]
[null,null,"Белозерск г, Дзержинского ул, д. 39Б"]
[null,null,"Белозерск г, Дзержинского ул, д. 3А"]
[null,null,"Белозерск г, Дзержинского ул, д. 45"]
[null,null,"Белозерск г, Дзержинского ул, д. 48"]
[null,null,"Белозерск г, Дзержинского ул, д. 5А"]
[null,null,"Белозерск г, Дзержинского ул, д. 74"]
[null,null,"Белозерск г, Карла Маркса ул, д. 12А"]
[null,null,"Белозерск г, Карла Маркса ул, д. 18"]
[null,null,"Белозерск г, Карла Маркса ул, д. 2"]
[null,null,"Белозерск г, Карла Маркса ул, д. 28А"]
[null,null,"Белозерск г, Карла Маркса ул, д. 28Б"]
[null,null,"Белозерск г, Карла Маркса ул, д. 4"]
[null,null,"Белозерск г, Карла Маркса ул, д. 4А"]
[null,null,"Белозерск г, Карла Маркса ул, д. 4Б"]
[null,null,"Белозерск г, Карла Маркса ул, д. 4Б, корпус 2"]
[null,null,"Белозерск г, Коммунистическая ул, д. 117А"]
[null,null,"Белозерск г, Коммунистическая ул, д. 13"]
[null,null,"Белозерск г, Коммунистическая ул, д. 14"]
[null,null,"Белозерск г, Коммунистическая ул, д. 143"]
[null,null,"Белозерск г, Коммунистическая ул, д. 16"]
[null,null,"Белозерск г, Коммунистическая ул, д. 34"]
[null,null,"Белозерск г, Коммунистическая ул, д. 37"]
[null,null,"Белозерск г, Коммунистическая ул, д. 53"]
[null,null,"Белозерск г, Коммунистическая ул, д. 62А"]
[null,null,"Белозерск г, Коммунистическая ул, д. 62Б"]
[null,null,"Белозерск г, Коммунистическая ул, д. 77"]
[null,null,"Белозерск г, Коммунистическая ул, д. 83"]
[null,null,"Белозерск г, Комсомольская ул, д. 66"]
[null,null,"Белозерск г, Красноармейская ул, д. 60А"]
[null,null,"Белозерск г, Красноармейская ул, д. 61А"]
[null,null,"Белозерск г, Красноармейская ул, д. 69"]
[null,null,"Белозерск г, Красный пер, д. 5"]
[null,null,"Белозерск г, Ленина ул, д. 100А"]
[null,null,"Белозерск г, Ленина ул, д. 102"]
[null,null,"Белозерск г, Ленина ул, д. 102А"]
[null,null,"Белозерск г, Ленина ул, д. 104А"]
[null,null,"Белозерск г, Ленина ул, д. 21"]
[null,null,"Белозерск г, Ленина ул, д. 24"]
[null,null,"Белозерск г, Ленина ул, д. 25"]
[null,null,"Белозерск г, Ленина ул, д. 25А"]
[null,null,"Белозерск г, Ленина ул, д. 33"]
[null,null,"Белозерск г, Ленина ул, д. 60"]
[null,null,"Белозерск г, Ленина ул, д. 61А"]
[null,null,"Белозерск г, Ленина ул, д. 8"]
[null,null,"Белозерск г, Ленина ул, д. 87А"]
[null,null,"Белозерск г, Ленина ул, д. 9"]
[null,null,"Белозерск г, Ленина ул, д. 99"]
[null,null,"Белозерск г, Луначарского ул, д. 24"]
[null,null,"Белозерск г, Луначарского ул, д. 42"]
[null,null,"Белозерск г, Луначарского ул, д. 5"]
[null,null,"Белозерск г, Луначарского ул, д. 56Б"]
[null,null,"Белозерск г, Малоземова ул, д. 39"]
[null,null,"Белозерск г, Малоземова ул, д. 63"]
[null,null,"Белозерск г, Новая ул, д. 41"]
[null,null,"Белозерск г, П.К.Георгиевского наб, д. 39"]
[null,null,"Белозерск г, П.К.Георгиевского наб, д. 40А"]
[null,null,"Белозерск г, П.К.Георгиевского наб, д. 44"]
[null,null,"Белозерск г, П.К.Георгиевского наб, д. 49"]
[null,null,"Белозерск г, П.К.Георгиевского наб, д. 58"]
[null,null,"Белозерск г, П.К.Георгиевского наб, д. 75"]
[null,null,"Белозерск г, П.К.Георгиевского наб, д. 75А"]
[null,null,"Белозерск г, П.К.Георгиевского наб, д. 79"]
[null,null,"Белозерск г, Папанинцев ул, д. 36"]
[null,null,"Белозерск г, Папанинцев ул, д. 66А"]
[null,null,"Белозерск г, Первомайская ул, д. 43"]
[null,null,"Белозерск г, Пионерская ул, д. 16"]
[null,null,"Белозерск г, Пионерская ул, д. 38"]
[null,null,"Белозерск г, Пионерская ул, д. 40"]
[null,null,"Белозерск г, Пионерская ул, д. 43"]
[null,null,"Белозерск г, Пионерская ул, д. 45"]
[null,null,"Белозерск г, Пионерская ул, д. 45А"]
[null,null,"Белозерск г, Пионерская ул, д. 50А"]
[null,null,"Белозерск г, Пионерская ул, д. 59"]
[null,null,"Белозерск г, Пионерская ул, д. 63"]
[null,null,"Белозерск г, Пионерская ул, д. 63А"]
[null,null,"Белозерск г, Пионерская ул, д. 74"]
[null,null,"Белозерск г, Садовый пер, д. 29"]
[null,null,"Белозерск г, Свердлова ул, д. 1"]
[null,null,"Белозерск г, Свободы ул, д. 20"]
[null,null,"Белозерск г, Свободы ул, д. 21А"]
[null,null,"Белозерск г, Свободы ул, д. 22А"]
[null,null,"Белозерск г, Свободы ул, д. 56А"]
[null,null,"Белозерск г, Свободы ул, д. 57"]
[null,null,"Белозерск г, Свободы ул, д. 58А"]
[null,null,"Белозерск г, Свободы ул, д. 60А"]
[null,null,"Белозерск г, Советский пер, д. 4"]
[null,null,"Белозерск г, Советский пер, д. 6"]
[null,null,"Белозерск г, Советский пр-кт, д. 11"]
[null,null,"Белозерск г, Советский пр-кт, д. 1А"]
[null,null,"Белозерск г, Советский пр-кт, д. 1Б"]
[null,null,"Белозерск г, Советский пр-кт, д. 1В"]
[null,null,"Белозерск г, Советский пр-кт, д. 21"]
[null,null,"Белозерск г, Советский пр-кт, д. 2А"]
[null,null,"Белозерск г, Советский пр-кт, д. 31"]
[null,null,"Белозерск г, Советский пр-кт, д. 3А"]
[null,null,"Белозерск г, Советский пр-кт, д. 5А"]
[null,null,"Белозерск г, Советский пр-кт, д. 9"]
[null,null,"Белозерск г, Советский пр-кт, д. 9А"]
[null,null,"Белозерск г, Советский пр-кт, д. 9Б"]
[null,null,"Белозерск г, Труда ул, д. 31"]
[null,null,"Белозерск г, Труда ул, д. 35"]
[null,null,"Белозерск г, хутор Карголом, д. 1"]
[null,null,"Белозерск г, хутор Карголом, д. 2"]
[null,null,"Белозерск г, Чкалова ул, д. 1А"]
[null,null,"Белозерск г, Шукшина ул, д. 15А"]
[null,null,"Белозерск г, Шукшина ул, д. 2"]
[null,null,"Белозерск г, Шукшина ул, д. 22А"]
[null,null,"Белозерск г, Шукшина ул, д. 3"]
[null,null,"Белозерск г, Шукшина ул, д. 5"]
[null,null,"Белозерск г, Энгельса ул, д. 26"]
[null,null,"Белозерск г, Энгельса ул, д. 36"]
[null,null,"Бечевинка с, Молодежная ул, д. 11"]
[null,null,"Бечевинка с, Молодежная ул, д. 3"]
[null,null,"Бечевинка с, Молодежная ул, д. 5"]
[null,null,"Бечевинка с, Молодежная ул, д. 7"]
[null,null,"Бечевинка с, Молодежная ул, д. 9"]
[null,null,"Глушковское с/п, Глушково д, Молодежная ул, д. 36"]
[null,null,"Глушковское с/п, Глушково д, Молодежная ул, д. 37"]
[null,null,"Глушковское с/п, Глушково д, Молодежная ул, д. 38"]
[null,null,"Глушковское с/п, Глушково д, Молодежная ул, д. 39"]
[null,null,"Глушковское с/п, Глушково д, Молодежная ул, д. 40"]
[null,null,"Глушковское с/п, Глушково д, Молодежная ул, д. 42"]
[null,null,"Куностьское с/п, Нижняя Мондома п, Советская ул, д. 15"]
[null,null,"Куностьское с/п, Нижняя Мондома п, Советская ул, д. 17"]
[null,null,"Маэкса с, Свободы ул, д. 1"]
[null,null,"Маэкса с, Свободы ул, д. 102"]
[null,null,"Маэкса с, Свободы ул, д. 11"]
[null,null,"Маэкса с, Свободы ул, д. 15"]
[null,null,"Маэкса с, Свободы ул, д. 7"]
[null,null,"Маэкса с, Свободы ул, д. 85"]
[null,null,"Маэкса с, Свободы ул, д. 87"]
[null,null,"Никановская с, Центральная ул, д. 35"]
[null,null,"Никановская с, Центральная ул, д. 37"]
[null,null,"Никановская с, Центральная ул, д. 39"]
[null,null,"Шольское с/п, Зубово с, Пролетарская ул, д. 18"]